Workbook

Sheet 갑지
A1: 과 장 | D1: 팀 장 | H1: 심사자 | K1: 설계자 | N1: 설 계 | P1: 2021년 1월 일 | R1: 결 재
N2: 심 사 | P2: 2021년 1월 일 | R2: 월 일
C4: 설 계 서
C6: □ 공사명 :
C7: 구 분 | E7: 금 액 | Q7: 비고
C8: 총공사비 | E8: =E11+E12+E13 -> 661114343.2 | K8: ="금"&TEXT(E8,"［dbnum4］g/표준")&"원" -> 금육억육천일백일십일만사천삼백사십삼.일팔사이영오원
C9: 도급비 | D9: 공급가액 | E9: =원가계산서!D31 -> 464649402.9 | K9: ="금"&TEXT(E9,"［dbnum4］g/표준")&"원" -> 금사억육천사백육십사만구천사백이.팔구사칠삼이원
D10: 부가가치세 | E10: =원가계산서!D32 -> 46464940.29 | K10: 금사천육백사십육만사천구백사십.이팔구사칠삼이원
D11: 계 | E11: =원가계산서!D33 -> 511114343.2 | K11: ="금"&TEXT(E11,"［dbnum4］g/표준")&"원" -> 금오억일천일백일십일만사천삼백사십삼.일팔사이영오원
C12: 관급자재비 | E12: =원가계산서!D34 -> 150000000 | K12: 금일억오천만원
C13: 이 전 비 | E13: =원가계산서!D35 -> 0 | K13: 금영원
C15: ○ 공 사 개 요
C16: o 흄관부설 D300㎜, L = | G16: m | J16: o 조립식간이흙막이(H 1.7×B 1.7) L = | P16: m
C17: o 흄관부설 D600㎜, L = | G17: m | J17: o 조립식간이흙막이(H 1.8×B 1.8) L = | P17: m
C18: o 흄관부설 D700㎜, L = | G18: m | J18: o 아스팔트절삭후덧씌우기 A = | P18: a

Sheet 원가계산서
A1: [원가계산서]
A2: 비 목 | B2: 산출근거 | C2: 요율 | D2: 금액 | F2: 공사기간
A3: 직접재료비 | D3: =내역서!H5 -> 50325018 | F3: 연간단가
A4: 작업부산물 | D4: 0 | F4: 공사분야
A5: 재료비 소계 | D5: =D3+D4 -> 50325018 | F5: 토목
A6: 직접노무비 | D6: =내역서!J5 -> 209281554 | F6: 산업안전보건관리비 적용시 건설업 분류
A7: 간접노무비 | B7: [직접노무비]의 | C7: =IF(($D$3+$D$6+$D$9)<5000000000,IF(F5=C40,VLOOKUP($F$3,$B$41:$C$45,2,FALSE),IF(F5=D40,VLOOKUP($F$3,$B$41:$D$45,3,FALSE),0)),IF(30000000000>($D$3+$D$6+$D$9)>=5000000000,IF(F5=C40,VLOOKUP($F$3,B46:C49,2,FALSE),IF(F5=D40,VLOOKUP($F$3,B46:D49,3,FALSE),0)))) -> 12.7 | D7: =D6*C7% -> 26578757.36 | F7: 일반건설 갑
A8: 노무비 소계 | D8: =D6+D7 -> 235860311.4 | F8: 환경보전비
A9: 산출경비 | D9: =내역서!L5 -> 29342702 | F9: 기타토목(하천등)
A10: 산재보험료 | B10: [노무비] 의 | C10: =F41 -> 3.7 | D10: =D8*C10% -> 8726831.52 | F10: 건설기계대여대금
A11: 고용보험료 | B11: [노무비] 의 | C11: =H47 -> 0.87 | D11: =D8*C11% -> 2051984.709 | F11: 준설,포장공사, 토공사,비계구조물해제
A12: 건강보험료 | B12: [직접노무비]의 | C12: =I41 -> 3.43 | D12: =D6*C12% -> 7178357.302 | F12: 일반관리비
A13: 노인장기요양보험료 | B13: [건강보험료]의 | C13: =K41 -> 11.52 | D13: =D12*C13% -> 826946.7612 | F13: 전문공사
A14: 연금보험료 | B14: [직접노무비]의 | C14: =J41 -> 4.5 | D14: =D6*C14% -> 9417669.93 | F14: 예상추정가격(원)
A15: 퇴직공제부금비 | B15: [직접노무비]의 | C15: =IF((F15*1.1+D34)>=300000000,K52,0) -> 2.3 | D15: =D6*C15% -> 4813475.742 | F15: 149700000
A16: 산업안전보건관리비 | B16: ※관급포함시: ⓑ와 ⓒ 비교후 적은금액 적용 | D16: =IF(D34="",D17,MIN(D18,D19)) -> 9127767.072
A17: a. 관급없는 경우 | B17: [재료비+직접노무비] 의 | D17: =IF(AND(D34="",(D5+D6)<500000000),SUM(D5+D6)*VLOOKUP(F7,O41:P45,2,0)%,IF(AND(D34="",500000000<=(D5+D6),(D5+D6)<5000000000),SUM(SUM(D5+D6)*VLOOKUP(F7,O46:P50,2,0)%+VLOOKUP(F7,O46:Q50,3,0)),IF(AND(D34="",(D5+D6)>=5000000000),SUM(D5+D6)*VLOOKUP(F7,O54:P58,2,0)%))) -> FALSE
A18: b. a의 1.2배 | D18: =IF(AND(D34<>"",(D5+D6+D34)<500000000),SUM(D5+D6)*VLOOKUP(F7,O41:P45,2,0)%*1.2,IF(AND(D34<>"",500000000<=(D5+D6+D34),(D5+D6+D34)<5000000000),SUM((SUM(D5+D6)*VLOOKUP(F7,O46:P50,2,0)%)+VLOOKUP(F7,O46:Q50,3,0))*1.2,IF(AND(D34<>"",(D5+D6+D34)>=5000000000),SUM(D5+D6)*VLOOKUP(F7,O54:P58,2,0)%*1.2))) -> 9127767.072
A19: c. 관급포함인 경우 | B19: [재료비+직접노무비+관급자재]의 | D19: =IF(AND(D34<>"",(D5+D6+D34)<500000000),SUM(D5+D6+D34)*VLOOKUP(F7,O41:P45,2,0)%,IF(AND(D34<>"",500000000<=(D5+D6+D34),(D5+D6+D34)<5000000000),SUM(SUM(D5+D6+D34)*VLOOKUP(F7,O46:P50,2,0)%+VLOOKUP(F7,O46:Q50,3,0)),IF(AND(D34<>"",(D5+D6+D34)>=5000000000),SUM(D5+D6+D34)*VLOOKUP(F7,O54:P58,2,0)%))) -> 12001472.56
A20: 기타경비 | B20: [재료비+노무비] 의 | C20: =IF(($D$3+$D$6+$D$9)<5000000000,IF(F5=U39,VLOOKUP($F$3,T41:U45,2,FALSE),IF(F5=V39,VLOOKUP($F$3,T41:V45,3,FALSE),0)),IF(30000000000>($D$3+$D$6+$D$9)>=5000000000,IF(F5=U39,VLOOKUP($F$3,T46:U49,2,FALSE),IF(F5=V39,VLOOKUP($F$3,T46:V49,3,FALSE),0)))) -> 8.8 | D20: =(D5+D8)*C20% -> 25184308.98
A21: 공사이행보증수수료 | B21: [재료비+직접노무비+산출경비]의 | D21: 0
A22: 건설하도급발급수수료 | B22: [재료비+직접노무비+산출경비]의 | C22: =Y41 -> 0.081 | D22: =(D5+D6+D9)*C22% -> 234048.9119
A23: 환경보전비 | B23: [재료비+직접노무비+산출경비]의 | C23: =VLOOKUP($F$9,R41:S54,2,FALSE) -> 0.8 | D23: =(D5+D6+D9)*C23% -> 2311594.192
A24: 건설기계대여대금 | B24: [재료비+직접노무비+산출경비]의 | C24: =VLOOKUP($F$11,L42:M57,2,FALSE) -> 0.68 | D24: =(D5+D6+D9)*C24% -> 1964855.063
A25: 경비 소계 | D25: =SUM(D9:D16,D20:D24) -> 101180542.2
A26: 순공사원가 | D26: =D5+D8+D25 -> 387365871.5
A27: 일반관리비 | B27: [재료비+노무비+경비] 의 | C27: =IF(F3="연간단가",AD41,VLOOKUP(F15,IF(F13=AB45,AC45:AD48,AC41:AD44),2)) -> 6 | D27: =(D5+D8+D25)*C27% -> 23241952.29
A28: 이윤 | B28: [노무비+경비+일반관리비] | C28: =IF(F15<5000000000,AF41,IF(AND(5000000000<=F15,F15<30000000000),AF42,0)) -> 15 | D28: =(D8+D25+D27)*C28%-926/1.1 -> 54041579.06
A29: 고용개선지원비 | B29: (주휴수당+국민연금,건강보험료 지원+고용개선장려금+단말기 비용)
A30: 제요율적용제외공종
A31: 총공사원가 | D31: =SUM(D26:D29) -> 464649402.9
A32: 부가가치세 | C32: 10 | D32: =D31*C32% -> 46464940.29
A33: 도급금액 | D33: =SUM(D31:D32) -> 511114343.2
A34: 관급자재대 | D34: 150000000
A35: 이전비
B36: 2021년 토목 · 조경 · 산업환경설비공사 원가계산 제비율 적용기준
A37: ※ 적용시기 : 2021.1. 6 기초금액발표분부터
A38: 공사규모 | B38: 공사기간 | C38: 간접노무비 | F38: 산재보험료 | G38: 고용보험료 | I38: 건강보험료 | J38: 연금보험료 | K38: 노인장기요양보험료 | L38: 건설기계대여대금 지급보증서 발급금액 | N38: 산업안전보건관리비 | Q38: 원 | R38: 환경보전비 | U38: 기타경비(재+직노+간노)×율 | X38: 건설하도급대금지급보증서 발급수수료 | Z38: 공사이행보증수수료 | AB38: 일반관리비 | AE38: 이윤
C39: (직노)×율 | F39: (노)×율 | G39: (직노+간노)×율 | I39: (직노)×율 | J39: (직노)×율 | K39: (건강보험료)×율 | N39: 공사규모 | O39: (재+직노+관급자재)×율 | R39: (재+직노+산경)×율 | U39: 토목 | V39: 조경 | W39: 산업설비
C40: 토목 | D40: 조경 | E40: 산업설비 (토목) | L40: (재+직노+산경)×율 | U40: a | V40: b | W40: c | X40: (재+직노+산경)×율 | AB40: (재+노+총경)×율 | AE40: (직노+간노+총경+일관)×율
A41: 50억미만 | B41: 6개월이하 (183일) | C41: 12.7 | D41: 11.5 | E41: 12.7 | F41: 3.7 | G41: 1등급 | H41: 1.39 | I41: 3.43 | J41: 4.5 | K41: 11.52 | N41: 5억 미만 | O41: 일반건설 갑 | P41: 2.93 | R41: 도로 (교량, 터널, 활주로) | S41: 0.9 | T41: 6개월이하 (183일) | U41: 8.8 | V41: 7.8 | W41: 8.8 | X41: 50억 미만 | Y41: 0.081 | AB41: 토목,조경, 산업설비 | AC41: 0 | AD41: 6 | AE41: 50억 미만 | AF41: 15
B42: 7-12개월 (365일) | C42: 13 | D42: 11.8 | E42: 13 | G42: 2등급 | H42: 1.17 | L42: 토목(토건) | M42: 0.4 | O42: 일반건설 을 | P42: 3.09 | R42: 플랜트(발전소,쓰레기소각로) | S42: 0.4 | T42: 7-12개월 (365일) | U42: 9.1 | V42: 8.1 | W42: 9.1 | X42: 50억~100억 | Y42: 0.08 | AC42: 5000000000 | AD42: 5.5 | AE42: 50~300억 미만 | AF42: 12
B43: 13-36개월 (1095일) | C43: 13 | D43: 11.8 | E43: 13 | G43: 3등급 | H43: 0.97 | L43: 산업,설비공사 | M43: 0.16 | O43: 특수 및 기타 | P43: 1.85 | R43: 지하철 | S43: 0.5 | T43: 13-36개월 (1095일) | U43: 10 | V43: 9 | W43: 10 | X43: 100억~300억 | Y43: 0.075 | AC43: 30000000000 | AD43: 5 | AE43: 300~1000억 미만 | AF43: 10
B44: 36개월 초과 (1096일) | C44: 12.9 | D44: 11.7 | E44: 12.9 | G44: 4등급 | H44: 0.92 | L44: 조경공사 | M44: 0.18 | O44: 철도궤도 | P44: 2.45 | R44: 철도 | S44: 1.5 | T44: 36개월 초과 (1096일) | U44: 10 | V44: 9.5 | W44: 10.5 | X44: 300억 이상 토목및산업설비 | Y44: 0.071 | AC44: 100000000000 | AD44: 4.5 | AE44: 1000억이상 | AF44: 9
B45: 연간단가 | C45: 12.7 | D45: 11.5 | E45: 12.7 | G45: 5등급 | H45: 0.89 | O45: 중건설 | P45: 3.43 | R45: 상하수도(폐수,하수처리장,정수장) | S45: 0.5 | T45: 연간단가 | U45: 8.8 | V45: 7.8 | W45: 8.8 | X45: 300억 이상 건축 | Y45: 0.068 | AB45: 전문공사 | AC45: 0 | AD45: 6
A46: 50억-300억 | B46: 6개월이하 (183일) | C46: 12.7 | D46: 11.5 | E46: 12.7 | G46: 6등급 | H46: 0.88 | L46: 준설,포장공사, 토공사,비계구조물해제 | M46: 0.68 | N46: 5억~50억 미만 | O46: 일반건설 갑 | P46: 1.86 | Q46: 5349000 | R46: 항만(오탁,준설토,방지막설치필요시, 간척, 준설, | S46: 1.8 | T46: 6개월이하 (183일) | U46: 10.2 | V46: 9.2 | W46: 10.2 | X46: 턴키(대안)공사 | Y46: 0.084 | AC46: 500000000 | AD46: 5.5
A47: 미만 | B47: 7-12개월 (365일) | C47: 12.9 | D47: 11.8 | E47: 12.9 | G47: 7등급이하 | H47: 0.87 | L47: 상하수도설비, 수중공사, 보링그라우팅공사 | M47: 0.51 | O47: 일반건설 을 | P47: 1.99 | Q47: 5499000 | R47: 항만(방지막 불필요시,간척,준설) | S47: 0.8 | T47: 7-12개월 (365일) | U47: 10.5 | V47: 9.5 | W47: 10.5 | AC47: 3000000000 | AD47: 5
B48: 13-36개월 (1095일) | C48: 13 | D48: 11.8 | E48: 13 | O48: 특수 및 기타 | P48: 1.2 | Q48: 3250000 | R48: 댐 | S48: 1.1 | T48: 13-36개월 (1095일) | U48: 11.4 | V48: 10.4 | W48: 11.4 | AC48: 10000000000 | AD48: 4.5
B49: 36개월 초과 (1096일) | C49: 12.9 | D49: 11.7 | E49: 12.9 | K49: 퇴직공제부금비 | O49: 철도궤도 | P49: 1.57 | Q49: 4411000 | R49: 택지개발 | S49: 0.6 | T49: 36개월 초과 (1096일) | U49: 11.9 | V49: 10.9 | W49: 11.9
A50: 300억-1000억 | B50: 6개월이하 (183일) | C50: 12.5 | D50: 11.3 | E50: 12.5 | K50: (직노)×율 | O50: 중건설 | P50: 2.35 | Q50: 5400000 | R50: 주택(재개발, 재건축) | S50: 0.7 | T50: 6개월이하 (183일) | U50: 9.1 | V50: 8.1 | W50: 9.1
A51: 미만 | B51: 7-12개월 (365일) | C51: 12.7 | D51: 11.6 | E51: 12.7 | R51: 주택(신축) | S51: 0.3 | T51: 7-12개월 (365일) | U51: 9.4 | V51: 8.4 | W51: 9.4
B52: 13-36개월 (1095일) | C52: 12.8 | D52: 11.6 | E52: 12.8 | K52: 2.3 | L52: 석공사,시설물유지관리, 철근콘크리트 | M52: 0.32 | R52: 주택(재개발, 재건축 ,주택(신축)) 외 건축 | S52: 0.5 | T52: 13-36개월 (1095일) | U52: 10.3 | V52: 9.3 | W52: 10.3
B53: 36개월 초과 (1096일) | C53: 12.7 | D53: 11.5 | E53: 12.7 | R53: 조경 | S53: 0.3 | T53: 36개월 초과 (1096일) | U53: 10.8 | V53: 9.8 | W53: 10.8
A54: 1000억 이상 | B54: 6개월이하 (183일) | C54: 11.8 | D54: 10.7 | E54: 11.8 | N54: 50억 이상 | O54: 일반건설 갑 | P54: 1.97 | R54: 기타토목(하천등) | S54: 0.8 | T54: 6개월이하 (183일) | U54: 8.1 | V54: 7.1 | W54: 8.1
B55: 7-12개월 (365일) | C55: 12.1 | D55: 10.9 | E55: 12.1 | L55: 조경시설물,조경식재,도장,철도궤도,철강재설치 | M55: 0.16 | O55: 일반건설 을 | P55: 2.1 | T55: 7-12개월 (365일) | U55: 8.4 | V55: 7.4 | W55: 8.4
B56: 13-36개월 (1095일) | C56: 12.1 | D56: 11 | E56: 12.1 | O56: 특수 및 기타 | P56: 1.27 | T56: 13-36개월 (1095일) | U56: 9.3 | V56: 8.3 | W56: 9.3
B57: 36개월 초과 (1096일) | C57: 12 | D57: 10.9 | E57: 12 | L57: 그외 | M57: 0.1 | O57: 철도궤도 | P57: 1.66 | T57: 36개월 초과 (1096일) | U57: 9.8 | V57: 8.8 | W57: 9.8
O58: 중건설 | P58: 2.44
A61: □ 공사이행보증수수료 70억원(직접공사비) 미만 : [직접공사비×0.0355%]×공기(년)
A62: 70억원(직접공사비) 이상 ~ 120억원(직접공사비) 미만 : [2백만원+(직접공사비-50억원)×0.0235%]×공기(년)
A63: 120억원(직접공사비) 이상 ~ 250억원(직접공사비) 미만 : [4백만원+(직접공사비-140억원)×0.0193%]×공기(년)
A64: 250억원(직접공사비) 이상 ~ 500억원(직접공사비) 미만 : [6백만원+(직접공사비-250억원)×0.0159%]×공기(년)
A65: 500억원(직접공사비) 이상 : [10백만원+(직접공사비-500억원)×0.0126%]×공기(년)
A66: □ 건설하도급대금지급보증서발급수수료 : 50억(추정가격)미만 : 0.081%, 50억～100억(추정가격)미만 : 0.080%, 100억～300억(추정가격)미만 : 0.075%
A67: (직접공사비)×율 300억(추정가격)이상 (최저가낙찰대상공사 포함) 토목 및 산업설비 : 0.071%, 건축 : 0.068%, 턴키,대안공사 : 0.084%
A68: ※ 하도급대금지급보증서발급금액적용기준고시(국토부고시 제2016-921호, 2016.12.19)
A69: □ 건설근로자퇴직공제부금비 : 국토부 고시 제2015-610호 고시 요율 적용
A70: □ 건설기계대여대금 지급보증서 발급금액 : 국토부 고시 제2019-286호(2019.6.19) 적용
A71: □ 산업안전보건관리비 적용 시 건설업의 분류 : 고용노동부고시 제2020-63호(2020.1.23.) 참조
A72: ○ 일반건설(갑) : 건축건설, 교량건설, 도로신설, 철도,궤도의 보수복구공사, 기설로면에 레일만 부설하는 공사, 지하10m 이내 복개식 지하도, 지하철도, 지하상가, 통신선로 등 인입통신구 신설공사, 기타건설공사(다른 것에 분류하지 아니한 건설공사)
A73: ○ 일반건설(을) : 기계장치공사, 삭도건설공사, 공해방지시설 및 폐수처리시설 공사 ○ 철도 또는 궤도신설 : 철도,궤도신설(기설노반 또는 구조물에 한함) 및 그에 따른 역사, 과선교,송전선로
A74: ○ 중건설 : 높이20m이상의 고제방(댐), 방파제, 안벽, 수력발전시설 신설공사, 터널, 지하10m이상 복개식 지하철도, 지하도, 인입통신구(지하상가 및 통신선로 등) 신설공사
A75: ○ 특수 및 기타건설 : 준설, 조경(전문포함), 택지조성(경지정리포함), 포장의 단독발주공사에 한함[타공사와 병행하는 경우: 일반건설(갑) 적용]
A76: □ 비목별 공사규모 및 적용대상
A77: ○ 간접노무비 및 기타경비 : <재료비+직접노무비+산출경비>의 합계액
A78: ○ 산업안전보건관리비 : <재료비(관급포함) + 직접노무비>의 합계액, 공사금액(도급금액+관급금액) 4천만원이상 건설공사
A79: ○ 일반관리비, 이윤 : 추정가격 기준
A80: - 산재,고용보험료 : 모든 건설공사에 적용(주택건설사업자,건설업자,전기공사업자,정보통신공사업자,소방시설업자,문화재수리업자)
A81: 다만, 총금사금액[(도급금액+관급재료)에서 부가세 제외] 2천만원 미만의 건설공사를 건설업자가 아닌 자가 시공 시 적용 제외
A82: (고용노동부 고시 제 2018-90호, 국토교통부 고시 제2018-462호)
A83: - 건강,연금보험료 : 공사기간 1개월(30일) 이상 모든 공사에 반영(사회보험의 보험료적용기준 국토부고시 제2018-462호) 정산조건은 ‘18.08.01.입찰공고부터
A84: - 노인장기요양보험료 : 공사기간 1개월(30일) 이상 모든 공사에 반영(사회보험의 보험료적용기준 국토부고시 제2018-462호) ‘18.08.01.입찰공고부터 적용
A85: - 퇴직공제부금비 : 추정금액 3억원이상 건설공사(국토부 고시 제2015-610호)
A86: - 공사이행보증수수료 : 추정가격 300억원 이상 공사(국가계약법시행령 제52조제1항), 시행령 제6장 및 제8장에 따른 공사계약인 경우
A87: - 환경보전비 : 건설공사현장에 설치하는 환경오염방지시설의 설치 및 운영에 소요되는 비용(환경보전비)은 건설기술진흥법 시행규칙 [별표8] 환경관리비 세부 산출기준 제1호 가목에 해당하는 요율 이상을 적용하여 계상하되, 표준품셈 등 원가계산에 따라 산출한 환경보전비를 포함한다.
A88: □ 토목공사 유자격자 등급별 금액(추정금액기준)
A89: 1등급 : 1700억이상, 2등급 : 1700억～950억이상
A90: 3등급 : 950억～550억이상, 4등급 : 550억～400억이상
A91: 5등급 : 400억∼220억이상, 6등급 : 220억∼140억이상
A92: 7등급 : 140억∼78억(고시금액)이상
A93: ※ 추정금액=추정가격+관급액+부가세
A95: □ 기타경비 항목 : 수도광열비, 복리후생비, 소모품비 및
A96: 사무용품비, 여비, 교통통신비, 세금과공과, 도서인쇄비,
A98: □ 산업설비(토목) 해당공종 : 수처리시설(오폐수,하수처리, 분뇨처리, 정수장) 등
A100: □ 2000.7.31이후 수의계약시 1차 낙찰율 ( )7.31이전
A101: &#8228;추정가격10억미만으로 87.75%(85%)미만인 경우:87.75%(85%)
A102: &#8228;추정가격10억～50억미만으로 86.75%(83%)미만인 경우:86.75%(83%)
A103: &#8228;추정가격50억～100억미만으로 85.5%(80%)미만인 경우:85.5%(80%)
A106: □ 고용보험료 적용기준(국토부고시 제2013-738호)
A107: &#8228;일반(등급)공사 : 해당등급 요율적용
A108: &#8228;PQ,실적대상 : 공사금액에 따라 해당등급(토목,건축구분)
A109: &#8228;수의계약대상 : 해당업체 시평액의 등급 요율적용
A110: &#8228;기 타 공 사 : 공사금액에 따라 해당등급 요율적용
A112: □ 전기&#8228;통신&#8228;소방&#8228;전문 및 기타공사의 경우 일반관리비
A113: 요율을 제외한 각종 제비율은 주 공종을 따라 적용

Sheet 내역서
A1: 예 산 내 역 서
A3: 공 종 | B3: 규 격 | C3: 수량 | D3: 단위 | E3: 합 계 | G3: 재 료 비 | I3: 노 무 비 | K3: 경 비 | M3: 비고 | N3: 호표번호
E4: 단 가 | F4: 금 액 | G4: 단 가 | H4: 금 액 | I4: 단 가 | J4: 금 액 | K4: 단 가 | L4: 금 액
A5: 순 공 사 비 | C5: 1 | D5: 식 | F5: =SUM(F8:F463) -> 288949274 | H5: =SUM(H8:H463) -> 50325018 | J5: =SUM(J8:J463) -> 209281554 | L5: =SUM(L8:L463) -> 29342702
A7: 1. 토공 | C7: 1 | D7: 식
A8: 포장절단 | B8: 1차로 | C8: 1 | D8: m | E8: =G8+I8+K8 -> 1590 | F8: =H8+J8+L8 -> 1590 | G8: =일위대가!H2206 -> 649 | H8: =TRUNC(C8*G8,0) -> 649 | I8: =일위대가!J2206 -> 891 | J8: =TRUNC(C8*I8,0) -> 891 | K8: =일위대가!L2206 -> 50 | L8: =TRUNC(C8*K8,0) -> 50 | M8: 1001 | N8: 제02360호표 | O8: 1 | DM8: BKF6300
A9: 포장깨기[아스팔트] | B9: 인력 | C9: 1 | D9: ㎥ | E9: 286007 | F9: 286007 | G9: =일위대가!H2165 -> 13619 | H9: 13619 | I9: =일위대가!J2165 -> 272388 | J9: 272388 | K9: =일위대가!L2165 -> 0 | L9: 0 | M9: 1002 | N9: 제02300호표 | O9: 1 | DM9: BDB2210
A10: 포장깨기[아스팔트] | B10: 소형브레이카+공기압축기 | C10: 1 | D10: ㎥ | E10: 93207 | F10: 93207 | G10: =일위대가!H2173 -> 3695 | H10: 3695 | I10: =일위대가!J2173 -> 88319 | J10: 88319 | K10: =일위대가!L2173 -> 1193 | L10: 1193 | M10: 1003 | N10: 제02310호표 | O10: 1 | DM10: BDB2220
A11: 포장깨기[콘크리트] | B11: 인력 | C11: 1 | D11: ㎥ | E11: 338693 | F11: 338693 | G11: =일위대가!H2178 -> 16128 | H11: 16128 | I11: =일위대가!J2178 -> 322565 | J11: 322565 | K11: =일위대가!L2178 -> 0 | L11: 0 | M11: 1004 | N11: 제02320호표 | O11: 1 | DM11: BDB2110
A12: 포장깨기[콘크리트] | B12: 소형브레이카+공기압축기 | C12: 1 | D12: ㎥ | E12: 121784 | F12: 121784 | G12: =일위대가!H2186 -> 5644 | H12: 5644 | I12: =일위대가!J2186 -> 114376 | J12: 114376 | K12: =일위대가!L2186 -> 1764 | L12: 1764 | M12: 1005 | N12: 제02330호표 | O12: 1 | DM12: BDB2120
A13: 포장깨기[아스팔트] | B13: 굴삭기0.2㎥+브레이카 | C13: 1 | D13: ㎥ | E13: 20931 | F13: 20931 | G13: =단가산출!CY3709 -> 2,126 | H13: 2126 | I13: =단가산출!CZ3709 -> 15,106 | J13: 15106 | K13: =단가산출!DA3709 -> 3,699 | L13: 3699 | M13: 1006 | N13: 산근00831호표 | O13: 1 | DM13: SDB2232-1
A14: 포장깨기[아스팔트] | B14: 굴삭기0.4㎥+브레이카 | C14: 1 | D14: ㎥ | E14: =G14+I14+K14 -> 14343 | F14: =H14+J14+L14 -> 14343 | G14: =단가산출!CY3746 -> 2,426 | H14: =TRUNC(C14*G14,0) -> 2426 | I14: =단가산출!CZ3746 -> 8,976 | J14: =TRUNC(C14*I14,0) -> 8976 | K14: =단가산출!DA3746 -> 2,941 | L14: =TRUNC(C14*K14,0) -> 2941 | M14: 1007 | N14: 산근00832호표 | O14: 1 | DM14: SDB2232-1
A15: 포장깨기[아스팔트] | B15: 굴삭기0.6㎥+브레이카 | C15: 1 | D15: ㎥ | E15: 6831 | F15: 6831 | G15: =단가산출!CY3672 -> 1,151 | H15: 1151 | I15: =단가산출!CZ3672 -> 3,870 | J15: 3870 | K15: =단가산출!DA3672 -> 1,810 | L15: 1810 | M15: 1008 | N15: 산근00830호표 | O15: 1 | DM15: SDB2232-1
A16: 포장깨기[아스팔트] | B16: 굴삭기0.7㎥+브레이카 | C16: 1 | D16: ㎥ | E16: 7138 | F16: 7138 | G16: =단가산출!CY3783 -> 1,278 | H16: 1278 | I16: =단가산출!CZ3783 -> 3,870 | J16: 3870 | K16: =단가산출!DA3783 -> 1,990 | L16: 1990 | M16: 1009 | N16: 산근00840호표 | O16: 1 | DM16: SDB2233
A17: 포장깨기[아스팔트] | B17: 굴삭기0.8㎥+브레이카 | C17: 1 | D17: ㎥ | E17: 7805 | F17: 7805 | G17: =단가산출!CY3820 -> 1,645 | H17: 1645 | I17: =단가산출!CZ3820 -> 3,870 | J17: 3870 | K17: =단가산출!DA3820 -> 2,290 | L17: 2290 | M17: 1010 | N17: 산근00850호표 | O17: 1 | DM17: SDB2234
A18: 포장파쇄[아스팔트] | B18: 소형 | C18: 1 | D18: M | E18: 4262 | F18: 4262 | G18: =단가산출!CY3859 -> 424 | H18: 424 | I18: =단가산출!CZ3859 -> 2,548 | J18: 2548 | K18: =단가산출!DA3859 -> 1,290 | L18: 1290 | M18: 1011 | N18: 산근00860호표 | O18: 1 | DM18: S000-0140
A19: 포장깨기[콘크리트] | B19: 굴삭기0.2㎥+브레이카 | C19: 1 | D19: ㎥ | E19: 48943 | F19: 48943 | G19: =단가산출!CY3896 -> 4,886 | H19: 4886 | I19: =단가산출!CZ3896 -> 35,391 | J19: 35391 | K19: =단가산출!DA3896 -> 8,666 | L19: 8666 | M19: 1012 | N19: 산근00870호표 | O19: 1 | DM19: SDB2131
A20: 포장깨기[콘크리트] | B20: 굴삭기0.4㎥+브레이카 | C20: 1 | D20: ㎥ | E20: 29930 | F20: 29930 | G20: =단가산출!CY3933 -> 5,013 | H20: 5013 | I20: =단가산출!CZ3933 -> 18,768 | J20: 18768 | K20: =단가산출!DA3933 -> 6,149 | L20: 6149 | M20: 1013 | N20: 산근00880호표 | O20: 1 | DM20: SDB2132
A21: 포장깨기[콘크리트] | B21: 굴삭기0.6㎥+브레이카 | C21: 1 | D21: ㎥ | E21: 27332 | F21: 27332 | G21: =단가산출!CY3970 -> 4,605 | H21: 4605 | I21: =단가산출!CZ3970 -> 15,483 | J21: 15483 | K21: =단가산출!DA3970 -> 7,244 | L21: 7244 | M21: 1014 | N21: 산근00890호표 | O21: 1 | DM21: SDB2132-1
A22: 포장깨기[콘크리트] | B22: 굴삭기0.7㎥+브레이카 | C22: 1 | D22: ㎥ | E22: 24833 | F22: 24833 | G22: =단가산출!CY4007 -> 4,445 | H22: 4445 | I22: =단가산출!CZ4007 -> 13,464 | J22: 13464 | K22: =단가산출!DA4007 -> 6,924 | L22: 6924 | M22: 1015 | N22: 산근00900호표 | O22: 1 | DM22: SDB2133
A23: 포장깨기[콘크리트] | B23: 굴삭기0.8㎥+브레이카 | C23: 1 | D23: ㎥ | E23: 24021 | F23: 24021 | G23: =단가산출!CY4044 -> 5,064 | H23: 5064 | I23: =단가산출!CZ4044 -> 11,910 | J23: 11910 | K23: =단가산출!DA4044 -> 7,047 | L23: 7047 | M23: 1016 | N23: 산근00910호표 | O23: 1 | DM23: SDB2134
A24: 파쇄물처리상차[인력] | B24: 상차 | C24: 1 | D24: ㎥ | E24: 18812 | F24: 18812 | G24: =단가산출!CY4195 -> 0 | H24: 0 | I24: =단가산출!CZ4195 -> 18,812 | J24: 18812 | K24: =단가산출!DA4195 -> 0 | L24: 0 | M24: 1017 | N24: 산근00960호표 | O24: 1 | DM24: S0045
A25: 파쇄물처리상차[기계] | B25: 굴삭기0.2㎥ | C25: 1 | D25: ㎥ | E25: 9201 | F25: 9201 | G25: =단가산출!CY4143 -> 1,121 | H25: 1121 | I25: =단가산출!CZ4143 -> 6,301 | J25: 6301 | K25: =단가산출!DA4143 -> 1,779 | L25: 1779 | M25: 1018 | N25: 산근00940호표 | O25: 1 | DM25: S0043
A26: 파쇄물처리상차[기계] | B26: 굴삭기0.4㎥ | C26: 1 | D26: ㎥ | E26: 5366 | F26: 5366 | G26: =단가산출!CY4110 -> 1,119 | H26: 1119 | I26: =단가산출!CZ4110 -> 3,150 | J26: 3150 | K26: =단가산출!DA4110 -> 1,097 | L26: 1097 | M26: 1019 | N26: 산근00930호표 | O26: 1 | DM26: S0041
A27: 파쇄물처리상차[기계] | B27: 굴삭기0.7㎥ | C27: 1 | D27: ㎥ | E27: 3816 | F27: 3816 | G27: =단가산출!CY4077 -> 833 | H27: 833 | I27: =단가산출!CZ4077 -> 2,000 | J27: 2000 | K27: =단가산출!DA4077 -> 983 | L27: 983 | M27: 1020 | N27: 산근00920호표 | O27: 1 | DM27: S0039
A28: 폐기물상차비 | B28: 적치장상차[굴삭기0.7㎥] | C28: 1 | D28: TON | E28: 1492 | F28: 1492 | G28: =단가산출!CY4178 -> 782 | H28: 782 | I28: =단가산출!CZ4178 -> 326 | J28: 326 | K28: =단가산출!DA4178 -> 384 | L28: 384 | M28: 1021 | N28: 산근00950호표 | O28: 1 | DM28: S0128
A29: 파쇄물 절취및집적[보도용블록] | B29: 굴삭기 0.2㎥ | C29: 1 | D29: ㎥ | E29: 7672 | F29: 7672 | G29: =단가산출!CY4950 -> 935 | H29: 935 | I29: =단가산출!CZ4950 -> 5,254 | J29: 5254 | K29: =단가산출!DA4950 -> 1,483 | L29: 1483 | M29: 1022 | N29: 산근01130호표 | O29: 1 | DM29: S000-0170-1
A30: 파쇄물 절취및집적[보도용블록] | B30: 굴삭기 0.4㎥ | C30: 1 | D30: ㎥ | E30: 4472 | F30: 4472 | G30: =단가산출!CY4977 -> 933 | H30: 933 | I30: =단가산출!CZ4977 -> 2,625 | J30: 2625 | K30: =단가산출!DA4977 -> 914 | L30: 914 | M30: 1023 | N30: 산근01140호표 | O30: 1 | DM30: S000-0171-1
A31: 인력 흙다지기 | B31: 토사[15cm] | C31: 1 | D31: ㎥ | E31: 19753 | F31: 19753 | G31: =일위대가!H1474 -> 0 | H31: 0 | I31: =일위대가!J1474 -> 19753 | J31: 19753 | K31: =일위대가!L1474 -> 0 | L31: 0 | M31: 1025 | N31: 제01480호표 | O31: 1 | DM31: B0048
A32: 굴착[인력,보통토사] | B32: 굴착깊이 0∼1M | C32: 1 | D32: ㎥ | E32: 28219 | F32: 28219 | G32: =일위대가!H1970 -> 0 | H32: 0 | I32: =일위대가!J1970 -> 28219 | J32: 28219 | K32: =일위대가!L1970 -> 0 | L32: 0 | M32: 1026 | N32: 제02090호표 | O32: 1 | DM32: BDD1101
A33: 굴착[인력,경질토사] | B33: 굴착깊이 0∼1M | C33: 1 | D33: ㎥ | E33: 36684 | F33: 36684 | G33: =일위대가!H1966 -> 0 | H33: 0 | I33: =일위대가!J1966 -> 36684 | J33: 36684 | K33: =일위대가!L1966 -> 0 | L33: 0 | M33: 1027 | N33: 제02080호표 | O33: 1 | DM33: BDD1201
A34: 굴착[인력,보통토사] | B34: 굴착깊이 0∼1M협소 | C34: 1 | D34: ㎥ | E34: 42328 | F34: 42328 | G34: =일위대가!H1974 -> 0 | H34: 0 | I34: =일위대가!J1974 -> 42328 | J34: 42328 | K34: =일위대가!L1974 -> 0 | L34: 0 | M34: 1028 | N34: 제02100호표 | O34: 1 | DM34: BDD1111
A35: 터파기[구조물,토사] | B35: 굴삭기0.4㎥+인력 | C35: 1 | D35: ㎥ | E35: 4634 | F35: 4634 | G35: =일위대가!H1979 -> 378 | H35: 378 | I35: =일위대가!J1979 -> 3886 | J35: 3886 | K35: =일위대가!L1979 -> 370 | L35: 370 | M35: 1029 | N35: 제02110호표 | O35: 1 | DM35: BDD4122
A36: 터파기[구조물,토사] | B36: 굴삭기0.7㎥+인력 | C36: 1 | D36: ㎥ | E36: 4109 | F36: 4109 | G36: =일위대가!H1984 -> 280 | H36: 280 | I36: =일위대가!J1984 -> 3497 | J36: 3497 | K36: =일위대가!L1984 -> 332 | L36: 332 | M36: 1030 | N36: 제02120호표 | O36: 1 | DM36: BDD4131
A37: 기계터파기[토사] | B37: 굴삭기0.2㎥ | C37: 1 | D37: ㎥ | E37: 4491 | F37: 4491 | G37: =단가산출!CY44 -> 547 | H37: 547 | I37: =단가산출!CZ44 -> 3,076 | J37: 3076 | K37: =단가산출!DA44 -> 868 | L37: 868 | M37: 1031 | N37: 산근00010호표 | O37: 1 | DM37: SDD2110
A38: 기계터파기[토사] | B38: 굴삭기0.4㎥ | C38: 1 | D38: ㎥ | E38: 2015 | F38: 2015 | G38: =단가산출!CY83 -> 420 | H38: 420 | I38: =단가산출!CZ83 -> 1,183 | J38: 1183 | K38: =단가산출!DA83 -> 412 | L38: 412 | M38: 1032 | N38: 산근00020호표 | O38: 1 | DM38: SDD2120
A39: 기계터파기[토사] | B39: 굴삭기0.7㎥ | C39: 1 | D39: ㎥ | E39: 1432 | F39: 1432 | G39: =단가산출!CY122 -> 312 | H39: 312 | I39: =단가산출!CZ122 -> 751 | J39: 751 | K39: =단가산출!DA122 -> 369 | L39: 369 | M39: 1033 | N39: 산근00030호표 | O39: 1 | DM39: SDD2130
A40: 기계터파기[토사] | B40: 굴삭기1.0㎥ | C40: 1 | D40: ㎥ | E40: 1266 | F40: 1266 | G40: =단가산출!CY161 -> 386 | H40: 386 | I40: =단가산출!CZ161 -> 552 | J40: 552 | K40: =단가산출!DA161 -> 328 | L40: 328 | M40: 1034 | N40: 산근00040호표 | O40: 1 | DM40: SDD2140
A41: 기계터파기[토사]-관로부설 | B41: 굴삭기0.2㎥ | C41: 1 | D41: ㎥ | E41: 7486 | F41: 7486 | G41: =단가산출!CY202 -> 912 | H41: 912 | I41: =단가산출!CZ202 -> 5,127 | J41: 5127 | K41: =단가산출!DA202 -> 1,447 | L41: 1447 | M41: 1035 | N41: 산근00050호표 | O41: 1 | DM41: SDD2110-1
A42: 기계터파기[토사]-관로부설 | B42: 굴삭기0.4㎥ | C42: 1 | D42: ㎥ | E42: 4361 | F42: 4361 | G42: =단가산출!CY241 -> 910 | H42: 910 | I42: =단가산출!CZ241 -> 2,560 | J42: 2560 | K42: =단가산출!DA241 -> 891 | L42: 891 | M42: 1036 | N42: 산근00060호표 | O42: 1 | DM42: SDD2120-1
A43: 기계터파기[토사]-관로부설 | B43: 굴삭기0.7㎥ | C43: 1 | D43: ㎥ | E43: 3104 | F43: 3104 | G43: =단가산출!CY280 -> 677 | H43: 677 | I43: =단가산출!CZ280 -> 1,627 | J43: 1627 | K43: =단가산출!DA280 -> 800 | L43: 800 | M43: 1037 | N43: 산근00070호표 | O43: 1 | DM43: SDD2130-1
A44: 기계터파기[토사]-관로부설 | B44: 굴삭기1.0㎥ | C44: 1 | D44: ㎥ | E44: 2745 | F44: 2745 | G44: =단가산출!CY319 -> 837 | H44: 837 | I44: =단가산출!CZ319 -> 1,196 | J44: 1196 | K44: =단가산출!DA319 -> 712 | L44: 712 | M44: 1038 | N44: 산근00080호표 | O44: 1 | DM44: SDD2140-1
A45: 되메우기 | B45: 굴삭기0.2㎥ | C45: 1 | D45: ㎥ | E45: 2851 | F45: 2851 | G45: =단가산출!CY544 -> 347 | H45: 347 | I45: =단가산출!CZ544 -> 1,953 | J45: 1953 | K45: =단가산출!DA544 -> 551 | L45: 551 | M45: 1039 | N45: 산근00150호표 | O45: 1 | DM45: SDE2221
A46: 되메우기 | B46: 굴삭기0.4㎥ | C46: 1 | D46: ㎥ | E46: 1663 | F46: 1663 | G46: =단가산출!CY585 -> 347 | H46: 347 | I46: =단가산출!CZ585 -> 976 | J46: 976 | K46: =단가산출!DA585 -> 340 | L46: 340 | M46: 1040 | N46: 산근00160호표 | O46: 1 | DM46: SDE2222
A47: 되메우기 | B47: 굴삭기0.7㎥ | C47: 1 | D47: ㎥ | E47: 1276 | F47: 1276 | G47: =단가산출!CY626 -> 278 | H47: 278 | I47: =단가산출!CZ626 -> 669 | J47: 669 | K47: =단가산출!DA626 -> 329 | L47: 329 | M47: 1041 | N47: 산근00170호표 | O47: 1 | DM47: SDE2223
A48: 되메우기[다짐] | B48: 인력 | C48: 1 | D48: ㎥ | E48: 19753 | F48: 19753 | G48: =일위대가!H535 -> 0 | H48: 0 | I48: =일위대가!J535 -> 19753 | J48: 19753 | K48: =일위대가!L535 -> 0 | L48: 0 | M48: 1042 | N48: 제00670호표 | O48: 1 | DM48: BDE2210
A49: 되메우기[다짐] | B49: 인력+기계 | C49: 1 | D49: ㎥ | E49: 10741 | F49: 10741 | G49: =일위대가!H540 -> 549 | H49: 549 | I49: =일위대가!J540 -> 9603 | J49: 9603 | K49: =일위대가!L540 -> 589 | L49: 589 | M49: 1043 | N49: 제00680호표 | O49: 1 | DM49: BDE2230
A50: 되메우기[다짐] | B50: 굴삭기0.2㎥ | C50: 1 | D50: ㎥ | E50: 9742 | F50: 9742 | G50: =단가산출!CY703 -> 611 | H50: 611 | I50: =단가산출!CZ703 -> 8,476 | J50: 8476 | K50: =단가산출!DA703 -> 655 | L50: 655 | M50: 1044 | N50: 산근00180호표 | O50: 1 | DM50: SDE2220
A51: 되메우기[다짐] | B51: 굴삭기0.4㎥ | C51: 1 | D51: ㎥ | E51: 8553 | F51: 8553 | G51: =단가산출!CY778 -> 610 | H51: 610 | I51: =단가산출!CZ778 -> 7,499 | J51: 7499 | K51: =단가산출!DA778 -> 444 | L51: 444 | M51: 1045 | N51: 산근00190호표 | O51: 1 | DM51: SDE2220-1
A52: 되메우기[다짐] | B52: 굴삭기0.7㎥ | C52: 1 | D52: ㎥ | E52: 8167 | F52: 8167 | G52: =단가산출!CY853 -> 542 | H52: 542 | I52: =단가산출!CZ853 -> 7,192 | J52: 7192 | K52: =단가산출!DA853 -> 433 | L52: 433 | M52: 1046 | N52: 산근00200호표 | O52: 1 | DM52: SDE2220-2
A53: 인력 현장내잔토처리 | B53: 소운반,깔기,고르기 | C53: 1 | D53: ㎥ | E53: 28219 | F53: 28219 | G53: =일위대가!H1470 -> 0 | H53: 0 | I53: =일위대가!J1470 -> 28219 | J53: 28219 | K53: =일위대가!L1470 -> 0 | L53: 0 | M53: 1047 | N53: 제01470호표 | O53: 1 | DM53: B0049
A54: 바닥면고르기[절토면고르기] | B54: 굴삭기0.6㎥ | C54: 1 | D54: ㎡ | E54: 3360 | F54: 3360 | G54: =일위대가!H750 -> 389 | H54: 389 | I54: =일위대가!J750 -> 2474 | J54: 2474 | K54: =일위대가!L750 -> 497 | L54: 497 | M54: 1048 | N54: 제00940호표 | O54: 1 | DM54: B0343
A55: 잔토처리상차 | B55: 인력 | C55: 1 | D55: ㎥ | E55: 15677 | F55: 15677 | G55: =단가산출!CY1548 -> 0 | H55: 0 | I55: =단가산출!CZ1548 -> 15,677 | J55: 15677 | K55: =단가산출!DA1548 -> 0 | L55: 0 | M55: 1049 | N55: 산근00400호표 | O55: 1 | DM55: S0037-110
A56: 잔토처리상차[기계] | B56: 굴삭기0.2㎥ | C56: 1 | D56: ㎥ | E56: 2994 | F56: 2994 | G56: =단가산출!CY1581 -> 365 | H56: 365 | I56: =단가산출!CZ1581 -> 2,050 | J56: 2050 | K56: =단가산출!DA1581 -> 579 | L56: 579 | M56: 1050 | N56: 산근00410호표 | O56: 1 | DM56: S0037
A57: 잔토처리상차[기계] | B57: 굴삭기0.4㎥ | C57: 1 | D57: ㎥ | E57: 1746 | F57: 1746 | G57: =단가산출!CY1614 -> 364 | H57: 364 | I57: =단가산출!CZ1614 -> 1,025 | J57: 1025 | K57: =단가산출!DA1614 -> 357 | L57: 357 | M57: 1051 | N57: 산근00420호표 | O57: 1 | DM57: S0035
A58: 잔토처리상차[기계] | B58: 굴삭기0.7㎥ | C58: 1 | D58: ㎥ | E58: 1242 | F58: 1242 | G58: =단가산출!CY1647 -> 271 | H58: 271 | I58: =단가산출!CZ1647 -> 651 | J58: 651 | K58: =단가산출!DA1647 -> 320 | L58: 320 | M58: 1052 | N58: 산근00430호표 | O58: 1 | DM58: S0033
A59: 파쇄물처리운반[L=3Km] | B59: 인력+DT 2.5TON | C59: 1 | D59: ㎥ | E59: 30243 | F59: 30243 | G59: =단가산출!CY4236 -> 0 | H59: 0 | I59: =단가산출!CZ4236 -> 0 | J59: 0 | K59: =단가산출!DA4236 -> 30,243 | L59: 30243 | M59: 1053 | N59: 산근00970호표 | O59: 1 | DM59: SDC4311-1
A60: 파쇄물처리운반[L=3Km] | B60: BH0.2+DT 4.5TON | C60: 1 | D60: ㎥ | E60: 15971 | F60: 15971 | G60: =단가산출!CY4283 -> 0 | H60: 0 | I60: =단가산출!CZ4283 -> 0 | J60: 0 | K60: =단가산출!DA4283 -> 15,971 | L60: 15971 | M60: 1054 | N60: 산근00980호표 | O60: 1 | DM60: SDC4312-1
A61: 파쇄물처리운반[L=3Km] | B61: BH0.4+DT 8.0TON | C61: 1 | D61: ㎥ | E61: 9844 | F61: 9844 | G61: =단가산출!CY4330 -> 0 | H61: 0 | I61: =단가산출!CZ4330 -> 0 | J61: 0 | K61: =단가산출!DA4330 -> 9,844 | L61: 9844 | M61: 1055 | N61: 산근00990호표 | O61: 1 | DM61: SDC4313-1
A62: 파쇄물처리운반[L=3Km] | B62: BH0.6+DT 15TON | C62: 1 | D62: ㎥ | E62: 8085 | F62: 8085 | G62: =단가산출!CY4377 -> 0 | H62: 0 | I62: =단가산출!CZ4377 -> 0 | J62: 0 | K62: =단가산출!DA4377 -> 8,085 | L62: 8085 | M62: 1056 | N62: 산근01000호표 | O62: 1 | DM62: SDC43132-1
A63: 파쇄물처리운반[L=5Km] | B63: 인력+DT 2.5TON | C63: 1 | D63: ㎥ | E63: 39158 | F63: 39158 | G63: =단가산출!CY4418 -> 0 | H63: 0 | I63: =단가산출!CZ4418 -> 0 | J63: 0 | K63: =단가산출!DA4418 -> 39,158 | L63: 39158 | M63: 1057 | N63: 산근01010호표 | O63: 1 | DM63: SDC4311-011
A64: 파쇄물처리운반[L=5Km] | B64: BH0.2+DT 4.5TON | C64: 1 | D64: ㎥ | E64: 21348 | F64: 21348 | G64: =단가산출!CY4465 -> 0 | H64: 0 | I64: =단가산출!CZ4465 -> 0 | J64: 0 | K64: =단가산출!DA4465 -> 21,348 | L64: 21348 | M64: 1058 | N64: 산근01020호표 | O64: 1 | DM64: SDC4312-011
A65: 파쇄물처리운반[L=5Km] | B65: BH0.4+DT 8.0TON | C65: 1 | D65: ㎥ | E65: 13472 | F65: 13472 | G65: =단가산출!CY4512 -> 0 | H65: 0 | I65: =단가산출!CZ4512 -> 0 | J65: 0 | K65: =단가산출!DA4512 -> 13,472 | L65: 13472 | M65: 1059 | N65: 산근01030호표 | O65: 1 | DM65: SDC4313-011
A66: 파쇄물처리운반[L=5Km] | B66: BH0.6+DT 15TON | C66: 1 | D66: ㎥ | E66: 10932 | F66: 10932 | G66: =단가산출!CY4559 -> 0 | H66: 0 | I66: =단가산출!CZ4559 -> 0 | J66: 0 | K66: =단가산출!DA4559 -> 10,932 | L66: 10932 | M66: 1060 | N66: 산근01040호표 | O66: 1 | DM66: SDC43132-011
A67: 파쇄물처리운반[L=7Km] | B67: 인력+DT 2.5TON | C67: 1 | D67: ㎥ | E67: 47841 | F67: 47841 | G67: =단가산출!CY4600 -> 0 | H67: 0 | I67: =단가산출!CZ4600 -> 0 | J67: 0 | K67: =단가산출!DA4600 -> 47,841 | L67: 47841 | M67: 1061 | N67: 산근01050호표 | O67: 1 | DM67: SDC4311-012
A68: 파쇄물처리운반[L=7Km] | B68: BH0.2+DT 4.5TON | C68: 1 | D68: ㎥ | E68: 26650 | F68: 26650 | G68: =단가산출!CY4647 -> 0 | H68: 0 | I68: =단가산출!CZ4647 -> 0 | J68: 0 | K68: =단가산출!DA4647 -> 26,650 | L68: 26650 | M68: 1062 | N68: 산근01060호표 | O68: 1 | DM68: SDC4312-012
A69: 파쇄물처리운반[L=7Km] | B69: BH0.4+DT 8.0TON | C69: 1 | D69: ㎥ | E69: 17098 | F69: 17098 | G69: =단가산출!CY4694 -> 0 | H69: 0 | I69: =단가산출!CZ4694 -> 0 | J69: 0 | K69: =단가산출!DA4694 -> 17,098 | L69: 17098 | M69: 1063 | N69: 산근01070호표 | O69: 1 | DM69: SDC4313-012
A70: 파쇄물처리운반[L=7Km] | B70: BH0.6+DT 15TON | C70: 1 | D70: ㎥ | E70: 13730 | F70: 13730 | G70: =단가산출!CY4741 -> 0 | H70: 0 | I70: =단가산출!CZ4741 -> 0 | J70: 0 | K70: =단가산출!DA4741 -> 13,730 | L70: 13730 | M70: 1064 | N70: 산근01080호표 | O70: 1 | DM70: SDC43132-012
A71: 파쇄물처리운반[L=9Km] | B71: 인력+DT 2.5TON | C71: 1 | D71: ㎥ | E71: 56432 | F71: 56432 | G71: =단가산출!CY4782 -> 0 | H71: 0 | I71: =단가산출!CZ4782 -> 0 | J71: 0 | K71: =단가산출!DA4782 -> 56,432 | L71: 56432 | M71: 1065 | N71: 산근01090호표 | O71: 1 | DM71: SDC4311-013
A72: 파쇄물처리운반[L=9Km] | B72: BH0.2+DT 4.5TON | C72: 1 | D72: ㎥ | E72: 32098 | F72: 32098 | G72: =단가산출!CY4829 -> 0 | H72: 0 | I72: =단가산출!CZ4829 -> 0 | J72: 0 | K72: =단가산출!DA4829 -> 32,098 | L72: 32098 | M72: 1066 | N72: 산근01100호표 | O72: 1 | DM72: SDC4312-013
A73: 파쇄물처리운반[L=9Km] | B73: BH0.4+DT 8.0TON | C73: 1 | D73: ㎥ | E73: =G73+I73+K73 -> 20729 | F73: =H73+J73+L73 -> 20729 | G73: =단가산출!CY4876 -> 0 | H73: =TRUNC(C73*G73,0) -> 0 | I73: =단가산출!CZ4876 -> 0 | J73: =TRUNC(C73*I73,0) -> 0 | K73: =단가산출!DA4876 -> 20,729 | L73: =TRUNC(C73*K73,0) -> 20729 | M73: 1067 | N73: 산근01110호표 | O73: 1 | DM73: SDC4313-013
A74: 파쇄물처리운반[L=9Km] | B74: BH0.6+DT 15TON | C74: 1 | D74: ㎥ | E74: 16569 | F74: 16569 | G74: =단가산출!CY4923 -> 0 | H74: 0 | I74: =단가산출!CZ4923 -> 0 | J74: 0 | K74: =단가산출!DA4923 -> 16,569 | L74: 16569 | M74: 1068 | N74: 산근01120호표 | O74: 1 | DM74: SDC43132-013
A75: 폐기물운반비 | B75: DT 15TON,L=34.4km | C75: 1 | D75: TON | E75: 16168 | F75: 16168 | G75: =단가산출!CY5054 -> 0 | H75: 0 | I75: =단가산출!CZ5054 -> 0 | J75: 0 | K75: =단가산출!DA5054 -> 16,168 | L75: 16168 | M75: 1069 | N75: 산근01150호표 | O75: 1 | DM75: S0127
A76: 폐기물운반비 | B76: DT 24TON,L=34.4km | C76: 1 | D76: TON | E76: 12299 | F76: 12299 | G76: =단가산출!CY5131 -> 0 | H76: 0 | I76: =단가산출!CZ5131 -> 0 | J76: 0 | K76: =단가산출!DA5131 -> 12,299 | L76: 12299 | M76: 1070 | N76: 산근01160호표 | O76: 1 | DM76: S000-500
A77: 잔토처리운반[L=3Km] | B77: 인력+DT 2.5TON | C77: 1 | D77: ㎥ | E77: 21767 | F77: 21767 | G77: =단가산출!CY1690 -> 0 | H77: 0 | I77: =단가산출!CZ1690 -> 0 | J77: 0 | K77: =단가산출!DA1690 -> 21,767 | L77: 21767 | M77: 1071 | N77: 산근00440호표 | O77: 1 | DM77: SDC41112
A78: 잔토처리운반[L=3Km] | B78: BH0.2+DT 4.5TON | C78: 1 | D78: ㎥ | E78: 10134 | F78: 10134 | G78: =단가산출!CY1737 -> 0 | H78: 0 | I78: =단가산출!CZ1737 -> 0 | J78: 0 | K78: =단가산출!DA1737 -> 10,134 | L78: 10134 | M78: 1072 | N78: 산근00450호표 | O78: 1 | DM78: SSA00-001
A79: 잔토처리운반[L=3Km] | B79: BH0.4+DT 8.0TON | C79: 1 | D79: ㎥ | E79: 6638 | F79: 6638 | G79: =단가산출!CY1784 -> 0 | H79: 0 | I79: =단가산출!CZ1784 -> 0 | J79: 0 | K79: =단가산출!DA1784 -> 6,638 | L79: 6638 | M79: 1073 | N79: 산근00460호표 | O79: 1 | DM79: SSA00-005
A80: 잔토처리운반[L=3Km] | B80: BH0.6+DT 15TON | C80: 1 | D80: ㎥ | E80: 5506 | F80: 5506 | G80: =단가산출!CY1831 -> 0 | H80: 0 | I80: =단가산출!CZ1831 -> 0 | J80: 0 | K80: =단가산출!DA1831 -> 5,506 | L80: 5506 | M80: 1074 | N80: 산근00470호표 | O80: 1 | DM80: SSA00-009
A81: 잔토처리운반[L=5Km] | B81: 인력+DT 2.5TON | C81: 1 | D81: ㎥ | E81: 27765 | F81: 27765 | G81: =단가산출!CY1872 -> 0 | H81: 0 | I81: =단가산출!CZ1872 -> 0 | J81: 0 | K81: =단가산출!DA1872 -> 27,765 | L81: 27765 | M81: 1075 | N81: 산근00480호표 | O81: 1 | DM81: SDC41112-011
A82: 잔토처리운반[L=5Km] | B82: BH0.2+DT 4.5TON | C82: 1 | D82: ㎥ | E82: 13817 | F82: 13817 | G82: =단가산출!CY1919 -> 0 | H82: 0 | I82: =단가산출!CZ1919 -> 0 | J82: 0 | K82: =단가산출!DA1919 -> 13,817 | L82: 13817 | M82: 1076 | N82: 산근00490호표 | O82: 1 | DM82: SSA00-002
A83: 잔토처리운반[L=5Km] | B83: BH0.4+DT 8.0TON | C83: 1 | D83: ㎥ | E83: 9133 | F83: 9133 | G83: =단가산출!CY1966 -> 0 | H83: 0 | I83: =단가산출!CZ1966 -> 0 | J83: 0 | K83: =단가산출!DA1966 -> 9,133 | L83: 9133 | M83: 1077 | N83: 산근00500호표 | O83: 1 | DM83: SSA00-006
A84: 잔토처리운반[L=5Km] | B84: BH0.6+DT 15TON | C84: 1 | D84: ㎥ | E84: 7460 | F84: 7460 | G84: =단가산출!CY2013 -> 0 | H84: 0 | I84: =단가산출!CZ2013 -> 0 | J84: 0 | K84: =단가산출!DA2013 -> 7,460 | L84: 7460 | M84: 1078 | N84: 산근00510호표 | O84: 1 | DM84: SSA00-0010
A85: 잔토처리운반[L=7Km] | B85: 인력+DT 2.5TON | C85: 1 | D85: ㎥ | E85: 33878 | F85: 33878 | G85: =단가산출!CY2054 -> 0 | H85: 0 | I85: =단가산출!CZ2054 -> 0 | J85: 0 | K85: =단가산출!DA2054 -> 33,878 | L85: 33878 | M85: 1079 | N85: 산근00520호표 | O85: 1 | DM85: SDC41112-012
A86: 잔토처리운반[L=7Km] | B86: BH0.2+DT 4.5TON | C86: 1 | D86: ㎥ | E86: 17539 | F86: 17539 | G86: =단가산출!CY2101 -> 0 | H86: 0 | I86: =단가산출!CZ2101 -> 0 | J86: 0 | K86: =단가산출!DA2101 -> 17,539 | L86: 17539 | M86: 1080 | N86: 산근00530호표 | O86: 1 | DM86: SSA00-003
A87: 잔토처리운반[L=7Km] | B87: BH0.4+DT 8.0TON | C87: 1 | D87: ㎥ | E87: 11633 | F87: 11633 | G87: =단가산출!CY2148 -> 0 | H87: 0 | I87: =단가산출!CZ2148 -> 0 | J87: 0 | K87: =단가산출!DA2148 -> 11,633 | L87: 11633 | M87: 1081 | N87: 산근00540호표 | O87: 1 | DM87: SSA00-007
A88: 잔토처리운반[L=7Km] | B88: BH0.6+DT 15TON | C88: 1 | D88: ㎥ | E88: 9413 | F88: 9413 | G88: =단가산출!CY2195 -> 0 | H88: 0 | I88: =단가산출!CZ2195 -> 0 | J88: 0 | K88: =단가산출!DA2195 -> 9,413 | L88: 9413 | M88: 1082 | N88: 산근00550호표 | O88: 1 | DM88: SSA00-0011
A89: 잔토처리운반[L=9Km] | B89: 인력+DT 2.5TON | C89: 1 | D89: ㎥ | E89: 40051 | F89: 40051 | G89: =단가산출!CY2236 -> 0 | H89: 0 | I89: =단가산출!CZ2236 -> 0 | J89: 0 | K89: =단가산출!DA2236 -> 40,051 | L89: 40051 | M89: 1083 | N89: 산근00560호표 | O89: 1 | DM89: SDC41112-013
A90: 잔토처리운반[L=9Km] | B90: BH0.2+DT 4.5TON | C90: 1 | D90: ㎥ | E90: 20836 | F90: 20836 | G90: =단가산출!CY2283 -> 0 | H90: 0 | I90: =단가산출!CZ2283 -> 0 | J90: 0 | K90: =단가산출!DA2283 -> 20,836 | L90: 20836 | M90: 1084 | N90: 산근00570호표 | O90: 1 | DM90: SSA00-004
A91: 잔토처리운반[L=9Km] | B91: BH0.4+DT 8.0TON | C91: 1 | D91: ㎥ | E91: 14133 | F91: 14133 | G91: =단가산출!CY2330 -> 0 | H91: 0 | I91: =단가산출!CZ2330 -> 0 | J91: 0 | K91: =단가산출!DA2330 -> 14,133 | L91: 14133 | M91: 1085 | N91: 산근00580호표 | O91: 1 | DM91: SSA00-008
A92: 잔토처리운반[L=9Km] | B92: BH0.6+DT 15TON | C92: 1 | D92: ㎥ | E92: 11375 | F92: 11375 | G92: =단가산출!CY2377 -> 0 | H92: 0 | I92: =단가산출!CZ2377 -> 0 | J92: 0 | K92: =단가산출!DA2377 -> 11,375 | L92: 11375 | M92: 1086 | N92: 산근00590호표 | O92: 1 | DM92: SSA00-0012
A93: 잔토상차비 | B93: 적치장상차[굴삭기 0.7㎥] | C93: 1 | D93: ㎥ | E93: =G93+I93+K93 -> 761 | F93: =H93+J93+L93 -> 761 | G93: =단가산출!CY5908 -> 166 | H93: =TRUNC(C93*G93,0) -> 166 | I93: =단가산출!CZ5908 -> 399 | J93: =TRUNC(C93*I93,0) -> 399 | K93: =단가산출!DA5908 -> 196 | L93: =TRUNC(C93*K93,0) -> 196 | M93: 1087 | N93: 산근01380호표 | O93: 1 | DM93: SSA00-0012
A94: 잔토처리운반[집하장-김포]L=52.6km | B94: DT 15TON | C94: 1 | D94: ㎥ | E94: 34084 | F94: 34084 | G94: =단가산출!CY2432 -> 0 | H94: 0 | I94: =단가산출!CZ2432 -> 0 | J94: 0 | K94: =단가산출!DA2432 -> 34,084 | L94: 34084 | M94: 1088 | N94: 산근00600호표 | O94: 1 | DM94: SDC4112
A95: 잔토처리운반[집하장-김포]L=52.6km | B95: DT 24TON | C95: 1 | D95: ㎥ | E95: 26984 | F95: 26984 | G95: =단가산출!CY2487 -> 0 | H95: 0 | I95: =단가산출!CZ2487 -> 0 | J95: 0 | K95: =단가산출!DA2487 -> 26,984 | L95: 26984 | M95: 1089 | N95: 산근00610호표 | O95: 1 | DM95: SDC4113
A96: 토사깍기 | B96: 도쟈19TON | C96: 1 | D96: ㎥ | E96: 1489 | F96: 1489 | G96: =단가산출!CY3215 -> 504 | H96: 504 | I96: =단가산출!CZ3215 -> 591 | J96: 591 | K96: =단가산출!DA3215 -> 394 | L96: 394 | M96: 1090 | N96: 산근00760호표 | O96: 1 | DM96: SDC2110
A97: 토사깍기 | B97: 도쟈32TON | C97: 1 | D97: ㎥ | E97: 1184 | F97: 1184 | G97: =단가산출!CY3290 -> 504 | H97: 504 | I97: =단가산출!CZ3290 -> 355 | J97: 355 | K97: =단가산출!DA3290 -> 325 | L97: 325 | M97: 1091 | N97: 산근00770호표 | O97: 1 | DM97: SDC2120
A98: 층따기 | B98: 도쟈19TON | C98: 1 | D98: ㎥ | E98: 1489 | F98: 1489 | G98: =단가산출!CY2726 -> 504 | H98: 504 | I98: =단가산출!CZ2726 -> 591 | J98: 591 | K98: =단가산출!DA2726 -> 394 | L98: 394 | M98: 1092 | N98: 산근00660호표 | O98: 1 | DM98: SDE4000
A100: 2. 부설공 | C100: 1 | D100: 식
A101: 기초지정및다짐 | B101: 모래, 기계 | C101: 1 | D101: ㎥ | E101: 43697 | F101: 43697 | G101: =일위대가!H328 -> 36553 | H101: 36553 | I101: =일위대가!J328 -> 6368 | J101: 6368 | K101: =일위대가!L328 -> 776 | L101: 776 | M101: 2001 | N101: 제00450호표 | O101: 2 | DM101: BHI2231
A102: 기초지정및다짐 | B102: 자갈, 기계 | C102: 1 | D102: ㎥ | E102: 43021 | F102: 43021 | G102: =일위대가!H336 -> 33736 | H102: 33736 | I102: =일위대가!J336 -> 8326 | J102: 8326 | K102: =일위대가!L336 -> 959 | L102: 959 | M102: 2002 | N102: 제00460호표 | O102: 2 | DM102: BHI2233
A103: 흄관기초[모래0°기초] | B103: ø300M/M | C103: 1 | D103: M | E103: 3931 | F103: 3931 | G103: =일위대가!H2400 -> 3289 | H103: 3289 | I103: =일위대가!J2400 -> 573 | J103: 573 | K103: =일위대가!L2400 -> 69 | L103: 69 | M103: 2003 | N103: 제02620호표 | O103: 2 | DM103: BHJ2210
A104: 흄관기초[모래90°기초] | B104: ø300M/M | C104: 1 | D104: M | E104: 5592 | F104: 5592 | G104: =일위대가!H2404 -> 4678 | H104: 4678 | I104: =일위대가!J2404 -> 815 | J104: 815 | K104: =일위대가!L2404 -> 99 | L104: 99 | M104: 2004 | N104: 제02630호표 | O104: 2 | DM104: BHJ2220
A105: 흄관기초[모래120°기초] | B105: ø300M/M | C105: 1 | D105: M | E105: 6597 | F105: 6597 | G105: =일위대가!H2408 -> 5519 | H105: 5519 | I105: =일위대가!J2408 -> 961 | J105: 961 | K105: =일위대가!L2408 -> 117 | L105: 117 | M105: 2005 | N105: 제02640호표 | O105: 2 | DM105: BHJ2230
A106: 흄관기초[모래360°기초] | B106: ø300M/M | C106: 1 | D106: M | E106: 19793 | F106: 19793 | G106: =일위대가!H2412 -> 16558 | H106: 16558 | I106: =일위대가!J2412 -> 2884 | J106: 2884 | K106: =일위대가!L2412 -> 351 | L106: 351 | M106: 2006 | N106: 제02650호표 | O106: 2 | DM106: BHJ2240
A107: 흄관기초[자갈0°기초] | B107: ø300M/M | C107: 1 | D107: M | E107: 3871 | F107: 3871 | G107: =일위대가!H2416 -> 3036 | H107: 3036 | I107: =일위대가!J2416 -> 749 | J107: 749 | K107: =일위대가!L2416 -> 86 | L107: 86 | M107: 2007 | N107: 제02660호표 | O107: 2 | DM107: BHJ2250
A108: 흄관기초[자갈90°기초] | B108: ø300M/M | C108: 1 | D108: M | E108: 5505 | F108: 5505 | G108: =일위대가!H2420 -> 4318 | H108: 4318 | I108: =일위대가!J2420 -> 1065 | J108: 1065 | K108: =일위대가!L2420 -> 122 | L108: 122 | M108: 2008 | N108: 제02670호표 | O108: 2 | DM108: BHJ2260
A109: 흄관기초[자갈120°기초] | B109: ø300M/M | C109: 1 | D109: M | E109: 6495 | F109: 6495 | G109: =일위대가!H2424 -> 5094 | H109: 5094 | I109: =일위대가!J2424 -> 1257 | J109: 1257 | K109: =일위대가!L2424 -> 144 | L109: 144 | M109: 2009 | N109: 제02680호표 | O109: 2 | DM109: BHJ2270
A110: 흄관기초[자갈360°기초] | B110: ø300M/M | C110: 1 | D110: M | E110: 19487 | F110: 19487 | G110: =일위대가!H2428 -> 15282 | H110: 15282 | I110: =일위대가!J2428 -> 3771 | J110: 3771 | K110: =일위대가!L2428 -> 434 | L110: 434 | M110: 2010 | N110: 제02690호표 | O110: 2 | DM110: BHJ2280
A111: 흄관접합및부설[P.P수밀밴드접합] | B111: ø400M/M 기계 | C111: 1 | D111: m | E111: 36426 | F111: 36426 | G111: =일위대가!H2438 -> 10543 | H111: 10543 | I111: =일위대가!J2438 -> 22827 | J111: 22827 | K111: =일위대가!L2438 -> 3056 | L111: 3056 | M111: 2011 | N111: 제02700호표 | O111: 2 | DM111: BHA4110
A112: 흄관접합및부설[P.P수밀밴드접합] | B112: ø600M/M 기계 | C112: 1 | D112: m | E112: 61728 | F112: 61728 | G112: =일위대가!H2448 -> 14318 | H112: 14318 | I112: =일위대가!J2448 -> 42515 | J112: 42515 | K112: =일위대가!L2448 -> 4895 | L112: 4895 | M112: 2012 | N112: 제02710호표 | O112: 2 | DM112: BHA4120
A113: 흄관접합및부설[P.P수밀밴드접합] | B113: ø800M/M 기계 | C113: 1 | D113: m | E113: 99701 | F113: 99701 | G113: =일위대가!H2458 -> 18317 | H113: 18317 | I113: =일위대가!J2458 -> 73965 | J113: 73965 | K113: =일위대가!L2458 -> 7419 | L113: 7419 | M113: 2013 | N113: 제02720호표 | O113: 2 | DM113: BHA4130
A114: 흄관접합및부설[P.P수밀밴드접합] | B114: ø1000M/M 기계 | C114: 1 | D114: m | E114: 162910 | F114: 162910 | G114: =일위대가!H2468 -> 28442 | H114: 28442 | I114: =일위대가!J2468 -> 122881 | J114: 122881 | K114: =일위대가!L2468 -> 11587 | L114: 11587 | M114: 2014 | N114: 제02730호표 | O114: 2 | DM114: BHA4140
A115: 흄관접합및부설[P.P수밀밴드접합] | B115: ø1200M/M 기계 | C115: 1 | D115: m | E115: 214092 | F115: 214092 | G115: =일위대가!H2478 -> 35619 | H115: 35619 | I115: =일위대가!J2478 -> 163692 | J115: 163692 | K115: =일위대가!L2478 -> 14781 | L115: 14781 | M115: 2015 | N115: 제02740호표 | O115: 2 | DM115: BHA4150
A116: 흄관접합및부설[고무링접합] | B116: ø300M/M 기계 | C116: 1 | D116: m | E116: 26035 | F116: 26035 | G116: =일위대가!H2487 -> 1854 | H116: 1854 | I116: =일위대가!J2487 -> 21683 | J116: 21683 | K116: =일위대가!L2487 -> 2498 | L116: 2498 | M116: 2016 | N116: 제02750호표 | O116: 2 | DM116: BHA3110
A117: 흄관접합및부설[고무링접합] | B117: ø450M/M 기계 | C117: 1 | D117: m | E117: 37957 | F117: 37957 | G117: =일위대가!H2496 -> 2646 | H117: 2646 | I117: =일위대가!J2496 -> 31543 | J117: 31543 | K117: =일위대가!L2496 -> 3768 | L117: 3768 | M117: 2017 | N117: 제02760호표 | O117: 2 | DM117: BHA3130
A118: 흄관접합및부설[고무링접합] | B118: ø600M/M 기계 | C118: 1 | D118: m | E118: 54230 | F118: 54230 | G118: =일위대가!H2505 -> 3417 | H118: 3417 | I118: =일위대가!J2505 -> 45672 | J118: 45672 | K118: =일위대가!L2505 -> 5141 | L118: 5141 | M118: 2018 | N118: 제02770호표 | O118: 2 | DM118: BHA3140
A119: 흄관접합및부설[고무링접합] | B119: ø800M/M 기계 | C119: 1 | D119: m | E119: 88486 | F119: 88486 | G119: =일위대가!H2514 -> 4547 | H119: 4547 | I119: =일위대가!J2514 -> 76766 | J119: 76766 | K119: =일위대가!L2514 -> 7173 | L119: 7173 | M119: 2019 | N119: 제02780호표 | O119: 2 | DM119: BHA3150
A120: 흄관접합및부설[고무링접합] | B120: ø1000M/M 기계 | C120: 1 | D120: m | E120: 146706 | F120: 146706 | G120: =일위대가!H2523 -> 6275 | H120: 6275 | I120: =일위대가!J2523 -> 128951 | J120: 128951 | K120: =일위대가!L2523 -> 11480 | L120: 11480 | M120: 2020 | N120: 제02790호표 | O120: 2 | DM120: BHA3160
A121: 흄관접합및부설[고무링접합] | B121: ø1200M/M 기계 | C121: 1 | D121: m | E121: 189844 | F121: 189844 | G121: =일위대가!H2532 -> 7542 | H121: 7542 | I121: =일위대가!J2532 -> 168054 | J121: 168054 | K121: =일위대가!L2532 -> 14248 | L121: 14248 | M121: 2021 | N121: 제02800호표 | O121: 2 | DM121: BHA3170
A122: 흄관접합및부설[칼라식,인력] | B122: ø300M/M | C122: 1 | D122: m | E122: 87152 | F122: 87152 | G122: =일위대가!H2540 -> 222 | H122: 222 | I122: =일위대가!J2540 -> 86522 | J122: 86522 | K122: =일위대가!L2540 -> 408 | L122: 408 | M122: 2022 | N122: 제02810호표 | O122: 2 | DM122: BHA1222
A123: 흄관절단 | B123: D=300㎜ | C123: 1 | D123: 개소 | E123: 3671 | F123: 3671 | G123: =일위대가!H2372 -> 207 | H123: 207 | I123: =일위대가!J2372 -> 3464 | J123: 3464 | K123: =일위대가!L2372 -> 0 | L123: 0 | M123: 2023 | N123: 제02570호표 | O123: 2 | DM123: BHH0-300
A124: 흄관절단 | B124: D=450㎜ | C124: 1 | D124: 개소 | E124: 14690 | F124: 14690 | G124: =일위대가!H2378 -> 831 | H124: 831 | I124: =일위대가!J2378 -> 13859 | J124: 13859 | K124: =일위대가!L2378 -> 0 | L124: 0 | M124: 2024 | N124: 제02580호표 | O124: 2 | DM124: BHH0-350
A125: 흄관절단 | B125: D=600㎜ | C125: 1 | D125: 개소 | E125: 29381 | F125: 29381 | G125: =일위대가!H2384 -> 1663 | H125: 1663 | I125: =일위대가!J2384 -> 27718 | J125: 27718 | K125: =일위대가!L2384 -> 0 | L125: 0 | M125: 2025 | N125: 제02590호표 | O125: 2 | DM125: BHH0-400
A126: 흄관절단 | B126: D=900㎜ | C126: 1 | D126: 개소 | E126: 55089 | F126: 55089 | G126: =일위대가!H2390 -> 3118 | H126: 3118 | I126: =일위대가!J2390 -> 51971 | J126: 51971 | K126: =일위대가!L2390 -> 0 | L126: 0 | M126: 2026 | N126: 제02600호표 | O126: 2 | DM126: BHH0-450
A127: 흄관절단 | B127: D=1000㎜ | C127: 1 | D127: 개소 | E127: 69779 | F127: 69779 | G127: =일위대가!H2396 -> 3949 | H127: 3949 | I127: =일위대가!J2396 -> 65830 | J127: 65830 | K127: =일위대가!L2396 -> 0 | L127: 0 | M127: 2027 | N127: 제02610호표 | O127: 2 | DM127: BHH0-500
A128: 흄관하차 | B128: Φ 300 | C128: 1 | D128: M | E128: 368 | F128: 368 | G128: =단가산출!CY5346 -> 0 | H128: 0 | I128: =단가산출!CZ5346 -> 0 | J128: 0 | K128: =단가산출!DA5346 -> 368 | L128: 368 | M128: 2028 | N128: 산근01230호표 | O128: 2 | DM128: SQE1130
A129: 흄관하차 | B129: Φ 400 | C129: 1 | D129: M | E129: 598 | F129: 598 | G129: =단가산출!CY5365 -> 0 | H129: 0 | I129: =단가산출!CZ5365 -> 0 | J129: 0 | K129: =단가산출!DA5365 -> 598 | L129: 598 | M129: 2029 | N129: 산근01240호표 | O129: 2 | DM129: SQE1131
A130: 흄관하차 | B130: Φ 450 | C130: 1 | D130: M | E130: 736 | F130: 736 | G130: =단가산출!CY5384 -> 0 | H130: 0 | I130: =단가산출!CZ5384 -> 0 | J130: 0 | K130: =단가산출!DA5384 -> 736 | L130: 736 | M130: 2030 | N130: 산근01250호표 | O130: 2 | DM130: SQE1132
A131: 흄관하차 | B131: Φ 600 | C131: 1 | D131: M | E131: 1289 | F131: 1289 | G131: =단가산출!CY5403 -> 0 | H131: 0 | I131: =단가산출!CZ5403 -> 0 | J131: 0 | K131: =단가산출!DA5403 -> 1,289 | L131: 1289 | M131: 2031 | N131: 산근01260호표 | O131: 2 | DM131: SQE1133
A132: 흄관하차 | B132: Φ 800 | C132: 1 | D132: M | E132: 2256 | F132: 2256 | G132: =단가산출!CY5422 -> 0 | H132: 0 | I132: =단가산출!CZ5422 -> 0 | J132: 0 | K132: =단가산출!DA5422 -> 2,256 | L132: 2256 | M132: 2032 | N132: 산근01270호표 | O132: 2 | DM132: SQE1134
A133: 흄관하차 | B133: Φ 1,000 | C133: 1 | D133: M | E133: 3591 | F133: 3591 | G133: =단가산출!CY5441 -> 0 | H133: 0 | I133: =단가산출!CZ5441 -> 0 | J133: 0 | K133: =단가산출!DA5441 -> 3,591 | L133: 3591 | M133: 2033 | N133: 산근01280호표 | O133: 2 | DM133: SQE1135
A134: 흄관하차 | B134: Φ 1200 | C134: 1 | D134: M | E134: 4973 | F134: 4973 | G134: =단가산출!CY5460 -> 0 | H134: 0 | I134: =단가산출!CZ5460 -> 0 | J134: 0 | K134: =단가산출!DA5460 -> 4,973 | L134: 4973 | M134: 2034 | N134: 산근01290호표 | O134: 2 | DM134: SQE1136
A135: 하수관천공및접합 | B135: D450mm,연결관200mm | C135: 1 | D135: 개소 | E135: 18189 | F135: 18189 | G135: =일위대가!H2327 -> 866 | H135: 866 | I135: =일위대가!J2327 -> 17323 | J135: 17323 | K135: =일위대가!L2327 -> 0 | L135: 0 | M135: 2035 | N135: 제02500호표 | O135: 2 | DM135: BHI4100
A136: 하수관천공및접합 | B136: D600mm,연결관300mm | C136: 1 | D136: 개소 | E136: 36379 | F136: 36379 | G136: =일위대가!H2333 -> 1732 | H136: 1732 | I136: =일위대가!J2333 -> 34647 | J136: 34647 | K136: =일위대가!L2333 -> 0 | L136: 0 | M136: 2036 | N136: 제02510호표 | O136: 2 | DM136: BHI4220
A137: 하수관천공및접합 | B137: D800mm,연결관300mm | C137: 1 | D137: 개소 | E137: 36379 | F137: 36379 | G137: =일위대가!H2339 -> 1732 | H137: 1732 | I137: =일위대가!J2339 -> 34647 | J137: 34647 | K137: =일위대가!L2339 -> 0 | L137: 0 | M137: 2037 | N137: 제02520호표 | O137: 2 | DM137: BHI4320
A138: 하수관천공및접합 | B138: D1000mm,연결관300mm | C138: 1 | D138: 개소 | E138: 40017 | F138: 40017 | G138: =일위대가!H2345 -> 1905 | H138: 1905 | I138: =일위대가!J2345 -> 38112 | J138: 38112 | K138: =일위대가!L2345 -> 0 | L138: 0 | M138: 2038 | N138: 제02530호표 | O138: 2 | DM138: BHI4520
A139: 하수관천공및접합 | B139: D1200mm,연결관300mm | C139: 1 | D139: 개소 | E139: 40017 | F139: 40017 | G139: =일위대가!H2351 -> 1905 | H139: 1905 | I139: =일위대가!J2351 -> 38112 | J139: 38112 | K139: =일위대가!L2351 -> 0 | L139: 0 | M139: 2039 | N139: 제02540호표 | O139: 2 | DM139: BHI4620
A140: 횡단하수거 | B140: H=50 400*2000 | C140: 1 | D140: 개소 | E140: =G140+I140+K140 -> 639255 | F140: =H140+J140+L140 -> 639255 | G140: =일위대가!H2366 -> 121765 | H140: =TRUNC(C140*G140,0) -> 121765 | I140: =일위대가!J2366 -> 513458 | J140: =TRUNC(C140*I140,0) -> 513458 | K140: =일위대가!L2366 -> 4032 | L140: =TRUNC(C140*K140,0) -> 4032 | M140: 2040 | N140: 제02560호표 | O140: 2 | DM140: B0255
A141: 하수관수밀시험 | B141: D=300mm 이하[60m기준] | C141: 1 | D141: 개소 | E141: 468140 | F141: 468140 | G141: =일위대가!H2268 -> 178450 | H141: 178450 | I141: =일위대가!J2268 -> 267554 | J141: 267554 | K141: =일위대가!L2268 -> 22136 | L141: 22136 | M141: 2041 | N141: 제02460호표 | O141: 2 | DM141: BHI2100
A142: 하수관수밀시험 | B142: D=600mm 이하[60m기준] | C142: 1 | D142: 개소 | E142: 703809 | F142: 703809 | G142: =일위대가!H2301 -> 319902 | H142: 319902 | I142: =일위대가!J2301 -> 354467 | J142: 354467 | K142: =일위대가!L2301 -> 29440 | L142: 29440 | M142: 2043 | N142: 제02480호표 | O142: 2 | DM142: BHI2500
A143: 하수관수밀시험 | B143: D=800mm 이하[60m기준] | C143: 1 | D143: 개소 | E143: 930141 | F143: 930141 | G143: =일위대가!H2317 -> 453451 | H143: 453451 | I143: =일위대가!J2317 -> 432418 | J143: 432418 | K143: =일위대가!L2317 -> 44272 | L143: 44272 | M143: 2044 | N143: 제02490호표 | O143: 2 | DM143: BHI2700
A144: 수밀코킹 | B144: 코킹공의0.03 | C144: 1 | D144: M | E144: =G144+I144+K144 -> 4696 | F144: =H144+J144+L144 -> 4696 | G144: =일위대가!H2544 -> 0 | H144: =TRUNC(C144*G144,0) -> 0 | I144: =일위대가!J2544 -> 4696 | J144: =TRUNC(C144*I144,0) -> 4696 | K144: =일위대가!L2544 -> 0 | L144: =TRUNC(C144*K144,0) -> 0 | M144: 2045 | N144: 제02820호표 | O144: 2 | DM144: BHI2700
A145: 하수관내C．C．TV조사 | C145: 1 | D145: 일 | E145: 1014526 | F145: 1014526 | G145: =일위대가!H2225 -> 22520 | H145: 22520 | I145: =일위대가!J2225 -> 728070 | J145: 728070 | K145: =일위대가!L2225 -> 263936 | L145: 263936 | M145: 2046 | N145: 제02390호표 | O145: 2 | DM145: BHI3300
A146: 하수관내C.C.TV조사 | B146: 신설관[L=520m/일] | C146: 1 | D146: m | E146: 1946 | F146: 1946 | G146: =일위대가!H2229 -> 43 | H146: 43 | I146: =일위대가!J2229 -> 1397 | J146: 1397 | K146: =일위대가!L2229 -> 506 | L146: 506 | M146: 2047 | N146: 제02400호표 | O146: 2 | DM146: BHI3100
A147: 하수관내C.C.TV조사 | B147: 기존관[L=320m/일] | C147: 1 | D147: m | E147: 3174 | F147: 3174 | G147: =일위대가!H2233 -> 70 | H147: 70 | I147: =일위대가!J2233 -> 2278 | J147: 2278 | K147: =일위대가!L2233 -> 826 | L147: 826 | M147: 2048 | N147: 제02410호표 | O147: 2 | DM147: BHI3200
A148: 하수관복구공[가정관] | B148: Φ=150mm | C148: 1 | D148: 개소 | E148: 73460 | F148: 73460 | G148: =일위대가!H2239 -> 42326 | H148: 42326 | I148: =일위대가!J2239 -> 31113 | J148: 31113 | K148: =일위대가!L2239 -> 21 | L148: 21 | M148: 2049 | N148: 제02420호표 | O148: 2 | DM148: BHJ5200
A149: 하수관연결[가정관] | B149: Φ=150mm, L=1M | C149: 1 | D149: 개소 | E149: 29607 | F149: 29607 | G149: =일위대가!H2245 -> 11418 | H149: 11418 | I149: =일위대가!J2245 -> 17323 | J149: 17323 | K149: =일위대가!L2245 -> 866 | L149: 866 | M149: 2050 | N149: 제02430호표 | O149: 2 | DM149: BHJ5110
A150: 하수관연결[가정관] | B150: Φ=150mm, L=2M | C150: 1 | D150: 개소 | E150: 40160 | F150: 40160 | G150: =일위대가!H2251 -> 21971 | H150: 21971 | I150: =일위대가!J2251 -> 17323 | J150: 17323 | K150: =일위대가!L2251 -> 866 | L150: 866 | M150: 2051 | N150: 제02440호표 | O150: 2 | DM150: BHJ5120
A151: 하수관연결[가정관] | B151: Φ=150mm, L=4M | C151: 1 | D151: 개소 | E151: 61265 | F151: 61265 | G151: =일위대가!H2257 -> 43076 | H151: 43076 | I151: =일위대가!J2257 -> 17323 | J151: 17323 | K151: =일위대가!L2257 -> 866 | L151: 866 | M151: 2052 | N151: 제02450호표 | O151: 2 | DM151: BHJ5140
A152: 단지관접합 | B152: D=100㎜ | C152: 1 | D152: 개소 | E152: 51597 | F152: 51597 | G152: =일위대가!H575 -> 39700 | H152: 39700 | I152: =일위대가!J575 -> 11897 | J152: 11897 | K152: =일위대가!L575 -> 0 | L152: 0 | M152: 2053 | N152: 제00730호표 | O152: 2 | DM152: BHLL-300
A153: 단지관접합 | B153: D=150㎜ | C153: 1 | D153: 개소 | E153: 64908 | F153: 64908 | G153: =일위대가!H568 -> 46900 | H153: 46900 | I153: =일위대가!J568 -> 18008 | J153: 18008 | K153: =일위대가!L568 -> 0 | L153: 0 | M153: 2054 | N153: 제00720호표 | O153: 2 | DM153: BHLL-290
A154: 단지관접합 | B154: D=200㎜ | C154: 1 | D154: 개소 | E154: 111602 | F154: 111602 | G154: =일위대가!H561 -> 86600 | H154: 86600 | I154: =일위대가!J561 -> 25002 | J154: 25002 | K154: =일위대가!L561 -> 0 | L154: 0 | M154: 2055 | N154: 제00710호표 | O154: 2 | DM154: BHLL-280
A155: 단지관접합 | B155: D=250㎜ | C155: 1 | D155: 개소 | E155: 163312 | F155: 163312 | G155: =일위대가!H554 -> 129000 | H155: 129000 | I155: =일위대가!J554 -> 34312 | J155: 34312 | K155: =일위대가!L554 -> 0 | L155: 0 | M155: 2056 | N155: 제00700호표 | O155: 2 | DM155: BHLL-270
A156: 단지관접합 | B156: D=300㎜ | C156: 1 | D156: 개소 | E156: 187687 | F156: 187687 | G156: =일위대가!H547 -> 139000 | H156: 139000 | I156: =일위대가!J547 -> 48687 | J156: 48687 | K156: =일위대가!L547 -> 0 | L156: 0 | M156: 2057 | N156: 제00690호표 | O156: 2 | DM156: BHLL-260
A158: 3. 포장공 | C158: 1 | D158: 식
A159: 그루빙 | B159: 아스팔트[종]9*4*51 | C159: 1 | D159: ㎡ | E159: 13586 | F159: 13586 | G159: =일위대가!H257 -> 5193 | H159: 5193 | I159: =일위대가!J257 -> 5288 | J159: 5288 | K159: =일위대가!L257 -> 3105 | L159: 3105 | M159: 3001 | N159: 제00380호표 | O159: 3 | DM159: B000-0220
A160: 그루빙 | B160: 콘크리트[종]9*4*51 | C160: 1 | D160: ㎡ | E160: 24596 | F160: 24596 | G160: =일위대가!H268 -> 11830 | H160: 11830 | I160: =일위대가!J268 -> 7923 | J160: 7923 | K160: =일위대가!L268 -> 4843 | L160: 4843 | M160: 3002 | N160: 제00390호표 | O160: 3 | DM160: B000-0230
A161: 그루빙 | B161: 아스팔트[횡]9*4*51 | C161: 1 | D161: ㎡ | E161: 23041 | F161: 23041 | G161: =일위대가!H279 -> 6368 | H161: 6368 | I161: =일위대가!J279 -> 10640 | J161: 10640 | K161: =일위대가!L279 -> 6033 | L161: 6033 | M161: 3003 | N161: 제00400호표 | O161: 3 | DM161: B000-0240
A162: 그루빙 | B162: 콘크리트[횡]9*4*51 | C162: 1 | D162: ㎡ | E162: 31539 | F162: 31539 | G162: =일위대가!H290 -> 12688 | H162: 12688 | I162: =일위대가!J290 -> 11869 | J162: 11869 | K162: =일위대가!L290 -> 6982 | L162: 6982 | M162: 3004 | N162: 제00410호표 | O162: 3 | DM162: B000-0250
A163: 기층공[보조] | B163: 인력,시간당 18.75㎥ | C163: 1 | D163: HR | E163: 239444 | F163: 239444 | G163: =일위대가!H344 -> 27343 | H163: 27343 | I163: =일위대가!J344 -> 185217 | J163: 185217 | K163: =일위대가!L344 -> 26884 | L163: 26884 | M163: 3005 | N163: 제00470호표 | O163: 3 | DM163: BB00-0280
A164: 기층공[보조] | B164: 인력,T=20cm | C164: 1 | D164: a | E164: 769165 | F164: 769165 | G164: =일위대가!H350 -> 542854 | H164: 542854 | I164: =일위대가!J350 -> 197626 | J164: 197626 | K164: =일위대가!L350 -> 28685 | L164: 28685 | M164: 3006 | N164: 제00480호표 | O164: 3 | DM164: B0151
A165: 기층공[보조] | B165: 기계,시간당 68.75㎥ | C165: 1 | D165: HR | E165: 292951 | F165: 292951 | G165: =일위대가!H357 -> 67064 | H165: 67064 | I165: =일위대가!J357 -> 149943 | J165: 149943 | K165: =일위대가!L357 -> 75944 | L165: 75944 | M165: 3007 | N165: 제00490호표 | O165: 3 | DM165: BB00-0290
A166: 기층공[보조] | B166: 기계,T=20cm | C166: 1 | D166: a | E166: 598927 | F166: 598927 | G166: =일위대가!H363 -> 533195 | H166: 533195 | I166: =일위대가!J363 -> 43633 | J166: 43633 | K166: =일위대가!L363 -> 22099 | L166: 22099 | M166: 3008 | N166: 제00500호표 | O166: 3 | DM166: BKA2100
A167: 기층공[보조] | B167: 기계,T=30cm | C167: 1 | D167: a | E167: 898245 | F167: 898245 | G167: =일위대가!H369 -> 799759 | H167: 799759 | I167: =일위대가!J369 -> 65375 | J167: 65375 | K167: =일위대가!L369 -> 33111 | L167: 33111 | M167: 3009 | N167: 제00510호표 | O167: 3 | DM167: B0154
A168: 기층공[입도조정] | B168: 기계,시간당 62.5㎥ | C168: 1 | D168: HR | E168: 292951 | F168: 292951 | G168: =일위대가!H376 -> 67064 | H168: 67064 | I168: =일위대가!J376 -> 149943 | J168: 149943 | K168: =일위대가!L376 -> 75944 | L168: 75944 | M168: 3010 | N168: 제00520호표 | O168: 3 | DM168: BB00-0330
A169: 기층공[입도조정] | B169: 인력,시간당 16.875㎥ | C169: 1 | D169: HR | E169: 239444 | F169: 239444 | G169: =일위대가!H384 -> 27343 | H169: 27343 | I169: =일위대가!J384 -> 185217 | J169: 185217 | K169: =일위대가!L384 -> 26884 | L169: 26884 | M169: 3011 | N169: 제00530호표 | O169: 3 | DM169: BB00-0320
A170: 기층공[혼합] | B170: 인력,T=10cm | C170: 1 | D170: a | E170: 399179 | F170: 399179 | G170: =일위대가!H390 -> 273510 | H170: 273510 | I170: =일위대가!J390 -> 109741 | J170: 109741 | K170: =일위대가!L390 -> 15928 | L170: 15928 | M170: 3012 | N170: 제00540호표 | O170: 3 | DM170: BKB4300
A171: 기층공[혼합] | B171: 인력,T=20cm | C171: 1 | D171: a | E171: 798360 | F171: 798360 | G171: =일위대가!H396 -> 547021 | H171: 547021 | I171: =일위대가!J396 -> 219482 | J171: 219482 | K171: =일위대가!L396 -> 31857 | L171: 31857 | M171: 3013 | N171: 제00550호표 | O171: 3 | DM171: BKB4200
A172: 기층공[혼합] | B172: 기계,T=20cm | C172: 1 | D172: a | E172: 607423 | F172: 607423 | G172: =일위대가!H402 -> 535140 | H172: 535140 | I172: =일위대가!J402 -> 47981 | J172: 47981 | K172: =일위대가!L402 -> 24302 | L172: 24302 | M172: 3014 | N172: 제00560호표 | O172: 3 | DM172: BKB4100
A173: 투수용 기층공[혼합,인력] | B173: 인력,T=15cm | C173: 1 | D173: a | E173: 1078481 | F173: 1078481 | G173: =일위대가!H408 -> 889967 | H173: 889967 | I173: =일위대가!J408 -> 164620 | J173: 164620 | K173: =일위대가!L408 -> 23894 | L173: 23894 | M173: 3015 | N173: 제00570호표 | O173: 3 | DM173: B000-0180-1
A174: 아스콘중층공[인력,신설포장] | B174: T=7.5Cm | C174: 1 | D174: a | E174: 689328 | F174: 689328 | G174: =일위대가!H1395 -> 105107 | H174: 105107 | I174: =일위대가!J1395 -> 547865 | J174: 547865 | K174: =일위대가!L1395 -> 36356 | L174: 36356 | M174: 3016 | N174: 제01390호표 | O174: 3 | DM174: BKB5300
A175: 아스콘중층공[기계,신설포장] | B175: T=7.5Cm[3m≤시공폭] | C175: 1 | D175: a | E175: 151259 | F175: 151259 | G175: =일위대가!H1404 -> 64319 | H175: 64319 | I175: =일위대가!J1404 -> 69913 | J175: 69913 | K175: =일위대가!L1404 -> 17027 | L175: 17027 | M175: 3017 | N175: 제01400호표 | O175: 3 | DM175: BKB5200
A176: 아스콘중층공[기계,소규모,신설포장] | B176: T=7.5Cm[시공폭<2m] | C176: 1 | D176: a | E176: =G176+I176+K176 -> 289940 | F176: =H176+J176+L176 -> 289940 | G176: =일위대가!H1413 -> 80357 | H176: =TRUNC(C176*G176,0) -> 80357 | I176: =일위대가!J1413 -> 162951 | J176: =TRUNC(C176*I176,0) -> 162951 | K176: =일위대가!L1413 -> 46632 | L176: =TRUNC(C176*K176,0) -> 46632 | M176: 3018 | N176: 제01401호표 | O176: 3 | DM176: BKB5200
A177: 아스콘중층공[기계,신설포장] | B177: T=7.5Cm[2m≤시공폭<3m] | C177: 1 | D177: a | E177: 218426 | F177: 218426 | G177: =일위대가!H1422 -> 73328 | H177: 73328 | I177: =일위대가!J1422 -> 114938 | J177: 114938 | K177: =일위대가!L1422 -> 30160 | L177: 30160 | M177: 3019 | N177: 제01410호표 | O177: 3 | DM177: BKB5200-01
A178: 아스팔트포장[인력,신설포장] | B178: 시간당 37.5㎡ | C178: 1 | D178: HR | E178: 229908 | F178: 229908 | G178: =일위대가!H1312 -> 19489 | H178: 19489 | I178: =일위대가!J1312 -> 197150 | J178: 197150 | K178: =일위대가!L1312 -> 13269 | L178: 13269 | M178: 3020 | N178: 제01340호표 | O178: 3 | DM178: BB00-0380
A179: 아스팔트포장[기계,신설포장] | B179: 표층,중간층 | C179: 1 | D179: HR | E179: 476352 | F179: 476352 | G179: =일위대가!H1322 -> 63890 | H179: 63890 | I179: =일위대가!J1322 -> 319325 | J179: 319325 | K179: =일위대가!L1322 -> 93137 | L179: 93137 | M179: 3021 | N179: 제01350호표 | O179: 3 | DM179: BB00-0360
A180: 아스콘표층공[인력,신설포장] | B180: T=5Cm | C180: 1 | D180: a | E180: 657288 | F180: 657288 | G180: =일위대가!H1341 -> 73607 | H180: 73607 | I180: =일위대가!J1341 -> 547865 | J180: 547865 | K180: =일위대가!L1341 -> 35816 | L180: 35816 | M180: 3022 | N180: 제01360호표 | O180: 3 | DM180: BKB5100
A181: 아스콘표층공[기계,신설포장] | B181: T=5Cm[3m≤시공폭] | C181: 1 | D181: a | E181: 119219 | F181: 119219 | G181: =일위대가!H1350 -> 32819 | H181: 32819 | I181: =일위대가!J1350 -> 69913 | J181: 69913 | K181: =일위대가!L1350 -> 16487 | L181: 16487 | M181: 3023 | N181: 제01370호표 | O181: 3 | DM181: BKB5000
A182: 아스콘표층공[기계,소규모,신설포장] | B182: T=5Cm[시공폭<2m] | C182: 1 | D182: a | E182: =G182+I182+K182 -> 257900 | F182: =H182+J182+L182 -> 257900 | G182: =일위대가!H1359 -> 48857 | H182: =TRUNC(C182*G182,0) -> 48857 | I182: =일위대가!J1359 -> 162951 | J182: =TRUNC(C182*I182,0) -> 162951 | K182: =일위대가!L1359 -> 46092 | L182: =TRUNC(C182*K182,0) -> 46092 | M182: 3024 | N182: 제01371호표 | O182: 3 | DM182: BKB5000
A183: 아스콘표층공[기계,신설포장] | B183: T=5Cm[2m≤시공폭<3m] | C183: 1 | D183: a | E183: 186386 | F183: 186386 | G183: =일위대가!H1368 -> 41828 | H183: 41828 | I183: =일위대가!J1368 -> 114938 | J183: 114938 | K183: =일위대가!L1368 -> 29620 | L183: 29620 | M183: 3025 | N183: 제01380호표 | O183: 3 | DM183: BKB5000-01
A184: 소파보수[포장복구] | B184: B타입 시간당 시공량 5.625㎡ | C184: 1 | D184: HR | E184: =G184+I184+K184 -> 416433 | F184: =H184+J184+L184 -> 416433 | G184: =일위대가!H1156 -> 31351 | H184: =TRUNC(C184*G184,0) -> 31351 | I184: =일위대가!J1156 -> 347066 | J184: =TRUNC(C184*I184,0) -> 347066 | K184: =일위대가!L1156 -> 38016 | L184: =TRUNC(C184*K184,0) -> 38016 | M184: 3026 | N184: 제01280호표 | O184: 3
A185: 소파보수[포장복구] | B185: B타입 개소별 평균 시공면적 5㎡ 이하, 시공량 할증계수 0.85 | C185: 1 | D185: a | E185: 8786536 | F185: 8786536 | G185: =일위대가!H1164 -> 729362 | H185: 729362 | I185: =일위대가!J1164 -> 7260620 | J185: 7260620 | K185: =일위대가!L1164 -> 796554 | L185: 796554 | M185: 3027 | N185: 제01281호표 | O185: 3 | DM185: B000-0110
A186: 소파보수[포장복구] | B186: B타입 개소별 평균 시공면적 10㎡ 이하, 시공량 할증계수 0.92 | C186: 1 | D186: a | E186: =G186+I186+K186 -> 8120245 | F186: =H186+J186+L186 -> 8120245 | G186: =일위대가!H1172 -> 679201 | H186: =TRUNC(C186*G186,0) -> 679201 | I186: =일위대가!J1172 -> 6705315 | J186: =TRUNC(C186*I186,0) -> 6705315 | K186: =일위대가!L1172 -> 735729 | L186: =TRUNC(C186*K186,0) -> 735729 | M186: 3028 | N186: 제01282호표 | O186: 3 | DM186: B000-0110
A187: 소파보수[포장복구] | B187: B타입 개소별 평균 시공면적 20㎡ 이하, 시공량 할증계수 1.0 | C187: 1 | D187: a | E187: =G187+I187+K187 -> 7478937 | F187: =H187+J187+L187 -> 7478937 | G187: =일위대가!H1180 -> 630920 | H187: =TRUNC(C187*G187,0) -> 630920 | I187: =일위대가!J1180 -> 6170833 | J187: =TRUNC(C187*I187,0) -> 6170833 | K187: =일위대가!L1180 -> 677184 | L187: =TRUNC(C187*K187,0) -> 677184 | M187: 3029 | N187: 제01283호표 | O187: 3 | DM187: B000-0110
A188: 소파보수[포장복구] | B188: B타입 개소별 평균 시공면적 30㎡ 이하, 시공량 할증계수 1.09 | C188: 1 | D188: a | E188: =G188+I188+K188 -> 6866780 | F188: =H188+J188+L188 -> 6866780 | G188: =일위대가!H1188 -> 584834 | H188: =TRUNC(C188*G188,0) -> 584834 | I188: =일위대가!J1188 -> 5660646 | J188: =TRUNC(C188*I188,0) -> 5660646 | K188: =일위대가!L1188 -> 621300 | L188: =TRUNC(C188*K188,0) -> 621300 | M188: 3030 | N188: 제01284호표 | O188: 3 | DM188: B000-0110
A189: 소파보수[포장복구] | B189: B타입 개소별 평균 시공면적 30㎡ 초과, 시공량 할증계수 1.18 | C189: 1 | D189: a | E189: =G189+I189+K189 -> 6346239 | F189: =H189+J189+L189 -> 6346239 | G189: =일위대가!H1196 -> 545646 | H189: =TRUNC(C189*G189,0) -> 545646 | I189: =일위대가!J1196 -> 5226813 | J189: =TRUNC(C189*I189,0) -> 5226813 | K189: =일위대가!L1196 -> 573780 | L189: =TRUNC(C189*K189,0) -> 573780 | M189: 3031 | N189: 제01285호표 | O189: 3 | DM189: B000-0110
A190: 소파보수[표층] | B190: C타입 시간당 시공량 6.25㎡ | C190: 1 | D190: HR | E190: 422881 | F190: 422881 | G190: =일위대가!H1206 -> 33938 | H190: 33938 | I190: =일위대가!J1206 -> 347066 | J190: 347066 | K190: =일위대가!L1206 -> 41877 | L190: 41877 | M190: 3032 | N190: 제01290호표 | O190: 3 | DM190: B000-0140
A191: 소파보수[표층] | B191: C타입 개소별 평균 시공면적 5㎡ 이하, 시공량 할증계수 0.79 | C191: 1 | D191: a | E191: 8581370 | F191: 8581370 | G191: =일위대가!H1213 -> 707905 | H191: 707905 | I191: =일위대가!J1213 -> 7024615 | J191: 7024615 | K191: =일위대가!L1213 -> 848850 | L191: 848850 | M191: 3033 | N191: 제01291호표 | O191: 3 | DM191: B000-0140
A192: 소파보수[표층] | B192: C타입 개소별 평균 시공면적 10㎡ 이하, 시공량 할증계수 0.89 | C192: 1 | D192: a | E192: =G192+I192+K192 -> 7629888 | F192: =H192+J192+L192 -> 7629888 | G192: =일위대가!H1220 -> 631544 | H192: =TRUNC(C192*G192,0) -> 631544 | I192: =일위대가!J1220 -> 6243717 | J192: =TRUNC(C192*I192,0) -> 6243717 | K192: =일위대가!L1220 -> 754627 | L192: =TRUNC(C192*K192,0) -> 754627 | M192: 3034 | N192: 제01292호표 | O192: 3 | DM192: B000-0140
A193: 소파보수[표층] | B193: C타입 개소별 평균 시공면적 20㎡ 이하, 시공량 할증계수 1.0 | C193: 1 | D193: a | E193: =G193+I193+K193 -> 6788356 | F193: =H193+J193+L193 -> 6788356 | G193: =일위대가!H1227 -> 564008 | H193: =TRUNC(C193*G193,0) -> 564008 | I193: =일위대가!J1227 -> 5553056 | J193: =TRUNC(C193*I193,0) -> 5553056 | K193: =일위대가!L1227 -> 671292 | L193: =TRUNC(C193*K193,0) -> 671292 | M193: 3035 | N193: 제01293호표 | O193: 3 | DM193: B000-0140
A194: 소파보수[표층] | B194: C타입 개소별 평균 시공면적 30㎡ 이하, 시공량 할증계수 1.12 | C194: 1 | D194: a | E194: =G194+I194+K194 -> 6065229 | F194: =H194+J194+L194 -> 6065229 | G194: =일위대가!H1234 -> 505974 | H194: =TRUNC(C194*G194,0) -> 505974 | I194: =일위대가!J1234 -> 4959573 | J194: =TRUNC(C194*I194,0) -> 4959573 | K194: =일위대가!L1234 -> 599682 | L194: =TRUNC(C194*K194,0) -> 599682 | M194: 3036 | N194: 제01294호표 | O194: 3 | DM194: B000-0140
A195: 소파보수[표층] | B195: C타입 개소별 평균 시공면적 30㎡ 초과, 시공량 할증계수 1.26 | C195: 1 | D195: a | E195: 5388619 | F195: 5388619 | G195: =일위대가!H1241 -> 451673 | H195: 451673 | I195: =일위대가!J1241 -> 4404267 | J195: 4404267 | K195: =일위대가!L1241 -> 532679 | L195: 532679 | M195: 3037 | N195: 제01295호표 | O195: 3 | DM195: B000-0140
A196: 소파보수[도로복구, T=65cm] | B196: B타입 시간당 시공량 4.375㎡ | C196: 1 | D196: HR | E196: 503744 | F196: 503744 | G196: =일위대가!H1252 -> 41426 | H196: 41426 | I196: =일위대가!J1252 -> 419869 | J196: 419869 | K196: =일위대가!L1252 -> 42449 | L196: 42449 | M196: 3038 | N196: 제01300호표 | O196: 3 | DM196: B000-0166
A197: 소파보수[도로복구] | B197: B타입 개소별 평균 시공면적 4㎡ 이하, 시공량 할증계수 0.89 | C197: 1 | D197: a | E197: =G197+I197+K197 -> 14305216 | F197: =H197+J197+L197 -> 14305216 | G197: =일위대가!H1262 -> 2417762 | H197: =TRUNC(C197*G197,0) -> 2417762 | I197: =일위대가!J1262 -> 10794831 | J197: =TRUNC(C197*I197,0) -> 10794831 | K197: =일위대가!L1262 -> 1092623 | L197: =TRUNC(C197*K197,0) -> 1092623 | M197: 3039 | N197: 제01301호표 | O197: 3 | DM197: B000-0166
A198: 소파보수[도로복구] | B198: B타입 개소별 평균 시공면적 8㎡ 이하, 시공량 할증계수 0.94 | C198: 1 | D198: a | E198: =G198+I198+K198 -> 13610050 | F198: =H198+J198+L198 -> 13610050 | G198: =일위대가!H1272 -> 2360594 | H198: =TRUNC(C198*G198,0) -> 2360594 | I198: =일위대가!J1272 -> 10215412 | J198: =TRUNC(C198*I198,0) -> 10215412 | K198: =일위대가!L1272 -> 1034044 | L198: =TRUNC(C198*K198,0) -> 1034044 | M198: 3040 | N198: 제01302호표 | O198: 3 | DM198: B000-0166
A199: 소파보수[도로복구] | B199: B타입 개소별 평균 시공면적 16㎡ 이하, 시공량 할증계수 1.0 | C199: 1 | D199: a | E199: =G199+I199+K199 -> 12864509 | F199: =H199+J199+L199 -> 12864509 | G199: =일위대가!H1282 -> 2299284 | H199: =TRUNC(C199*G199,0) -> 2299284 | I199: =일위대가!J1282 -> 9594006 | J199: =TRUNC(C199*I199,0) -> 9594006 | K199: =일위대가!L1282 -> 971219 | L199: =TRUNC(C199*K199,0) -> 971219 | M199: 3041 | N199: 제01303호표 | O199: 3 | DM199: B000-0166
A200: 소파보수[도로복구] | B200: B타입 개소별 평균 시공면적 24㎡ 이하, 시공량 할증계수 1.06 | C200: 1 | D200: a | E200: 12209641 | F200: 12209641 | G200: =일위대가!H1292 -> 2245430 | H200: 2245430 | I200: =일위대가!J1292 -> 9048176 | J200: 9048176 | K200: =일위대가!L1292 -> 916035 | L200: 916035 | M200: 3042 | N200: 제01304호표 | O200: 3 | DM200: B000-0166
A201: 소파보수[도로복구] | B201: B타입 개소별 평균 시공면적 24㎡ 초과, 시공량 할증계수 1.13 | C201: 1 | D201: a | E201: =G201+I201+K201 -> 11549737 | F201: =H201+J201+L201 -> 11549737 | G201: =일위대가!H1302 -> 2191162 | H201: =TRUNC(C201*G201,0) -> 2191162 | I201: =일위대가!J1302 -> 8498148 | J201: =TRUNC(C201*I201,0) -> 8498148 | K201: =일위대가!L1302 -> 860427 | L201: =TRUNC(C201*K201,0) -> 860427 | M201: 3043 | N201: 제01305호표 | O201: 3 | DM201: B000-0166
A202: 절삭 후 아스팔트 덧씌우기 | B202: t=5cm[이면도로 13a/일 기준] | C202: 1 | D202: a | E202: 642528 | F202: 642528 | G202: =일위대가!H1386 -> 151455 | H202: 151455 | I202: =일위대가!J1386 -> 313869 | J202: 313869 | K202: =일위대가!L1386 -> 177204 | L202: 177204 | M202: 3044 | N202: 제01381호표 | O202: 3 | DM202: BB00-0510
A203: 절삭 후 아스팔트 덧씌우기 | B203: C타입, 시간당 225㎡ | C203: 1 | D203: HR | E203: 1012981 | F203: 1012981 | G203: =일위대가!H1436 -> 190489 | H203: 190489 | I203: =일위대가!J1436 -> 532270 | J203: 532270 | K203: =일위대가!L1436 -> 290222 | L203: 290222 | M203: 3045 | N203: 제01420호표 | O203: 3 | DM203: BB00-0510
A204: 절삭 후 아스팔트 덧씌우기 | B204: T=5cm | C204: 1 | D204: a | E204: 487770 | F204: 487770 | G204: =일위대가!H1444 -> 125515 | H204: 125515 | I204: =일위대가!J1444 -> 234198 | J204: 234198 | K204: =일위대가!L1444 -> 128057 | L204: 128057 | M204: 3046 | N204: 제01430호표 | O204: 3 | DM204: BB00-0520
... 257 more rows

Sheet 일위대가 목록
A1: 일 위 대 가 목 록 표 | DO1: 5
DO2: A
A3: 공 종 | B3: 규 격 | C3: 수 량 | D3: 단위 | E3: 합 계 | F3: 재 료 비 | G3: 노 무 비 | H3: 경 비 | I3: 비 고 | DO3: 286
DO4: I
A5: E.G.I 가설휀스설치및해체 | B5: 3개월 | C5: 1 | D5: m | E5: =F5+G5+H5 -> 21605 | F5: =일위대가!H19 -> 6292 | G5: =일위대가!J19 -> 14701 | H5: =일위대가!L19 -> 612 | I5: 제 1호표 | DM5: BAA3225
A6: E.G.I 가설휀스설치및해체 | B6: 6개월 | C6: 1 | D6: m | E6: 24951 | F6: =일위대가!H35 -> 9638 | G6: =일위대가!J35 -> 14701 | H6: =일위대가!L35 -> 612 | I6: 제 2호표 | DM6: BAA3226
A7: E.G.I 가설휀스설치및해체 | B7: 12개월 | C7: 1 | D7: m | E7: 31438 | F7: =일위대가!H51 -> 16125 | G7: =일위대가!J51 -> 14701 | H7: =일위대가!L51 -> 612 | I7: 제 3호표 | DM7: BAA3227
A8: L형측구설치 | B8: B=45Cm(레미콘) | C8: 1 | D8: m | E8: 14477 | F8: =일위대가!H58 -> 2596 | G8: =일위대가!J58 -> 11686 | H8: =일위대가!L58 -> 195 | I8: 제 4호표 | DM8: BHE2110
A9: L형측구설치 | B9: B=50Cm(레미콘) | C9: 1 | D9: m | E9: 14691 | F9: =일위대가!H65 -> 2611 | G9: =일위대가!J65 -> 11864 | H9: =일위대가!L65 -> 216 | I9: 제 5호표 | DM9: BHE2120
A10: L형측구설치 | B10: B=45Cm(인력) | C10: 1 | D10: m | E10: 44488 | F10: =일위대가!H71 -> 8130 | G10: =일위대가!J71 -> 35668 | H10: =일위대가!L71 -> 690 | I10: 제 6호표 | DM10: BHE2130
A11: L형측구설치 | B11: B=50Cm(인력) | C11: 1 | D11: m | E11: 47842 | F11: =일위대가!H77 -> 8724 | G11: =일위대가!J77 -> 38355 | H11: =일위대가!L77 -> 763 | I11: 제 7호표 | DM11: BHE2140
A12: PE 안전휀스 (3개월) | B12: 1510*410*910㎜ | C12: 1 | D12: 개 | E12: 6603 | F12: =일위대가!H82 -> 0 | G12: =일위대가!J82 -> 0 | H12: =일위대가!L82 -> 6603 | I12: 제 8호표 | DM12: B000-022010
A13: PE 안전휀스 (6개월) | B13: 1510*410*910㎜ | C13: 1 | D13: 개 | E13: 7723 | F13: =일위대가!H87 -> 0 | G13: =일위대가!J87 -> 0 | H13: =일위대가!L87 -> 7723 | I13: 제 9호표 | DM13: B000-0270
A14: PE 안전휀스 (12개월) | B14: 1510*410*910㎜ | C14: 1 | D14: 개 | E14: 9643 | F14: =일위대가!H92 -> 0 | G14: =일위대가!J92 -> 0 | H14: =일위대가!L92 -> 9643 | I14: 제 10호표 | DM14: B000-0280
A15: PVC지수판 | B15: 200x5t | C15: 1 | D15: m | E15: 47720 | F15: =일위대가!H101 -> 2992 | G15: =일위대가!J101 -> 43426 | H15: =일위대가!L101 -> 1302 | I15: 제 11호표 | DM15: BFG2110
A16: 가드레일철거 | B16: 인력 | C16: 1 | D16: m | E16: 7482 | F16: =일위대가!H106 -> 0 | G16: =일위대가!J106 -> 7482 | H16: =일위대가!L106 -> 0 | I16: 제 12호표 | DM16: BKJ1200
A17: 가드휀스설치(라운드) | B17: H900*W3000 | C17: 1 | D17: 경간 | E17: 1046932 | F17: =일위대가!H118 -> 177200 | G17: =일위대가!J118 -> 869509 | H17: =일위대가!L118 -> 223 | I17: 제 13호표 | DM17: B-003
A18: 가드휀스제작(라운드) | B18: H900*W3000 | C18: 1 | D18: 경간 | E18: 763873 | F18: =일위대가!H137 -> 171155 | G18: =일위대가!J137 -> 592718 | H18: =일위대가!L137 -> 0 | I18: 제 14호표 | DM18: B-002
A19: 가로수분설치 | C19: 1 | D19: 개소 | E19: 37787 | F19: =일위대가!H143 -> 0 | G19: =일위대가!J143 -> 37787 | H19: =일위대가!L143 -> 0 | I19: 제 15호표 | DM19: B0209
A20: 가설휀스(1.8x1.45) | B20: 3개월 | C20: 1 | D20: 개 | E20: 11142 | F20: =일위대가!H153 -> 316 | G20: =일위대가!J153 -> 2953 | H20: =일위대가!L153 -> 7873 | I20: 제 16호표 | DM20: BAA3221
A21: 거푸집(합판1회) | B21: 수직고 0∼7m | C21: 1 | D21: ㎡ | E21: 95701 | F21: =일위대가!H161 -> 23904 | G21: =일위대가!J161 -> 71797 | H21: =일위대가!L161 -> 0 | I21: 제 17호표 | DM21: BFC2100
A22: 거푸집(합판2회) | B22: 매우복잡/소규모 | C22: 1 | D22: ㎡ | E22: 62541 | F22: =일위대가!H168 -> 14756 | G22: =일위대가!J168 -> 47785 | H22: =일위대가!L168 -> 0 | I22: 제 18호표 | DM22: BFC2610
A23: 거푸집(합판3회) | B23: 복잡 | C23: 1 | D23: ㎡ | E23: 54276 | F23: =일위대가!H175 -> 12428 | G23: =일위대가!J175 -> 41848 | H23: =일위대가!L175 -> 0 | I23: 제 19호표 | DM23: BFC2300
A24: 거푸집(합판4회) | B24: 보통 | C24: 1 | D24: ㎡ | E24: 40275 | F24: =일위대가!H182 -> 11152 | G24: =일위대가!J182 -> 29123 | H24: =일위대가!L182 -> 0 | I24: 제 21호표 | DM24: BFC2630
A25: 거푸집(합판6회) | B25: 간단 | C25: 1 | D25: ㎡ | E25: 35793 | F25: =일위대가!H189 -> 10344 | G25: =일위대가!J189 -> 25449 | H25: =일위대가!L189 -> 0 | I25: 제 23호표 | DM25: BFC2400
A26: 거푸집(문양,합성수지) | C26: 1 | D26: ㎡ | E26: 32860 | F26: =일위대가!H198 -> 915 | G26: =일위대가!J198 -> 31945 | H26: =일위대가!L198 -> 0 | I26: 제 32호표 | DM26: BFC5000
A27: 공사안내간판 | B27: 0.9*1.8M | C27: 1 | D27: 개 | E27: 120000 | F27: =일위대가!H202 -> 0 | G27: =일위대가!J202 -> 0 | H27: =일위대가!L202 -> 120000 | I27: 제 33호표 | DM27: BAA3700
A28: 과속방지턱도색 | B28: 상온식 | C28: 1 | D28: ㎡ | E28: 12828 | F28: =일위대가!H210 -> 1076 | G28: =일위대가!J210 -> 11752 | H28: =일위대가!L210 -> 0 | I28: 제 34호표 | DM28: BKZ3300
A29: 과속방지턱도색 | B29: 융착식 | C29: 1 | D29: ㎡ | E29: =F29+G29+H29 -> 29767 | F29: =일위대가!H223 -> 18766 | G29: =일위대가!J223 -> 9207 | H29: =일위대가!L223 -> 1794 | I29: 제 34-1호표 | DM29: BKZ3300
A30: 과속방지턱설치 | B30: B=3.6M | C30: 1 | D30: m | E30: 87012 | F30: =일위대가!H236 -> 10901 | G30: =일위대가!J236 -> 74481 | H30: =일위대가!L236 -> 1630 | I30: 제 35호표 | DM30: BKN1100
A31: 교통안전유도로봇(3개월) | C31: 1 | E31: 327525 | F31: =일위대가!H242 -> 0 | G31: =일위대가!J242 -> 0 | H31: =일위대가!L242 -> 327525 | I31: 제 36호표 | DM31: B000-0400
A32: 교통통제 및 안전처리 | B32: 공구 연장 500m이하 | C32: 1 | D32: 일 | E32: 282192 | F32: =일위대가!H246 -> 0 | G32: =일위대가!J246 -> 0 | H32: =일위대가!L246 -> 282192 | I32: 제 37호표 | DM32: BB00-0500
A33: 그루빙 | B33: 아스팔트(종)9*4*51 | C33: 1 | D33: ㎡ | E33: 13586 | F33: =일위대가!H257 -> 5193 | G33: =일위대가!J257 -> 5288 | H33: =일위대가!L257 -> 3105 | I33: 제 38호표 | DM33: B000-0220
A34: 그루빙 | B34: 콘크리트(종)9*4*51 | C34: 1 | D34: ㎡ | E34: 24596 | F34: =일위대가!H268 -> 11830 | G34: =일위대가!J268 -> 7923 | H34: =일위대가!L268 -> 4843 | I34: 제 39호표 | DM34: B000-0230
A35: 그루빙 | B35: 아스팔트(횡)9*4*51 | C35: 1 | D35: ㎡ | E35: 23041 | F35: =일위대가!H279 -> 6368 | G35: =일위대가!J279 -> 10640 | H35: =일위대가!L279 -> 6033 | I35: 제 40호표 | DM35: B000-0240
A36: 그루빙 | B36: 콘크리트(횡)9*4*51 | C36: 1 | D36: ㎡ | E36: 31539 | F36: =일위대가!H290 -> 12688 | G36: =일위대가!J290 -> 11869 | H36: =일위대가!L290 -> 6982 | I36: 제 41호표 | DM36: B000-0250
A37: 기계비빔타설(fck=210kgf/cm2) | B37: 무근구조물 | C37: 1 | D37: ㎥ | E37: 178217 | F37: =일위대가!H300 -> 67422 | G37: =일위대가!J300 -> 102461 | H37: =일위대가!L300 -> 8334 | I37: 제 42호표 | DM37: BFB2120
A38: 기계비빔타설(fck=210kgf/cm2) | B38: 철근구조물 | C38: 1 | D38: ㎥ | E38: 213561 | F38: =일위대가!H310 -> 67422 | G38: =일위대가!J310 -> 137805 | H38: =일위대가!L310 -> 8334 | I38: 제 43호표 | DM38: BFB2220
A39: 기계비빔타설(fck=210kgf/cm2) | B39: 소형구조물 10㎥미만 | C39: 1 | D39: ㎥ | E39: 265306 | F39: =일위대가!H320 -> 67422 | G39: =일위대가!J320 -> 189550 | H39: =일위대가!L320 -> 8334 | I39: 제 44호표 | DM39: BFB2320
A40: 기초지정및다짐 | B40: (모래) | C40: 1 | D40: ㎥ | E40: 43697 | F40: =일위대가!H328 -> 36553 | G40: =일위대가!J328 -> 6368 | H40: =일위대가!L328 -> 776 | I40: 제 45호표 | DM40: BHI2231
A41: 기초지정및다짐 | B41: (자갈) | C41: 1 | D41: ㎥ | E41: 43021 | F41: =일위대가!H336 -> 33736 | G41: =일위대가!J336 -> 8326 | H41: =일위대가!L336 -> 959 | I41: 제 46호표 | DM41: BHI2233
A42: 기층공(보조) | B42: 인력,시간당 18.75㎥ | C42: 1 | D42: HR | E42: 239444 | F42: =일위대가!H344 -> 27343 | G42: =일위대가!J344 -> 185217 | H42: =일위대가!L344 -> 26884 | I42: 제 47호표 | DM42: BB00-0280
A43: 기층공(보조) | B43: 인력,T=20cm | C43: 1 | D43: a | E43: 769165 | F43: =일위대가!H350 -> 542854 | G43: =일위대가!J350 -> 197626 | H43: =일위대가!L350 -> 28685 | I43: 제 48호표 | DM43: B0151
A44: 기층공(보조) | B44: 기계,시간당 68.75㎥ | C44: 1 | D44: HR | E44: 292951 | F44: =일위대가!H357 -> 67064 | G44: =일위대가!J357 -> 149943 | H44: =일위대가!L357 -> 75944 | I44: 제 49호표 | DM44: BB00-0290
A45: 기층공(보조) | B45: 기계,T=20cm | C45: 1 | D45: a | E45: 598927 | F45: =일위대가!H363 -> 533195 | G45: =일위대가!J363 -> 43633 | H45: =일위대가!L363 -> 22099 | I45: 제 50호표 | DM45: BKA2100
A46: 기층공(보조) | B46: 기계,T=30cm | C46: 1 | D46: a | E46: 898245 | F46: =일위대가!H369 -> 799759 | G46: =일위대가!J369 -> 65375 | H46: =일위대가!L369 -> 33111 | I46: 제 51호표 | DM46: B0154
A47: 기층공(입도조정) | B47: 기계,시간당 62.5㎥ | C47: 1 | D47: HR | E47: 292951 | F47: =일위대가!H376 -> 67064 | G47: =일위대가!J376 -> 149943 | H47: =일위대가!L376 -> 75944 | I47: 제 52호표 | DM47: BB00-0330
A48: 기층공(입도조정) | B48: 인력,시간당 16.875㎥ | C48: 1 | D48: HR | E48: 239444 | F48: =일위대가!H384 -> 27343 | G48: =일위대가!J384 -> 185217 | H48: =일위대가!L384 -> 26884 | I48: 제 53호표 | DM48: BB00-0320
A49: 기층공(혼합) | B49: 인력,T=10cm | C49: 1 | D49: a | E49: 399179 | F49: =일위대가!H390 -> 273510 | G49: =일위대가!J390 -> 109741 | H49: =일위대가!L390 -> 15928 | I49: 제 54호표 | DM49: BKB4300
A50: 기층공(혼합) | B50: 인력,T=20cm | C50: 1 | D50: a | E50: 798360 | F50: =일위대가!H396 -> 547021 | G50: =일위대가!J396 -> 219482 | H50: =일위대가!L396 -> 31857 | I50: 제 55호표 | DM50: BKB4200
A51: 기층공(혼합) | B51: 기계,T=20cm | C51: 1 | D51: a | E51: 607423 | F51: =일위대가!H402 -> 535140 | G51: =일위대가!J402 -> 47981 | H51: =일위대가!L402 -> 24302 | I51: 제 56호표 | DM51: BKB4100
A52: 투수용 기층공(혼합,인력) | B52: (인력,T=15cm) a당 | C52: 1 | D52: a | E52: 1078481 | F52: =일위대가!H408 -> 889967 | G52: =일위대가!J408 -> 164620 | H52: =일위대가!L408 -> 23894 | I52: 제 57호표 | DM52: B000-0180-1
A53: 도로경계블럭설치 | B53: 공통 | C53: 1 | D53: HR | E53: 138509 | F53: =일위대가!H414 -> 7978 | G53: =일위대가!J414 -> 121062 | H53: =일위대가!L414 -> 9469 | I53: 제 58호표 | DM53: BB00-0240
A54: 도로경계블록설치 | B54: 150*150*1000(시공량135m) | C54: 1 | D54: m | E54: 34417 | F54: =일위대가!H422 -> 9052 | G54: =일위대가!J422 -> 24543 | H54: =일위대가!L422 -> 822 | I54: 제 59호표 | DM54: BKF1000
A55: 도로경계블록설치 | B55: 150*150*1000[시공량115m],곡선 | C55: 1 | D55: m | E55: =F55+G55+H55 -> 36357 | F55: =일위대가!H430 -> 9164 | G55: =일위대가!J430 -> 26238 | H55: =일위대가!L430 -> 955 | I55: 제 59-1호표 | DM55: BKF1000
A56: 도로경계블록설치 | B56: 150*150*1000(시공량20%감) | C56: 1 | D56: m | E56: 36772 | F56: =일위대가!H438 -> 9188 | G56: =일위대가!J438 -> 26601 | H56: =일위대가!L438 -> 983 | I56: 제 60호표 | DM56: BKF1001
A57: 도로경계블록설치 | B57: 150*150*1000(시공량20%감),곡선 | C57: 1 | D57: m | E57: =F57+G57+H57 -> 39126 | F57: =일위대가!H446 -> 9323 | G57: =일위대가!J446 -> 28659 | H57: =일위대가!L446 -> 1144 | I57: 제 60-1호표 | DM57: BKF1001
A58: 도로경계석설치 | B58: 공통 | C58: 1 | D58: HR | E58: 138509 | F58: =일위대가!H452 -> 7978 | G58: =일위대가!J452 -> 121062 | H58: =일위대가!L452 -> 9469 | I58: 제 61호표 | DM58: BB00-0250
A59: 도로경계석설치 | B59: 100*100*1000(시공량170m) | C59: 1 | D59: m | E59: 25326 | F59: =일위대가!H460 -> 4444 | G59: =일위대가!J460 -> 20179 | H59: =일위대가!L460 -> 703 | I59: 제 62호표 | DM59: B000-019
A60: 도로경계석설치 | B60: 100*100*1000(시공량150m),곡선 | C60: 1 | D60: m | E60: =F60+G60+H60 -> 25881 | F60: =일위대가!H468 -> 4476 | G60: =일위대가!J468 -> 20664 | H60: =일위대가!L468 -> 741 | I60: 제 62-1호표 | DM60: B000-019
A61: 도로경계석설치 | B61: 150*150*1000(시공량150m) | C61: 1 | D61: m | E61: 30911 | F61: =일위대가!H476 -> 5552 | G61: =일위대가!J476 -> 24537 | H61: =일위대가!L476 -> 822 | I61: 제 63호표 | DM61: BKF2000
A62: 도로경계석설치 | B62: 150*150*1000(시공량130m),곡선 | C62: 1 | D62: m | E62: =F62+G62+H62 -> 32851 | F62: =일위대가!H484 -> 5664 | G62: =일위대가!J484 -> 26232 | H62: =일위대가!L484 -> 955 | I62: 제 63-1호표 | DM62: BKF2000
A63: 도로경계석설치 | B63: 150*150*1000(시공량 20%감)) | C63: 1 | D63: m | E63: 33272 | F63: =일위대가!H492 -> 5688 | G63: =일위대가!J492 -> 26601 | H63: =일위대가!L492 -> 983 | I63: 제 64호표 | DM63: BKF2001
A64: 도로경계석설치 | B64: 150*150*1000(시공량 20%감),곡선 | C64: 1 | D64: m | E64: =F64+G64+H64 -> 35626 | F64: =일위대가!H500 -> 5823 | G64: =일위대가!J500 -> 28659 | H64: =일위대가!L500 -> 1144 | I64: 제 64-1호표 | DM64: BKF2001
A65: 도로경계석철거 | B65: 150x150x1000 | C65: 1 | D65: m | E65: =F65+G65+H65 -> 4066 | F65: =일위대가!H507 -> 461 | G65: =일위대가!J507 -> 3137 | H65: =일위대가!L507 -> 468 | I65: 제 65호표 | DM65: BDB2422
A66: 도로경계석 재설치 | B66: 150x150x1000, 직선 | C66: 1 | D66: m | E66: 32857 | F66: =일위대가!H515 -> 5664 | G66: =일위대가!J515 -> 26238 | H66: =일위대가!L515 -> 955 | I66: 제 65-1호표
A67: 도로경계석 재설치 | B67: 150x150x1000, 곡선 | C67: 1 | D67: m | E67: 34104 | F67: =일위대가!H523 -> 5736 | G67: =일위대가!J523 -> 27328 | H67: =일위대가!L523 -> 1040 | I67: 제 65-2호표
A68: 도로시설물 세척 | C68: 1 | D68: ㎡ | E68: 4316 | F68: =일위대가!H531 -> 78 | G68: =일위대가!J531 -> 3880 | H68: =일위대가!L531 -> 358 | I68: 제 66호표 | DM68: B000-0290
A69: 되메우기(다짐) | B69: 인력 | C69: 1 | D69: ㎥ | E69: 19753 | F69: =일위대가!H535 -> 0 | G69: =일위대가!J535 -> 19753 | H69: =일위대가!L535 -> 0 | I69: 제 67호표 | DM69: BDE2210
A70: 되메우기(다짐) | B70: 인력+기계 | C70: 1 | D70: ㎥ | E70: 10741 | F70: =일위대가!H540 -> 549 | G70: =일위대가!J540 -> 9603 | H70: =일위대가!L540 -> 589 | I70: 제 68호표 | DM70: BDE2230
A71: 단지관접합 | B71: D=300㎜ | C71: 1 | D71: 개소 | E71: 187687 | F71: =일위대가!H547 -> 139000 | G71: =일위대가!J547 -> 48687 | H71: =일위대가!L547 -> 0 | I71: 제 69호표 | DM71: BHLL-260
A72: 단지관접합 | B72: D=250㎜ | C72: 1 | D72: 개소 | E72: 163312 | F72: =일위대가!H554 -> 129000 | G72: =일위대가!J554 -> 34312 | H72: =일위대가!L554 -> 0 | I72: 제 70호표 | DM72: BHLL-270
A73: 단지관접합 | B73: D=200㎜ | C73: 1 | D73: 개소 | E73: 111602 | F73: =일위대가!H561 -> 86600 | G73: =일위대가!J561 -> 25002 | H73: =일위대가!L561 -> 0 | I73: 제 71호표 | DM73: BHLL-280
A74: 단지관접합 | B74: D=150㎜ | C74: 1 | D74: 개소 | E74: 64908 | F74: =일위대가!H568 -> 46900 | G74: =일위대가!J568 -> 18008 | H74: =일위대가!L568 -> 0 | I74: 제 72호표 | DM74: BHLL-290
A75: 단지관접합 | B75: D=100㎜ | C75: 1 | D75: 개소 | E75: 51597 | F75: =일위대가!H575 -> 39700 | G75: =일위대가!J575 -> 11897 | H75: =일위대가!L575 -> 0 | I75: 제 73호표 | DM75: BHLL-300
A76: 라바콘 | B76: 중 60cm | C76: 1 | D76: 개 | E76: 9510 | F76: =일위대가!H580 -> 0 | G76: =일위대가!J580 -> 0 | H76: =일위대가!L580 -> 9510 | I76: 제 74호표 | DM76: B0355
A77: 레고식 조립 복구블록 포장(중로) | B77: 20t | C77: 1 | D77: ㎡ | E77: 32275 | F77: =일위대가!H589 -> 0 | G77: =일위대가!J589 -> 9865 | H77: =일위대가!L589 -> 22410 | I77: 제 75호표 | DM77: B000-0310
A78: 레고식 조립 복구블록 포장(소로형) | B78: 15t | C78: 1 | D78: ㎡ | E78: 23512 | F78: =일위대가!H598 -> 0 | G78: =일위대가!J598 -> 6726 | H78: =일위대가!L598 -> 16786 | I78: 제 76호표 | DM78: B000-0300
A79: 레미콘타설 | B79: 철근구조물 | C79: 1 | D79: ㎥ | E79: 26690 | F79: =일위대가!H606 -> 1844 | G79: =일위대가!J606 -> 22311 | H79: =일위대가!L606 -> 2535 | I79: 제 77호표 | DM79: BFB0-0260
A80: 레미콘타설 | B80: 무근구조물 | C80: 1 | D80: ㎥ | E80: 23651 | F80: =일위대가!H614 -> 1660 | G80: =일위대가!J614 -> 19717 | H80: =일위대가!L614 -> 2274 | I80: 제 78호표 | DM80: BFB1100
A81: 레미콘타설 | B81: 소형구조물 10㎥미만 | C81: 1 | D81: ㎥ | E81: 48831 | F81: =일위대가!H622 -> 5719 | G81: =일위대가!J622 -> 35917 | H81: =일위대가!L622 -> 7195 | I81: 제 79호표 | DM81: BFB1300
A82: 모래포설 및 다짐(T=5cm) | B82: 투수콘포장용 | C82: 1 | D82: a | E82: 437830 | F82: =일위대가!H626 -> 150000 | G82: =일위대가!J626 -> 282190 | H82: =일위대가!L626 -> 5640 | I82: 제 80호표 | DM82: B0180
A83: 모르터 | B83: 배합비 1:1 | C83: 1 | D83: ㎥ | E83: 220777 | F83: =일위대가!H632 -> 131688 | G83: =일위대가!J632 -> 60671 | H83: =일위대가!L632 -> 28418 | I83: 제 81호표 | DM83: BFJ8100
A84: 모르터 | B84: 배합비 1:2 | C84: 1 | D84: ㎥ | E84: 175122 | F84: =일위대가!H638 -> 96771 | G84: =일위대가!J638 -> 60671 | H84: =일위대가!L638 -> 17680 | I84: 제 82호표 | DM84: BFJ8200
A85: 모르터 | B85: 배합비 1:3 | C85: 1 | D85: ㎥ | E85: 157459 | F85: =일위대가!H644 -> 83528 | G85: =일위대가!J644 -> 60671 | H85: =일위대가!L644 -> 13260 | I85: 제 83호표 | DM85: BFJ8300
A86: 무근콘크리트깨기 | B86: (인력) | C86: 1 | D86: ㎥ | E86: 396958 | F86: =일위대가!H649 -> 18902 | G86: =일위대가!J649 -> 378056 | H86: =일위대가!L649 -> 0 | I86: 제 84호표 | DM86: BDB1210
A87: 무근콘크리트깨기 | B87: (소형브레이카+공기압축기) | C87: 1 | D87: ㎥ | E87: 172736 | F87: =일위대가!H657 -> 6197 | G87: =일위대가!J657 -> 165243 | H87: =일위대가!L657 -> 1296 | I87: 제 85호표 | DM87: BDB1220
A88: 무늬스치로폴 | C88: 1 | D88: ㎡ | E88: 13368 | F88: =일위대가!H663 -> 3644 | G88: =일위대가!J663 -> 9724 | H88: =일위대가!L663 -> 0 | I88: 제 86호표 | DM88: BFC8000
A89: 무수축몰탈 | B89: fck=600kg/㎠ | C89: 1 | D89: ㎥ | E89: 498121 | F89: =일위대가!H671 -> 123285 | G89: =일위대가!J671 -> 348836 | H89: =일위대가!L671 -> 26000 | I89: 제 87호표 | DM89: BFJ7100
A90: 무수축콘크리트 | C90: 1 | D90: ㎥ | E90: 576832 | F90: =일위대가!H680 -> 91805 | G90: =일위대가!J680 -> 469427 | H90: =일위대가!L680 -> 15600 | I90: 제 88호표 | DM90: BFJ7200
A91: 미끄럼방지공 | C91: 1 | D91: ㎡ | E91: 106249 | F91: =일위대가!H694 -> 38144 | G91: =일위대가!J694 -> 62666 | H91: =일위대가!L694 -> 5439 | I91: 제 89호표 | DM91: BKB7000
A92: 미끄럼방지시설설치 | B92: 상온도포 공법 | C92: 1 | D92: ㎡ | E92: 296283 | F92: =일위대가!H705 -> 270346 | G92: =일위대가!J705 -> 25297 | H92: =일위대가!L705 -> 640 | I92: 제 90호표 | DM92: B011001
A93: 미끄럼방지포장(시인성증대도로용) | B93: 유리알 | C93: 1 | D93: ㎡ | E93: 111778 | F93: =일위대가!H719 -> 48865 | G93: =일위대가!J719 -> 59414 | H93: =일위대가!L719 -> 3499 | I93: 제 91호표 | DM93: B010101
A94: 미끄럼방지포장(일반도로용) | B94: 유리알 | C94: 1 | D94: ㎡ | E94: 111778 | F94: =일위대가!H733 -> 48865 | G94: =일위대가!J733 -> 59414 | H94: =일위대가!L733 -> 3499 | I94: 제 92호표 | DM94: B010100
A95: 미끄럼방지포장(칼라포장재) | C95: 1 | D95: ㎡ | E95: 99811 | F95: =일위대가!H745 -> 48585 | G95: =일위대가!J745 -> 49069 | H95: =일위대가!L745 -> 2157 | I95: 제 93호표 | DM95: B000-0100
A96: 바닥면고르기(절토면고르기) | B96: 굴삭기0.7㎥ | C96: 1 | D96: ㎡ | E96: 3360 | F96: =일위대가!H750 -> 389 | G96: =일위대가!J750 -> 2474 | H96: =일위대가!L750 -> 497 | I96: 제 94호표 | DM96: B0343
A97: 벽돌부수기 | B97: 인력 | C97: 1 | D97: ㎥ | E97: 171005 | F97: =일위대가!H756 -> 8143 | G97: =일위대가!J756 -> 162862 | H97: =일위대가!L756 -> 0 | I97: 제 95호표 | DM97: B0050
A98: 벽돌헐기 | B98: 인력 | C98: 1 | D98: ㎥ | E98: 167997 | F98: =일위대가!H762 -> 7999 | G98: =일위대가!J762 -> 159998 | H98: =일위대가!L762 -> 0 | I98: 제 96호표 | DM98: BDB3400
A99: 보차도경계석철거 | B99: 200x250x1000 | C99: 1 | D99: m | E99: 6321 | F99: =일위대가!H769 -> 712 | G99: =일위대가!J769 -> 4885 | H99: =일위대가!L769 -> 724 | I99: 제 97호표 | DM99: BDB2411
A100: 보차도경계블록설치 | B100: 205x250x1000 | C100: 1 | D100: m | E100: 43634 | F100: =일위대가!H777 -> 11998 | G100: =일위대가!J777 -> 30451 | H100: =일위대가!L777 -> 1185 | I100: 제 98호표 | DM100: BKF3000
A101: 보차도경계석설치 | B101: 200x250x1000 | C101: 1 | D101: m | E101: 37834 | F101: =일위대가!H785 -> 6198 | G101: =일위대가!J785 -> 30451 | H101: =일위대가!L785 -> 1185 | I101: 제 99호표 | DM101: BKF4000
A102: 보차도경계석 재설치 | B102: 200x250x1000 | C102: 1 | D102: m | E102: 41020 | F102: =일위대가!H793 -> 6382 | G102: =일위대가!J793 -> 33235 | H102: =일위대가!L793 -> 1403 | I102: 제 99-1호표
A103: 보차도경계석설치 | B103: 200x300x1000 | C103: 1 | D103: m | E103: 37834 | F103: =일위대가!H801 -> 6198 | G103: =일위대가!J801 -> 30451 | H103: =일위대가!L801 -> 1185 | I103: 제 100호표 | DM103: BKF5000
A104: 보차도경계석 재설치 | B104: 200x300x1000 | C104: 1 | D104: m | E104: =F104+G104+H104 -> 41020 | F104: =일위대가!H809 -> 6382 | G104: =일위대가!J809 -> 33235 | H104: =일위대가!L809 -> 1403 | I104: 제 100-1호표
A105: 볼라드설치(탄성) | B105: ø150*1100(주름형) | C105: 1 | D105: 개 | E105: 62887 | F105: =일위대가!H820 -> 5352 | G105: =일위대가!J820 -> 56008 | H105: =일위대가!L820 -> 1527 | I105: 제 101호표 | DM105: B000-0190
A106: 볼라드설치(디자인,소형고압) | B106: ø70*h900 | C106: 1 | D106: 개 | E106: 63931 | F106: =일위대가!H833 -> 6316 | G106: =일위대가!J833 -> 56068 | H106: =일위대가!L833 -> 1547 | I106: 제 102호표 | DM106: B000-0180
A107: 볼라드설치(디자인,화강판석) | B107: ø70*h900 | C107: 1 | D107: 개 | E107: 40649 | F107: =일위대가!H844 -> 2011 | G107: =일위대가!J844 -> 38559 | H107: =일위대가!L844 -> 79 | I107: 제 103호표 | DM107: B000-0185
A108: 보도용 블록 철거 | B108: 인력 | C108: 1 | D108: a | E108: 359437 | F108: =일위대가!H850 -> 13877 | G108: =일위대가!J850 -> 329901 | H108: =일위대가!L850 -> 15659 | I108: 제 104호표 | DM108: BDB2321
A109: 보도용 블록 철거 | B109: 장비사용 | C109: 1 | D109: a | E109: 276480 | F109: =일위대가!H857 -> 34304 | G109: =일위대가!J857 -> 199608 | H109: =일위대가!L857 -> 42568 | I109: 제 104-1호표
A110: 보도블럭포장(보도용) | B110: 공통 | C110: 1 | D110: HR | E110: 280687 | F110: =일위대가!H865 -> 18022 | G110: =일위대가!J865 -> 241408 | H110: =일위대가!L865 -> 21257 | I110: 제 105호표 | DM110: BB00-0270
A111: 보도용 블록 재설치 | B111: 공통 | C111: 1 | D111: HR | E111: =F111+G111+H111 -> 313570 | F111: =일위대가!H874 -> 22761 | G111: =일위대가!J874 -> 268954 | H111: =일위대가!L874 -> 21855 | I111: 제 105-3호표
A112: 기층블록포장(공통, 지장물5%미만) | B112: a당 | C112: 1 | D112: a | E112: 540210 | F112: =일위대가!H880 -> 27156 | G112: =일위대가!J880 -> 469983 | H112: =일위대가!L880 -> 43071 | I112: 제 106호표 | DM112: B000-0190-1
A113: 보도블록 걷기(재사용)(30*30*6cm)a당 | B113: 30*30*6cm | C113: 1 | D113: a | E113: 128313 | F113: =일위대가!H886 -> 3737 | G113: =일위대가!J886 -> 124576 | H113: =일위대가!L886 -> 0 | I113: 제 107호표 | DM113: B000-0410
A114: 보도블록포장(자재재활용) | B114: 30*30*6Cm,지장물 5%미만 | C114: 1 | D114: a | E114: 965997 | F114: =일위대가!H893 -> 102295 | G114: =일위대가!J893 -> 772505 | H114: =일위대가!L893 -> 91197 | I114: 제 108호표 | DM114: BKE2000
A115: 보도블록포장(자재재활용) | B115: 30*30*6Cm,지장물 5%이상 | C115: 1 | D115: a | E115: 965997 | F115: =일위대가!H900 -> 102295 | G115: =일위대가!J900 -> 772505 | H115: =일위대가!L900 -> 91197 | I115: 제 109호표 | DM115: BKE2000-1
A116: 보도블록포장(자재재활용) | B116: 30*30*6Cm,띠복구,소규모 | C116: 1 | D116: a | E116: 1352250 | F116: =일위대가!H908 -> 102295 | G116: =일위대가!J908 -> 1158758 | H116: =일위대가!L908 -> 91197 | I116: 제 110호표 | DM116: BKE2000-1-1
A117: 보도블록포장(소형고압,콘크리트블록) | B117: T=6~8Cm | C117: 1 | D117: a | E117: 932098 | F117: =일위대가!H916 -> 212256 | G117: =일위대가!J916 -> 643835 | H117: =일위대가!L916 -> 76007 | I117: 제 111호표 | DM117: BKE3000
A118: 보도블록포장 재설치(소형고압,콘크리트블록) | B118: T=6~8Cm | C118: 1 | D118: a | E118: =F118+G118+H118 -> 1299580 | F118: =일위대가!H940 -> 233304 | G118: =일위대가!J940 -> 968234 | H118: =일위대가!L940 -> 98042 | I118: 제 111-1호표
A119: 보도블록포장(투수콘크리트블록) | B119: 200*200*6~8Cm | C119: 1 | D119: a | E119: 1463997 | F119: =일위대가!H924 -> 265610 | G119: =일위대가!J924 -> 1071851 | H119: =일위대가!L924 -> 126536 | I119: 제 112호표 | DM119: B000-0430
A120: 보도블록포장 재설치(투수콘크리트블록) | B120: 200*200*6~8Cm | C120: 1 | D120: a | E120: =F120+G120+H120 -> 1462799 | F120: =일위대가!H958 -> 368304 | G120: =일위대가!J958 -> 996453 | H120: =일위대가!L958 -> 98042 | I120: 제 112-1호표
A121: 보도블록포장(소형고압) | B121: T=6~8Cm,띠복구,소규모 | C121: 1 | D121: a | E121: 1478250 | F121: =일위대가!H967 -> 228295 | G121: =일위대가!J967 -> 1158758 | H121: =일위대가!L967 -> 91197 | I121: 제 113호표 | DM121: BKE3000-1
A122: 보도블럭포장(화강) | B122: 레미콘,와이어매쉬,몰탈포함(2011기심적용단가) | C122: 1 | D122: a | E122: 9507416 | F122: =일위대가!H976 -> 576276 | G122: =일위대가!J976 -> 8871470 | H122: =일위대가!L976 -> 59670 | I122: 제 114호표 | DM122: B0149
A123: 판석붙임(화강석) | C123: 1 | D123: a | E123: =F123+G123+H123 -> 85668 | F123: =일위대가!H981 -> 0 | G123: =일위대가!J981 -> 85668 | H123: =일위대가!L981 -> 0 | I123: 제 114-1호표 | DM123: B0149
A124: 보도소파보수(화강판석) | B124: 개소당 2㎡ 이하 | C124: 1 | D124: a | E124: =F124+G124+H124 -> 18180105 | F124: =일위대가!H990 -> 1210596 | G124: =일위대가!J990 -> 15967919 | H124: =일위대가!L990 -> 1001590 | I124: 제 114-2호표
A125: 보도소파보수(소형고압,콘크리트블록) | B125: 공통, 시간당 시공량 13.75㎡ | C125: 1 | D125: HR | E125: 227628 | F125: =일위대가!H999 -> 22062 | G125: =일위대가!J999 -> 184050 | H125: =일위대가!L999 -> 21516 | I125: 제 114-3호표
A126: 보도소파보수[소형고압,콘크리트블록] | B126: (개소별 평균 시공면적 10㎡ 이하) | C126: 1 | D126: a | E126: 2759187 | F126: =일위대가!H1007 -> 378653 | G126: =일위대가!J1007 -> 2057679 | H126: =일위대가!L1007 -> 322855 | I126: 제 114-4호표
A127: 보도소파보수[소형고압,콘크리트블록] | B127: (개소별 평균 시공면적 30㎡ 이하) | C127: 1 | D127: a | E127: 2141163 | F127: =일위대가!H1015 -> 320630 | G127: =일위대가!J1015 -> 1573627 | H127: =일위대가!L1015 -> 246906 | I127: 제 114-5호표
A128: 보도소파보수[소형고압,콘크리트블록] | B128: (개소별 평균 시공면적 60㎡ 이하) | C128: 1 | D128: a | E128: 1929672 | F128: =일위대가!H1023 -> 300774 | G128: =일위대가!J1023 -> 1407982 | H128: =일위대가!L1023 -> 220916 | I128: 제 114-6호표
A129: 보도소파보수[소형고압,콘크리트블록] | B129: (개소별 평균 시공면적 110㎡ 이하) | C129: 1 | D129: a | E129: 1840375 | F129: =일위대가!H1031 -> 292390 | G129: =일위대가!J1031 -> 1338043 | H129: =일위대가!L1031 -> 209942 | I129: 제 114-7호표
A130: 보도소파보수[소형고압,콘크리트블록] | B130: (개소별 평균 시공면적 110㎡ 초과) | C130: 1 | D130: a | E130: 1758130 | F130: =일위대가!H1039 -> 284669 | G130: =일위대가!J1039 -> 1273626 | H130: =일위대가!L1039 -> 199835 | I130: 제 114-8호표
A131: 보도블럭포장(점자및유도) | B131: T=6cm | C131: 1 | D131: a | E131: 4091997 | F131: =일위대가!H1047 -> 3228295 | G131: =일위대가!J1047 -> 772505 | H131: =일위대가!L1047 -> 91197 | I131: 제 115호표 | DM131: B0356
A132: 보도블럭포장 재설치(점자및유도) | B132: T=6cm | C132: 1 | D132: a | E132: 4448080 | F132: =일위대가!H1055 -> 3261669 | G132: =일위대가!J1055 -> 1075816 | H132: =일위대가!L1055 -> 110595 | I132: 제 115-1호표
A133: 보도블록 줄눈 모래채움 및 포장다짐 a당 | C133: 1 | D133: a | E133: 325560 | F133: =일위대가!H1061 -> 224900 | G133: =일위대가!J1061 -> 100460 | H133: =일위대가!L1061 -> 200 | I133: 제 116호표 | DM133: B000-0150-11
A134: 상부 부직포 시공(매트부설) | B134: 매트부설 | C134: 1 | D134: a | E134: 163219 | F134: =일위대가!H1066 -> 135000 | G134: =일위대가!J1066 -> 28219 | H134: =일위대가!L1066 -> 0 | I134: 제 117호표 | DM134: B000-0210-1
A135: wovon geotextile(하부, 매트부설) | B135: 하부 | C135: 1 | D135: a | E135: 330619 | F135: =일위대가!H1071 -> 302400 | G135: =일위대가!J1071 -> 28219 | H135: =일위대가!L1071 -> 0 | I135: 제 118호표 | DM135: B000-0220-1
A136: 기층블록 시공 차량진출입시설 포장(198*162*80) | B136: 간선(T=6~8cm,지장물5%미만) | C136: 1 | D136: a | E136: 2115042 | F136: =일위대가!H1083 -> 659061 | G136: =일위대가!J1083 -> 1341040 | H136: =일위대가!L1083 -> 114941 | I136: 제 119호표 | DM136: B000-0230-1
A137: 빗물받이설치(1호) | B137: (300x400) 차도측 | C137: 1 | D137: 개소 | E137: 467027 | F137: =일위대가!H1093 -> 85586 | G137: =일위대가!J1093 -> 378932 | H137: =일위대가!L1093 -> 2509 | I137: 제 120호표 | DM137: BHF1110
A138: 빗물받이설치(2호) | B138: (300x900) 차도측 | C138: 1 | D138: 개소 | E138: 693891 | F138: =일위대가!H1103 -> 127201 | G138: =일위대가!J1103 -> 562923 | H138: =일위대가!L1103 -> 3767 | I138: 제 121호표 | DM138: BHF1120
A139: 석축헐기(메쌓기) | B139: 인력(뒷길이45∼60cm) | C139: 1 | D139: ㎡ | E139: 29629 | F139: =일위대가!H1108 -> 1410 | G139: =일위대가!J1108 -> 28219 | H139: =일위대가!L1108 -> 0 | I139: 제 122호표 | DM139: BDB3210
A140: 석축헐기(메쌓기) | B140: 인력(뒷길이60∼90cm) | C140: 1 | D140: ㎡ | E140: 44444 | F140: =일위대가!H1113 -> 2116 | G140: =일위대가!J1113 -> 42328 | H140: =일위대가!L1113 -> 0 | I140: 제 123호표 | DM140: BDB3220
A141: 세립도투수콘크리트포장 | B141: T=기층5cm+표층2cm(기계70%+인력30%) | C141: 1 | D141: a | E141: 1015086 | F141: =일위대가!H1129 -> 98626 | G141: =일위대가!J1129 -> 912461 | H141: =일위대가!L1129 -> 3999 | I141: 제 124호표 | DM141: B0310
A142: 수축줄눈 | B142: 20x25MM | C142: 1 | D142: m | E142: 3307 | F142: =일위대가!H1134 -> 3150 | G142: =일위대가!J1134 -> 157 | H142: =일위대가!L1134 -> 0 | I142: 제 125호표 | DM142: BFG1120
A143: 수팽창지수재 | C143: 1 | D143: m | E143: 2094 | F143: =일위대가!H1139 -> 1995 | G143: =일위대가!J1139 -> 99 | H143: =일위대가!L1139 -> 0 | I143: 제 126호표 | DM143: BFG2210
A144: 신구콘크리트접합 | B144: EPOXY바르기 | C144: 1 | D144: ㎡ | E144: 48108 | F144: =일위대가!H1146 -> 21955 | G144: =일위대가!J1146 -> 25641 | H144: =일위대가!L1146 -> 512 | I144: 제 127호표 | DM144: BFJ6000
A145: 소파보수(포장복구) | B145: B타입, 시간당5.625㎡ | C145: 1 | D145: HR | E145: 416433 | F145: =일위대가!H1156 -> 31351 | G145: =일위대가!J1156 -> 347066 | H145: =일위대가!L1156 -> 38016 | I145: 제 128호표 | DM145: B000-0110
A146: 소파보수(포장복구,개소별 평균 시공면적 5㎡ 이하) | B146: B타입, 일시공량 38.25㎡, 시간당 4.78㎡ | C146: 1 | D146: a | E146: =F146+G146+H146 -> 8786536 | F146: =일위대가!H1164 -> 729362 | G146: =일위대가!J1164 -> 7260620 | H146: =일위대가!L1164 -> 796554 | I146: 제 128-1호표 | DM146: B000-0110
A147: 소파보수(포장복구,개소별 평균 시공면적 10㎡ 이하) | B147: B타입, 일시공량 41.4㎡, 시간당 5.175㎡ | C147: 1 | D147: a | E147: 8120245 | F147: =일위대가!H1172 -> 679201 | G147: =일위대가!J1172 -> 6705315 | H147: =일위대가!L1172 -> 735729 | I147: 제 128-2호표 | DM147: B000-0110
A148: 소파보수(포장복구,개소별 평균 시공면적 20㎡ 이하) | B148: B타입, 일시공량 45㎡, 시간당 5.625㎡ | C148: 1 | D148: a | E148: =F148+G148+H148 -> 7478937 | F148: =일위대가!H1180 -> 630920 | G148: =일위대가!J1180 -> 6170833 | H148: =일위대가!L1180 -> 677184 | I148: 제 128-3호표 | DM148: B000-0110
A149: 소파보수(포장복구,개소별 평균 시공면적 30㎡ 이하) | B149: B타입, 일시공량 49.05㎡, 시간당 6.13㎡ | C149: 1 | D149: a | E149: 6866780 | F149: =일위대가!H1188 -> 584834 | G149: =일위대가!J1188 -> 5660646 | H149: =일위대가!L1188 -> 621300 | I149: 제 128-4호표 | DM149: B000-0110
A150: 소파보수(포장복구,개소별 평균 시공면적 30㎡ 초과) | B150: B타입, 일시공량 53.1㎡, 시간당 6.6375㎡ | C150: 1 | D150: a | E150: =F150+G150+H150 -> 6346239 | F150: =일위대가!H1196 -> 545646 | G150: =일위대가!J1196 -> 5226813 | H150: =일위대가!L1196 -> 573780 | I150: 제 128-5호표 | DM150: B000-0110
A151: 소파보수(표층) | B151: C타입, 시간당6.25㎡ | C151: 1 | D151: HR | E151: =F151+G151+H151 -> 422881 | F151: =일위대가!H1206 -> 33938 | G151: =일위대가!J1206 -> 347066 | H151: =일위대가!L1206 -> 41877 | I151: 제 129호표 | DM151: B000-0140
A152: 소파보수(표층,개소별 평균 시공면적 5㎡ 이하) | B152: C타입, 일시공량 39.5㎡, 시간당 4.94㎡ | C152: 1 | D152: a | E152: =F152+G152+H152 -> 8581370 | F152: =일위대가!H1213 -> 707905 | G152: =일위대가!J1213 -> 7024615 | H152: =일위대가!L1213 -> 848850 | I152: 제 129-1호표 | DM152: B000-0140
A153: 소파보수(표층,개소별 평균 시공면적 10㎡ 이하) | B153: C타입, 일시공량 41.4㎡, 시간당 5.175㎡ | C153: 1 | D153: a | E153: =F153+G153+H153 -> 8120245 | F153: =일위대가!H1172 -> 679201 | G153: =일위대가!J1172 -> 6705315 | H153: =일위대가!L1172 -> 735729 | I153: 제 129-2호표 | DM153: B000-0140
A154: 소파보수(표층,개소별 평균 시공면적 20㎡ 이하) | B154: C타입,일시공량 50㎡, 시간당 6.25㎡ | C154: 1 | D154: a | E154: =F154+G154+H154 -> 6788356 | F154: =일위대가!H1227 -> 564008 | G154: =일위대가!J1227 -> 5553056 | H154: =일위대가!L1227 -> 671292 | I154: 제 129-3호표 | DM154: B000-0140
A155: 소파보수(표층,개소별 평균 시공면적 30㎡ 이하) | B155: C타입,일시공량 56㎡, 시간당 7㎡ | C155: 1 | D155: a | E155: =F155+G155+H155 -> 6065229 | F155: =일위대가!H1234 -> 505974 | G155: =일위대가!J1234 -> 4959573 | H155: =일위대가!L1234 -> 599682 | I155: 제 129-4호표 | DM155: B000-0140
A156: 소파보수(표층,개소별 평균 시공면적 30㎡ 초과) | B156: C타입,,일시공량 63㎡, 시간당 7.88㎡ | C156: 1 | D156: a | E156: =F156+G156+H156 -> 5388619 | F156: =일위대가!H1241 -> 451673 | G156: =일위대가!J1241 -> 4404267 | H156: =일위대가!L1241 -> 532679 | I156: 제 129-5호표 | DM156: B000-0140
A157: 소파보수(도로복구) | B157: B타입, 시간당4.375㎡ | C157: 1 | D157: HR | E157: 503744 | F157: =일위대가!H1252 -> 41426 | G157: =일위대가!J1252 -> 419869 | H157: =일위대가!L1252 -> 42449 | I157: 제 130호표 | DM157: B000-0166
A158: 소파보수(도로복구,개소별 평균 시공면적 4㎡ 이하) | B158: B타입, 일시공량 31.15㎡, 시간당 3.89㎡ | C158: 1 | D158: a | E158: 14305216 | F158: =일위대가!H1262 -> 2417762 | G158: =일위대가!J1262 -> 10794831 | H158: =일위대가!L1262 -> 1092623 | I158: 제 130-1호표 | DM158: B000-0140
A159: 소파보수(도로복구,개소별 평균 시공면적 8㎡ 이하) | B159: B타입, 일시공량 32.9㎡, 시간당 4.11㎡ | C159: 1 | D159: a | E159: 13610050 | F159: =일위대가!H1272 -> 2360594 | G159: =일위대가!J1272 -> 10215412 | H159: =일위대가!L1272 -> 1034044 | I159: 제 130-2호표 | DM159: B000-0140
A160: 소파보수(도로복구,개소별 평균 시공면적 16㎡ 이하) | B160: B타입,일시공량 35㎡, 시간당 4.375㎡ | C160: 1 | D160: a | E160: 12864509 | F160: =일위대가!H1282 -> 2299284 | G160: =일위대가!J1282 -> 9594006 | H160: =일위대가!L1282 -> 971219 | I160: 제 130-3호표 | DM160: B000-0140
A161: 소파보수(도로복구,개소별 평균 시공면적 24㎡ 이하) | B161: B타입,일시공량 37.1㎡, 시간당 4.64㎡ | C161: 1 | D161: a | E161: 12209641 | F161: =일위대가!H1292 -> 2245430 | G161: =일위대가!J1292 -> 9048176 | H161: =일위대가!L1292 -> 916035 | I161: 제 130-4호표 | DM161: B000-0140
A162: 소파보수(도로복구,개소별 평균 시공면적 24㎡ 초과) | B162: B타입,일시공량 39.55㎡, 시간당 4.94㎡ | C162: 1 | D162: a | E162: 11549737 | F162: =일위대가!H1302 -> 2191162 | G162: =일위대가!J1302 -> 8498148 | H162: =일위대가!L1302 -> 860427 | I162: 제 130-5호표 | DM162: B000-0140
A163: 아스팔트포장(인력,신설포장) | B163: 시간당 37.5㎡ | C163: 1 | D163: HR | E163: 229908 | F163: =일위대가!H1312 -> 19489 | G163: =일위대가!J1312 -> 197150 | H163: =일위대가!L1312 -> 13269 | I163: 제 134호표 | DM163: BB00-0380
A164: 아스팔트포장(기계,신설포장) | B164: 표층,중간층 | C164: 1 | D164: HR | E164: 476352 | F164: =일위대가!H1322 -> 63890 | G164: =일위대가!J1322 -> 319325 | H164: =일위대가!L1322 -> 93137 | I164: 제 135호표 | DM164: BB00-0360
A165: 아스팔트포장(기계,소규모,신설포장) | B165: 표층중간층,(시공폭≤2m) | C165: 1 | D165: HR | E165: =F165+G165+H165 -> 436461 | F165: =일위대가!H1332 -> 53415 | G165: =일위대가!J1332 -> 292730 | H165: =일위대가!L1332 -> 90316 | I165: 제 135-1호표 | DM165: BB00-0360
A166: 아스콘표층공(인력,신설포장) | B166: T=5Cm | C166: 1 | D166: a | E166: 657288 | F166: =일위대가!H1341 -> 73607 | G166: =일위대가!J1341 -> 547865 | H166: =일위대가!L1341 -> 35816 | I166: 제 136호표 | DM166: BKB5100
A167: 아스콘표층공(기계,신설포장) | B167: T=5Cm(3m≤시공폭) | C167: 1 | D167: a | E167: 119219 | F167: =일위대가!H1350 -> 32819 | G167: =일위대가!J1350 -> 69913 | H167: =일위대가!L1350 -> 16487 | I167: 제 137호표 | DM167: BKB5000
A168: 아스콘표층공(기계,소규모,신설포장) | B168: T=5Cm(시공폭≤2m) | C168: 1 | D168: a | E168: =F168+G168+H168 -> 257900 | F168: =일위대가!H1359 -> 48857 | G168: =일위대가!J1359 -> 162951 | H168: =일위대가!L1359 -> 46092 | I168: 제 137-1호표 | DM168: BKB5000
A169: 아스콘표층공(기계,신설포장) | B169: T=5Cm(1.4m≤시공폭<3m) | C169: 1 | D169: a | E169: 186386 | F169: =일위대가!H1368 -> 41828 | G169: =일위대가!J1368 -> 114938 | H169: =일위대가!L1368 -> 29620 | I169: 제 138호표 | DM169: BKB5000-01
A170: 절삭 후 아스팔트 덧씌우기 | B170: T=5cm(이면도로 13a/일) | C170: 1 | D170: HR | E170: =F170+G170+H170 -> 642528 | F170: =일위대가!H1386 -> 151455 | G170: =일위대가!J1386 -> 313869 | H170: =일위대가!L1386 -> 177204 | I170: 제 138-1호표 | DM170: BB00-0510
A171: 아스콘중층공(인력,신설포장) | B171: T=7.5Cm | C171: 1 | D171: a | E171: 689328 | F171: =일위대가!H1395 -> 105107 | G171: =일위대가!J1395 -> 547865 | H171: =일위대가!L1395 -> 36356 | I171: 제 139호표 | DM171: BKB5300
A172: 아스콘중층공(기계,신설포장) | B172: T=7.5Cm(3m≤시공폭) | C172: 1 | D172: a | E172: 151259 | F172: =일위대가!H1404 -> 64319 | G172: =일위대가!J1404 -> 69913 | H172: =일위대가!L1404 -> 17027 | I172: 제 140호표 | DM172: BKB5200
A173: 아스콘중층공(기계,소규모,신설포장) | B173: T=7.5Cm,(시공폭≤2m) | C173: 1 | D173: a | E173: =F173+G173+H173 -> 289940 | F173: =일위대가!H1413 -> 80357 | G173: =일위대가!J1413 -> 162951 | H173: =일위대가!L1413 -> 46632 | I173: 제 140-1호표 | DM173: BKB5200
A174: 아스콘중층공(기계,신설포장) | B174: T=7.5Cm(1.4m≤시공폭<3m) | C174: 1 | D174: a | E174: 218426 | F174: =일위대가!H1422 -> 73328 | G174: =일위대가!J1422 -> 114938 | H174: =일위대가!L1422 -> 30160 | I174: 제 141호표 | DM174: BKB5200-01
A175: 절삭 후 아스팔트 덧씌우기 | B175: 시간당250㎡(비연속구간) | C175: 1 | D175: HR | E175: 1012981 | F175: =일위대가!H1436 -> 190489 | G175: =일위대가!J1436 -> 532270 | H175: =일위대가!L1436 -> 290222 | I175: 제 142호표 | DM175: BB00-0510
A176: 절삭 후 아스팔트 덧씌우기 | B176: T=5cm(비연속구간) | C176: 1 | D176: a | E176: 487770 | F176: =일위대가!H1444 -> 125515 | G176: =일위대가!J1444 -> 234198 | H176: =일위대가!L1444 -> 128057 | I176: 제 143호표 | DM176: BB00-0520
A177: 아스팔트포장도로(균열보수) | B177: (아스팔트가열장비이용) | C177: 1 | D177: m | E177: 43217 | F177: =일위대가!H1456 -> 24604 | G177: =일위대가!J1456 -> 14916 | H177: =일위대가!L1456 -> 3697 | I177: 제 144호표 | DM177: B000-0231
A178: 아스팔트포장도로(측구앞복구) | C178: 1 | D178: a | E178: 6910143 | F178: =일위대가!H1461 -> 1135393 | G178: =일위대가!J1461 -> 5623572 | H178: =일위대가!L1461 -> 151178 | I178: 제 145호표 | DM178: B0357
A179: 윙카설치 | C179: 1 | D179: m | E179: 1928 | F179: =일위대가!H1466 -> 0 | G179: =일위대가!J1466 -> 0 | H179: =일위대가!L1466 -> 1928 | I179: 제 146호표 | DM179: B0021
A180: 인력 현장내잔토처리 | B180: 소운반,깔기,고르기 | C180: 1 | D180: ㎥ | E180: 28219 | F180: =일위대가!H1470 -> 0 | G180: =일위대가!J1470 -> 28219 | H180: =일위대가!L1470 -> 0 | I180: 제 147호표 | DM180: B0049
A181: 인력 흙다지기 | B181: 토사(15cm) | C181: 1 | D181: ㎥ | E181: 19753 | F181: =일위대가!H1474 -> 0 | G181: =일위대가!J1474 -> 19753 | H181: =일위대가!L1474 -> 0 | I181: 제 148호표 | DM181: B0048
A182: 인력비빔타설(fck=180kgf/cm2) | B182: 무근구조물 | C182: 1 | D182: ㎥ | E182: 367815 | F182: =일위대가!H1482 -> 62458 | G182: =일위대가!J1482 -> 298571 | H182: =일위대가!L1482 -> 6786 | I182: 제 149호표 | DM182: BFB3130
A183: 인력비빔타설(fck=180kgf/cm2) | B183: 철근구조물 | C183: 1 | D183: ㎥ | E183: 396105 | F183: =일위대가!H1490 -> 62458 | G183: =일위대가!J1490 -> 326861 | H183: =일위대가!L1490 -> 6786 | I183: 제 150호표 | DM183: BFB3230
A184: 인력비빔타설(fck=180kgf/cm2) | B184: 소형구조물 3㎥미만 | C184: 1 | D184: ㎥ | E184: 539016 | F184: =일위대가!H1498 -> 62788 | G184: =일위대가!J1498 -> 469427 | H184: =일위대가!L1498 -> 6801 | I184: 제 151호표 | DM184: BFB3330
A185: 인력비빔타설(fck=210kgf/cm2) | B185: 무근구조물 | C185: 1 | D185: ㎥ | E185: 372619 | F185: =일위대가!H1506 -> 66014 | G185: =일위대가!J1506 -> 298571 | H185: =일위대가!L1506 -> 8034 | I185: 제 152호표 | DM185: BFB3120
A186: 인력비빔타설(fck=210kgf/cm2) | B186: 철근구조물 | C186: 1 | D186: ㎥ | E186: 400909 | F186: =일위대가!H1514 -> 66014 | G186: =일위대가!J1514 -> 326861 | H186: =일위대가!L1514 -> 8034 | I186: 제 153호표 | DM186: BFB3220
A187: 인력비빔타설(fck=210kgf/cm2) | B187: 소형구조물 3㎥미만 | C187: 1 | D187: ㎥ | E187: 543931 | F187: =일위대가!H1522 -> 66463 | G187: =일위대가!J1522 -> 469427 | H187: =일위대가!L1522 -> 8041 | I187: 제 154호표 | DM187: BFB3320
A188: 인력비빔타설(fck=240kgf/cm2) | B188: 무근구조물 | C188: 1 | D188: ㎥ | E188: 375946 | F188: =일위대가!H1530 -> 68587 | G188: =일위대가!J1530 -> 298571 | H188: =일위대가!L1530 -> 8788 | I188: 제 155호표 | DM188: BFB3110
A189: 인력비빔타설(fck=240kgf/cm2) | B189: 철근구조물 | C189: 1 | D189: ㎥ | E189: 404236 | F189: =일위대가!H1538 -> 68587 | G189: =일위대가!J1538 -> 326861 | H189: =일위대가!L1538 -> 8788 | I189: 제 156호표 | DM189: BFB3210
A190: 인력비빔타설(fck=240kgf/cm2) | B190: 소형구조물 3㎥미만 | C190: 1 | D190: ㎥ | E190: 547104 | F190: =일위대가!H1546 -> 68876 | G190: =일위대가!J1546 -> 469427 | H190: =일위대가!L1546 -> 8801 | I190: 제 157호표 | DM190: BFB3310
A191: 와이어메쉬바닥깔기 | C191: 1 | D191: ㎡ | E191: 3079 | F191: =일위대가!H1552 -> 2004 | G191: =일위대가!J1552 -> 1075 | H191: =일위대가!L1552 -> 0 | I191: 제 158호표 | DM191: B000-0200
A192: 자전거도로포장(인력,신설포장) | B192: T=10Cm | C192: 1 | D192: a | E192: 1602288 | F192: =일위대가!H1562 -> 1018607 | G192: =일위대가!J1562 -> 547865 | H192: =일위대가!L1562 -> 35816 | I192: 제 160호표 | DM192: B000-0420
A193: 정원석쌓기 | B193: 20톤이상 | C193: 1 | D193: TON | E193: 252108 | F193: =일위대가!H1569 -> 12619 | G193: =일위대가!J1569 -> 218933 | H193: =일위대가!L1569 -> 20556 | I193: 제 161호표 | DM193: B0339
A194: 정원석쌓기 | B194: 20톤미만 | C194: 1 | D194: TON | E194: 281958 | F194: =일위대가!H1576 -> 12120 | G194: =일위대가!J1576 -> 248934 | H194: =일위대가!L1576 -> 20904 | I194: 제 162호표 | DM194: B0340
A195: 자연석쌓기 | B195: 기계+인력 | C195: 1 | D195: TON | E195: 116374 | F195: =일위대가!H1583 -> 9539 | G195: =일위대가!J1583 -> 94653 | H195: =일위대가!L1583 -> 12182 | I195: 제 163호표 | DM195: B0341
A196: 잡철물제작설치 | B196: (간단) | C196: 1 | D196: TON | E196: 6636935 | F196: =일위대가!H1599 -> 97272 | G196: =일위대가!J1599 -> 6347530 | H196: =일위대가!L1599 -> 192133 | I196: 제 164호표 | DM196: BID1100
A197: 잡철물제작설치 | B197: 보통 | C197: 1 | D197: TON | E197: 7964321 | F197: =일위대가!H1603 -> 116726 | G197: =일위대가!J1603 -> 7617036 | H197: =일위대가!L1603 -> 230559 | I197: 제 165호표 | DM197: BID1200
A198: 조립식가설울타리설치및해체 | B198: 3개월 | C198: 1 | D198: m | E198: 73103 | F198: =일위대가!H1614 -> 8761 | G198: =일위대가!J1614 -> 43198 | H198: =일위대가!L1614 -> 21144 | I198: 제 166호표 | DM198: BAA3211
A199: 조립식가설울타리설치및해체 | B199: 6개월 | C199: 1 | D199: m | E199: 76525 | F199: =일위대가!H1625 -> 11205 | G199: =일위대가!J1625 -> 43198 | H199: =일위대가!L1625 -> 22122 | I199: 제 167호표 | DM199: BAA3212
A200: 조립식가설울타리설치및해체 | B200: 12개월 | C200: 1 | D200: m | E200: 82000 | F200: =일위대가!H1636 -> 15116 | G200: =일위대가!J1636 -> 43198 | H200: =일위대가!L1636 -> 23686 | I200: 제 168호표 | DM200: BAA3213
... 118 more rows

Sheet 일위대가
A1: 일 위 대 가 표 | DO1: 5
DO2: A
A3: 공 종 | B3: 규 격 | C3: 수 량 | D3: 단위 | E3: 합 계 | G3: 재 료 비 | I3: 노 무 비 | K3: 경 비 | M3: 비 고 | DO3: 2171
E4: 단 가 | F4: 금 액 | G4: 단 가 | H4: 금 액 | I4: 단 가 | J4: 금 액 | K4: 단 가 | L4: 금 액 | DO4: M
A5: 제00010호표 ：E.G.I 가설휀스설치및해체 (강관지주높이3.5m이하,3개월) m 당 | DM5: :BAA3225
A6: 전기아연도강판 | B6: 1.20x914x1829M/M | C6: 0.32 | D6: 매 | E6: =G6+I6+K6 -> 7190.26 | F6: =H6+J6+L6 -> 2300.8 | G6: =자재단가!$R$60 -> 7190.26 | H6: =TRUNC(C6*G6,1) -> 2300.8 | I6: 0 | J6: =TRUNC(C6*I6,1) -> 0 | K6: 0 | L6: =TRUNC(C6*K6,1) -> 0 | DM6: M0084039
A7: 강관파이프(단관비계) | B7: Ø48.6*2.3t | C7: 0.396 | D7: M | E7: 2700 | F7: 1069.2 | G7: =자재단가!$R$75 -> 2700 | H7: 1069.2 | I7: 0 | J7: 0 | K7: 0 | L7: 0 | DM7: M1002009
A8: 클램프 | B8: 자동 | C8: 0.0168 | D8: EA | E8: 1455 | F8: 24.4 | G8: =자재단가!$R$102 -> 1455 | H8: 24.4 | I8: 0 | J8: 0 | K8: 0 | L8: 0 | DM8: MYG0040
A9: 클램프 | B9: 고정 | C9: 0.1356 | D9: EA | E9: 1455 | F9: 197.2 | G9: =자재단가!$R$103 -> 1455 | H9: 197.2 | I9: 0 | J9: 0 | K9: 0 | L9: 0 | DM9: MYG0041
A10: 연결핀 | B10: Ø48.6 | C10: 0.0336 | D10: EA | E10: 873 | F10: 29.3 | G10: =자재단가!$R$76 -> 873 | H10: 29.3 | I10: 0 | J10: 0 | K10: 0 | L10: 0 | DM10: M1005021
A11: U형 볼트.너트 | B11: 용융아연도금 | C11: 0.7998 | D11: EA | E11: 2198 | F11: 1757.9 | G11: =자재단가!$R$83 -> 2198 | H11: 1757.9 | I11: 0 | J11: 0 | K11: 0 | L11: 0 | DM11: M2838931
A12: 비 계 공 | C12: 0.03 | D12: 인 | E12: 247977 | F12: 7439.3 | G12: 0 | H12: 0 | I12: =노임단가!$K$13 -> 247977 | J12: 7439.3 | K12: 0 | L12: 0 | DM12: W1006
A13: 보통인부 | C13: 0.011 | D13: 인 | E13: 141096 | F13: 1552 | G13: 0 | H13: 0 | I13: =노임단가!$K$8 -> 141096 | J13: 1552 | K13: 0 | L13: 0 | DM13: W1002
A14: 굴삭기(무한궤도) | B14: 0.2 ㎥ | C14: 0.035 | D14: 시간 | E14: 64696 | F14: 2264.2 | G14: =건설기계!$I$56 -> 7887 | H14: 276 | I14: =건설기계!$K$56 -> 44299 | J14: 1550.4 | K14: =건설기계!$M$56 -> 12510 | L14: 437.8 | DM14: D0201-0020
A15: 잡재료비 | B15: 노무비의5% | C15: 5 | D15: % | E15: 10541.7 | F15: 527 | G15: =SUM($J$12:$J$14) -> 10541.7 | H15: =TRUNC(C15/100*G15,1) -> 527 | I15: 0 | J15: =TRUNC(C15/100*I15,1) -> 0 | K15: 0 | L15: =TRUNC(C15/100*K15,1) -> 0 | DM15: %RAN*LM | DN15: 7..9
A16: 비 계 공 | B16: 철거 | C16: 0.012 | D16: 인 | E16: 247977 | F16: 2975.7 | G16: 0 | H16: =TRUNC(C16/100*G16,1) -> 0 | I16: =노임단가!$K$13 -> 247977 | J16: =TRUNC(C16*I16,1) -> 2975.7 | K16: 0 | L16: =TRUNC(C16/100*K16,1) -> 0 | DM16: %RAN*TE
A17: 보통인부 | B17: 철거 | C17: 0.004 | D17: 인 | E17: =G17+I17+K17 -> 141096 | F17: =H17+J17+L17 -> 564.3 | G17: 0 | H17: =TRUNC(C17/100*G17,1) -> 0 | I17: =노임단가!$K$8 -> 141096 | J17: =TRUNC(C17*I17,1) -> 564.3 | K17: 0 | L17: =TRUNC(C17/100*K17,1) -> 0 | DM17: %RAN*TE
A18: 굴삭기(무한궤도) | B18: 철거 | C18: 0.014 | D18: 시간 | E18: 64696 | F18: 905.6 | G18: =건설기계!$I$56 -> 7887 | H18: =TRUNC(C18*G18,1) -> 110.4 | I18: =건설기계!$K$56 -> 44299 | J18: =TRUNC(C18*I18,1) -> 620.1 | K18: =건설기계!$M$56 -> 12510 | L18: =TRUNC(C18*K18,1) -> 175.1 | DM18: %RAN*TE
A19: 계 | F19: =H19+J19+L19 -> 21605 | H19: =ROUNDDOWN(SUM(H6:H18),0) -> 6292 | J19: =ROUNDDOWN(SUM(J6:J18),0) -> 14701 | L19: =ROUNDDOWN(SUM(L6:L18),0) -> 612
A21: 제00020호표 ：E.G.I 가설휀스설치및해체 (강관지주높이3.5m이하,6개월) m 당 | DM21: :BAA3226
A22: 전기아연도강판 | B22: 1.20x914x1829M/M | C22: 0.5 | D22: 매 | E22: =G22+I22+K22 -> 7190.26 | F22: =H22+J22+L22 -> 3595.1 | G22: =자재단가!$R$60 -> 7190.26 | H22: =TRUNC(C22*G22,1) -> 3595.1 | I22: 0 | J22: =TRUNC(C22*I22,1) -> 0 | K22: 0 | L22: =TRUNC(C22*K22,1) -> 0 | DM22: M0084039
A23: 강관파이프(단관비계) | B23: Ø48.6*2.3t | C23: 0.66 | D23: M | E23: 2700 | F23: 1782 | G23: =자재단가!$R$75 -> 2700 | H23: 1782 | I23: 0 | J23: 0 | K23: 0 | L23: 0 | DM23: M1002009
A24: 클램프 | B24: 자동 | C24: 0.028 | D24: EA | E24: 1455 | F24: 40.7 | G24: =자재단가!$R$102 -> 1455 | H24: 40.7 | I24: 0 | J24: 0 | K24: 0 | L24: 0 | DM24: MYG0040
A25: 클램프 | B25: 고정 | C25: 0.226 | D25: EA | E25: 1455 | F25: 328.8 | G25: =자재단가!$R$103 -> 1455 | H25: 328.8 | I25: 0 | J25: 0 | K25: 0 | L25: 0 | DM25: MYG0041
A26: 연결핀 | B26: Ø48.6 | C26: 0.056 | D26: EA | E26: 873 | F26: 48.8 | G26: =자재단가!$R$76 -> 873 | H26: 48.8 | I26: 0 | J26: 0 | K26: 0 | L26: 0 | DM26: M1005021
A27: U형 볼트.너트 | B27: 용융아연도금 | C27: 1.333 | D27: EA | E27: 2198 | F27: 2929.9 | G27: =자재단가!$R$83 -> 2198 | H27: 2929.9 | I27: 0 | J27: 0 | K27: 0 | L27: 0 | DM27: M2838931
A28: 비 계 공 | C28: 0.03 | D28: 인 | E28: 247977 | F28: 7439.3 | G28: 0 | H28: 0 | I28: =노임단가!$K$13 -> 247977 | J28: 7439.3 | K28: 0 | L28: 0 | DM28: W1006
A29: 보통인부 | C29: 0.011 | D29: 인 | E29: 141096 | F29: 1552 | G29: 0 | H29: 0 | I29: =노임단가!$K$8 -> 141096 | J29: 1552 | K29: 0 | L29: 0 | DM29: W1002
A30: 굴삭기(무한궤도) | B30: 0.2 ㎥ | C30: 0.035 | D30: 시간 | E30: 64696 | F30: 2264.2 | G30: =건설기계!$I$56 -> 7887 | H30: 276 | I30: =건설기계!$K$56 -> 44299 | J30: 1550.4 | K30: =건설기계!$M$56 -> 12510 | L30: 437.8 | DM30: D0201-0020
A31: 잡재료비 | B31: 노무비의5% | C31: 5 | D31: % | E31: 10541.7 | F31: 527 | G31: =SUM($J$28:$J$30) -> 10541.7 | H31: =TRUNC(C31/100*G31,1) -> 527 | I31: 0 | J31: =TRUNC(C31/100*I31,1) -> 0 | K31: 0 | L31: =TRUNC(C31/100*K31,1) -> 0 | DM31: %RAN*LM | DN31: 7..9
A32: 비 계 공 | B32: 철거 | C32: 0.012 | D32: 인 | E32: 247977 | F32: 2975.7 | G32: 0 | H32: =TRUNC(C32/100*G32,1) -> 0 | I32: =노임단가!$K$13 -> 247977 | J32: =TRUNC(C32*I32,1) -> 2975.7 | K32: 0 | L32: =TRUNC(C32/100*K32,1) -> 0 | DM32: %RAN*TE
A33: 보통인부 | B33: 철거 | C33: 0.004 | D33: 인 | E33: 141096 | F33: 564.3 | G33: 0 | H33: =TRUNC(C33/100*G33,1) -> 0 | I33: =노임단가!$K$8 -> 141096 | J33: =TRUNC(C33*I33,1) -> 564.3 | K33: 0 | L33: =TRUNC(C33/100*K33,1) -> 0 | DM33: %RAN*TE
A34: 굴삭기(무한궤도) | B34: 철거 | C34: 0.014 | D34: 시간 | E34: 64696 | F34: 905.6 | G34: =건설기계!$I$56 -> 7887 | H34: =TRUNC(C34*G34,1) -> 110.4 | I34: =건설기계!$K$56 -> 44299 | J34: =TRUNC(C34*I34,1) -> 620.1 | K34: =건설기계!$M$56 -> 12510 | L34: =TRUNC(C34*K34,1) -> 175.1 | DM34: %RAN*TE
A35: 계 | F35: =H35+J35+L35 -> 24951 | H35: =ROUNDDOWN(SUM(H22:H34),0) -> 9638 | J35: =ROUNDDOWN(SUM(J22:J34),0) -> 14701 | L35: =ROUNDDOWN(SUM(L22:L34),0) -> 612
A37: 제00030호표 ：E.G.I 가설휀스설치및해체 (강관지주높이3.5m이하,12개월) m 당 | DM37: :BAA3227
A38: 전기아연도강판 | B38: 1.20x914x1829M/M | C38: 0.76 | D38: 매 | E38: =G38+I38+K38 -> 7190.26 | F38: =H38+J38+L38 -> 5464.5 | G38: =자재단가!$R$60 -> 7190.26 | H38: =TRUNC(C38*G38,1) -> 5464.5 | I38: 0 | J38: =TRUNC(C38*I38,1) -> 0 | K38: 0 | L38: =TRUNC(C38*K38,1) -> 0 | DM38: M0084039
A39: 강관파이프(단관비계) | B39: Ø48.6*2.3t | C39: 1.254 | D39: M | E39: 2700 | F39: 3385.8 | G39: =자재단가!$R$75 -> 2700 | H39: 3385.8 | I39: 0 | J39: 0 | K39: 0 | L39: 0 | DM39: M1002009
A40: 클램프 | B40: 자동 | C40: 0.0532 | D40: EA | E40: 1455 | F40: 77.4 | G40: =자재단가!$R$102 -> 1455 | H40: 77.4 | I40: 0 | J40: 0 | K40: 0 | L40: 0 | DM40: MYG0040
A41: 클램프 | B41: 고정 | C41: 0.4294 | D41: EA | E41: 1455 | F41: 624.7 | G41: =자재단가!$R$103 -> 1455 | H41: 624.7 | I41: 0 | J41: 0 | K41: 0 | L41: 0 | DM41: MYG0041
A42: 연결핀 | B42: Ø48.6 | C42: 0.1064 | D42: EA | E42: 873 | F42: 92.8 | G42: =자재단가!$R$76 -> 873 | H42: 92.8 | I42: 0 | J42: 0 | K42: 0 | L42: 0 | DM42: M1005021
A43: U형 볼트.너트 | B43: 용융아연도금 | C43: 2.5327 | D43: EA | E43: 2198 | F43: 5566.8 | G43: =자재단가!$R$83 -> 2198 | H43: 5566.8 | I43: 0 | J43: 0 | K43: 0 | L43: 0 | DM43: M2838931
A44: 비 계 공 | C44: 0.03 | D44: 인 | E44: 247977 | F44: 7439.3 | G44: 0 | H44: 0 | I44: =노임단가!$K$13 -> 247977 | J44: 7439.3 | K44: 0 | L44: 0 | DM44: W1006
A45: 보통인부 | C45: 0.011 | D45: 인 | E45: 141096 | F45: 1552 | G45: 0 | H45: 0 | I45: =노임단가!$K$8 -> 141096 | J45: 1552 | K45: 0 | L45: 0 | DM45: W1002
A46: 굴삭기(무한궤도) | B46: 0.2 ㎥ | C46: 0.035 | D46: 시간 | E46: 64696 | F46: 2264.2 | G46: =건설기계!$I$56 -> 7887 | H46: 276 | I46: =건설기계!$K$56 -> 44299 | J46: 1550.4 | K46: =건설기계!$M$56 -> 12510 | L46: 437.8 | DM46: D0201-0020
A47: 잡재료비 | B47: 노무비의5% | C47: 5 | D47: % | E47: 10541.7 | F47: 527 | G47: =SUM($J$44:$J$46) -> 10541.7 | H47: =TRUNC(C47/100*G47,1) -> 527 | I47: 0 | J47: =TRUNC(C47/100*I47,1) -> 0 | K47: 0 | L47: =TRUNC(C47/100*K47,1) -> 0 | DM47: %RAN*LM | DN47: 7..9
A48: 비 계 공 | B48: 철거 | C48: 0.012 | D48: 인 | E48: 247977 | F48: 2975.7 | G48: 0 | H48: =TRUNC(C48/100*G48,1) -> 0 | I48: =노임단가!$K$13 -> 247977 | J48: =TRUNC(C48*I48,1) -> 2975.7 | K48: 0 | L48: =TRUNC(C48/100*K48,1) -> 0 | DM48: %RAN*TE
A49: 보통인부 | B49: 철거 | C49: 0.004 | D49: 인 | E49: 141096 | F49: 564.3 | G49: 0 | H49: =TRUNC(C49/100*G49,1) -> 0 | I49: =노임단가!$K$8 -> 141096 | J49: =TRUNC(C49*I49,1) -> 564.3 | K49: 0 | L49: =TRUNC(C49/100*K49,1) -> 0 | DM49: %RAN*TE
A50: 굴삭기(무한궤도) | B50: 철거 | C50: 0.014 | D50: 시간 | E50: 64696 | F50: 905.6 | G50: =건설기계!$I$56 -> 7887 | H50: =TRUNC(C50*G50,1) -> 110.4 | I50: =건설기계!$K$56 -> 44299 | J50: =TRUNC(C50*I50,1) -> 620.1 | K50: =건설기계!$M$56 -> 12510 | L50: =TRUNC(C50*K50,1) -> 175.1 | DM50: %RAN*TE
A51: 계 | F51: =H51+J51+L51 -> 31438 | H51: =ROUNDDOWN(SUM(H38:H50),0) -> 16125 | J51: =ROUNDDOWN(SUM(J38:J50),0) -> 14701 | L51: =ROUNDDOWN(SUM(L38:L50),0) -> 612
A53: 제00040호표 ：L형측구설치 (B=45Cm[레미콘]) m 당 | DM53: :BHE2110
A54: 레미콘 | B54: #57 25-240-12 | C54: 0.086 | D54: ㎥ | E54: =G54+I54+K54 -> 67540 | F54: 5808.4 | G54: =자재단가!$R$11 -> 67540 | H54: =TRUNC(C54*G54,1) -> 5808.4 | I54: 0 | J54: =TRUNC(C54*I54,1) -> 0 | K54: 0 | L54: =TRUNC(C54*K54,1) -> 0 | M54: 관 급 | DM54: M0765035
A55: 레미콘타설 | B55: 무근구조물 | C55: 0.086 | D55: ㎥ | E55: 23651 | F55: 2033.8 | G55: =$H$614 -> 1660 | H55: =TRUNC(C55*G55,1) -> 142.7 | I55: =$J$614 -> 19717 | J55: =TRUNC(C55*I55,1) -> 1695.6 | K55: =$L$614 -> 2274 | L55: =TRUNC(C55*K55,1) -> 195.5 | M55: 제 78호표 | DM55: BFB1100
A56: 거푸집(합판4회) | B56: 수직고 0∼7m | C56: 0.22 | D56: ㎡ | E56: 40275 | F56: 8860.4 | G56: =$H$182 -> 11152 | H56: =TRUNC(C56*G56,1) -> 2453.4 | I56: =$J$182 -> 29123 | J56: =TRUNC(C56*I56,1) -> 6407 | K56: =$L$182 -> 0 | L56: =TRUNC(C56*K56,1) -> 0 | M56: 제 21호표 | DM56: BFC2400
A57: 특별인부 | B57: 부설공 | C57: 0.02 | D57: 인 | E57: 179203 | F57: 3584 | G57: 0 | H57: =TRUNC(C57*G57,1) -> 0 | I57: =노임단가!$K$7 -> 179203 | J57: =TRUNC(C57*I57,1) -> 3584 | K57: 0 | L57: =TRUNC(C57*K57,1) -> 0 | DM57: W1003
A58: 계 | F58: =H58+J58+L58 -> 14477 | H58: =ROUNDDOWN(SUM(H54:H57)-(H54),0) -> 2596 | J58: =ROUNDDOWN(SUM(J54:J57)-(J54),0) -> 11686 | L58: =ROUNDDOWN(SUM(L54:L57)-(L54),0) -> 195
A60: 제00050호표 ：L형측구설치 (B=50Cm[레미콘]) m 당 | DM60: :BHE2120
A61: 레미콘 | B61: #57 25-240-12 | C61: 0.095 | D61: ㎥ | E61: =G61+I61+K61 -> 67540 | F61: 6416.3 | G61: =자재단가!$R$11 -> 67540 | H61: =TRUNC(C61*G61,1) -> 6416.3 | I61: 0 | J61: =TRUNC(C61*I61,1) -> 0 | K61: 0 | L61: =TRUNC(C61*K61,1) -> 0 | M61: 관 급 | DM61: M0765035
A62: 레미콘타설 | B62: 무근구조물 | C62: 0.095 | D62: ㎥ | E62: 23651 | F62: 2246.8 | G62: =$H$614 -> 1660 | H62: =TRUNC(C62*G62,1) -> 157.7 | I62: =$J$614 -> 19717 | J62: =TRUNC(C62*I62,1) -> 1873.1 | K62: =$L$614 -> 2274 | L62: =TRUNC(C62*K62,1) -> 216 | M62: 제 78호표 | DM62: BFB1100
A63: 거푸집(합판4회) | B63: 수직고 0∼7m | C63: 0.22 | D63: ㎡ | E63: 40275 | F63: 8860.4 | G63: =$H$182 -> 11152 | H63: =TRUNC(C63*G63,1) -> 2453.4 | I63: =$J$182 -> 29123 | J63: =TRUNC(C63*I63,1) -> 6407 | K63: =$L$182 -> 0 | L63: =TRUNC(C63*K63,1) -> 0 | M63: 제 21호표 | DM63: BFC2400
A64: 특별인부 | B64: 부설공 | C64: 0.02 | D64: 인 | E64: 179203 | F64: 3584 | G64: 0 | H64: =TRUNC(C64*G64,1) -> 0 | I64: =노임단가!$K$7 -> 179203 | J64: =TRUNC(C64*I64,1) -> 3584 | K64: 0 | L64: =TRUNC(C64*K64,1) -> 0 | DM64: W1003
A65: 계 | F65: =H65+J65+L65 -> 14691 | H65: =ROUNDDOWN(SUM(H61:H64)-(H61),0) -> 2611 | J65: =ROUNDDOWN(SUM(J61:J64)-(J61),0) -> 11864 | L65: =ROUNDDOWN(SUM(L61:L64)-(L61),0) -> 216
A67: 제00060호표 ：L형측구설치 (B=45Cm[인력]) m 당 | DM67: :BHE2130
A68: 인력비빔타설(fck=210kgf/cm2) | B68: 무근구조물 | C68: 0.086 | D68: ㎥ | E68: =G68+I68+K68 -> 372619 | F68: 32045.2 | G68: =$H$1506 -> 66014 | H68: =TRUNC(C68*G68,1) -> 5677.2 | I68: =$J$1506 -> 298571 | J68: =TRUNC(C68*I68,1) -> 25677.1 | K68: =$L$1506 -> 8034 | L68: =TRUNC(C68*K68,1) -> 690.9 | M68: 제 152호표 | DM68: BFB3120
A69: 거푸집(합판4회) | B69: 수직고 0∼7m | C69: 0.22 | D69: ㎡ | E69: 40275 | F69: 8860.4 | G69: =$H$182 -> 11152 | H69: =TRUNC(C69*G69,1) -> 2453.4 | I69: =$J$182 -> 29123 | J69: =TRUNC(C69*I69,1) -> 6407 | K69: =$L$182 -> 0 | L69: =TRUNC(C69*K69,1) -> 0 | M69: 제 21호표 | DM69: BFC2400
A70: 특별인부 | B70: 부설공 | C70: 0.02 | D70: 인 | E70: 179203 | F70: 3584 | G70: 0 | H70: =TRUNC(C70*G70,1) -> 0 | I70: =노임단가!$K$7 -> 179203 | J70: =TRUNC(C70*I70,1) -> 3584 | K70: 0 | L70: =TRUNC(C70*K70,1) -> 0 | DM70: W1003
A71: 계 | F71: =H71+J71+L71 -> 44488 | H71: =ROUNDDOWN(SUM(H68:H70),0) -> 8130 | J71: =ROUNDDOWN(SUM(J68:J70),0) -> 35668 | L71: =ROUNDDOWN(SUM(L68:L70),0) -> 690
A73: 제00070호표 ：L형측구설치 (B=50Cm[인력]) m 당 | DM73: :BHE2140
A74: 인력비빔타설(fck=210kgf/cm2) | B74: 무근구조물 | C74: 0.095 | D74: ㎥ | E74: =G74+I74+K74 -> 372619 | F74: 35398.7 | G74: =$H$1506 -> 66014 | H74: =TRUNC(C74*G74,1) -> 6271.3 | I74: =$J$1506 -> 298571 | J74: =TRUNC(C74*I74,1) -> 28364.2 | K74: =$L$1506 -> 8034 | L74: =TRUNC(C74*K74,1) -> 763.2 | M74: 제 152호표 | DM74: BFB3120
A75: 거푸집(합판4회) | B75: 수직고 0∼7m | C75: 0.22 | D75: ㎡ | E75: 40275 | F75: 8860.4 | G75: =$H$182 -> 11152 | H75: =TRUNC(C75*G75,1) -> 2453.4 | I75: =$J$182 -> 29123 | J75: =TRUNC(C75*I75,1) -> 6407 | K75: =$L$182 -> 0 | L75: =TRUNC(C75*K75,1) -> 0 | M75: 제 21호표 | DM75: BFC2400
A76: 특별인부 | B76: 부설공 | C76: 0.02 | D76: 인 | E76: 179203 | F76: 3584 | G76: 0 | H76: =TRUNC(C76*G76,1) -> 0 | I76: =노임단가!$K$7 -> 179203 | J76: =TRUNC(C76*I76,1) -> 3584 | K76: 0 | L76: =TRUNC(C76*K76,1) -> 0 | DM76: W1003
A77: 계 | F77: =H77+J77+L77 -> 47842 | H77: =ROUNDDOWN(SUM(H74:H76),0) -> 8724 | J77: =ROUNDDOWN(SUM(J74:J76),0) -> 38355 | L77: =ROUNDDOWN(SUM(L74:L76),0) -> 763
A79: 제00080호표 ：PE 안전휀스 [3개월] (1510*410*910㎜) 개 당 | DM79: :B000-022010
A80: PE 안전휀스 | B80: 1510ⅹ410ⅹ910㎜ | C80: 0.06 | D80: 개 | E80: =G80+I80+K80 -> 16000 | F80: =H80+J80+L80 -> 960 | G80: 0 | H80: =TRUNC(C80*G80,1) -> 0 | I80: 0 | J80: =TRUNC(C80*I80,1) -> 0 | K80: =자재단가!$R$125 -> 16000 | L80: =TRUNC(C80*K80,1) -> 960 | DM80: M000-0160 | DN80: %TE
A81: 보통인부 | B81: 설치및철거관리 | C81: 0.04 | D81: 인 | E81: =G81+I81+K81 -> 141096 | F81: =H81+J81+L81 -> 5643.8 | G81: 0 | H81: =TRUNC(C81*G81,1) -> 0 | I81: 0 | J81: =TRUNC(C81*I81,1) -> 0 | K81: =노임단가!$K$8 -> 141096 | L81: =TRUNC(C81*K81,1) -> 5643.8 | DM81: W1002 | DN81: %TE
A82: 계 | F82: =H82+J82+L82 -> 6603 | H82: =ROUNDDOWN(SUM(H80:H81),0) -> 0 | J82: =ROUNDDOWN(SUM(J80:J81),0) -> 0 | L82: =ROUNDDOWN(SUM(L80:L81),0) -> 6603
A84: 제00090호표 ：PE 안전휀스 [6개월] (1510*410*910㎜) 개 당 | DM84: :B000-0270
A85: PE 안전휀스 | B85: 1510ⅹ410ⅹ910㎜ | C85: 0.13 | D85: 개 | E85: =G85+I85+K85 -> 16000 | F85: =H85+J85+L85 -> 2080 | G85: 0 | H85: =TRUNC(C85*G85,1) -> 0 | I85: 0 | J85: =TRUNC(C85*I85,1) -> 0 | K85: =자재단가!$R$125 -> 16000 | L85: =TRUNC(C85*K85,1) -> 2080 | DM85: M000-0160 | DN85: %TE
A86: 보통인부 | B86: 설치및철거관리 | C86: 0.04 | D86: 인 | E86: =G86+I86+K86 -> 141096 | F86: =H86+J86+L86 -> 5643.8 | G86: 0 | H86: =TRUNC(C86*G86,1) -> 0 | I86: 0 | J86: =TRUNC(C86*I86,1) -> 0 | K86: =노임단가!$K$8 -> 141096 | L86: =TRUNC(C86*K86,1) -> 5643.8 | DM86: W1002 | DN86: %TE
A87: 계 | F87: =H87+J87+L87 -> 7723 | H87: =ROUNDDOWN(SUM(H85:H86),0) -> 0 | J87: =ROUNDDOWN(SUM(J85:J86),0) -> 0 | L87: =ROUNDDOWN(SUM(L85:L86),0) -> 7723
A89: 제00100호표 ：PE 안전휀스 [12개월] (1510*410*910㎜) 개 당 | DM89: :B000-0280
A90: PE 안전휀스 | B90: 1510ⅹ410ⅹ910㎜ | C90: 0.25 | D90: 개 | E90: =G90+I90+K90 -> 16000 | F90: =H90+J90+L90 -> 4000 | G90: 0 | H90: =TRUNC(C90*G90,1) -> 0 | I90: 0 | J90: =TRUNC(C90*I90,1) -> 0 | K90: =자재단가!$R$125 -> 16000 | L90: =TRUNC(C90*K90,1) -> 4000 | DM90: M000-0160 | DN90: %TE
A91: 보통인부 | B91: 설치및철거관리 | C91: 0.04 | D91: 인 | E91: =G91+I91+K91 -> 141096 | F91: =H91+J91+L91 -> 5643.8 | G91: 0 | H91: =TRUNC(C91*G91,1) -> 0 | I91: 0 | J91: =TRUNC(C91*I91,1) -> 0 | K91: =노임단가!$K$8 -> 141096 | L91: =TRUNC(C91*K91,1) -> 5643.8 | DM91: W1002 | DN91: %TE
A92: 계 | F92: =H92+J92+L92 -> 9643 | H92: =ROUNDDOWN(SUM(H90:H91),0) -> 0 | J92: =ROUNDDOWN(SUM(J90:J91),0) -> 0 | L92: =ROUNDDOWN(SUM(L90:L91),0) -> 9643
A94: 제00110호표 ：PVC지수판 (200x5t) m 당 | DM94: :BFG2110
A95: PVC지수판 | B95: 200x5T KS PVC | C95: 1.04 | D95: M | E95: =G95+I95+K95 -> 2500 | F95: 2600 | G95: =자재단가!$R$144 -> 2500 | H95: =TRUNC(C95*G95,1) -> 2600 | I95: 0 | J95: =TRUNC(C95*I95,1) -> 0 | K95: 0 | L95: =TRUNC(C95*K95,1) -> 0 | DM95: M2064063
A96: PVC용접봉 | B96: ф3.2mm | C96: 0.042 | D96: ㎏ | E96: 4000 | F96: 168 | G96: 4000 | H96: =TRUNC(C96*G96,1) -> 168 | I96: 0 | J96: =TRUNC(C96*I96,1) -> 0 | K96: 0 | L96: =TRUNC(C96*K96,1) -> 0
A97: 보통철선 | B97: #8,4.0MM,10.1M/KG | C97: 0.21 | D97: ㎏ | E97: 1070 | F97: 224.7 | G97: =자재단가!$R$63 -> 1070 | H97: =TRUNC(C97*G97,1) -> 224.7 | I97: 0 | J97: =TRUNC(C97*I97,1) -> 0 | K97: 0 | L97: =TRUNC(C97*K97,1) -> 0 | DM97: M0144009
A98: 특별인부 | C98: 0.151 | D98: 인 | E98: 179203 | F98: 27059.6 | G98: 0 | H98: =TRUNC(C98*G98,1) -> 0 | I98: =노임단가!$K$7 -> 179203 | J98: =TRUNC(C98*I98,1) -> 27059.6 | K98: 0 | L98: =TRUNC(C98*K98,1) -> 0 | DM98: W1003
A99: 보통인부 | C99: 0.116 | D99: 인 | E99: 141096 | F99: 16367.1 | G99: 0 | H99: =TRUNC(C99*G99,1) -> 0 | I99: =노임단가!$K$8 -> 141096 | J99: =TRUNC(C99*I99,1) -> 16367.1 | K99: 0 | L99: =TRUNC(C99*K99,1) -> 0 | DM99: W1002
A100: 공구손료 | B100: 품의 3% | C100: 3 | D100: % | E100: 43426.7 | F100: 1302.8 | G100: 0 | H100: =TRUNC(C100/100*G100,1) -> 0 | I100: 0 | J100: =TRUNC(C100/100*I100,1) -> 0 | K100: =SUM($J$98:$J$99) -> 43426.7 | L100: =TRUNC(C100/100*K100,1) -> 1302.8 | DM100: %RAN*LE | DN100: 4..5
A101: 계 | F101: =H101+J101+L101 -> 47720 | H101: =ROUNDDOWN(SUM(H95:H100),0) -> 2992 | J101: =ROUNDDOWN(SUM(J95:J100),0) -> 43426 | L101: =ROUNDDOWN(SUM(L95:L100),0) -> 1302
A103: 제00120호표 ：가드레일철거 (인력) m 당 | DM103: :BKJ1200
A104: 보통인부 | C104: 0.04 | D104: 인 | E104: =G104+I104+K104 -> 141096 | F104: =H104+J104+L104 -> 5643.8 | G104: 0 | H104: =TRUNC(C104*G104,1) -> 0 | I104: =노임단가!$K$8 -> 141096 | J104: =TRUNC(C104*I104,1) -> 5643.8 | K104: 0 | L104: =TRUNC(C104*K104,1) -> 0 | DM104: W1002
A105: 용접원(제조부문) | C105: 0.02 | D105: 인 | E105: =G105+I105+K105 -> 91928 | F105: =H105+J105+L105 -> 1838.5 | G105: 0 | H105: =TRUNC(C105*G105,1) -> 0 | I105: =노임단가!$K$32 -> 91928 | J105: =TRUNC(C105*I105,1) -> 1838.5 | K105: 0 | L105: =TRUNC(C105*K105,1) -> 0 | DM105: W1-1071
A106: 계 | F106: =H106+J106+L106 -> 7482 | H106: =ROUNDDOWN(SUM(H104:H105),0) -> 0 | J106: =ROUNDDOWN(SUM(J104:J105),0) -> 7482 | L106: =ROUNDDOWN(SUM(L104:L105),0) -> 0
A108: 제00130호표 ：가드휀스설치[라운드] (H900*W3000) 경간 당 | DM108: :B-003
A109: 가드휀스제작(라운드) | B109: H900*W3000 | C109: 1 | D109: 경간 | E109: =G109+I109+K109 -> 763873 | F109: =H109+J109+L109 -> 763873 | G109: =$H$137 -> 171155 | H109: =TRUNC(C109*G109,1) -> 171155 | I109: =$J$137 -> 592718 | J109: =TRUNC(C109*I109,1) -> 592718 | K109: =$L$137 -> 0 | L109: =TRUNC(C109*K109,1) -> 0 | M109: 제 14호표 | DM109: B-002
A110: 거푸집(합판2회) | B110: 매우복잡/소규모 | C110: 0.27 | D110: ㎡ | E110: 62541 | F110: 16886 | G110: =$H$168 -> 14756 | H110: 3984.1 | I110: =$J$168 -> 47785 | J110: 12901.9 | K110: =$L$168 -> 0 | L110: 0 | M110: 제 24호표 | DM110: BFC2650
A111: 터파기(인력,보통토사) | B111: 굴착깊이 0∼1M | C111: 0.045 | D111: ㎥ | E111: 28219 | F111: 1269.8 | G111: =$H$1970 -> 0 | H111: 0 | I111: =$J$1970 -> 28219 | J111: 1269.8 | K111: =$L$1970 -> 0 | L111: 0 | M111: 제 209호표 | DM111: BDD1101
A112: 되메우기(다짐) | B112: 인력 | C112: 0.012 | D112: ㎥ | E112: 19753 | F112: 237 | G112: =$H$535 -> 0 | H112: 0 | I112: =$J$535 -> 19753 | J112: 237 | K112: =$L$535 -> 0 | L112: 0 | M112: 제 67호표 | DM112: BDE2210
A113: 인력 흙다지기 | B113: 토사(15cm) | C113: 0.012 | D113: ㎥ | E113: 19753 | F113: 237 | G113: =$H$1474 -> 0 | H113: 0 | I113: =$J$1474 -> 19753 | J113: 237 | K113: =$L$1474 -> 0 | L113: 0 | M113: 제 148호표 | DM113: B0048
A114: 인력비빔타설(fck=180kgf/cm2) | B114: 무근구조물 | C114: 0.033 | D114: ㎥ | E114: 367815 | F114: 12137.8 | G114: =$H$1482 -> 62458 | H114: 2061.1 | I114: =$J$1482 -> 298571 | J114: 9852.8 | K114: =$L$1482 -> 6786 | L114: 223.9 | M114: 제 149호표 | DM114: BFB3130
A115: 보통인부 | C115: 0.55 | D115: 인 | E115: 141096 | F115: 77602.8 | G115: 0 | H115: 0 | I115: =노임단가!$K$8 -> 141096 | J115: 77602.8 | K115: 0 | L115: 0 | DM115: W1002
A116: 특별인부 | C116: 0.42 | D116: 인 | E116: 179203 | F116: 75265.2 | G116: 0 | H116: 0 | I116: =노임단가!$K$7 -> 179203 | J116: 75265.2 | K116: 0 | L116: 0 | DM116: W1003
A117: 용 접 공 | C117: 0.44 | D117: 인 | E117: 225966 | F117: 99425 | G117: 0 | H117: 0 | I117: =노임단가!$K$17 -> 225966 | J117: 99425 | K117: 0 | L117: 0 | DM117: W1012
A118: 계 | F118: =H118+J118+L118 -> 1046932 | H118: =ROUNDDOWN(SUM(H109:H117),0) -> 177200 | J118: =ROUNDDOWN(SUM(J109:J117),0) -> 869509 | L118: =ROUNDDOWN(SUM(L109:L117),0) -> 223
A120: 제00140호표 ：가드휀스제작[라운드] (H900*W3000) 경간 당 | DM120: :B-002
A121: 포스트형강 | B121: 100*100*1200 | C121: 2 | D121: 개 | E121: =G121+I121+K121 -> 23760 | F121: =H121+J121+L121 -> 47520 | G121: =자재단가!$R$104 -> 23760 | H121: =TRUNC(C121*G121,1) -> 47520 | I121: 0 | J121: =TRUNC(C121*I121,1) -> 0 | K121: 0 | L121: =TRUNC(C121*K121,1) -> 0 | DM121: M0000001
A122: 스테인레스원형관 | B122: 63.5*1.5*2.32 | C122: 9 | D122: M | E122: 8270 | F122: 74430 | G122: =자재단가!$R$105 -> 8270 | H122: 74430 | I122: 0 | J122: 0 | K122: 0 | L122: 0 | DM122: M0000002
A123: 캡 | B123: Ø63.5 | C123: 6 | D123: 개 | E123: 7500 | F123: 45000 | G123: =자재단가!$R$106 -> 7500 | H123: 45000 | I123: 0 | J123: 0 | K123: 0 | L123: 0 | DM123: M0000003
A124: 스텐레스봉 | B124: 4.0*1000 | C124: 0.55 | D124: ㎏ | E124: 4620 | F124: 2541 | G124: =자재단가!$R$107 -> 4620 | H124: 2541 | I124: 0 | J124: 0 | K124: 0 | L124: 0 | DM124: M0000004
A125: 알곤 | B125: 99.9% 47ℓ | C125: 0.0095 | D125: ℓ | E125: 638.3 | F125: 6 | G125: =자재단가!$R$108 -> 638.3 | H125: 6 | I125: 0 | J125: 0 | K125: 0 | L125: 0 | DM125: M0000005
A126: 레이저광선원 | C126: 1 | D126: 인 | E126: 87935 | F126: 87935 | G126: 0 | H126: 0 | I126: =노임단가!$K$27 -> 87935 | J126: 87935 | K126: 0 | L126: 0 | DM126: W1-1059
A127: 연삭기및연마기조작원 | C127: 0.9 | D127: 인 | E127: 80761 | F127: 72684.9 | G127: 0 | H127: 0 | I127: =노임단가!$K$28 -> 80761 | J127: 72684.9 | K127: 0 | L127: 0 | DM127: W1-1075
A128: 프레스기조작원 | C128: 0.3 | D128: 인 | E128: 85740 | F128: 25722 | G128: 0 | H128: 0 | I128: =노임단가!$K$29 -> 85740 | J128: 25722 | K128: 0 | L128: 0 | DM128: W1-1051
A129: 철물재단원 | C129: 0.7 | D129: 인 | E129: 85740 | F129: 60018 | G129: 0 | H129: 0 | I129: =노임단가!$K$30 -> 85740 | J129: 60018 | K129: 0 | L129: 0 | DM129: W1-1032
A130: 벤딩머쉰조작원 | C130: 1.6 | D130: 인 | E130: 104737 | F130: 167579.2 | G130: 0 | H130: 0 | I130: =노임단가!$K$31 -> 104737 | J130: 167579.2 | K130: 0 | L130: 0 | DM130: W1-1045
A131: 용접원 | C131: 0.4 | D131: 인 | E131: 91928 | F131: 36771.2 | G131: 0 | H131: 0 | I131: =노임단가!$K$32 -> 91928 | J131: 36771.2 | K131: 0 | L131: 0 | DM131: W1-1071
A132: 연삭기및연마기조작원 | C132: 0.3 | D132: 인 | E132: 80761 | F132: 24228.3 | G132: 0 | H132: 0 | I132: =노임단가!$K$28 -> 80761 | J132: 24228.3 | K132: 0 | L132: 0 | DM132: W1-1072
A133: 세척원 | C133: 0.5 | D133: 인 | E133: 78123 | F133: 39061.5 | G133: 0 | H133: 0 | I133: =노임단가!$K$33 -> 78123 | J133: 39061.5 | K133: 0 | L133: 0 | DM133: W1-1077
A134: 단순노무종사원 | C134: 0.5 | D134: 인 | E134: 79552 | F134: 39776 | G134: 0 | H134: 0 | I134: =노임단가!$K$34 -> 79552 | J134: 39776 | K134: 0 | L134: 0 | DM134: W1-1176
A135: 포스트금형제작비 | C135: 1 | D135: 식 | E135: 4600 | F135: 4600 | G135: =견적및기타!$K$12 -> 1658 | H135: 1658 | I135: =견적및기타!$L$12 -> 2942 | J135: 2942 | K135: =견적및기타!$M$12 -> 0 | L135: 0 | DM135: E1000
A136: 포스트도장 | B136: 본체칼라도장 | C136: 1 | D136: 식 | E136: 36000 | F136: 36000 | G136: =견적및기타!$K$13 -> 0 | H136: 0 | I136: =견적및기타!$L$13 -> 36000 | J136: 36000 | K136: =견적및기타!$M$13 -> 0 | L136: 0 | DM136: E1001
A137: 계 | F137: =H137+J137+L137 -> 763873 | H137: =ROUNDDOWN(SUM(H121:H136),0) -> 171155 | J137: =ROUNDDOWN(SUM(J121:J136),0) -> 592718 | L137: =ROUNDDOWN(SUM(L121:L136),0) -> 0
A139: 제00150호표 ：가로수분설치 개소 당 | DM139: :B0209
A140: 수목보호판 | B140: 1200*1000,주철 | C140: 1 | D140: 조 | E140: =G140+I140+K140 -> 176700 | F140: 176700 | G140: =자재단가!$R$31 -> 176700 | H140: =TRUNC(C140*G140,1) -> 176700 | I140: 0 | J140: =TRUNC(C140*I140,1) -> 0 | K140: 0 | L140: =TRUNC(C140*K140,1) -> 0 | M140: 관 급 | DM140: M0133
A141: 특별인부 | B141: 보호판+받침 | C141: 0.14 | D141: 인 | E141: 179203 | F141: 25088.4 | G141: 0 | H141: =TRUNC(C141*G141,1) -> 0 | I141: =노임단가!$K$7 -> 179203 | J141: =TRUNC(C141*I141,1) -> 25088.4 | K141: 0 | L141: =TRUNC(C141*K141,1) -> 0 | DM141: W1003
A142: 보통인부 | B142: 보호판+받침 | C142: 0.09 | D142: 인 | E142: 141096 | F142: 12698.6 | G142: 0 | H142: =TRUNC(C142*G142,1) -> 0 | I142: =노임단가!$K$8 -> 141096 | J142: =TRUNC(C142*I142,1) -> 12698.6 | K142: 0 | L142: =TRUNC(C142*K142,1) -> 0 | DM142: W1002
A143: 계 | F143: =H143+J143+L143 -> 37787 | H143: =ROUNDDOWN(SUM(H140:H142)-(H140),0) -> 0 | J143: =ROUNDDOWN(SUM(J140:J142)-(J140),0) -> 37787 | L143: =ROUNDDOWN(SUM(L140:L142)-(L140),0) -> 0
A145: 제00160호표 ：가설휀스[1.8x1.45] (3개월) 개 당 | DM145: :BAA3221
A146: 일반구조용원형강관(HR) | B146: 38.1*1.4㎜*1.267 | C146: 0.798 | D146: M | E146: =G146+I146+K146 -> 863.636 | F146: 689.1 | G146: 0 | H146: =TRUNC(C146*G146,1) -> 0 | I146: 0 | J146: =TRUNC(C146*I146,1) -> 0 | K146: =자재단가!$R$61 -> 863.636 | L146: =TRUNC(C146*K146,1) -> 689.1 | DM146: M0129021 | DN146: %TE
A147: 냉연강판(CR) | B147: 0.9 x1219x2438 | C147: 0.4578 | D147: ㎏ | E147: 850 | F147: 389.1 | G147: 0 | H147: =TRUNC(C147*G147,1) -> 0 | I147: 0 | J147: =TRUNC(C147*I147,1) -> 0 | K147: =자재단가!$R$59 -> 850 | L147: =TRUNC(C147*K147,1) -> 389.1 | DM147: M0069024 | DN147: %TE
A148: 비닐피복능형철망(PVC코팅능형망) | B148: #10,φ3.2x58x58mm | C148: 0.0486 | D148: ㎡ | E148: 8200 | F148: 398.5 | G148: 0 | H148: =TRUNC(C148*G148,1) -> 0 | I148: 0 | J148: =TRUNC(C148*I148,1) -> 0 | K148: =자재단가!$R$67 -> 8200 | L148: =TRUNC(C148*K148,1) -> 398.5 | DM148: M0675012 | DN148: %TE
A149: 제작비 | B149: 재료비의 % | C149: 50 | D149: % | E149: 1476.7 | F149: 738.3 | G149: 0 | H149: =TRUNC(C149/100*G149,1) -> 0 | I149: 0 | J149: =TRUNC(C149/100*I149,1) -> 0 | K149: =SUM($H$146:$H$148)+SUM($J$146:$J$148)+SUM($L$146:$L$148) -> 1476.7 | L149: =TRUNC(C149/100*K149,1) -> 738.3 | DM149: %RAN*TE | DN149: 1..3
A150: 페인트칠(녹막이) | B150: (녹막이1회) | C150: 0.222 | D150: ㎡ | E150: 4164 | F150: 924.3 | G150: =$H$2156 -> 536 | H150: =TRUNC(C150*G150,1) -> 118.9 | I150: =$J$2156 -> 3628 | J150: =TRUNC(C150*I150,1) -> 805.4 | K150: 0 | L150: =TRUNC(C150*K150,1) -> 0 | M150: 제 228호표 | DM150: BPC2110
A151: 페인트칠(조합,붓칠) | B151: 철재면(2회) | C151: 0.222 | D151: ㎡ | E151: 10633 | F151: 2360.4 | G151: =$H$2117 -> 891 | H151: =TRUNC(C151*G151,1) -> 197.8 | I151: =$J$2117 -> 9675 | J151: =TRUNC(C151*I151,1) -> 2147.8 | K151: =$L$2117 -> 67 | L151: =TRUNC(C151*K151,1) -> 14.8 | M151: 제 224호표 | DM151: BPC1212
A152: 보통인부 | B152: 설치및철거관리 | C152: 0.04 | D152: 인 | E152: 141096 | F152: 5643.8 | G152: 0 | H152: =TRUNC(C152*G152,1) -> 0 | I152: 0 | J152: =TRUNC(C152*I152,1) -> 0 | K152: =노임단가!$K$8 -> 141096 | L152: =TRUNC(C152*K152,1) -> 5643.8 | DM152: W1002 | DN152: %TE
A153: 계 | F153: =H153+J153+L153 -> 11142 | H153: =ROUNDDOWN(SUM(H146:H152),0) -> 316 | J153: =ROUNDDOWN(SUM(J146:J152),0) -> 2953 | L153: =ROUNDDOWN(SUM(L146:L152),0) -> 7873
A155: 제00170호표 ：거푸집[합판1회] (기준,수직고 0∼7m) ㎡ 당 | DM155: :BFC2100
A156: 내수합판 | B156: 12tx1220x2440㎜ | C156: 1.03 | D156: ㎡ | E156: =G156+I156+K156 -> 8419 | F156: 8671.5 | G156: =자재단가!$R$87 -> 8419 | H156: =TRUNC(C156*G156,1) -> 8671.5 | I156: 0 | J156: =TRUNC(C156*I156,1) -> 0 | K156: 0 | L156: =TRUNC(C156*K156,1) -> 0 | DM156: M4332041
A157: 외송각재 | B157: 3.6mx4.5cmx4.5cm | C157: 0.038 | D157: ㎥ | E157: 376675 | F157: 14313.6 | G157: =자재단가!$R$73 -> 376675 | H157: 14313.6 | I157: 0 | J157: 0 | K157: 0 | L157: 0 | DM157: M0882029
A158: 소모자재(박리재 등) | B158: 주재료비의 % | C158: 4 | D158: % | E158: 22985.1 | F158: 919.4 | G158: =SUM($H$156:$H$157) -> 22985.1 | H158: =TRUNC(C158%*G158,1) -> 919.4 | I158: 0 | J158: 0 | K158: 0 | L158: 0 | DM158: M0147006
A159: 형틀목공 | C159: 0.23 | D159: 인 | E159: 226280 | F159: 52044.4 | G159: 0 | H159: 0 | I159: =노임단가!$K$14 -> 226280 | J159: 52044.4 | K159: 0 | L159: 0 | DM159: W1007
A160: 보통인부 | C160: 0.14 | D160: 인 | E160: 141096 | F160: 19753.4 | G160: 0 | H160: 0 | I160: =노임단가!$K$8 -> 141096 | J160: 19753.4 | K160: 0 | L160: 0 | DM160: W1002
A161: 계 | F161: =H161+J161+L161 -> 95701 | H161: =ROUNDDOWN(SUM(H156:H160),0) -> 23904 | J161: =ROUNDDOWN(SUM(J156:J160),0) -> 71797 | L161: =ROUNDDOWN(SUM(L156:L160),0) -> 0
A163: 제00180호표 ：거푸집[합판2회] (매우복잡/소규모) ㎡ 당 | DM163: :BFC2610
A164: 합판거푸집(1회) | B164: 재 료 비 | C164: 55 | D164: % | E164: =G164+I164+K164 -> 23904 | F164: 13147.2 | G164: =$H$161 -> 23904 | H164: =TRUNC(C164/100*G164,1) -> 13147.2 | I164: 0 | J164: =TRUNC(C164*I164,1) -> 0 | K164: 0 | L164: =TRUNC(C164*K164,1) -> 0 | DM164: M4332041
A165: 소모자재(박리재 등) | B165: 주재료비의 % | C165: 7 | D165: % | E165: 22985.1 | F165: 1608.9 | G165: =SUM($H$156:$H$157) -> 22985.1 | H165: =TRUNC(C165%*G165,1) -> 1608.9 | I165: 0 | J165: 0 | K165: 0 | L165: 0 | DM165: M0147006
A166: 형틀목공 | C166: 0.18 | D166: 인 | E166: 226280 | F166: 40730.4 | G166: 0 | H166: =TRUNC(C166*G166,1) -> 0 | I166: =노임단가!$K$14 -> 226280 | J166: 40730.4 | K166: 0 | L166: 0 | DM166: W1007
A167: 보통인부 | C167: 0.05 | D167: 인 | E167: 141096 | F167: 7054.8 | G167: 0 | H167: 0 | I167: =노임단가!$K$8 -> 141096 | J167: 7054.8 | K167: 0 | L167: 0 | DM167: W1002
A168: 계 | F168: =H168+J168+L168 -> 62541 | H168: =ROUNDDOWN(SUM(H164:H167),0) -> 14756 | J168: =ROUNDDOWN(SUM(J164:J167),0) -> 47785 | L168: =ROUNDDOWN(SUM(L164:L167),0) -> 0
A170: 제00190호표 ：거푸집[합판3회] (복잡) ㎡ 당 | DM170: :BFC2300
A171: 합판거푸집(1회) | B171: 재 료 비 | C171: 44.3 | D171: % | E171: =G171+I171+K171 -> 23904 | F171: =H171+J171+L171 -> 10589.4 | G171: =$H$161 -> 23904 | H171: =TRUNC(C171/100*G171,1) -> 10589.4 | I171: 0 | J171: =TRUNC(C171*I171,1) -> 0 | K171: 0 | L171: =TRUNC(C171*K171,1) -> 0 | DM171: M4332041
A172: 소모자재(박리재 등) | B172: 주재료비의 % | C172: 8 | D172: % | E172: 22985.1 | F172: 1838.8 | G172: =SUM($H$156:$H$157) -> 22985.1 | H172: =TRUNC(C172%*G172,1) -> 1838.8 | I172: 0 | J172: 0 | K172: 0 | L172: 0 | DM172: M0147006
A173: 형틀목공 | C173: 0.16 | D173: 인 | E173: 226280 | F173: 36204.8 | G173: 0 | H173: =TRUNC(C173*G173,1) -> 0 | I173: =노임단가!$K$14 -> 226280 | J173: 36204.8 | K173: 0 | L173: 0 | DM173: W1007
A174: 보통인부 | C174: 0.04 | D174: 인 | E174: 141096 | F174: 5643.8 | G174: 0 | H174: 0 | I174: =노임단가!$K$8 -> 141096 | J174: 5643.8 | K174: 0 | L174: 0 | DM174: W1002
A175: 계 | F175: =H175+J175+L175 -> 54276 | H175: =ROUNDDOWN(SUM(H171:H174),0) -> 12428 | J175: =ROUNDDOWN(SUM(J171:J174),0) -> 41848 | L175: =ROUNDDOWN(SUM(L171:L174),0) -> 0
A177: 제00210호표 ：거푸집[합판4회] (보통) ㎡ 당 | DM177: :BFC2400
A178: 합판거푸집(1회) | B178: 재 료 비 | C178: 38 | D178: % | E178: =G178+I178+K178 -> 23904 | F178: =H178+J178+L178 -> 9083.5 | G178: =$H$161 -> 23904 | H178: =TRUNC(C178/100*G178,1) -> 9083.5 | I178: 0 | J178: =TRUNC(C178*I178,1) -> 0 | K178: 0 | L178: =TRUNC(C178*K178,1) -> 0 | DM178: M4332041
A179: 소모자재(박리재 등) | B179: 주재료비의 % | C179: 9 | D179: % | E179: 22985.1 | F179: 2068.6 | G179: =SUM($H$156:$H$157) -> 22985.1 | H179: =TRUNC(C179%*G179,1) -> 2068.6 | I179: 0 | J179: 0 | K179: 0 | L179: 0 | DM179: M0147006
A180: 형틀목공 | C180: 0.11 | D180: 인 | E180: 226280 | F180: 24890.8 | G180: 0 | H180: =TRUNC(C180*G180,1) -> 0 | I180: =노임단가!$K$14 -> 226280 | J180: 24890.8 | K180: 0 | L180: 0 | DM180: W1007
A181: 보통인부 | C181: 0.03 | D181: 인 | E181: 141096 | F181: 4232.8 | G181: 0 | H181: 0 | I181: =노임단가!$K$8 -> 141096 | J181: 4232.8 | K181: 0 | L181: 0 | DM181: W1002
A182: 계 | F182: =H182+J182+L182 -> 40275 | H182: =ROUNDDOWN(SUM(H178:H181),0) -> 11152 | J182: =ROUNDDOWN(SUM(J178:J181),0) -> 29123 | L182: =ROUNDDOWN(SUM(L178:L181),0) -> 0
A184: 제00230호표 ：거푸집[합판6회] (간단) ㎡ 당 | DM184: :BFC2600
A185: 합판거푸집(1회) | B185: 재 료 비 | C185: 32.7 | D185: % | E185: =G185+I185+K185 -> 23904 | F185: =H185+J185+L185 -> 7816.6 | G185: =$H$161 -> 23904 | H185: =TRUNC(C185/100*G185,1) -> 7816.6 | I185: 0 | J185: =TRUNC(C185*I185,1) -> 0 | K185: 0 | L185: =TRUNC(C185*K185,1) -> 0 | DM185: M4332041
A186: 소모자재(박리재 등) | B186: 주재료비의 % | C186: 11 | D186: % | E186: 22985.1 | F186: 2528.3 | G186: =SUM($H$156:$H$157) -> 22985.1 | H186: =TRUNC(C186%*G186,1) -> 2528.3 | I186: 0 | J186: 0 | K186: 0 | L186: 0 | DM186: M0147006
A187: 형틀목공 | C187: 0.1 | D187: 인 | E187: 226280 | F187: 22628 | G187: 0 | H187: =TRUNC(C187*G187,1) -> 0 | I187: =노임단가!$K$14 -> 226280 | J187: 22628 | K187: 0 | L187: 0 | DM187: W1007
A188: 보통인부 | C188: 0.02 | D188: 인 | E188: 141096 | F188: 2821.9 | G188: 0 | H188: 0 | I188: =노임단가!$K$8 -> 141096 | J188: 2821.9 | K188: 0 | L188: 0 | DM188: W1002
A189: 계 | F189: =H189+J189+L189 -> 35793 | H189: =ROUNDDOWN(SUM(H185:H188),0) -> 10344 | J189: =ROUNDDOWN(SUM(J185:J188),0) -> 25449 | L189: =ROUNDDOWN(SUM(L185:L188),0) -> 0
A191: 제00320호표 ：거푸집(문양,합성수지) ㎡ 당 | DM191: :BFC5000
A192: 폼타이(form tie) | B192: C-TYPE 5/16x210mm | C192: 2.14 | D192: 조 | E192: =G192+I192+K192 -> 225 | F192: 481.5 | G192: =자재단가!$R$79 -> 225 | H192: =TRUNC(C192*G192,1) -> 481.5 | I192: 0 | J192: =TRUNC(C192*I192,1) -> 0 | K192: 0 | L192: =TRUNC(C192*K192,1) -> 0 | DM192: M1074021
A193: 스페이서 | B193: 토목,슬래드용 | C193: 2.14 | D193: 본 | E193: 80 | F193: 171.2 | G193: =자재단가!$R$80 -> 80 | H193: =TRUNC(C193*G193,1) -> 171.2 | I193: 0 | J193: =TRUNC(C193*I193,1) -> 0 | K193: 0 | L193: =TRUNC(C193*K193,1) -> 0 | DM193: M114301M
A194: 문양박리제(유성) | B194: 문양거푸집전용 20ℓ/CAN | C194: 0.19 | D194: ℓ | E194: 1637 | F194: 311 | G194: =자재단가!$R$78 -> 1637 | H194: =TRUNC(C194*G194,1) -> 311 | I194: 0 | J194: =TRUNC(C194*I194,1) -> 0 | K194: 0 | L194: =TRUNC(C194*K194,1) -> 0 | DM194: M1059003
A195: 형틀목공 | C195: 0.11 | D195: 인 | E195: 226280 | F195: 24890.8 | G195: 0 | H195: =TRUNC(C195*G195,1) -> 0 | I195: =노임단가!$K$14 -> 226280 | J195: =TRUNC(C195*I195,1) -> 24890.8 | K195: 0 | L195: =TRUNC(C195*K195,1) -> 0 | DM195: W1007
A196: 보통인부 | C196: 0.05 | D196: 인 | E196: 141096 | F196: 7054.8 | G196: 0 | H196: =TRUNC(C196*G196,1) -> 0 | I196: =노임단가!$K$8 -> 141096 | J196: =TRUNC(C196*I196,1) -> 7054.8 | K196: 0 | L196: =TRUNC(C196*K196,1) -> 0 | DM196: W1002
A197: 사용고재 | B197: 재료비의 | C197: -10 | D197: % | E197: 482.2 | F197: -48.2 | G197: =SUM($H$193:$H$194) -> 482.2 | H197: =TRUNC(C197/100*G197,1) -> -48.2 | I197: 0 | J197: =TRUNC(C197/100*I197,1) -> 0 | K197: 0 | L197: =TRUNC(C197/100*K197,1) -> 0 | DM197: %RAN*MM | DN197: 2..3
A198: 계 | F198: =H198+J198+L198 -> 32860 | H198: =ROUNDDOWN(SUM(H192:H197),0) -> 915 | J198: =ROUNDDOWN(SUM(J192:J197),0) -> 31945 | L198: =ROUNDDOWN(SUM(L192:L197),0) -> 0
A200: 제00330호표 ：공사안내간판 (0.9*1.8M) 개 당 | DM200: :BAA3700
A201: 공사안내간판 | B201: 0.9*1.8m | C201: 1 | D201: 개 | E201: =G201+I201+K201 -> 120000 | F201: =H201+J201+L201 -> 120000 | G201: =견적및기타!$K$22 -> 0 | H201: =TRUNC(C201*G201,1) -> 0 | I201: =견적및기타!$L$22 -> 0 | J201: =TRUNC(C201*I201,1) -> 0 | K201: =견적및기타!$M$22 -> 120000 | L201: =TRUNC(C201*K201,1) -> 120000 | DM201: E000-0110
A202: 계 | F202: =H202+J202+L202 -> 120000 | H202: =ROUNDDOWN(SUM(H201:H201),0) -> 0 | J202: =ROUNDDOWN(SUM(J201:J201),0) -> 0 | L202: =ROUNDDOWN(SUM(L201:L201),0) -> 120000
A204: 제00340호표 ：과속방지턱도색 (상온식) ㎡ 당 | DM204: :BKZ3300
A205: 도로용페인트(상온형) | B205: KSM6080(백색) | C205: 0.0995 | D205: ℓ | E205: =G205+I205+K205 -> 4275 | F205: 425.3 | G205: =자재단가!$R$49 -> 4275 | H205: =TRUNC(C205*G205,1) -> 425.3 | I205: 0 | J205: =TRUNC(C205*I205,1) -> 0 | K205: 0 | L205: =TRUNC(C205*K205,1) -> 0 | DM205: M1500003
A206: 도로용페인트(상온형) | B206: KSM6080(황색1종) | C206: 0.0995 | D206: ℓ | E206: 5650 | F206: 562.1 | G206: =자재단가!$R$50 -> 5650 | H206: =TRUNC(C206*G206,1) -> 562.1 | I206: 0 | J206: =TRUNC(C206*I206,1) -> 0 | K206: 0 | L206: =TRUNC(C206*K206,1) -> 0 | DM206: M1500006
A207: 신너(조합페인트용) | B207: KSM-6060(2종) | C207: 0.008 | D207: ℓ | E207: 1777.78 | F207: 14.2 | G207: =자재단가!$R$47 -> 1777.78 | H207: =TRUNC(C207*G207,1) -> 14.2 | I207: 0 | J207: =TRUNC(C207*I207,1) -> 0 | K207: 0 | L207: =TRUNC(C207*K207,1) -> 0 | DM207: M4092005
A208: 휘 발 유 | C208: 0.05 | D208: d | E208: 1499.33 | F208: 74.9 | G208: =자재단가!$R$6 -> 1499.33 | H208: =TRUNC(C208*G208,1) -> 74.9 | I208: 0 | J208: =TRUNC(C208*I208,1) -> 0 | K208: 0 | L208: =TRUNC(C208*K208,1) -> 0 | DM208: M0000-100
A209: 도 장 공 | C209: 0.055 | D209: 인 | E209: 213676 | F209: 11752.1 | G209: 0 | H209: =TRUNC(C209*G209,1) -> 0 | I209: =노임단가!$K$12 -> 213676 | J209: =TRUNC(C209*I209,1) -> 11752.1 | K209: 0 | L209: =TRUNC(C209*K209,1) -> 0 | DM209: W1029
A210: 계 | F210: =H210+J210+L210 -> 12828 | H210: =ROUNDDOWN(SUM(H205:H209),0) -> 1076 | J210: =ROUNDDOWN(SUM(J205:J209),0) -> 11752 | L210: =ROUNDDOWN(SUM(L205:L209),0) -> 0
A212: 제00341호표 ：과속방지턱도색 (융착식) ㎡ 당 | DM212: :BKI1200
A213: 도로표지용 도료 | B213: 융착식(수용성) 백색 | C213: 2.265 | D213: ㎏ | E213: =G213+I213+K213 -> 3140 | F213: =H213+J213+L213 -> 7112.1 | G213: =자재단가!$R$51 -> 3140 | H213: =TRUNC(C213*G213,1) -> 7112.1 | I213: 0 | J213: =TRUNC(C213*I213,1) -> 0 | K213: 0 | L213: =TRUNC(C213*K213,1) -> 0 | DM213: BB00-0490
A214: 도로표지용 도료 | B214: 융착식(수용성) 황색 1종 | C214: 2.265 | D214: ㎏ | E214: 4100 | F214: 9286.5 | G214: =자재단가!$R$52 -> 4100 | H214: 9286.5 | I214: 0 | J214: 0 | K214: 0 | L214: 0 | DM214: W1003
A215: 도로표지용유리알 | B215: KSL2521 1호 | C215: 0.31 | D215: kg | E215: =G215+I215+K215 -> 1700 | F215: =H215+J215+L215 -> 527 | G215: =자재단가!$R$57 -> 1700 | H215: =TRUNC(C215*G215,1) -> 527 | I215: 0 | J215: =TRUNC(C215*I215,1) -> 0 | K215: 0 | L215: =TRUNC(C215*K215,1) -> 0 | DM215: M1488003
A216: 프라이머 | B216: 융착식 도료용 접착제 | C216: 0.2 | D216: ℓ | E216: 4500 | F216: 900 | G216: =자재단가!$R$56 -> 4500 | H216: 900 | I216: 0 | J216: 0 | K216: 0 | L216: 0 | DM216: M1500021
A217: 프로판가스 | B217: 일반용 | C217: 0.2 | D217: ㎏ | E217: 894 | F217: 178.8 | G217: =자재단가!$R$94 -> 894 | H217: 178.8 | I217: 0 | J217: 0 | K217: 0 | L217: 0 | DM217: M9384003
A218: 차선도색(융착식,횡단보도) | B218: 시간당 23.75㎡ | C218: 0.0421 | D218: HR | E218: 187501 | F218: 7893.6 | G218: =$H$1680 -> 14212 | H218: 598.3 | I218: =$J$1680 -> 152522 | J218: 6421.1 | K218: =$L$1680 -> 20767 | L218: 874.2 | M218: 제 174호표 | DM218: B000-0160
A219: 보통인부 | B219: 차로 밑그림 작업 | C219: 0.0087 | D219: 인 | E219: 141096 | F219: 1227.5 | G219: 0 | H219: 0 | I219: =노임단가!$K$8 -> 141096 | J219: 1227.5 | K219: 0 | L219: 0 | DM219: W1002
A220: 특별인부 | B220: 차로 밑그림 작업 | C220: 0.0087 | D220: 인 | E220: 179203 | F220: 1559 | G220: 0 | H220: 0 | I220: =노임단가!$K$7 -> 179203 | J220: 1559 | K220: 0 | L220: 0 | DM220: W1003
A221: 잡재료비 | B221: 주재료비의 | C221: 1 | D221: % | E221: 16428.3 | F221: 164.2 | G221: =SUM($H$1779:$H$1783) -> 16428.3 | H221: =TRUNC(C221/100*G221,1) -> 164.2 | I221: 0 | J221: =TRUNC(C221/100*I221,1) -> 0 | K221: 0 | L221: =TRUNC(C221/100*K221,1) -> 0 | DM221: %RAN*LM | DN221: 5..7
A222: 공구손료 | B222: 인력품의 | C222: 10 | D222: % | E222: 9207.6 | F222: 920.7 | G222: 0 | H222: =TRUNC(C222/100*G222,1) -> 0 | I222: 0 | J222: =TRUNC(C222/100*I222,1) -> 0 | K222: =SUM($J$1783:$J$1785) -> 9207.6 | L222: =TRUNC(C222/100*K222,1) -> 920.7 | DM222: %RAN*LE | DN222: 5..7
A223: 계 | F223: =H223+J223+L223 -> 29767 | H223: =ROUNDDOWN(SUM(H213:H222),0) -> 18766 | J223: =ROUNDDOWN(SUM(J215:J222),0) -> 9207 | L223: =ROUNDDOWN(SUM(L215:L222),0) -> 1794
A225: 제00350호표 ：과속방지턱설치 (B=3.6M) m 당 | DM225: :BKN1100
... 834 more rows

Sheet 단가산출 목록
A1: 단 가 산 출 목 록 표 | DO1: 5
DO2: A
A3: 공 종 | B3: 규 격 | C3: 수 량 | D3: 단위 | E3: 합 계 | F3: 재 료 비 | G3: 노 무 비 | H3: 경 비 | I3: 비 고 | DO3: 133
DO4: I
A5: 기계터파기(토사) | B5: 굴삭기0.2㎥ | C5: 1 | D5: ㎥ | E5: =F5+G5+H5 -> 4491 | F5: =단가산출!CY44 -> 547 | G5: =단가산출!CZ44 -> 3,076 | H5: =단가산출!DA44 -> 868 | I5: 산근 1호표 | DM5: SDD2110
A6: 기계터파기(토사) | B6: 굴삭기0.4㎥ | C6: 1 | D6: ㎥ | E6: 2015 | F6: =단가산출!CY83 -> 420 | G6: =단가산출!CZ83 -> 1,183 | H6: =단가산출!DA83 -> 412 | I6: 산근 2호표 | DM6: SDD2120
A7: 기계터파기(토사) | B7: 굴삭기0.7㎥ | C7: 1 | D7: ㎥ | E7: 1432 | F7: =단가산출!CY122 -> 312 | G7: =단가산출!CZ122 -> 751 | H7: =단가산출!DA122 -> 369 | I7: 산근 3호표 | DM7: SDD2130
A8: 기계터파기(토사) | B8: 굴삭기1.0㎥ | C8: 1 | D8: ㎥ | E8: 1266 | F8: =단가산출!CY161 -> 386 | G8: =단가산출!CZ161 -> 552 | H8: =단가산출!DA161 -> 328 | I8: 산근 4호표 | DM8: SDD2140
A9: 기계터파기(토사)-관로부설 | B9: 굴삭기0.2㎥ | C9: 1 | D9: ㎥ | E9: 7486 | F9: =단가산출!CY202 -> 912 | G9: =단가산출!CZ202 -> 5,127 | H9: =단가산출!DA202 -> 1,447 | I9: 산근 5호표 | DM9: SDD2110-1
A10: 기계터파기(토사)-관로부설 | B10: 굴삭기0.4㎥ | C10: 1 | D10: ㎥ | E10: 4361 | F10: =단가산출!CY241 -> 910 | G10: =단가산출!CZ241 -> 2,560 | H10: =단가산출!DA241 -> 891 | I10: 산근 6호표 | DM10: SDD2120-1
A11: 기계터파기(토사)-관로부설 | B11: 굴삭기0.7㎥ | C11: 1 | D11: ㎥ | E11: 3104 | F11: =단가산출!CY280 -> 677 | G11: =단가산출!CZ280 -> 1,627 | H11: =단가산출!DA280 -> 800 | I11: 산근 7호표 | DM11: SDD2130-1
A12: 기계터파기(토사)-관로부설 | B12: 굴삭기1.0㎥ | C12: 1 | D12: ㎥ | E12: 2745 | F12: =단가산출!CY319 -> 837 | G12: =단가산출!CZ319 -> 1,196 | H12: =단가산출!DA319 -> 712 | I12: 산근 8호표 | DM12: SDD2140-1
A13: 공사용수운반(컷터용) | B13: (물탱크:5500ℓ) | C13: 1 | D13: ㎥ | E13: 7366 | F13: =단가산출!CY352 -> 0 | G13: =단가산출!CZ352 -> 0 | H13: =단가산출!DA352 -> 7,366 | I13: 산근 9호표 | DM13: SQI1000
A14: 노면파쇄기 | B14: 0.6M | C14: 1 | D14: a | E14: 705891 | F14: =단가산출!CY381 -> 67,384 | G14: =단가산출!CZ381 -> 340,761 | H14: =단가산출!DA381 -> 297,746 | I14: 산근 10호표 | DM14: SD133-0150
A15: 노면파쇄기 | B15: 1M | C15: 1 | D15: a | E15: 530425 | F15: =단가산출!CY410 -> 63,696 | G15: =단가산출!CZ410 -> 134,239 | H15: =단가산출!DA410 -> 332,490 | I15: 산근 11호표 | DM15: S0134
A16: 노면파쇄기 | B16: 2M | C16: 1 | D16: a | E16: 124268 | F16: =단가산출!CY439 -> 36,225 | G16: =단가산출!CZ439 -> 20,135 | H16: =단가산출!DA439 -> 67,908 | I16: 산근 12호표 | DM16: S0136
A17: 도로경계브럭 운반 | B17: 15x15x100 | C17: 1 | D17: 개 | E17: 677 | F17: =단가산출!CY471 -> 0 | G17: =단가산출!CZ471 -> 0 | H17: =단가산출!DA471 -> 677 | I17: 산근 13호표 | DM17: S006
A18: 도로경계브럭 운반 | B18: 20x25x100 | C18: 1 | D18: 개 | E18: 1473 | F18: =단가산출!CY503 -> 0 | G18: =단가산출!CZ503 -> 0 | H18: =단가산출!DA503 -> 1,473 | I18: 산근 14호표 | DM18: S006-001
A19: 되메우기 | B19: 굴삭기0.2㎥ | C19: 1 | D19: ㎥ | E19: 2851 | F19: =단가산출!CY544 -> 347 | G19: =단가산출!CZ544 -> 1,953 | H19: =단가산출!DA544 -> 551 | I19: 산근 15호표 | DM19: SDE2221
A20: 되메우기 | B20: 굴삭기0.4㎥ | C20: 1 | D20: ㎥ | E20: 1663 | F20: =단가산출!CY585 -> 347 | G20: =단가산출!CZ585 -> 976 | H20: =단가산출!DA585 -> 340 | I20: 산근 16호표 | DM20: SDE2222
A21: 되메우기 | B21: 굴삭기0.7㎥ | C21: 1 | D21: ㎥ | E21: 1276 | F21: =단가산출!CY626 -> 278 | G21: =단가산출!CZ626 -> 669 | H21: =단가산출!DA626 -> 329 | I21: 산근 17호표 | DM21: SDE2223
A22: 되메우기(다짐) | B22: 굴삭기0.2㎥ | C22: 1 | D22: ㎥ | E22: 9742 | F22: =단가산출!CY703 -> 611 | G22: =단가산출!CZ703 -> 8,476 | H22: =단가산출!DA703 -> 655 | I22: 산근 18호표 | DM22: SDE2220
A23: 되메우기(다짐) | B23: 굴삭기0.4㎥ | C23: 1 | D23: ㎥ | E23: 8553 | F23: =단가산출!CY778 -> 610 | G23: =단가산출!CZ778 -> 7,499 | H23: =단가산출!DA778 -> 444 | I23: 산근 19호표 | DM23: SDE2220-1
A24: 되메우기(다짐) | B24: 굴삭기0.7㎥ | C24: 1 | D24: ㎥ | E24: 8167 | F24: =단가산출!CY853 -> 542 | G24: =단가산출!CZ853 -> 7,192 | H24: =단가산출!DA853 -> 433 | I24: 산근 20호표 | DM24: SDE2220-2
A25: 물운반비(2.5톤 트럭) | C25: 1 | D25: TON | E25: 14341 | F25: =단가산출!CY880 -> 0 | G25: =단가산출!CZ880 -> 0 | H25: =단가산출!DA880 -> 14,341 | I25: 산근 21호표 | DM25: S000-0240
A26: 보조기층살수 | B26: T=30Cm(물탱크5500ℓ) | C26: 1 | D26: a | E26: 14606 | F26: =단가산출!CY915 -> 2,208 | G26: =단가산출!CZ915 -> 9,951 | H26: =단가산출!DA915 -> 2,447 | I26: 산근 22호표 | DM26: SKZ1300
A27: 보조기층전압 | B27: T=20Cm(롤러8-15T) | C27: 1 | D27: a | E27: 44961 | F27: =단가산출!CY956 -> 9,985 | G27: =단가산출!CZ956 -> 23,962 | H27: =단가산출!DA956 -> 11,014 | I27: 산근 23호표 | DM27: SKZ1100
A28: 보조기층전압 | B28: T=30Cm(롤러2.5-8T) | C28: 1 | D28: a | E28: 67493 | F28: =단가산출!CY997 -> 14,991 | G28: =단가산출!CZ997 -> 35,967 | H28: =단가산출!DA997 -> 16,535 | I28: 산근 24호표 | DM28: SKZ1200
A29: 비산먼지방지비 | C29: 1 | D29: ㎡ | E29: 4 | F29: =단가산출!CY1028 -> 1 | G29: =단가산출!CZ1028 -> 2 | H29: =단가산출!DA1028 -> 1 | I29: 산근 25호표 | DM29: SAC2620
A30: 소형고압브럭 운반 | B30: t=60㎜ | C30: 1 | D30: ㎡ | E30: 1105 | F30: =단가산출!CY1060 -> 0 | G30: =단가산출!CZ1060 -> 0 | H30: =단가산출!DA1060 -> 1,105 | I30: 산근 26호표 | DM30: S005
A31: 소형고압브럭 전압비 | B31: 1.5톤 | C31: 1 | D31: 회 | E31: 11446 | F31: =단가산출!CY1087 -> 666 | G31: =단가산출!CZ1087 -> 10,581 | H31: =단가산출!DA1087 -> 199 | I31: 산근 27호표 | DM31: S0116
A32: 시멘트운반 | B32: 40KG | C32: 1 | D32: 포대 | E32: 1334 | F32: =단가산출!CY1148 -> 0 | G32: =단가산출!CZ1148 -> 0 | H32: =단가산출!DA1148 -> 1,334 | I32: 산근 28호표 | DM32: SQD1000
A33: 아스콘전압(#467) | B33: t=7.5Cm | C33: 1 | D33: a | E33: 62721 | F33: =단가산출!CY1213 -> 11,401 | G33: =단가산출!CZ1213 -> 40,719 | H33: =단가산출!DA1213 -> 10,601 | I33: 산근 29호표 | DM33: SKZ2300
A34: 아스콘전압(#467) | B34: 콤팩터1.5T(t=7.5Cm) | C34: 1 | D34: a | E34: 22894 | F34: =단가산출!CY1238 -> 1,332 | G34: =단가산출!CZ1238 -> 21,163 | H34: =단가산출!DA1238 -> 399 | I34: 산근 30호표 | DM34: SKZ2600
A35: 아스콘전압(#78) | B35: 롤러8-15T(t=5Cm) | C35: 1 | D35: a | E35: 49025 | F35: =단가산출!CY1303 -> 8,921 | G35: =단가산출!CZ1303 -> 31,322 | H35: =단가산출!DA1303 -> 8,782 | I35: 산근 31호표 | DM35: SKZ2000
A36: 아스콘전압(#78) | B36: 콤팩터1.5T(t=5Cm) | C36: 1 | D36: a | E36: 17170 | F36: =단가산출!CY1328 -> 999 | G36: =단가산출!CZ1328 -> 15,872 | H36: =단가산출!DA1328 -> 299 | I36: 산근 32호표 | DM36: SKZ2500
A37: 아스콘포설(#467) | B37: 피니셔(t=7.5Cm) | C37: 1 | D37: a | E37: =F37+G37+H37 -> 25794 | F37: =단가산출!CY1357 -> 4,197 | G37: =단가산출!CZ1357 -> 10,254 | H37: =단가산출!DA1357 -> 11,343 | I37: 산근 33호표 | DM37: SKZ2200
A38: 아스콘포설(#78) | B38: 피니셔(t=5Cm) | C38: 1 | D38: a | E38: 25794 | F38: =단가산출!CY1386 -> 4,197 | G38: =단가산출!CZ1386 -> 10,254 | H38: =단가산출!DA1386 -> 11,343 | I38: 산근 34호표 | DM38: SKZ1900
A39: 아스팔트 가열 | B39: 적외선 | C39: 1 | D39: M | E39: 5154 | F39: =단가산출!CY1427 -> 2,874 | G39: =단가산출!CZ1427 -> 1,523 | H39: =단가산출!DA1427 -> 757 | I39: 산근 35호표 | DM39: S000-0180
A40: 아스팔트 다짐 | B40: 진동로라 | C40: 1 | D40: M | E40: 1054 | F40: =단가산출!CY1454 -> 69 | G40: =단가산출!CZ1454 -> 949 | H40: =단가산출!DA1454 -> 36 | I40: 산근 36호표 | DM40: S000-0190
A41: 아스팔트(유제) 운반 | B41: 서빙고역 | C41: 1 | D41: L | E41: 12 | F41: =단가산출!CY1483 -> 0 | G41: =단가산출!CZ1483 -> 0 | H41: =단가산출!DA1483 -> 12 | I41: 산근 37호표 | DM41: SQC1000
A42: 아스팔트코팅 | B42: 수동식 | C42: 1 | D42: M | E42: 85 | F42: =단가산출!CY1514 -> 56 | G42: =단가산출!CZ1514 -> 29 | H42: =단가산출!DA1514 -> 0 | I42: 산근 38호표 | DM42: S000-0160
A43: 아스팔트포설 | B43: 인력 | C43: 1 | D43: M | E43: 1842 | F43: =단가산출!CY1533 -> 0 | G43: =단가산출!CZ1533 -> 1,842 | H43: =단가산출!DA1533 -> 0 | I43: 산근 39호표 | DM43: S000-0170
A44: 잔토처리상차(인력) | B44: 인력 | C44: 1 | D44: ㎥ | E44: 15677 | F44: =단가산출!CY1548 -> 0 | G44: =단가산출!CZ1548 -> 15,677 | H44: =단가산출!DA1548 -> 0 | I44: 산근 40호표 | DM44: S0037-110
A45: 잔토처리상차(기계) | B45: 굴삭기0.2㎥ | C45: 1 | D45: ㎥ | E45: 2994 | F45: =단가산출!CY1581 -> 365 | G45: =단가산출!CZ1581 -> 2,050 | H45: =단가산출!DA1581 -> 579 | I45: 산근 41호표 | DM45: S0037
A46: 잔토처리상차(기계) | B46: 굴삭기0.4㎥ | C46: 1 | D46: ㎥ | E46: 1746 | F46: =단가산출!CY1614 -> 364 | G46: =단가산출!CZ1614 -> 1,025 | H46: =단가산출!DA1614 -> 357 | I46: 산근 42호표 | DM46: S0035
A47: 잔토처리상차(기계) | B47: 굴삭기0.7㎥ | C47: 1 | D47: ㎥ | E47: 1242 | F47: =단가산출!CY1647 -> 271 | G47: =단가산출!CZ1647 -> 651 | H47: =단가산출!DA1647 -> 320 | I47: 산근 43호표 | DM47: S0033
A48: 잔토처리운반(L=3Km) | B48: DT(2.5TON),인력 | C48: 1 | D48: ㎥ | E48: 21767 | F48: =단가산출!CY1690 -> 0 | G48: =단가산출!CZ1690 -> 0 | H48: =단가산출!DA1690 -> 21,767 | I48: 산근 44호표 | DM48: SDC41112
A49: 잔토처리운반(L=3Km) | B49: DT(4.5TON),B/H 0.2㎥ | C49: 1 | D49: ㎥ | E49: 10134 | F49: =단가산출!CY1737 -> 0 | G49: =단가산출!CZ1737 -> 0 | H49: =단가산출!DA1737 -> 10,134 | I49: 산근 45호표 | DM49: SSA00-001
A50: 잔토처리운반(L=3Km) | B50: DT(8.0TON),B/H 0.4㎥ | C50: 1 | D50: ㎥ | E50: 6638 | F50: =단가산출!CY1784 -> 0 | G50: =단가산출!CZ1784 -> 0 | H50: =단가산출!DA1784 -> 6,638 | I50: 산근 46호표 | DM50: SSA00-005
A51: 잔토처리운반(L=3Km) | B51: DT(15TON),B/H 0.6㎥ | C51: 1 | D51: ㎥ | E51: 5506 | F51: =단가산출!CY1831 -> 0 | G51: =단가산출!CZ1831 -> 0 | H51: =단가산출!DA1831 -> 5,506 | I51: 산근 47호표 | DM51: SSA00-009
A52: 잔토처리운반(L=5Km) | B52: DT(2.5TON),인력 | C52: 1 | D52: ㎥ | E52: 27765 | F52: =단가산출!CY1872 -> 0 | G52: =단가산출!CZ1872 -> 0 | H52: =단가산출!DA1872 -> 27,765 | I52: 산근 48호표 | DM52: SDC41112-011
A53: 잔토처리운반(L=5Km) | B53: DT(4.5TON),B/H 0.2㎥ | C53: 1 | D53: ㎥ | E53: 13817 | F53: =단가산출!CY1919 -> 0 | G53: =단가산출!CZ1919 -> 0 | H53: =단가산출!DA1919 -> 13,817 | I53: 산근 49호표 | DM53: SSA00-002
A54: 잔토처리운반(L=5Km) | B54: DT(8.0TON),B/H 0.4㎥ | C54: 1 | D54: ㎥ | E54: 9133 | F54: =단가산출!CY1966 -> 0 | G54: =단가산출!CZ1966 -> 0 | H54: =단가산출!DA1966 -> 9,133 | I54: 산근 50호표 | DM54: SSA00-006
A55: 잔토처리운반(L=5Km) | B55: DT(15TON),B/H 0.6㎥ | C55: 1 | D55: ㎥ | E55: 7460 | F55: =단가산출!CY2013 -> 0 | G55: =단가산출!CZ2013 -> 0 | H55: =단가산출!DA2013 -> 7,460 | I55: 산근 51호표 | DM55: SSA00-0010
A56: 잔토처리운반(L=7Km) | B56: DT(2.5TON),인력 | C56: 1 | D56: ㎥ | E56: 33878 | F56: =단가산출!CY2054 -> 0 | G56: =단가산출!CZ2054 -> 0 | H56: =단가산출!DA2054 -> 33,878 | I56: 산근 52호표 | DM56: SDC41112-012
A57: 잔토처리운반(L=7Km) | B57: DT(4.5TON),B/H 0.2㎥ | C57: 1 | D57: ㎥ | E57: 17539 | F57: =단가산출!CY2101 -> 0 | G57: =단가산출!CZ2101 -> 0 | H57: =단가산출!DA2101 -> 17,539 | I57: 산근 53호표 | DM57: SSA00-003
A58: 잔토처리운반(L=7Km) | B58: DT(8.0TON),B/H 0.4㎥ | C58: 1 | D58: ㎥ | E58: 11633 | F58: =단가산출!CY2148 -> 0 | G58: =단가산출!CZ2148 -> 0 | H58: =단가산출!DA2148 -> 11,633 | I58: 산근 54호표 | DM58: SSA00-007
A59: 잔토처리운반(L=7Km) | B59: DT(15TON),B/H 0.6㎥ | C59: 1 | D59: ㎥ | E59: 9413 | F59: =단가산출!CY2195 -> 0 | G59: =단가산출!CZ2195 -> 0 | H59: =단가산출!DA2195 -> 9,413 | I59: 산근 55호표 | DM59: SSA00-0011
A60: 잔토처리운반(L=9Km) | B60: DT(2.5TON),인력 | C60: 1 | D60: ㎥ | E60: 40051 | F60: =단가산출!CY2236 -> 0 | G60: =단가산출!CZ2236 -> 0 | H60: =단가산출!DA2236 -> 40,051 | I60: 산근 56호표 | DM60: SDC41112-013
A61: 잔토처리운반(L=9Km) | B61: DT(4.5TON),B/H 0.2㎥ | C61: 1 | D61: ㎥ | E61: 20836 | F61: =단가산출!CY2283 -> 0 | G61: =단가산출!CZ2283 -> 0 | H61: =단가산출!DA2283 -> 20,836 | I61: 산근 57호표 | DM61: SSA00-004
A62: 잔토처리운반(L=9Km) | B62: DT(8.0TON),B/H 0.4㎥ | C62: 1 | D62: ㎥ | E62: 14133 | F62: =단가산출!CY2330 -> 0 | G62: =단가산출!CZ2330 -> 0 | H62: =단가산출!DA2330 -> 14,133 | I62: 산근 58호표 | DM62: SSA00-008
A63: 잔토처리운반(L=9Km) | B63: DT(15TON),B/H 0.6㎥ | C63: 1 | D63: ㎥ | E63: 11375 | F63: =단가산출!CY2377 -> 0 | G63: =단가산출!CZ2377 -> 0 | H63: =단가산출!DA2377 -> 11,375 | I63: 산근 59호표 | DM63: SSA00-0012
A64: 잔토처리운반(집하장-김포)L=52.6km | B64: DT(15TON) | C64: 1 | D64: ㎥ | E64: 34084 | F64: =단가산출!CY2432 -> 0 | G64: =단가산출!CZ2432 -> 0 | H64: =단가산출!DA2432 -> 34,084 | I64: 산근 60호표 | DM64: SDC4112
A65: 잔토처리운반(집하장-김포)L=52.6km | B65: DT(24TON) | C65: 1 | D65: ㎥ | E65: 26984 | F65: =단가산출!CY2487 -> 0 | G65: =단가산출!CZ2487 -> 0 | H65: =단가산출!DA2487 -> 26,984 | I65: 산근 61호표 | DM65: SDC4113
A66: 중기운반(포장장비) | C66: 1 | D66: 식 | E66: 235668 | F66: =단가산출!CY2524 -> 0 | G66: =단가산출!CZ2524 -> 0 | H66: =단가산출!DA2524 -> 235,668 | I66: 산근 62호표 | DM66: S000-0230
A67: 철근운반 | C67: 1 | D67: TON | E67: 16854 | F67: =단가산출!CY2561 -> 0 | G67: =단가산출!CZ2561 -> 0 | H67: =단가산출!DA2561 -> 16,854 | I67: 산근 63호표 | DM67: SQB1000
A68: 청소 및 건조 | C68: 1 | D68: M | E68: 30765 | F68: =단가산출!CY2624 -> 4,760 | G68: =단가산출!CZ2624 -> 24,268 | H68: =단가산출!DA2624 -> 1,737 | I68: 산근 64호표 | DM68: S000-0150
A69: 초조강시멘트운반 | B69: 자재비포함 | C69: 1 | D69: ㎏ | E69: =F69+G69+H69 -> 335 | F69: =단가산출!CY2651 -> 0 | G69: =단가산출!CZ2651 -> 0 | H69: =단가산출!DA2651 -> 335 | I69: 산근 65호표 | DM69: S0002
A70: 층따기 | B70: (도쟈19TON) | C70: 1 | D70: ㎥ | E70: 1489 | F70: =단가산출!CY2726 -> 504 | G70: =단가산출!CZ2726 -> 591 | H70: =단가산출!DA2726 -> 394 | I70: 산근 66호표 | DM70: SDE4000
A71: 콘크리트깨기(무근,두께30cm미만) | B71: 굴삭기0.2㎥+브레이카 | C71: 1 | D71: ㎥ | E71: 48943 | F71: =단가산출!CY2765 -> 4,886 | G71: =단가산출!CZ2765 -> 35,391 | H71: =단가산출!DA2765 -> 8,666 | I71: 산근 67호표 | DM71: SDB1231
A72: 콘크리트깨기(무근,두께30cm미만) | B72: 굴삭기0.4㎥+브레이카 | C72: 1 | D72: ㎥ | E72: 29930 | F72: =단가산출!CY2804 -> 5,013 | G72: =단가산출!CZ2804 -> 18,768 | H72: =단가산출!DA2804 -> 6,149 | I72: 산근 68호표 | DM72: SDB1232
A73: 콘크리트깨기(무근,두께30cm미만) | B73: 굴삭기0.6㎥+브레이카 | C73: 1 | D73: ㎥ | E73: 27332 | F73: =단가산출!CY2843 -> 4,605 | G73: =단가산출!CZ2843 -> 15,483 | H73: =단가산출!DA2843 -> 7,244 | I73: 산근 69호표 | DM73: SDB1232-1
A74: 콘크리트깨기(무근,두께30cm미만) | B74: 굴삭기0.7㎥+브레이카 | C74: 1 | D74: ㎥ | E74: 24833 | F74: =단가산출!CY2882 -> 4,445 | G74: =단가산출!CZ2882 -> 13,464 | H74: =단가산출!DA2882 -> 6,924 | I74: 산근 70호표 | DM74: SDB1233
A75: 콘크리트깨기(무근,두께30cm미만) | B75: 굴삭기0.8㎥+브레이카 | C75: 1 | D75: ㎥ | E75: 24021 | F75: =단가산출!CY2921 -> 5,064 | G75: =단가산출!CZ2921 -> 11,910 | H75: =단가산출!DA2921 -> 7,047 | I75: 산근 71호표 | DM75: SDB1234
A76: 콘크리트깨기(철근,두께30cm미만) | B76: 굴삭기0.4㎥+브레이카 | C76: 1 | D76: ㎥ | E76: 61733 | F76: =단가산출!CY2960 -> 10,340 | G76: =단가산출!CZ2960 -> 38,709 | H76: =단가산출!DA2960 -> 12,684 | I76: 산근 72호표 | DM76: SDB1132
A77: 콘크리트깨기(철근,두께30cm미만) | B77: 굴삭기0.6㎥+브레이카 | C77: 1 | D77: ㎥ | E77: 54667 | F77: =단가산출!CY2999 -> 9,211 | G77: =단가산출!CZ2999 -> 30,968 | H77: =단가산출!DA2999 -> 14,488 | I77: 산근 73호표 | DM77: SDB1132-1
A78: 콘크리트깨기(철근,두께30cm미만) | B78: 굴삭기0.7㎥+브레이카 | C78: 1 | D78: ㎥ | E78: 46626 | F78: =단가산출!CY3038 -> 8,346 | G78: =단가산출!CZ3038 -> 25,279 | H78: =단가산출!DA3038 -> 13,001 | I78: 산근 74호표 | DM78: SDB1133
A79: 콘크리트깨기(철근,두께30cm미만) | B79: 굴삭기0.8㎥+브레이카 | C79: 1 | D79: ㎥ | E79: 43074 | F79: =단가산출!CY3077 -> 9,080 | G79: =단가산출!CZ3077 -> 21,357 | H79: =단가산출!DA3077 -> 12,637 | I79: 산근 75호표 | DM79: SDB1134
A80: 토사깍기 | B80: (도쟈19TON) | C80: 1 | D80: ㎥ | E80: 1489 | F80: =단가산출!CY3215 -> 504 | G80: =단가산출!CZ3215 -> 591 | H80: =단가산출!DA3215 -> 394 | I80: 산근 76호표 | DM80: SDC2110
A81: 토사깍기 | B81: (도쟈32TON) | C81: 1 | D81: ㎥ | E81: 1184 | F81: =단가산출!CY3290 -> 504 | G81: =단가산출!CZ3290 -> 355 | H81: =단가산출!DA3290 -> 325 | I81: 산근 77호표 | DM81: SDC2120
A82: 투수콘운반 | B82: DT(15TON) | C82: 1 | D82: ㎥ | E82: 20062 | F82: =단가산출!CY3329 -> 0 | G82: =단가산출!CZ3329 -> 0 | H82: =단가산출!DA3329 -> 20,062 | I82: 산근 78호표 | DM82: S0009
A83: 투수콘크리트포설및다짐(표층용) | B83: T=2cm | C83: 1 | D83: a | E83: 137915 | F83: =단가산출!CY3406 -> 7,458 | G83: =단가산출!CZ3406 -> 124,453 | H83: =단가산출!DA3406 -> 6,004 | I83: 산근 79호표 | DM83: S0230
A84: 투수콘크리트포설및다짐(기층용) | B84: T=5cm | C84: 1 | D84: a | E84: 84565 | F84: =단가산출!CY3481 -> 6,562 | G84: =단가산출!CZ3481 -> 71,517 | H84: =단가산출!DA3481 -> 6,486 | I84: 산근 80호표 | DM84: S0220
A85: 투수콘크리트 포설및다짐 | B85: T=7cm,인력 | C85: 1 | D85: a | E85: 205238 | F85: =단가산출!CY3558 -> 7,534 | G85: =단가산출!CZ3558 -> 192,252 | H85: =단가산출!DA3558 -> 5,452 | I85: 산근 81호표 | DM85: S0146
A86: 투수콘크리트 포설및다짐 | B86: T=10cm,인력 | C86: 1 | D86: a | E86: 210216 | F86: =단가산출!CY3635 -> 8,572 | G86: =단가산출!CZ3635 -> 195,174 | H86: =단가산출!DA3635 -> 6,470 | I86: 산근 82호표 | DM86: S0147
A87: 포장깨기(아스팔트) | B87: 굴삭기0.2㎥+브레이카 | C87: 1 | D87: ㎥ | E87: 20931 | F87: =단가산출!CY3709 -> 2,126 | G87: =단가산출!CZ3709 -> 15,106 | H87: =단가산출!DA3709 -> 3,699 | I87: 산근 83-1호표 | DM87: SDB2232-1
A88: 포장깨기(아스팔트) | B88: 굴삭기0.4㎥+브레이카 | C88: 1 | D88: ㎥ | E88: =F88+G88+H88 -> 14343 | F88: =단가산출!CY3746 -> 2,426 | G88: =단가산출!CZ3746 -> 8,976 | H88: =단가산출!DA3746 -> 2,941 | I88: 산근 83-2호표 | DM88: SDB2232-1
A89: 포장깨기(아스팔트) | B89: 굴삭기0.6㎥+브레이카 | C89: 1 | D89: ㎥ | E89: 6831 | F89: =단가산출!CY3672 -> 1,151 | G89: =단가산출!CZ3672 -> 3,870 | H89: =단가산출!DA3672 -> 1,810 | I89: 산근 83호표 | DM89: SDB2232-1
A90: 포장깨기(아스팔트) | B90: 굴삭기0.7㎥+브레이카 | C90: 1 | D90: ㎥ | E90: 7138 | F90: =단가산출!CY3783 -> 1,278 | G90: =단가산출!CZ3783 -> 3,870 | H90: =단가산출!DA3783 -> 1,990 | I90: 산근 84호표 | DM90: SDB2233
A91: 포장깨기(아스팔트) | B91: 굴삭기0.8㎥+브레이카 | C91: 1 | D91: ㎥ | E91: 7805 | F91: =단가산출!CY3820 -> 1,645 | G91: =단가산출!CZ3820 -> 3,870 | H91: =단가산출!DA3820 -> 2,290 | I91: 산근 85호표 | DM91: SDB2234
A92: 포장파쇄(아스팔트) | B92: 소형 | C92: 1 | D92: M | E92: 4262 | F92: =단가산출!CY3859 -> 424 | G92: =단가산출!CZ3859 -> 2,548 | H92: =단가산출!DA3859 -> 1,290 | I92: 산근 86호표 | DM92: S000-0140
A93: 포장깨기(콘크리트) | B93: 굴삭기0.2㎥+브레이카 | C93: 1 | D93: ㎥ | E93: 48943 | F93: =단가산출!CY3896 -> 4,886 | G93: =단가산출!CZ3896 -> 35,391 | H93: =단가산출!DA3896 -> 8,666 | I93: 산근 87호표 | DM93: SDB2131
A94: 포장깨기(콘크리트) | B94: 굴삭기0.4㎥+브레이카 | C94: 1 | D94: ㎥ | E94: 29930 | F94: =단가산출!CY3933 -> 5,013 | G94: =단가산출!CZ3933 -> 18,768 | H94: =단가산출!DA3933 -> 6,149 | I94: 산근 88호표 | DM94: SDB2132
A95: 포장깨기(콘크리트) | B95: 굴삭기0.6㎥+브레이카 | C95: 1 | D95: ㎥ | E95: 27332 | F95: =단가산출!CY3970 -> 4,605 | G95: =단가산출!CZ3970 -> 15,483 | H95: =단가산출!DA3970 -> 7,244 | I95: 산근 89호표 | DM95: SDB2132-1
A96: 포장깨기(콘크리트) | B96: 굴삭기0.7㎥+브레이카 | C96: 1 | D96: ㎥ | E96: 24833 | F96: =단가산출!CY4007 -> 4,445 | G96: =단가산출!CZ4007 -> 13,464 | H96: =단가산출!DA4007 -> 6,924 | I96: 산근 90호표 | DM96: SDB2133
A97: 포장깨기(콘크리트) | B97: 굴삭기0.8㎥+브레이카 | C97: 1 | D97: ㎥ | E97: 24021 | F97: =단가산출!CY4044 -> 5,064 | G97: =단가산출!CZ4044 -> 11,910 | H97: =단가산출!DA4044 -> 7,047 | I97: 산근 91호표 | DM97: SDB2134
A98: 파쇄물처리상차(기계) | B98: 굴삭기0.7㎥ | C98: 1 | D98: ㎥ | E98: 3816 | F98: =단가산출!CY4077 -> 833 | G98: =단가산출!CZ4077 -> 2,000 | H98: =단가산출!DA4077 -> 983 | I98: 산근 92호표 | DM98: S0039
A99: 파쇄물처리상차(기계) | B99: 굴삭기0.4㎥ | C99: 1 | D99: ㎥ | E99: 5366 | F99: =단가산출!CY4110 -> 1,119 | G99: =단가산출!CZ4110 -> 3,150 | H99: =단가산출!DA4110 -> 1,097 | I99: 산근 93호표 | DM99: S0041
A100: 파쇄물처리상차(기계) | B100: 굴삭기0.2㎥ | C100: 1 | D100: ㎥ | E100: 9201 | F100: =단가산출!CY4143 -> 1,121 | G100: =단가산출!CZ4143 -> 6,301 | H100: =단가산출!DA4143 -> 1,779 | I100: 산근 94호표 | DM100: S0043
A101: 폐기물상차비 | B101: 적치장상차(굴삭기0.4㎥) | C101: 1 | D101: TON | E101: 1492 | F101: =단가산출!CY4178 -> 782 | G101: =단가산출!CZ4178 -> 326 | H101: =단가산출!DA4178 -> 384 | I101: 산근 95호표 | DM101: S0128
A102: 파쇄물처리상차(인력) | B102: 상차 | C102: 1 | D102: ㎥ | E102: 18812 | F102: =단가산출!CY4195 -> 0 | G102: =단가산출!CZ4195 -> 18,812 | H102: =단가산출!DA4195 -> 0 | I102: 산근 96호표 | DM102: S0045
A103: 파쇄물처리운반(L=3Km) | B103: DT(2.5TON),인력 | C103: 1 | D103: ㎥ | E103: =F103+G103+H103 -> 30243 | F103: =단가산출!CY4236 -> 0 | G103: =단가산출!CZ4236 -> 0 | H103: =단가산출!DA4236 -> 30,243 | I103: 산근 97호표 | DM103: SDC4311-1
A104: 파쇄물처리운반(L=3Km) | B104: DT(4.5TON),B/H 0.2㎥ | C104: 1 | D104: ㎥ | E104: =F104+G104+H104 -> 15971 | F104: =단가산출!CY4283 -> 0 | G104: =단가산출!CZ4283 -> 0 | H104: =단가산출!DA4283 -> 15,971 | I104: 산근 98호표 | DM104: SDC4312-1
A105: 파쇄물처리운반(L=3Km) | B105: DT(8.0TON),B/H 0.4㎥ | C105: 1 | D105: ㎥ | E105: 9844 | F105: =단가산출!CY4330 -> 0 | G105: =단가산출!CZ4330 -> 0 | H105: =단가산출!DA4330 -> 9,844 | I105: 산근 99호표 | DM105: SDC4313-1
A106: 파쇄물처리운반(L=3Km) | B106: DT(15TON),B/H 0.6㎥ | C106: 1 | D106: ㎥ | E106: 8085 | F106: =단가산출!CY4377 -> 0 | G106: =단가산출!CZ4377 -> 0 | H106: =단가산출!DA4377 -> 8,085 | I106: 산근 100호표 | DM106: SDC43132-1
A107: 파쇄물처리운반(L=5Km) | B107: DT(2.5TON),인력 | C107: 1 | D107: ㎥ | E107: =F107+G107+H107 -> 39158 | F107: =단가산출!CY4418 -> 0 | G107: =단가산출!CZ4418 -> 0 | H107: =단가산출!DA4418 -> 39,158 | I107: 산근 101호표 | DM107: SDC4311-011
A108: 파쇄물처리운반(L=5Km) | B108: DT(4.5TON),B/H 0.2㎥ | C108: 1 | D108: ㎥ | E108: 21348 | F108: =단가산출!CY4465 -> 0 | G108: =단가산출!CZ4465 -> 0 | H108: =단가산출!DA4465 -> 21,348 | I108: 산근 102호표 | DM108: SDC4312-011
A109: 파쇄물처리운반(L=5Km) | B109: DT(8.0TON),B/H 0.4㎥ | C109: 1 | D109: ㎥ | E109: 13472 | F109: =단가산출!CY4512 -> 0 | G109: =단가산출!CZ4512 -> 0 | H109: =단가산출!DA4512 -> 13,472 | I109: 산근 103호표 | DM109: SDC4313-011
A110: 파쇄물처리운반(L=5Km) | B110: DT(15TON),B/H 0.6㎥ | C110: 1 | D110: ㎥ | E110: 10932 | F110: =단가산출!CY4559 -> 0 | G110: =단가산출!CZ4559 -> 0 | H110: =단가산출!DA4559 -> 10,932 | I110: 산근 104호표 | DM110: SDC43132-011
A111: 파쇄물처리운반(L=7Km) | B111: DT(2.5TON),인력 | C111: 1 | D111: ㎥ | E111: 47841 | F111: =단가산출!CY4600 -> 0 | G111: =단가산출!CZ4600 -> 0 | H111: =단가산출!DA4600 -> 47,841 | I111: 산근 105호표 | DM111: SDC4311-012
A112: 파쇄물처리운반(L=7Km) | B112: DT(4.5TON),B/H 0.2㎥ | C112: 1 | D112: ㎥ | E112: 26650 | F112: =단가산출!CY4647 -> 0 | G112: =단가산출!CZ4647 -> 0 | H112: =단가산출!DA4647 -> 26,650 | I112: 산근 106호표 | DM112: SDC4312-012
A113: 파쇄물처리운반(L=7Km) | B113: DT(8.0TON),B/H 0.4㎥ | C113: 1 | D113: ㎥ | E113: =F113+G113+H113 -> 17098 | F113: =단가산출!CY4694 -> 0 | G113: =단가산출!CZ4694 -> 0 | H113: =단가산출!DA4694 -> 17,098 | I113: 산근 107호표 | DM113: SDC4313-012
A114: 파쇄물처리운반(L=7Km) | B114: DT(15TON),B/H 0.6㎥ | C114: 1 | D114: ㎥ | E114: 13730 | F114: =단가산출!CY4741 -> 0 | G114: =단가산출!CZ4741 -> 0 | H114: =단가산출!DA4741 -> 13,730 | I114: 산근 108호표 | DM114: SDC43132-012
A115: 파쇄물처리운반(L=9Km) | B115: DT(2.5TON),인력 | C115: 1 | D115: ㎥ | E115: 56432 | F115: =단가산출!CY4782 -> 0 | G115: =단가산출!CZ4782 -> 0 | H115: =단가산출!DA4782 -> 56,432 | I115: 산근 109호표 | DM115: SDC4311-013
A116: 파쇄물처리운반(L=9Km) | B116: DT(4.5TON),B/H 0.2㎥ | C116: 1 | D116: ㎥ | E116: 32098 | F116: =단가산출!CY4829 -> 0 | G116: =단가산출!CZ4829 -> 0 | H116: =단가산출!DA4829 -> 32,098 | I116: 산근 110호표 | DM116: SDC4312-013
A117: 파쇄물처리운반(L=9Km) | B117: DT(8.0TON),B/H 0.4㎥ | C117: 1 | D117: ㎥ | E117: 20729 | F117: =단가산출!CY4876 -> 0 | G117: =단가산출!CZ4876 -> 0 | H117: =단가산출!DA4876 -> 20,729 | I117: 산근 111호표 | DM117: SDC4313-013
A118: 파쇄물처리운반(L=9Km) | B118: DT(15TON),B/H 0.6㎥ | C118: 1 | D118: ㎥ | E118: 16569 | F118: =단가산출!CY4923 -> 0 | G118: =단가산출!CZ4923 -> 0 | H118: =단가산출!DA4923 -> 16,569 | I118: 산근 112호표 | DM118: SDC43132-013
A119: 파쇄물 절취및집적(보도용블록) | B119: 굴삭기 0.2㎥ | C119: 1 | D119: ㎥ | E119: 7672 | F119: =단가산출!CY4950 -> 935 | G119: =단가산출!CZ4950 -> 5,254 | H119: =단가산출!DA4950 -> 1,483 | I119: 산근 113호표 | DM119: S000-0170-1
A120: 파쇄물 절취및집적(보도용블록) | B120: 굴삭기 0.4㎥ | C120: 1 | D120: ㎥ | E120: 4472 | F120: =단가산출!CY4977 -> 933 | G120: =단가산출!CZ4977 -> 2,625 | H120: =단가산출!DA4977 -> 914 | I120: 산근 114호표 | DM120: S000-0171-1
A121: 폐기물운반비 | B121: DT(15TON),L=34.4km | C121: 1 | D121: TON | E121: 16168 | F121: =단가산출!CY5054 -> 0 | G121: =단가산출!CZ5054 -> 0 | H121: =단가산출!DA5054 -> 16,168 | I121: 산근 115호표 | DM121: S0127
A122: 폐기물운반비 | B122: DT(24TON),L=34.4km | C122: 1 | D122: TON | E122: 12299 | F122: =단가산출!CY5131 -> 0 | G122: =단가산출!CZ5131 -> 0 | H122: =단가산출!DA5131 -> 12,299 | I122: 산근 116호표 | DM122: S000-500
A123: 표면보호공(투수콘) | B123: 300L,수동식 | C123: 1 | D123: a | E123: 15037 | F123: =단가산출!CY5158 -> 414 | G123: =단가산출!CZ5158 -> 14,459 | H123: =단가산출!DA5158 -> 164 | I123: 산근 117호표 | DM123: S0148
A124: 혼합골재전압 | B124: T=10Cm(롤러0.7TON) | C124: 1 | D124: a | E124: 104788 | F124: =단가산출!CY5183 -> 6,893 | G124: =단가산출!CZ5183 -> 94,253 | H124: =단가산출!DA5183 -> 3,642 | I124: 산근 118호표 | DM124: SKZ1800
A125: 혼합기층살수 | B125: T=20Cm(물탱크5500ℓ) | C125: 1 | D125: a | E125: 16752 | F125: =단가산출!CY5218 -> 2,781 | G125: =단가산출!CZ5218 -> 11,214 | H125: =단가산출!DA5218 -> 2,757 | I125: 산근 119호표 | DM125: SKZ1600
A126: 혼합기층전압 | B126: T=20Cm(롤러8-15T) | C126: 1 | D126: a | E126: 44961 | F126: =단가산출!CY5257 -> 9,985 | G126: =단가산출!CZ5257 -> 23,962 | H126: =단가산출!DA5257 -> 11,014 | I126: 산근 120호표 | DM126: SKZ1500
A127: 혼합기층전압 | B127: T=20Cm(롤러2.5-8T) | C127: 1 | D127: a | E127: 171910 | F127: =단가산출!CY5296 -> 12,486 | G127: =단가산출!CZ5296 -> 142,389 | H127: =단가산출!DA5296 -> 17,035 | I127: 산근 121호표 | DM127: SKZ1700
A128: 혼합기층포설 | B128: T=20Cm(그레이더) | C128: 1 | D128: a | E128: 39677 | F128: =단가산출!CY5327 -> 10,122 | G128: =단가산출!CZ5327 -> 15,275 | H128: =단가산출!DA5327 -> 14,280 | I128: 산근 122호표 | DM128: SKZ1400
A129: 흄관하차 | B129: Φ 300 | C129: 1 | D129: M | E129: 368 | F129: =단가산출!CY5346 -> 0 | G129: =단가산출!CZ5346 -> 0 | H129: =단가산출!DA5346 -> 368 | I129: 산근 123호표 | DM129: SQE1130
A130: 흄관하차 | B130: Φ 400 | C130: 1 | D130: M | E130: 598 | F130: =단가산출!CY5365 -> 0 | G130: =단가산출!CZ5365 -> 0 | H130: =단가산출!DA5365 -> 598 | I130: 산근 124호표 | DM130: SQE1131
A131: 흄관하차 | B131: Φ 450 | C131: 1 | D131: M | E131: 736 | F131: =단가산출!CY5384 -> 0 | G131: =단가산출!CZ5384 -> 0 | H131: =단가산출!DA5384 -> 736 | I131: 산근 125호표 | DM131: SQE1132
A132: 흄관하차 | B132: Φ 600 | C132: 1 | D132: M | E132: 1289 | F132: =단가산출!CY5403 -> 0 | G132: =단가산출!CZ5403 -> 0 | H132: =단가산출!DA5403 -> 1,289 | I132: 산근 126호표 | DM132: SQE1133
A133: 흄관하차 | B133: Φ 800 | C133: 1 | D133: M | E133: 2256 | F133: =단가산출!CY5422 -> 0 | G133: =단가산출!CZ5422 -> 0 | H133: =단가산출!DA5422 -> 2,256 | I133: 산근 127호표 | DM133: SQE1134
A134: 흄관하차 | B134: Φ 1,000 | C134: 1 | D134: M | E134: 3591 | F134: =단가산출!CY5441 -> 0 | G134: =단가산출!CZ5441 -> 0 | H134: =단가산출!DA5441 -> 3,591 | I134: 산근 128호표 | DM134: SQE1135
A135: 흄관하차 | B135: Φ 1200 | C135: 1 | D135: M | E135: =F135+G135+H135 -> 4973 | F135: =단가산출!CY5460 -> 0 | G135: =단가산출!CZ5460 -> 0 | H135: =단가산출!DA5460 -> 4,973 | I135: 산근 129호표 | DM135: SQE1136
A136: 모래상차(집하장) | B136: 굴삭기 0.7㎥ | C136: 1 | D136: ㎥ | E136: =F136+G136+H136 -> 761 | F136: =단가산출!CY5493 -> 166 | G136: =단가산출!CZ5493 -> 399 | H136: =단가산출!DA5493 -> 196 | I136: 산근 130호표 | DM136: SQE1136
A137: 보조기층재상차(집하장) | B137: 굴삭기 0.4㎥ | C137: 1 | D137: ㎥ | E137: 761 | F137: =단가산출!CY5526 -> 166 | G137: =단가산출!CZ5526 -> 399 | H137: =단가산출!DA5526 -> 196 | I137: 산근 131호표 | DM137: SQE1136
A138: 모래소운반(적치장→현장,3km) | B138: DT(4.5TON) | C138: 1 | D138: ㎥ | E138: 7965 | F138: =단가산출!CY5573 -> 0 | G138: =단가산출!CZ5573 -> 0 | H138: =단가산출!DA5573 -> 7,965 | I138: 산근 132호표 | DM138: SQE1136
A139: 보조기층재소운반(적치장→현장,3km) | B139: DT(4.5TON) | C139: 1 | D139: ㎥ | E139: 7965 | F139: =단가산출!CY5620 -> 0 | G139: =단가산출!CZ5620 -> 0 | H139: =단가산출!DA5620 -> 7,965 | I139: 산근 133호표 | DM139: SQE1136
A140: 작업차량비(보도블록포장공사) | B140: 더블캡(1TON) | C140: 1 | D140: 일 | E140: 96725 | F140: =단가산출!CY5658 -> 0 | G140: =단가산출!CZ5658 -> 42,642 | H140: =단가산출!DA5658 -> 54,083 | I140: 산근 134호표 | DM140: SQE1136
A141: 포장장비운반비(이면도로) | B141: L=10km | C141: 1 | D141: 식 | E141: =F141+G141+H141 -> 1129708 | F141: =단가산출!CY5732 -> 0 | G141: =단가산출!CZ5732 -> 0 | H141: =단가산출!DA5732 -> 1,129,708 | I141: 산근 135호표 | DM141: SQE1136
A142: 포장장비운반비(이면도로-구간이동) | B142: L=500m | C142: 1 | D142: 식 | E142: 226402 | F142: =단가산출!CY5803 -> 0 | G142: =단가산출!CZ5803 -> 0 | H142: =단가산출!DA5803 -> 226,402 | I142: 산근 136호표 | DM142: SQE1136
A143: 포장장비운반비(이면도로-구간이동) | B143: L=1000m | C143: 1 | D143: 식 | E143: 245157 | F143: =단가산출!CY5874 -> 1,811 | G143: =단가산출!CZ5874 -> 12,363 | H143: =단가산출!DA5874 -> 230,983 | I143: 산근 137호표 | DM143: SQE1136
A144: 잔토상차비 | B144: 적치장상차[굴삭기 0.7㎥] | C144: 1 | D144: ㎥ | E144: 761 | F144: =단가산출!CY5908 -> 166 | G144: =단가산출!CZ5908 -> 399 | H144: =단가산출!DA5908 -> 196 | I144: 산근 138호표

Sheet 단가산출
A1: 단 가 산 출 근 거 | DO1: 5
DO2: A
A3: 산 출 근 거 | CX3: 합 계 | CY3: 재료비 | CZ3: 노무비 | DA3: 경 비 | DO3: 5243
DO4: DA
A5: 산근00010호표 ：기계터파기[토사] (굴삭기0.2㎥) ㎥ 당 | DM5: :SDD2110
A6: ◈ 기계터파기(토사) 굴삭기0.2㎥ ; M3당
A8: Q = 3600 x q x k x f x E / Cm
A10: 여기서, Q : 시간당작업량(㎥/hr)
A12: q : 버켓용량(㎥) k : 버켓계수 f : 토량환산계수
A14: E : 작업효율(터파기에 대하여는 0.05를 뺀 값으로 한다)
A16: Cm : 1회싸이클시간(초)
F18: q | I18: = | K18: =TEXT(0.2,"#,##0.00#######") -> 0.20 | P18: <굴삭기0.2㎥용(㎥)>
F20: k | I20: = | K20: =TEXT(0.9,"#,##0.00#######") -> 0.90 | P20: <버켓에 거의 가득 채울수 있는 보통토>
F22: E | I22: = | K22: =TEXT(0.55,"#,##0.00#######") -> 0.55 | P22: - | R22: =TEXT(0.05,"#,##0.00#######") -> 0.05 | W22: = | Y22: =TEXT(ROUND(K22-R22,1),"#,##0.0#######") -> 0.5 | AD22: <자연상태(불량)> | AJ22: , | AM22: f | AP22: = | AR22: =TEXT(1,"#,##0") -> 1 | AT22: / | AV22: =TEXT(1.25,"#,##0.00#######") -> 1.25 | BA22: = | BC22: =TEXT(ROUND(AR22/AV22,1),"#,##0.0#######") -> 0.8 | BH22: <보통토(1/L)>
A24: f값적용기준, 수량 : 자연상태(1)
A26: q : 흐트러진상태(L)
A28: f : 흐트러진상태의 단가를 자연상태로 환산(1/L)
F30: Cm | I30: = | K30: =TEXT(18,"#,##0") -> 18 | N30: <선회각도135°(초)>
F32: Q | I32: = | K32: =TEXT(3600,"#,##0") -> 3,600 | P32: * | R32: q | T32: * | V32: k | X32: * | Z32: f | AB32: * | AD32: E | AF32: / | AH32: Cm | AK32: = | AM32: =TEXT(ROUND(K32*K18*K20*BC22*Y22/K30,1),"#,##0.0#######") -> 14.4 | AS32: <㎥/hr>
F34: 재료비 : | L34: =TEXT(TRUNC(건설기계!$I$56,0),"#,##0") -> 7,887 | R34: / | U34: Q | W34: <㎥/hr> | AB34: = | AD34: =TEXT(ROUNDDOWN(L34/AM32,1),"#,##0.0#######") -> 547.7 | CX34: =CY34+CZ34+DA34 -> 547.7 | CY34: =TEXT(AD34,"#,###.0") -> 547.7 | DM34: D0201-0020
F36: 노무비 : | L36: =TEXT(TRUNC(건설기계!$K$56,0),"#,##0") -> 44,299 | S36: / | V36: Q | X36: <㎥/hr> | AC36: = | AE36: =TEXT(ROUNDDOWN(L36/AM32,1),"#,##0.0#######") -> 3,076.3 | CX36: =CY36+CZ36+DA36 -> 3076.3 | CZ36: =TEXT(AE36,"#,###.0") -> 3,076.3 | DM36: D0201-0020
F38: 경 비 : | L38: =TEXT(TRUNC(건설기계!$M$56,0),"#,##0") -> 12,510 | S38: / | V38: Q | X38: <㎥/hr> | AC38: = | AE38: =TEXT(ROUNDDOWN(L38/AM32,1),"#,##0.0#######") -> 868.7 | CX38: =CY38+CZ38+DA38 -> 868.7 | DA38: =TEXT(AE38,"#,###.0") -> 868.7 | DM38: D0201-0020
A40: ------------------------------------------------------------
B42: 합 | F42: 계 | CX42: =CY42+CZ42+DA42 -> 4492.7 | CY42: =TEXT(TRUNC(CY34+CY36+CY38,1),"#,###.0") -> 547.7 | CZ42: =TEXT(TRUNC(CZ34+CZ36+CZ38,1),"#,###.0") -> 3,076.3 | DA42: =TEXT(TRUNC(DA34+DA36+DA38,1),"#,###.0") -> 868.7
A44: 계 | CX44: =TEXT(CY44+CZ44+DA44,"#,##0") -> 4,491 | CY44: =TEXT(TRUNC(CY42,0),"#,##0") -> 547 | CZ44: =TEXT(TRUNC(CZ42,0),"#,##0") -> 3,076 | DA44: =TEXT(TRUNC(DA42,0),"#,##0") -> 868
A46: 산근00020호표 ：기계터파기[토사] (굴삭기0.4㎥) ㎥ 당 | DM46: :SDD2120
A47: ◈ 기계터파기(토사) 굴삭기0.4㎥ ; M3당 | CX47: =CY47+CZ47+DA47 -> 0
A49: Q = 3600 x q x k x f x E / Cm
A51: 여기서, Q : 시간당작업량(㎥/hr)
A53: q : 버켓용량(㎥) k : 버켓계수 f : 토량환산계수
A55: E : 작업효율(터파기에 대하여는 0.05를 뺀 값으로 한다)
A57: Cm : 1회싸이클시간(초)
F59: q | I59: = | K59: =TEXT(0.4,"#,##0.00#######") -> 0.40 | P59: <굴삭기0.4㎥용(㎥)> | V59: , | Z59: k | AC59: = | AE59: =TEXT(0.9,"#,##0.00#######") -> 0.90 | AJ59: <버켓에 거의 가득 채울수 있는 보통토>
F61: E | I61: = | K61: =TEXT(0.7,"#,##0.00#######") -> 0.70 | P61: - | R61: =TEXT(0.05,"#,##0.00#######") -> 0.05 | W61: = | Y61: =TEXT(ROUND(K61-R61,2),"#,##0.00#######") -> 0.65 | AE61: <자연상태(보통)> | AK61: , | AN61: f | AQ61: = | AS61: =TEXT(1,"#,##0") -> 1 | AU61: / | AW61: =TEXT(1.25,"#,##0.00#######") -> 1.25 | BB61: = | BD61: =TEXT(ROUND(AS61/AW61,1),"#,##0.0#######") -> 0.8 | BI61: <보통토(1/L)>
A63: f값적용기준, 수량 : 자연상태(1)
A65: q : 흐트러진상태(L)
A67: f : 흐트러진상태의 단가를 자연상태로 환산(1/L)
E69: Cm | H69: = | J69: =TEXT(18,"#,##0") -> 18 | M69: <선회각도135°(초)>
F71: Q | I71: = | K71: =TEXT(3600,"#,##0") -> 3,600 | P71: * | R71: q | T71: * | V71: k | X71: * | Z71: f | AB71: * | AD71: E | AF71: / | AH71: Cm | AK71: = | AM71: =TEXT(ROUND(K71*K59*AE59*BD61*Y61/J69,2),"#,##0.00#######") -> 37.44 | AT71: <㎥/hr>
F73: 재료비 : | L73: =TEXT(TRUNC(건설기계!$I$63,0),"#,##0") -> 15,745 | S73: / | V73: Q | X73: <㎥/hr> | AC73: = | AE73: =TEXT(ROUNDDOWN(L73/AM71,1),"#,##0.0#######") -> 420.5 | CX73: =CY73+CZ73+DA73 -> 420.5 | CY73: =TEXT(AE73,"#,###.0") -> 420.5 | DM73: D0201-0040
F75: 노무비 : | L75: =TEXT(TRUNC(건설기계!$K$63,0),"#,##0") -> 44,299 | S75: / | V75: Q | X75: <㎥/hr> | AC75: = | AE75: =TEXT(ROUNDDOWN(L75/AM71,1),"#,##0.0#######") -> 1,183.1 | CX75: =CY75+CZ75+DA75 -> 1183.1 | CZ75: =TEXT(AE75,"#,###.0") -> 1,183.1 | DM75: D0201-0040
F77: 경 비 : | L77: =TEXT(TRUNC(건설기계!$M$63,0),"#,##0") -> 15,429 | S77: / | V77: Q | X77: <㎥/hr> | AC77: = | AE77: =TEXT(ROUNDDOWN(L77/AM71,1),"#,##0.0#######") -> 412.0 | CX77: =CY77+CZ77+DA77 -> 412 | DA77: =TEXT(AE77,"#,###.0") -> 412.0 | DM77: D0201-0040
A79: ------------------------------------------------------------
B81: 합 | F81: 계 | CX81: =CY81+CZ81+DA81 -> 2015.6 | CY81: =TEXT(TRUNC(CY73+CY75+CY77,1),"#,###.0") -> 420.5 | CZ81: =TEXT(TRUNC(CZ73+CZ75+CZ77,1),"#,###.0") -> 1,183.1 | DA81: =TEXT(TRUNC(DA73+DA75+DA77,1),"#,###.0") -> 412.0
A83: 계 | CX83: =TEXT(CY83+CZ83+DA83,"#,##0") -> 2,015 | CY83: =TEXT(TRUNC(CY81,0),"#,##0") -> 420 | CZ83: =TEXT(TRUNC(CZ81,0),"#,##0") -> 1,183 | DA83: =TEXT(TRUNC(DA81,0),"#,##0") -> 412
A85: 산근00030호표 ：기계터파기[토사] (굴삭기0.7㎥) ㎥ 당 | DM85: :SDD2130
A86: ◈ 기계터파기(토사) 굴삭기0.7㎥ ; M3당 | CX86: =CY86+CZ86+DA86 -> 0
A88: Q = 3600 x q x k x f x E / Cm
A90: 여기서, Q : 시간당작업량(㎥/hr)
A92: q : 버켓용량(㎥) k : 버켓계수
A94: f : 토량환산계수 E : 작업효율(터파기에 대하여는 0.05를 뺀 값으로 한다)
A96: Cm : 1회싸이클시간(초)
F98: q | I98: = | K98: =TEXT(0.7,"#,##0.00#######") -> 0.70 | P98: <굴삭기0.7㎥용(㎥)>
F100: k | I100: = | K100: =TEXT(0.9,"#,##0.00#######") -> 0.90 | P100: <버켓에 거의 가득 채울수 있는 보통토>
F102: E | I102: = | K102: =TEXT(0.7,"#,##0.00#######") -> 0.70 | P102: - | R102: =TEXT(0.05,"#,##0.00#######") -> 0.05 | W102: = | Y102: =TEXT(ROUND(K102-R102,2),"#,##0.00#######") -> 0.65 | AE102: <자연상태(보통)> | AK102: , | AN102: f | AQ102: = | AS102: =TEXT(1,"#,##0") -> 1 | AU102: / | AW102: =TEXT(1.25,"#,##0.00#######") -> 1.25 | BB102: = | BD102: =TEXT(ROUND(AS102/AW102,1),"#,##0.0#######") -> 0.8 | BI102: <보통토(1/L)>
A104: f값적용기준, 수량 : 자연상태(1)
A106: q : 흐트러진상태(L) f : 흐트러진상태의 단가를 자연상태로 환산(1/L)
F108: Cm | I108: = | K108: =TEXT(20,"#,##0") -> 20 | N108: <선회각도135°(초)>
F110: Q | I110: = | K110: =TEXT(3600,"#,##0") -> 3,600 | P110: * | R110: q | T110: * | V110: k | X110: * | Z110: f | AB110: * | AD110: E | AF110: / | AH110: Cm | AK110: = | AM110: =TEXT(ROUND(K110*K98*K100*BD102*Y102/K108,2),"#,##0.00#######") -> 58.97 | AT110: <㎥/hr>
F112: 재료비 : | L112: =TEXT(TRUNC(건설기계!$I$77,0),"#,##0") -> 18,449 | S112: / | V112: Q | X112: <㎥/hr> | AC112: = | AE112: =TEXT(ROUNDDOWN(L112/AM110,1),"#,##0.0#######") -> 312.8 | CX112: =CY112+CZ112+DA112 -> 312.8 | CY112: =TEXT(AE112,"#,###.0") -> 312.8 | DM112: D0201-0070
F114: 노무비 : | L114: =TEXT(TRUNC(건설기계!$K$77,0),"#,##0") -> 44,299 | S114: / | V114: Q | X114: <㎥/hr> | AC114: = | AE114: =TEXT(ROUNDDOWN(L114/AM110,1),"#,##0.0#######") -> 751.2 | CX114: =CY114+CZ114+DA114 -> 751.2 | CZ114: =TEXT(AE114,"#,###.0") -> 751.2 | DM114: D0201-0070
F116: 경 비 : | L116: =TEXT(TRUNC(건설기계!$M$77,0),"#,##0") -> 21,780 | S116: / | V116: Q | X116: <㎥/hr> | AC116: = | AE116: =TEXT(ROUNDDOWN(L116/AM110,1),"#,##0.0#######") -> 369.3 | CX116: =CY116+CZ116+DA116 -> 369.3 | DA116: =TEXT(AE116,"#,###.0") -> 369.3 | DM116: D0201-0070
A118: ------------------------------------------------------------
B120: 합 | F120: 계 | CX120: =CY120+CZ120+DA120 -> 1433.3 | CY120: =TEXT(TRUNC(CY112+CY114+CY116,1),"#,###.0") -> 312.8 | CZ120: =TEXT(TRUNC(CZ112+CZ114+CZ116,1),"#,###.0") -> 751.2 | DA120: =TEXT(TRUNC(DA112+DA114+DA116,1),"#,###.0") -> 369.3
A122: 계 | CX122: =TEXT(CY122+CZ122+DA122,"#,##0") -> 1,432 | CY122: =TEXT(TRUNC(CY120,0),"#,##0") -> 312 | CZ122: =TEXT(TRUNC(CZ120,0),"#,##0") -> 751 | DA122: =TEXT(TRUNC(DA120,0),"#,##0") -> 369
A124: 산근00040호표 ：기계터파기[토사] (굴삭기1.0㎥) ㎥ 당 | DM124: :SDD2140
A125: ◈ 기계터파기(토사) 굴삭기1.0㎥ ; M3당 | CX125: =CY125+CZ125+DA125 -> 0
A127: Q = 3600 x q x k x f x E / Cm
A129: 여기서, Q : 시간당작업량(㎥/hr)
A131: q : 버켓용량(㎥) k : 버켓계수
A133: f : 토량환산계수 E : 작업효율(터파기에 대하여는 0.05를 뺀 값으로 한다)
A135: Cm : 1회싸이클시간(초)
F137: q | I137: = | K137: =TEXT(1,"#,##0.00#######") -> 1.00 | P137: <굴삭기1.0㎥용(㎥)>
F139: k | I139: = | K139: =TEXT(0.9,"#,##0.00#######") -> 0.90 | P139: <버켓에 거의 가득 채울수 있는 보통토>
F141: E | I141: = | K141: =TEXT(0.7,"#,##0.00#######") -> 0.70 | P141: - | R141: =TEXT(0.05,"#,##0.00#######") -> 0.05 | W141: = | Y141: =TEXT(ROUND(K141-R141,2),"#,##0.00#######") -> 0.65 | AE141: <자연상태(보통)> | AK141: , | AN141: f | AQ141: = | AS141: =TEXT(1,"#,##0") -> 1 | AU141: / | AW141: =TEXT(1.25,"#,##0.00#######") -> 1.25 | BB141: = | BD141: =TEXT(ROUND(AS141/AW141,1),"#,##0.0#######") -> 0.8 | BI141: <보통토(1/L)>
A143: f값적용기준, 수량 : 자연상태(1)
A145: q : 흐트러진상태(L) f : 흐트러진상태의 단가를 자연상태로 환산(1/L)
F147: Cm | I147: = | K147: =TEXT(21,"#,##0") -> 21 | N147: <선회각도135°(초)>
F149: Q | I149: = | K149: =TEXT(3600,"#,##0") -> 3,600 | P149: * | R149: q | T149: * | V149: k | X149: * | Z149: f | AB149: * | AD149: E | AF149: / | AH149: Cm | AK149: = | AM149: =TEXT(ROUND(K149*K137*K139*BD141*Y141/K147,2),"#,##0.00#######") -> 80.23 | AT149: <㎥/hr>
F151: 재료비 : | L151: =TEXT(TRUNC(건설기계!$I$91,0),"#,##0") -> 31,014 | S151: / | V151: Q | X151: <㎥/hr> | AC151: = | AE151: =TEXT(ROUNDDOWN(L151/AM149,1),"#,##0.0#######") -> 386.5 | CX151: =CY151+CZ151+DA151 -> 386.5 | CY151: =TEXT(AE151,"#,###.0") -> 386.5 | DM151: D0201-0100
F153: 노무비 : | L153: =TEXT(TRUNC(건설기계!$K$91,0),"#,##0") -> 44,299 | S153: / | V153: Q | X153: <㎥/hr> | AC153: = | AE153: =TEXT(ROUNDDOWN(L153/AM149,1),"#,##0.0#######") -> 552.1 | CX153: =CY153+CZ153+DA153 -> 552.1 | CZ153: =TEXT(AE153,"#,###.0") -> 552.1 | DM153: D0201-0100
F155: 경 비 : | L155: =TEXT(TRUNC(건설기계!$M$91,0),"#,##0") -> 26,368 | S155: / | V155: Q | X155: <㎥/hr> | AC155: = | AE155: =TEXT(ROUNDDOWN(L155/AM149,1),"#,##0.0#######") -> 328.6 | CX155: =CY155+CZ155+DA155 -> 328.6 | DA155: =TEXT(AE155,"#,###.0") -> 328.6 | DM155: D0201-0100
A157: ------------------------------------------------------------
B159: 합 | F159: 계 | CX159: =CY159+CZ159+DA159 -> 1267.2 | CY159: =TEXT(TRUNC(CY151+CY153+CY155,1),"#,###.0") -> 386.5 | CZ159: =TEXT(TRUNC(CZ151+CZ153+CZ155,1),"#,###.0") -> 552.1 | DA159: =TEXT(TRUNC(DA151+DA153+DA155,1),"#,###.0") -> 328.6
A161: 계 | CX161: =TEXT(CY161+CZ161+DA161,"#,##0") -> 1,266 | CY161: =TEXT(TRUNC(CY159,0),"#,##0") -> 386 | CZ161: =TEXT(TRUNC(CZ159,0),"#,##0") -> 552 | DA161: =TEXT(TRUNC(DA159,0),"#,##0") -> 328
A163: 산근00050호표 ：기계터파기[토사]-관로부설 (굴삭기0.2㎥) ㎥ 당 | DM163: :SDD2110-1
A164: ◈ 기계터파기(토사) 굴삭기0.2㎥ ; M3당 | CX164: =CY164+CZ164+DA164 -> 0
A166: Q = 3600 x q x k x f x E / Cm
A168: 여기서, Q : 시간당작업량(㎥/hr)
A170: q : 버켓용량(㎥) k : 버켓계수 f : 토량환산계수
A172: E : 작업효율(터파기에 대하여는 0.05를 뺀 값으로 한다)
A174: Cm : 1회싸이클시간(초)
F176: q | I176: = | K176: =TEXT(0.2,"#,##0.00#######") -> 0.20 | P176: <굴삭기0.2㎥용(㎥)>
F178: k | I178: = | K178: =TEXT(0.9,"#,##0.00#######") -> 0.90 | P178: <버켓에 거의 가득 채울수 있는 보통토>
F180: E | I180: = | K180: =TEXT(0.3,"#,##0.00#######") -> 0.30 | P180: - | W180: = | Y180: =TEXT(ROUND(K180-R180,2),"#,##0.00#######") -> 0.30 | AE180: <자연상태(불량)> | AK180: , | AN180: f | AQ180: = | AS180: =TEXT(1,"#,##0") -> 1 | AU180: / | AW180: =TEXT(1.25,"#,##0.00#######") -> 1.25 | BB180: = | BD180: =TEXT(ROUND(AS180/AW180,1),"#,##0.0#######") -> 0.8 | BI180: <보통토(1/L)>
A182: f값적용기준, 수량 : 자연상태(1)
A184: q : 흐트러진상태(L)
A186: f : 흐트러진상태의 단가를 자연상태로 환산(1/L)
F188: Cm | I188: = | K188: =TEXT(18,"#,##0") -> 18 | N188: <선회각도135°(초)>
F190: Q | I190: = | K190: =TEXT(3600,"#,##0") -> 3,600 | P190: * | R190: q | T190: * | V190: k | X190: * | Z190: f | AB190: * | AD190: E | AF190: / | AH190: Cm | AK190: = | AM190: =TEXT(ROUND(K190*K176*K178*BD180*Y180/K188,2),"#,##0.00#######") -> 8.64 | AS190: <㎥/hr>
F192: 재료비 : | L192: =TEXT(TRUNC(건설기계!$I$56,0),"#,##0") -> 7,887 | R192: / | U192: Q | W192: <㎥/hr> | AB192: = | AD192: =TEXT(ROUNDDOWN(L192/AM190,1),"#,##0.0#######") -> 912.8 | CX192: =CY192+CZ192+DA192 -> 912.8 | CY192: =TEXT(AD192,"#,###.0") -> 912.8 | DM192: D0201-0020
F194: 노무비 : | L194: =TEXT(TRUNC(건설기계!$K$56,0),"#,##0") -> 44,299 | S194: / | V194: Q | X194: <㎥/hr> | AC194: = | AE194: =TEXT(ROUNDDOWN(L194/AM190,1),"#,##0.0#######") -> 5,127.1 | CX194: =CY194+CZ194+DA194 -> 5127.1 | CZ194: =TEXT(AE194,"#,###.0") -> 5,127.1 | DM194: D0201-0020
F196: 경 비 : | L196: =TEXT(TRUNC(건설기계!$M$56,0),"#,##0") -> 12,510 | S196: / | V196: Q | X196: <㎥/hr> | AC196: = | AE196: =TEXT(ROUNDDOWN(L196/AM190,1),"#,##0.0#######") -> 1,447.9 | CX196: =CY196+CZ196+DA196 -> 1447.9 | DA196: =TEXT(AE196,"#,###.0") -> 1,447.9 | DM196: D0201-0020
A198: ------------------------------------------------------------
B200: 합 | F200: 계 | CX200: =CY200+CZ200+DA200 -> 7487.8 | CY200: =TEXT(TRUNC(CY192+CY194+CY196,1),"#,###.0") -> 912.8 | CZ200: =TEXT(TRUNC(CZ192+CZ194+CZ196,1),"#,###.0") -> 5,127.1 | DA200: =TEXT(TRUNC(DA192+DA194+DA196,1),"#,###.0") -> 1,447.9
A202: 계 | CX202: =TEXT(CY202+CZ202+DA202,"#,##0") -> 7,486 | CY202: =TEXT(TRUNC(CY200,0),"#,##0") -> 912 | CZ202: =TEXT(TRUNC(CZ200,0),"#,##0") -> 5,127 | DA202: =TEXT(TRUNC(DA200,0),"#,##0") -> 1,447
A204: 산근00060호표 ：기계터파기[토사]-관로부설 (굴삭기0.4㎥) ㎥ 당 | DM204: :SDD2120-1
A205: ◈ 기계터파기(토사) 굴삭기0.4㎥ ; M3당 | CX205: =CY205+CZ205+DA205 -> 0
A207: Q = 3600 x q x k x f x E / Cm
A209: 여기서, Q : 시간당작업량(㎥/hr)
A211: q : 버켓용량(㎥) k : 버켓계수 f : 토량환산계수
A213: E : 작업효율(터파기에 대하여는 0.05를 뺀 값으로 한다)
A215: Cm : 1회싸이클시간(초)
F217: q | I217: = | K217: =TEXT(0.4,"#,##0.00#######") -> 0.40 | P217: <굴삭기0.4㎥용(㎥)> | V217: , | Z217: k | AC217: = | AE217: =TEXT(0.9,"#,##0.00#######") -> 0.90 | AJ217: <버켓에 거의 가득 채울수 있는 보통토>
F219: E | I219: = | K219: =TEXT(0.3,"#,##0.00#######") -> 0.30 | P219: - | W219: = | Y219: =TEXT(ROUND(K219-R219,2),"#,##0.00#######") -> 0.30 | AE219: <자연상태(보통)> | AK219: , | AN219: f | AQ219: = | AS219: =TEXT(1,"#,##0") -> 1 | AU219: / | AW219: =TEXT(1.25,"#,##0.00#######") -> 1.25 | BB219: = | BD219: =TEXT(ROUND(AS219/AW219,1),"#,##0.0#######") -> 0.8 | BI219: <보통토(1/L)>
A221: f값적용기준, 수량 : 자연상태(1)
A223: q : 흐트러진상태(L)
A225: f : 흐트러진상태의 단가를 자연상태로 환산(1/L)
E227: Cm | H227: = | J227: =TEXT(18,"#,##0") -> 18 | M227: <선회각도135°(초)>
F229: Q | I229: = | K229: =TEXT(3600,"#,##0") -> 3,600 | P229: * | R229: q | T229: * | V229: k | X229: * | Z229: f | AB229: * | AD229: E | AF229: / | AH229: Cm | AK229: = | AM229: =TEXT(ROUND(K229*K217*AE217*BD219*Y219/J227,1),"#,##0.0#######") -> 17.3 | AS229: <㎥/hr>
F231: 재료비 : | L231: =TEXT(TRUNC(건설기계!$I$63,0),"#,##0") -> 15,745 | S231: / | V231: Q | X231: <㎥/hr> | AC231: = | AE231: =TEXT(ROUNDDOWN(L231/AM229,1),"#,##0.0#######") -> 910.1 | CX231: =CY231+CZ231+DA231 -> 910.1 | CY231: =TEXT(AE231,"#,###.0") -> 910.1 | DM231: D0201-0040
F233: 노무비 : | L233: =TEXT(TRUNC(건설기계!$K$63,0),"#,##0") -> 44,299 | S233: / | V233: Q | X233: <㎥/hr> | AC233: = | AE233: =TEXT(ROUNDDOWN(L233/AM229,1),"#,##0.0#######") -> 2,560.6 | CX233: =CY233+CZ233+DA233 -> 2560.6 | CZ233: =TEXT(AE233,"#,###.0") -> 2,560.6 | DM233: D0201-0040
F235: 경 비 : | L235: =TEXT(TRUNC(건설기계!$M$63,0),"#,##0") -> 15,429 | S235: / | V235: Q | X235: <㎥/hr> | AC235: = | AE235: =TEXT(ROUNDDOWN(L235/AM229,1),"#,##0.0#######") -> 891.8 | CX235: =CY235+CZ235+DA235 -> 891.8 | DA235: =TEXT(AE235,"#,###.0") -> 891.8 | DM235: D0201-0040
A237: ------------------------------------------------------------
B239: 합 | F239: 계 | CX239: =CY239+CZ239+DA239 -> 4362.5 | CY239: =TEXT(TRUNC(CY231+CY233+CY235,1),"#,###.0") -> 910.1 | CZ239: =TEXT(TRUNC(CZ231+CZ233+CZ235,1),"#,###.0") -> 2,560.6 | DA239: =TEXT(TRUNC(DA231+DA233+DA235,1),"#,###.0") -> 891.8
A241: 계 | CX241: =TEXT(CY241+CZ241+DA241,"#,##0") -> 4,361 | CY241: =TEXT(TRUNC(CY239,0),"#,##0") -> 910 | CZ241: =TEXT(TRUNC(CZ239,0),"#,##0") -> 2,560 | DA241: =TEXT(TRUNC(DA239,0),"#,##0") -> 891
A243: 산근00070호표 ：기계터파기[토사]-관로부설 (굴삭기0.7㎥) ㎥ 당 | DM243: :SDD2130-1
A244: ◈ 기계터파기(토사) 굴삭기0.7㎥ ; M3당 | CX244: =CY244+CZ244+DA244 -> 0
A246: Q = 3600 x q x k x f x E / Cm
A248: 여기서, Q : 시간당작업량(㎥/hr)
A250: q : 버켓용량(㎥) k : 버켓계수
A252: f : 토량환산계수 E : 작업효율(터파기에 대하여는 0.05를 뺀 값으로 한다)
A254: Cm : 1회싸이클시간(초)
F256: q | I256: = | K256: =TEXT(0.7,"#,##0.00#######") -> 0.70 | P256: <굴삭기0.7㎥용(㎥)>
F258: k | I258: = | K258: =TEXT(0.9,"#,##0.00#######") -> 0.90 | P258: <버켓에 거의 가득 채울수 있는 보통토>
F260: E | I260: = | K260: =TEXT(0.3,"#,##0.00#######") -> 0.30 | P260: - | W260: = | Y260: =TEXT(ROUND(K260-R260,2),"#,##0.00#######") -> 0.30 | AE260: <자연상태(보통)> | AK260: , | AN260: f | AQ260: = | AS260: =TEXT(1,"#,##0") -> 1 | AU260: / | AW260: =TEXT(1.25,"#,##0.00#######") -> 1.25 | BB260: = | BD260: =TEXT(ROUND(AS260/AW260,1),"#,##0.0#######") -> 0.8 | BI260: <보통토(1/L)>
A262: f값적용기준, 수량 : 자연상태(1)
A264: q : 흐트러진상태(L) f : 흐트러진상태의 단가를 자연상태로 환산(1/L)
F266: Cm | I266: = | K266: =TEXT(20,"#,##0") -> 20 | N266: <선회각도135°(초)>
F268: Q | I268: = | K268: =TEXT(3600,"#,##0") -> 3,600 | P268: * | R268: q | T268: * | V268: k | X268: * | Z268: f | AB268: * | AD268: E | AF268: / | AH268: Cm | AK268: = | AM268: =TEXT(ROUND(K268*K256*K258*BD260*Y260/K266,2),"#,##0.00#######") -> 27.22 | AT268: <㎥/hr>
F270: 재료비 : | L270: =TEXT(TRUNC(건설기계!$I$77,0),"#,##0") -> 18,449 | S270: / | V270: Q | X270: <㎥/hr> | AC270: = | AE270: =TEXT(ROUNDDOWN(L270/AM268,1),"#,##0.0#######") -> 677.7 | CX270: =CY270+CZ270+DA270 -> 677.7 | CY270: =TEXT(AE270,"#,###.0") -> 677.7 | DM270: D0201-0070
F272: 노무비 : | L272: =TEXT(TRUNC(건설기계!$K$77,0),"#,##0") -> 44,299 | S272: / | V272: Q | X272: <㎥/hr> | AC272: = | AE272: =TEXT(ROUNDDOWN(L272/AM268,1),"#,##0.0#######") -> 1,627.4 | CX272: =CY272+CZ272+DA272 -> 1627.4 | CZ272: =TEXT(AE272,"#,###.0") -> 1,627.4 | DM272: D0201-0070
F274: 경 비 : | L274: =TEXT(TRUNC(건설기계!$M$77,0),"#,##0") -> 21,780 | S274: / | V274: Q | X274: <㎥/hr> | AC274: = | AE274: =TEXT(ROUNDDOWN(L274/AM268,1),"#,##0.0#######") -> 800.1 | CX274: =CY274+CZ274+DA274 -> 800.1 | DA274: =TEXT(AE274,"#,###.0") -> 800.1 | DM274: D0201-0070
A276: ------------------------------------------------------------
B278: 합 | F278: 계 | CX278: =CY278+CZ278+DA278 -> 3105.2 | CY278: =TEXT(TRUNC(CY270+CY272+CY274,1),"#,###.0") -> 677.7 | CZ278: =TEXT(TRUNC(CZ270+CZ272+CZ274,1),"#,###.0") -> 1,627.4 | DA278: =TEXT(TRUNC(DA270+DA272+DA274,1),"#,###.0") -> 800.1
A280: 계 | CX280: =TEXT(CY280+CZ280+DA280,"#,##0") -> 3,104 | CY280: =TEXT(TRUNC(CY278,0),"#,##0") -> 677 | CZ280: =TEXT(TRUNC(CZ278,0),"#,##0") -> 1,627 | DA280: =TEXT(TRUNC(DA278,0),"#,##0") -> 800
A282: 산근00080호표 ：기계터파기[토사]-관로부설 (굴삭기1.0㎥) ㎥ 당 | DM282: :SDD2140-1
A283: ◈ 기계터파기(토사) 굴삭기1.0㎥ ; M3당 | CX283: =CY283+CZ283+DA283 -> 0
A285: Q = 3600 x q x k x f x E / Cm
A287: 여기서, Q : 시간당작업량(㎥/hr)
A289: q : 버켓용량(㎥) k : 버켓계수
A291: f : 토량환산계수 E : 작업효율(터파기에 대하여는 0.05를 뺀 값으로 한다)
A293: Cm : 1회싸이클시간(초)
F295: q | I295: = | K295: =TEXT(1,"#,##0.00#######") -> 1.00 | P295: <굴삭기1.0㎥용(㎥)>
F297: k | I297: = | K297: =TEXT(0.9,"#,##0.00#######") -> 0.90 | P297: <버켓에 거의 가득 채울수 있는 보통토>
F299: E | I299: = | K299: =TEXT(0.3,"#,##0.00#######") -> 0.30 | P299: - | W299: = | Y299: =TEXT(ROUND(K299-R299,2),"#,##0.00#######") -> 0.30 | AE299: <자연상태(보통)> | AK299: , | AN299: f | AQ299: = | AS299: =TEXT(1,"#,##0") -> 1 | AU299: / | AW299: =TEXT(1.25,"#,##0.00#######") -> 1.25 | BB299: = | BD299: =TEXT(ROUND(AS299/AW299,1),"#,##0.0#######") -> 0.8 | BI299: <보통토(1/L)>
A301: f값적용기준, 수량 : 자연상태(1)
A303: q : 흐트러진상태(L) f : 흐트러진상태의 단가를 자연상태로 환산(1/L)
F305: Cm | I305: = | K305: =TEXT(21,"#,##0") -> 21 | N305: <선회각도135°(초)>
F307: Q | I307: = | K307: =TEXT(3600,"#,##0") -> 3,600 | P307: * | R307: q | T307: * | V307: k | X307: * | Z307: f | AB307: * | AD307: E | AF307: / | AH307: Cm | AK307: = | AM307: =TEXT(ROUND(K307*K295*K297*BD299*Y299/K305,2),"#,##0.00#######") -> 37.03 | AT307: <㎥/hr>
F309: 재료비 : | L309: =TEXT(TRUNC(건설기계!$I$91,0),"#,##0") -> 31,014 | S309: / | V309: Q | X309: <㎥/hr> | AC309: = | AE309: =TEXT(ROUNDDOWN(L309/AM307,1),"#,##0.0#######") -> 837.5 | CX309: =CY309+CZ309+DA309 -> 837.5 | CY309: =TEXT(AE309,"#,###.0") -> 837.5 | DM309: D0201-0100
F311: 노무비 : | L311: =TEXT(TRUNC(건설기계!$K$91,0),"#,##0") -> 44,299 | S311: / | V311: Q | X311: <㎥/hr> | AC311: = | AE311: =TEXT(ROUNDDOWN(L311/AM307,1),"#,##0.0#######") -> 1,196.3 | CX311: =CY311+CZ311+DA311 -> 1196.3 | CZ311: =TEXT(AE311,"#,###.0") -> 1,196.3 | DM311: D0201-0100
F313: 경 비 : | L313: =TEXT(TRUNC(건설기계!$M$91,0),"#,##0") -> 26,368 | S313: / | V313: Q | X313: <㎥/hr> | AC313: = | AE313: =TEXT(ROUNDDOWN(L313/AM307,1),"#,##0.0#######") -> 712.0 | CX313: =CY313+CZ313+DA313 -> 712 | DA313: =TEXT(AE313,"#,###.0") -> 712.0 | DM313: D0201-0100
A315: ------------------------------------------------------------
B317: 합 | F317: 계 | CX317: =CY317+CZ317+DA317 -> 2745.8 | CY317: =TEXT(TRUNC(CY309+CY311+CY313,1),"#,###.0") -> 837.5 | CZ317: =TEXT(TRUNC(CZ309+CZ311+CZ313,1),"#,###.0") -> 1,196.3 | DA317: =TEXT(TRUNC(DA309+DA311+DA313,1),"#,###.0") -> 712.0
A319: 계 | CX319: =TEXT(CY319+CZ319+DA319,"#,##0") -> 2,745 | CY319: =TEXT(TRUNC(CY317,0),"#,##0") -> 837 | CZ319: =TEXT(TRUNC(CZ317,0),"#,##0") -> 1,196 | DA319: =TEXT(TRUNC(DA317,0),"#,##0") -> 712
A321: 산근00090호표 ：공사용수운반[컷터용] (물탱크：5500ℓ) ㎥ 당 | DM321: :SQI1000
A322: ◈ 공사용수운반(컷터용) (물탱크:5500ℓ) ; ㎥당 | CX322: =CY322+CZ322+DA322 -> 0
A324: 1) 공사용수
F326: L | H326: = | J326: =TEXT(1,"#,##0.0#######") -> 1.0 | N326: ㎞ | T326: , | X326: E | Z326: = | AB326: =TEXT(0.9,"#,##0.0#######") -> 0.9
F328: 현장내 속도 | L328: V | N328: = | P328: =TEXT(25,"#,##0") -> 25 | S328: ㎞/hr
A330: 흡입준비 5분, 흡입시간 10 분
A332: 살수시간 20분
F334: 운반시간 | K334: t2 | N334: = | P334: L | R334: / | T334: V | V334: * | X334: =TEXT(60,"#,##0") -> 60 | AA334: * | AC334: =TEXT(2,"#,##0") -> 2 | AE334: = | AG334: =TEXT(ROUND(J326/P328*X334*AC334,1),"#,##0.0#######") -> 4.8 | AK334: min
F336: Cm | I336: = | K336: t2 | N336: + | P336: =TEXT(35,"#,##0") -> 35 | S336: = | U336: =TEXT(ROUND(AG334+P336,1),"#,##0.0#######") -> 39.8 | Z336: min
F338: To | I338: = | K338: Cm | N338: - | P338: =TEXT(15,"#,##0") -> 15 | S338: = | U338: =TEXT(ROUND(U336-P338,1),"#,##0.0#######") -> 24.8 | Z338: min
F340: Q | H340: = | J340: =TEXT(60,"#,##0") -> 60 | M340: * | O340: =TEXT(5.5,"#,##0.0#######") -> 5.5 | S340: * | U340: =TEXT(0.9,"#,##0.0#######") -> 0.9 | Y340: / | AA340: Cm | AD340: = | AF340: =TEXT(ROUND(J340*O340*U340/U336,2),"#,##0.00#######") -> 7.46 | AK340: ton/Hr
E342: 경 비: | K342: =TEXT(TRUNC(건설기계!$M$434,0),"#,##0") -> 8,908 | Q342: / | S342: Q | U342: = | W342: =TEXT(ROUNDDOWN(K342/AF340,1),"#,##0.0#######") -> 1,194.1 | CX342: =CY342+CZ342+DA342 -> 1194.1 | DA342: =TEXT(W342,"#,###.0") -> 1,194.1 | DM342: D7204-0055
E344: 노무비: | K344: =TEXT(TRUNC(건설기계!$K$434,0),"#,##0") -> 36,224 | R344: / | T344: Q | V344: = | X344: =TEXT(ROUNDDOWN(K344/AF340,1),"#,##0.0#######") -> 4,855.7 | CX344: =CY344+CZ344+DA344 -> 4855.7 | DA344: =TEXT(X344,"#,###.0") -> 4,855.7 | DM344: D7204-0055
E346: 재료비: | K346: =TEXT(TRUNC(건설기계!$I$434,0),"#,##0") -> 15,761 | R346: / | T346: Q | V346: * | X346: To | AA346: / | AC346: Cm | AF346: = | AH346: =TEXT(ROUNDDOWN(K346/AF340*U338/U336,1),"#,##0.0#######") -> 1,316.4 | CX346: =CY346+CZ346+DA346 -> 1316.4 | DA346: =TEXT(AH346,"#,###.0") -> 1,316.4 | DM346: D7204-0055
A348: ------------------------------------------------------------
B350: 합 | F350: 계 | CX350: =CY350+CZ350+DA350 -> 7366.2 | CY350: =TEXT(TRUNC(CY342+CY344+CY346,1),"#,###.0") -> .0 | CZ350: =TEXT(TRUNC(CZ342+CZ344+CZ346,1),"#,###.0") -> .0 | DA350: =TEXT(TRUNC(DA342+DA344+DA346,1),"#,###.0") -> 7,366.2
A352: 계 | CX352: =TEXT(CY352+CZ352+DA352,"#,##0") -> 7,366 | CY352: =TEXT(TRUNC(CY350,0),"#,##0") -> 0 | CZ352: =TEXT(TRUNC(CZ350,0),"#,##0") -> 0 | DA352: =TEXT(TRUNC(DA350,0),"#,##0") -> 7,366
A354: 산근00100호표 ：노면파쇄기 (0.6M) a 당 | DM354: :SD133-0150
A355: ◈ 노면파쇄기 0.6M ; a당 | CX355: =CY355+CZ355+DA355 -> 0
A357: 1.노면파쇄기 0.6M
D359: W | F359: = | H359: =TEXT(0.6,"#,##0.0#######") -> 0.6 | M359: m 기계의 절삭폭
D361: V | F361: = | H361: =TEXT(40,"#,##0") -> 40 | L361: m/hr 작업속도
D363: t | F363: = | H363: =TEXT(0.05,"#,##0.00#######") -> 0.05 | N363: m 절삭깊이
D365: E | F365: = | H365: =TEXT(0.55,"#,##0.00#######") -> 0.55 | N365: 작업효율 200m이하
D367: Q | F367: = | H367: W | J367: * | L367: V | N367: * | P367: t | R367: * | T367: E | V367: = | X367: =TEXT(ROUND(H359*H361*H363*H365,2),"#,##0.00#######") -> 0.66 | AD367: ㎥/hr
D369: Q1 | G369: = | I369: Q | K369: / | M369: =TEXT(5,"#,##0") -> 5 | O369: = | Q369: =TEXT(ROUND(X367/M369,2),"#,##0.00#######") -> 0.13 | W369: a/hr
E371: 재료비 : | K371: =TEXT(TRUNC(건설기계!$I$409,0),"#,##0") -> 8,760 | R371: / | T371: Q1 | W371: = | Y371: =TEXT(ROUNDDOWN(K371/Q369,1),"#,##0.0#######") -> 67,384.6 | CX371: =CY371+CZ371+DA371 -> 67384.6 | CY371: =TEXT(Y371,"#,###.0") -> 67,384.6 | DM371: D5701-0006
E373: 노무비 : | K373: =TEXT(TRUNC(건설기계!$K$409,0),"#,##0") -> 44,299 | R373: / | T373: Q1 | W373: = | Y373: =TEXT(ROUNDDOWN(K373/Q369,1),"#,##0.0#######") -> 340,761.5 | CX373: =CY373+CZ373+DA373 -> 340761.5 | CZ373: =TEXT(Y373,"#,###.0") -> 340,761.5 | DM373: D5701-0006
E375: 경 비 : | K375: =TEXT(TRUNC(건설기계!$M$409,0),"#,##0") -> 38,707 | R375: / | T375: Q1 | W375: = | Y375: =TEXT(ROUNDDOWN(K375/Q369,1),"#,##0.0#######") -> 297,746.1 | CX375: =CY375+CZ375+DA375 -> 297746.1 | DA375: =TEXT(Y375,"#,###.0") -> 297,746.1 | DM375: D5701-0006
A377: ------------------------------------------------------------
B379: 합 | F379: 계 | CX379: =CY379+CZ379+DA379 -> 705892.2 | CY379: =TEXT(TRUNC(CY371+CY373+CY375,1),"#,###.0") -> 67,384.6 | CZ379: =TEXT(TRUNC(CZ371+CZ373+CZ375,1),"#,###.0") -> 340,761.5 | DA379: =TEXT(TRUNC(DA371+DA373+DA375,1),"#,###.0") -> 297,746.1
A381: 계 | CX381: =TEXT(CY381+CZ381+DA381,"#,##0") -> 705,891 | CY381: =TEXT(TRUNC(CY379,0),"#,##0") -> 67,384 | CZ381: =TEXT(TRUNC(CZ379,0),"#,##0") -> 340,761 | DA381: =TEXT(TRUNC(DA379,0),"#,##0") -> 297,746
A383: 산근00110호표 ：노면파쇄기 (1M) a 당 | DM383: :S0134
A384: ◈ 노면파쇄기 1M ; a당 | CX384: =CY384+CZ384+DA384 -> 0
... 395 more rows

Sheet 건설기계 목록
A1: 건 설 기 계 목 록 표 | DO1: 5
DO2: A
A3: 공 종 | B3: 규 격 | C3: 수 량 | D3: 단위 | E3: 합 계 | F3: 재 료 비 | G3: 노 무 비 | H3: 경 비 | I3: 비 고 | DO3: 70
DO4: I
A5: 히트랜서 | B5: 18m2/hr | C5: 1 | D5: HR | E5: =F5+G5+H5 -> 33862 | F5: =건설기계!I10 -> 4023 | G5: =건설기계!K10 -> 28571 | H5: =건설기계!M10 -> 1268 | I5: D000-0160 | DM5: D000-0160
A6: 아스팔트가열기 | B6: 적외선 | C6: 1 | D6: HR | E6: 117076 | F6: =건설기계!I17 -> 69356 | G6: =건설기계!K17 -> 28571 | H6: =건설기계!M17 -> 19149 | I6: D000-0170 | DM6: D000-0170
A7: 노면파쇄기 | B7: 소형 | C7: 1 | D7: HR | E7: 91766 | F7: =건설기계!I24 -> 8760 | G7: =건설기계!K24 -> 44299 | H7: =건설기계!M24 -> 38707 | I7: D000-0220 | DM7: D000-0220
A8: C.C.TV 카메라 | B8: HAN SAN SYSTEM HS10 | C8: 1 | D8: HR | E8: 31000 | F8: =건설기계!I28 -> 0 | G8: =건설기계!K28 -> 0 | H8: =건설기계!M28 -> 31000 | I8: D00S00011 | DM8: D00S00011
A9: C.C.TV 적재차 | B9: 스타렉스 9인 | C9: 1 | D9: HR | E9: 33378 | F9: =건설기계!I35 -> 2815 | G9: =건설기계!K35 -> 28571 | H9: =건설기계!M35 -> 1992 | I9: D00S00012 | DM9: D00S00012
A10: 불도저(무한궤도) | B10: 19 ton | C10: 1 | D10: 시간 | E10: 111649 | F10: =건설기계!I42 -> 37806 | G10: =건설기계!K42 -> 44299 | H10: =건설기계!M42 -> 29544 | I10: D0101-0019 | DM10: D0101-0019
A11: 불도저(무한궤도) | B11: 32 ton | C11: 1 | D11: 시간 | E11: 147839 | F11: =건설기계!I49 -> 62910 | G11: =건설기계!K49 -> 44299 | H11: =건설기계!M49 -> 40630 | I11: D0101-0032 | DM11: D0101-0032
A12: 굴삭기(무한궤도) | B12: 0.2 ㎥ | C12: 1 | D12: 시간 | E12: 64696 | F12: =건설기계!I56 -> 7887 | G12: =건설기계!K56 -> 44299 | H12: =건설기계!M56 -> 12510 | I12: D0201-0020 | DM12: D0201-0020
A13: 굴삭기(무한궤도) | B13: 0.4 ㎥ | C13: 1 | D13: 시간 | E13: 75473 | F13: =건설기계!I63 -> 15745 | G13: =건설기계!K63 -> 44299 | H13: =건설기계!M63 -> 15429 | I13: D0201-0040 | DM13: D0201-0040
A14: 굴삭기(무한궤도) | B14: 0.6 ㎥ | C14: 1 | D14: 시간 | E14: 81240 | F14: =건설기계!I70 -> 16223 | G14: =건설기계!K70 -> 44299 | H14: =건설기계!M70 -> 20718 | I14: D0201-0060 | DM14: D0201-0060
A15: 굴삭기(무한궤도) | B15: 0.7 ㎥ | C15: 1 | D15: 시간 | E15: 84528 | F15: =건설기계!I77 -> 18449 | G15: =건설기계!K77 -> 44299 | H15: =건설기계!M77 -> 21780 | I15: D0201-0070 | DM15: D0201-0070
A16: 굴삭기(무한궤도) | B16: 0.8 ㎥ | C16: 1 | D16: 시간 | E16: 92084 | F16: =건설기계!I84 -> 24334 | G16: =건설기계!K84 -> 44299 | H16: =건설기계!M84 -> 23451 | I16: D0201-0080 | DM16: D0201-0080
A17: 굴삭기(무한궤도) | B17: 1.0 ㎥ | C17: 1 | D17: 시간 | E17: 101681 | F17: =건설기계!I91 -> 31014 | G17: =건설기계!K91 -> 44299 | H17: =건설기계!M91 -> 26368 | I17: D0201-0100 | DM17: D0201-0100
A18: 굴삭기(타이어) | B18: 0.18 ㎥ | C18: 1 | D18: 시간 | E18: 67708 | F18: =건설기계!I98 -> 9052 | G18: =건설기계!K98 -> 44299 | H18: =건설기계!M98 -> 14357 | I18: D0211-0018 | DM18: D0211-0018
A19: 대형브레이커 | B19: 0.2 ㎥ | C19: 1 | D19: 시간 | E19: 2656 | F19: =건설기계!I102 -> 0 | G19: =건설기계!K102 -> 0 | H19: =건설기계!M102 -> 2656 | I19: D0230-0002 | DM19: D0230-0002
A20: 대형브레이커 | B20: 0.4 ㎥ | C20: 1 | D20: 시간 | E20: 4866 | F20: =건설기계!I106 -> 0 | G20: =건설기계!K106 -> 0 | H20: =건설기계!M106 -> 4866 | I20: D0230-0004 | DM20: D0230-0004
A21: 대형브레이커 | B21: 0.6 ㎥ | C21: 1 | D21: 시간 | E21: 8259 | F21: =건설기계!I110 -> 0 | G21: =건설기계!K110 -> 0 | H21: =건설기계!M110 -> 8259 | I21: D0230-0006 | DM21: D0230-0006
A22: 대형브레이커 | B22: 0.7 ㎥ | C22: 1 | D22: 시간 | E22: 10073 | F22: =건설기계!I114 -> 0 | G22: =건설기계!K114 -> 0 | H22: =건설기계!M114 -> 10073 | I22: D0230-0007 | DM22: D0230-0007
A23: 대형브레이커 | B23: 0.8 ㎥ | C23: 1 | D23: 시간 | E23: 13197 | F23: =건설기계!I118 -> 0 | G23: =건설기계!K118 -> 0 | H23: =건설기계!M118 -> 13197 | I23: D0230-0008 | DM23: D0230-0008
A24: 로더(타이어) | B24: 0.57 ㎥ | C24: 1 | D24: 시간 | E24: 57433 | F24: =건설기계!I125 -> 6570 | G24: =건설기계!K125 -> 44299 | H24: =건설기계!M125 -> 6564 | I24: D0302-0057 | DM24: D0302-0057
A25: 로더(타이어) | B25: 0.95 ㎥ | C25: 1 | D25: 시간 | E25: 64059 | F25: =건설기계!I132 -> 11639 | G25: =건설기계!K132 -> 44299 | H25: =건설기계!M132 -> 8121 | I25: D0302-0095
A26: 모터그레이더 | B26: 3.6 m(일반용) | C26: 1 | D26: 시간 | E26: 115067 | F26: =건설기계!I139 -> 29356 | G26: =건설기계!K139 -> 44299 | H26: =건설기계!M139 -> 41412 | I26: D0502-0036 | DM26: D0502-0036
A27: 덤프트럭 | B27: 2.5 ton | C27: 1 | D27: 시간 | E27: 47328 | F27: =건설기계!I146 -> 5217 | G27: =건설기계!K146 -> 36224 | H27: =건설기계!M146 -> 5887 | I27: D0602-0025 | DM27: D0602-0025
A28: 덤프트럭 | B28: 4.5 ton | C28: 1 | D28: 시간 | E28: 52092 | F28: =건설기계!I153 -> 8995 | G28: =건설기계!K153 -> 36224 | H28: =건설기계!M153 -> 6873 | I28: D0602-0045 | DM28: D0602-0045
A29: 덤프트럭 | B29: 8 ton | C29: 1 | D29: 시간 | E29: 62473 | F29: =건설기계!I160 -> 16731 | G29: =건설기계!K160 -> 36224 | H29: =건설기계!M160 -> 9518 | I29: D0602-0080 | DM29: D0602-0080
A30: 덤프트럭 | B30: 15 ton | C30: 1 | D30: 시간 | E30: 91688 | F30: =건설기계!I167 -> 28605 | G30: =건설기계!K167 -> 44299 | H30: =건설기계!M167 -> 18784 | I30: D0602-0150 | DM30: D0602-0150
A31: 덤프트럭 | B31: 24ton,자동덮개 | C31: 1 | D31: 시간 | E31: 116162 | F31: =건설기계!I175 -> 41379 | G31: =건설기계!K175 -> 44299 | H31: =건설기계!M175 -> 30484 | I31: D0602-0240 | DM31: D0602-0240
A32: 카고트럭(더블캡) | B32: 1 ton | C32: 1 | D32: 시간 | E32: =F32+G32+H32 -> 45484 | F32: =건설기계!I182 -> 5217 | G32: =건설기계!K182 -> 36224 | H32: =건설기계!M182 -> 4043 | I32: D0604-0010 | DM32: D0602-0240
A33: 머캐덤롤러(자주식) | B33: 8~10 ton | C33: 1 | D33: 시간 | E33: 64566 | F33: =건설기계!I189 -> 11691 | G33: =건설기계!K189 -> 44299 | H33: =건설기계!M189 -> 8576 | I33: D1106-0010 | DM33: D1106-0010
A34: 머캐덤롤러(자주식) | B34: 10~12 ton | C34: 1 | D34: 시간 | E34: 69312 | F34: =건설기계!I196 -> 14306 | G34: =건설기계!K196 -> 44299 | H34: =건설기계!M196 -> 10707 | I34: D1106-0012 | DM34: D1106-0012
A35: 탠덤롤러(진동자주식) | B35: 4ton | C35: 1 | D35: 시간 | E35: 65042 | F35: =건설기계!I203 -> 11545 | G35: =건설기계!K203 -> 44299 | H35: =건설기계!M203 -> 9198 | I35: D1206-0008 | DM35: D1206-0008
A36: 탠덤롤러(자주식) | B36: 5~8 ton | C36: 1 | D36: 시간 | E36: 60245 | F36: =건설기계!I210 -> 7691 | G36: =건설기계!K210 -> 44299 | H36: =건설기계!M210 -> 8255 | I36: D1206-00158 | DM36: D1206-00158
A37: 탠덤롤러(자주식) | B37: 10~14 ton | C37: 1 | D37: 시간 | E37: 66741 | F37: =건설기계!I217 -> 12922 | G37: =건설기계!K217 -> 44299 | H37: =건설기계!M217 -> 9520 | I37: D1206-0014 | DM37: D1206-0014
A38: 진동롤러(핸드가이드식) | B38: 0.7 ton | C38: 1 | D38: 시간 | E38: 49251 | F38: =건설기계!I224 -> 3240 | G38: =건설기계!K224 -> 44299 | H38: =건설기계!M224 -> 1712 | I38: D1305-0007 | DM38: D1305-0007
A39: 진동롤러(자주식) | B39: 2.5 ton | C39: 1 | D39: 시간 | E39: =F39+G39+H39 -> 52321 | F39: =건설기계!I231 -> 3388 | G39: =건설기계!K231 -> 44299 | H39: =건설기계!M231 -> 4634 | I39: D1306-0025 | DM39: D1306-0025
A40: 진동롤러(자주식) | B40: 10.0 ton | C40: 1 | D40: 시간 | E40: 93008 | F40: =건설기계!I238 -> 24405 | G40: =건설기계!K238 -> 44299 | H40: =건설기계!M238 -> 24304 | I40: D1306-0100 | DM40: D1306-0100
A41: 진동롤러(자주식) | B41: 12.0 ton | C41: 1 | D41: 시간 | E41: =F41+G41+H41 -> 97066 | F41: =건설기계!I245 -> 26777 | G41: =건설기계!K245 -> 44299 | H41: =건설기계!M245 -> 25990 | I41: D1306-0120 | DM41: D1306-0100
A42: 타이어롤러(자주식) | B42: 5~8 ton | C42: 1 | D42: 시간 | E42: 62784 | F42: =건설기계!I252 -> 7857 | G42: =건설기계!K252 -> 44299 | H42: =건설기계!M252 -> 10628 | I42: D1406-0008 | DM42: D1406-0008
A43: 타이어롤러(자주식) | B43: 8~15 ton | C43: 1 | D43: 시간 | E43: 73756 | F43: =건설기계!I259 -> 12828 | G43: =건설기계!K259 -> 44299 | H43: =건설기계!M259 -> 16629 | I43: D1406-0015 | DM43: D1406-0015
A44: 래머 | B44: 80 ㎏ | C44: 1 | D44: 시간 | E44: 30182 | F44: =건설기계!I266 -> 1154 | G44: =건설기계!K266 -> 28571 | H44: =건설기계!M266 -> 457 | I44: D1630-0080 | DM44: D1630-0080
A45: 플레이트콤팩트 | B45: 1.5 ton | C45: 1 | D45: 시간 | E45: 30909 | F45: =건설기계!I273 -> 1799 | G45: =건설기계!K273 -> 28571 | H45: =건설기계!M273 -> 539 | I45: D1730-0015 | DM45: D1730-0015
A46: 크레인(타이어) | B46: 10 ton | C46: 1 | D46: 시간 | E46: 79404 | F46: =건설기계!I280 -> 6886 | G46: =건설기계!K280 -> 44299 | H46: =건설기계!M280 -> 28219 | I46: D2104-0010 | DM46: D2104-0010
A47: 트럭탑재형크레인 | B47: 5 ton | C47: 1 | D47: 시간 | E47: 53671 | F47: =건설기계!I287 -> 7978 | G47: =건설기계!K287 -> 36224 | H47: =건설기계!M287 -> 9469 | I47: D2105-0005 | DM47: D2105-0005
A48: 트럭탑재형크레인 | B48: 10 ton | C48: 1 | D48: 시간 | E48: 72827 | F48: =건설기계!I294 -> 16113 | G48: =건설기계!K294 -> 36224 | H48: =건설기계!M294 -> 20490 | I48: D2105-0010 | DM48: D2105-0010
A49: 트럭탑재형크레인 | B49: 15 ton | C49: 1 | D49: 시간 | E49: 80086 | F49: =건설기계!I301 -> 17208 | G49: =건설기계!K301 -> 36224 | H49: =건설기계!M301 -> 26654 | I49: D2105-0015 | DM49: D2105-0015
A50: 지게차 | B50: 2.5 ton | C50: 1 | D50: 시간 | E50: 55127 | F50: =건설기계!I308 -> 7144 | G50: =건설기계!K308 -> 44299 | H50: =건설기계!M308 -> 3684 | I50: D2502-0025 | DM50: D2502-0025
A51: 트럭트랙터 및 평판트레일러 | B51: 20 ton | C51: 1 | D51: 시간 | E51: 89554 | F51: =건설기계!I315 -> 29900 | G51: =건설기계!K315 -> 44299 | H51: =건설기계!M315 -> 15355 | I51: D2702-0020 | DM51: D2702-0020
A52: 트레일러 | B52: 30 ton | C52: 1 | D52: 시간 | E52: =F52+G52+H52 -> 96157 | F52: =건설기계!I322 -> 31168 | G52: =건설기계!K322 -> 44299 | H52: =건설기계!M322 -> 20690 | I52: D2702-0030 | DM52: D2702-0020
A53: 아스팔트 피니셔 | B53: 1.7 m | C53: 1 | D53: 시간 | E53: 100003 | F53: =건설기계!I329 -> 9764 | G53: =건설기계!K329 -> 44299 | H53: =건설기계!M329 -> 45940 | I53: D3201-0001 | DM53: D3201-0003
A54: 아스팔트 피니셔 | B54: 3 m | C54: 1 | D54: 시간 | E54: 111437 | F54: =건설기계!I336 -> 18134 | G54: =건설기계!K336 -> 44299 | H54: =건설기계!M336 -> 49004 | I54: D3201-0003 | DM54: D3201-0003
A55: 아스팔트 스프레이어 | B55: 300 ℓ | C55: 1 | D55: 시간 | E55: 46075 | F55: =건설기계!I343 -> 1271 | G55: =건설기계!K343 -> 44299 | H55: =건설기계!M343 -> 505 | I55: D3430-0300 | DM55: D3430-0300
A56: 아스팔트 스프레이어 | B56: 400 ℓ | C56: 1 | D56: 시간 | E56: 46893 | F56: =건설기계!I350 -> 1907 | G56: =건설기계!K350 -> 44299 | H56: =건설기계!M350 -> 687 | I56: D3430-0400 | DM56: D3430-0400
A57: 아스팔트 디스트리뷰터 | B57: 3800 ℓ | C57: 1 | D57: 시간 | E57: =F57+G57+H57 -> 76422 | F57: =건설기계!I357 -> 17762 | G57: =건설기계!K357 -> 44299 | H57: =건설기계!M357 -> 14361 | I57: D3302-0038 | DM57: D3430-0400
A58: 콘크리트 믹서 | B58: 0.20 ㎥ | C58: 1 | D58: 시간 | E58: 31530 | F58: =건설기계!I364 -> 1988 | G58: =건설기계!K364 -> 28571 | H58: =건설기계!M364 -> 971 | I58: D4205-0020 | DM58: D4205-0020
A59: 콘크리트 믹서 | B59: 0.45 ㎥ | C59: 1 | D59: 시간 | E59: 36040 | F59: =건설기계!I371 -> 5964 | G59: =건설기계!K371 -> 28571 | H59: =건설기계!M371 -> 1505 | I59: D4205-0045 | DM59: D4205-0045
A60: 커터(콘크리트 및 아스팔트용) | B60: 320~400 mm | C60: 1 | D60: 시간 | E60: 40423 | F60: =건설기계!I378 -> 10075 | G60: =건설기계!K378 -> 28571 | H60: =건설기계!M378 -> 1777 | I60: D4430-0400 | DM60: D4430-0400
A61: 콘크리트 진동기(엔진식) | B61: 2.6 kW | C61: 1 | D61: 시간 | E61: 1769 | F61: =건설기계!I384 -> 1649 | G61: =건설기계!K384 -> 0 | H61: =건설기계!M384 -> 120 | I61: D4611-0350 | DM61: D4611-0350
A62: 공기압축기(이동식) | B62: 3.5 ㎥/min | C62: 1 | D62: 시간 | E62: 40107 | F62: =건설기계!I391 -> 9376 | G62: =건설기계!K391 -> 28571 | H62: =건설기계!M391 -> 2160 | I62: D5205-0035 | DM62: D5205-0035
A63: 공기압축기(이동식) | B63: 7.1 ㎥/min | C63: 1 | D63: 시간 | E63: 46822 | F63: =건설기계!I398 -> 15122 | G63: =건설기계!K398 -> 28571 | H63: =건설기계!M398 -> 3129 | I63: D5205-0071 | DM63: D5205-0071
A64: 소형브레이커(공압식) | B64: (1.3 ㎥/min) | C64: 1 | D64: 시간 | E64: 433 | F64: =건설기계!I402 -> 0 | G64: =건설기계!K402 -> 0 | H64: =건설기계!M402 -> 433 | I64: D5210-0025 | DM64: D5210-0025
A65: 소형노면파쇄기 | B65: 0.6 m | C65: 1 | D65: HR | E65: 91766 | F65: =건설기계!I409 -> 8760 | G65: =건설기계!K409 -> 44299 | H65: =건설기계!M409 -> 38707 | I65: D5701-0006 | DM65: D5701-0006
A66: 노면파쇄기 | B66: 1.0 m | C66: 1 | D66: 시간 | E66: 175041 | F66: =건설기계!I416 -> 21020 | G66: =건설기계!K416 -> 44299 | H66: =건설기계!M416 -> 109722 | I66: D5701-0010 | DM66: D5701-0010
A67: 노면파쇄기 | B67: 2.0 m | C67: 1 | D67: 시간 | E67: 273395 | F67: =건설기계!I423 -> 79697 | G67: =건설기계!K423 -> 44299 | H67: =건설기계!M423 -> 149399 | I67: D5701-0020 | DM67: D5701-0020
A68: 하수관 천공기 | B68: 수동식 | C68: 1 | D68: 시간 | E68: 278 | F68: =건설기계!I427 -> 0 | G68: =건설기계!K427 -> 0 | H68: =건설기계!M427 -> 278 | I68: D7103-0010 | DM68: D7103-0010
A69: 물탱크(살수차) | B69: 5500 ℓ | C69: 1 | D69: 시간 | E69: 60893 | F69: =건설기계!I434 -> 15761 | G69: =건설기계!K434 -> 36224 | H69: =건설기계!M434 -> 8908 | I69: D7204-0055 | DM69: D7204-0055
A70: 물탱크(살수차) | B70: 16000 ℓ | C70: 1 | D70: 시간 | E70: 75171 | F70: =건설기계!I441 -> 21862 | G70: =건설기계!K441 -> 36224 | H70: =건설기계!M441 -> 17085 | I70: D7204-0160 | DM70: D7204-0160
A71: 차선제거기 | B71: 4.10kW | C71: 1 | D71: 시간 | E71: 41851 | F71: =건설기계!I448 -> 9949 | G71: =건설기계!K448 -> 28571 | H71: =건설기계!M448 -> 3331 | I71: D7360-0055 | DM71: D7360-0055
A72: 발전기 | B72: 25 ㎾ | C72: 1 | D72: 시간 | E72: 38567 | F72: =건설기계!I455 -> 6951 | G72: =건설기계!K455 -> 28571 | H72: =건설기계!M455 -> 3045 | I72: D7505-0025 | DM72: D7505-0025
A73: 발전기 | B73: 50 ㎾ | C73: 1 | D73: 시간 | E73: 46818 | F73: =건설기계!I462 -> 14064 | G73: =건설기계!K462 -> 28571 | H73: =건설기계!M462 -> 4183 | I73: D7505-0050 | DM73: D7505-0050
A74: 발전기 | B74: 100 ㎾ | C74: 1 | D74: 시간 | E74: 61781 | F74: =건설기계!I469 -> 28128 | G74: =건설기계!K469 -> 28571 | H74: =건설기계!M469 -> 5082 | I74: D7505-0100 | DM74: D7505-0100
A75: 용접기(교류) | B75: 200 Amp | C75: 1 | D75: 시간 | E75: =F75+G75+H75 -> 82 | F75: =건설기계!I473 -> 0 | G75: =건설기계!K473 -> 0 | H75: =건설기계!M473 -> 82 | I75: D7611-0200 | DM75: D7611-0200
A76: 건식 그루버 | B76: 50HP | C76: 1 | D76: HR | E76: =F76+G76+H76 -> 105880 | F76: =건설기계!I480 -> 30046 | G76: =건설기계!K480 -> 0 | H76: =건설기계!M480 -> 75834 | I76: D000-0110 | DM76: D000-0110
A77: 동력분무기 | B77: 4.85kw | C77: 1 | D77: HR | E77: =F77+G77+H77 -> 13723 | F77: =건설기계!I497 -> 13493 | G77: =건설기계!K497 -> 0 | H77: =건설기계!M497 -> 230 | I77: D7210-0485 | DM77: D000-0110
A78: 소형노면파쇄기 | B78: 0.95 ㎥ | C78: 1 | D78: 시간 | E78: =F78+G78+H78 -> 10097 | F78: =건설기계!I501 -> 0 | G78: =건설기계!K501 -> 0 | H78: =건설기계!M501 -> 10097 | I78: D5702-0095

Sheet 건설기계
B1: 건 설 기 계 손 료 | DP1: 5
DP2: A
B3: 구 분 | C3: 규 격 | D3: 수량 | E3: 단위 | F3: 합 계 | H3: 재 료 비 | J3: 노 무 비 | L3: 경 비 | N3: 비 고 | DP3: 438
F4: 단 가 | G4: 금 액 | H4: 단 가 | I4: 금 액 | J4: 단 가 | K4: 금 액 | L4: 단 가 | M4: 금 액 | DP4: M
B5: ：히트랜서 (18m2/hr) | DN5: :D000-0160
B6: 기계손료 | D6: =2588*10^-7*1000 -> 0.2588 | F6: =H6+J6+L6 -> 4900 | G6: 1268.1 | H6: 0 | I6: =TRUNC(D6*H6,1) -> 0 | J6: 0 | K6: =TRUNC(D6*J6,1) -> 0 | L6: 4900 | M6: =TRUNC(D6*L6,1) -> 1268.1 | DN6: %SON-LYO | DO6: 2588
B7: 일반기계운전사 | D7: 1 | E7: 인 | F7: 28571 | G7: 28571 | H7: 0 | I7: =TRUNC(D7*H7,1) -> 0 | J7: =TRUNC(노임단가!K9*16/12*1/8*25/20,0) -> 28571 | K7: =TRUNC(D7*J7,1) -> 28571 | L7: 0 | M7: =TRUNC(D7*L7,1) -> 0 | DN7: W1050
B8: 프로판가스 | C8: 프로판가스 | D8: 3.75 | E8: ㎏ | F8: 894 | G8: 3352.5 | H8: =자재단가!R94 -> 894 | I8: =TRUNC(D8*H8,1) -> 3352.5 | J8: 0 | K8: =TRUNC(D8*J8,1) -> 0 | L8: 0 | M8: =TRUNC(D8*L8,1) -> 0 | DN8: M9384003
B9: 잡 품 | C9: 주연료비의 % | D9: 20 | E9: % | F9: 3352.5 | G9: 670.5 | H9: =SUM(I6:I8) -> 3352.5 | I9: =TRUNC(D9/100*H9,1) -> 670.5 | J9: 0 | K9: =TRUNC(D9/100*J9,1) -> 0 | L9: 0 | M9: =TRUNC(D9/100*L9,1) -> 0 | DN9: %RAN*MM
B10: 계 | G10: =I10+K10+M10 -> 33862 | I10: =ROUNDDOWN(SUM(I6:I9),0) -> 4023 | K10: =ROUNDDOWN(SUM(K6:K9),0) -> 28571 | M10: =ROUNDDOWN(SUM(M6:M9),0) -> 1268
B12: ：아스팔트가열기 (적외선) | DN12: :D000-0170
B13: 주 연 료 | C13: 경 유 | D13: 38 | E13: ℓ | F13: =H13+J13+L13 -> 1303.69 | G13: 49540.2 | H13: =자재단가!R7 -> 1303.69 | I13: =TRUNC(D13*H13,1) -> 49540.2 | J13: 0 | K13: =TRUNC(D13*J13,1) -> 0 | L13: 0 | M13: =TRUNC(D13*L13,1) -> 0 | DN13: M0000-101
B14: 잡 품 | C14: 주연료비의 % | D14: 40 | E14: % | F14: 49540.2 | G14: 19816 | H14: =I13 -> 49540.2 | I14: =TRUNC(D14/100*H14,1) -> 19816 | J14: 0 | K14: =TRUNC(D14/100*J14,1) -> 0 | L14: 0 | M14: =TRUNC(D14/100*L14,1) -> 0 | DN14: %RAN*MM
B15: 일반기계운전사 | D15: 1 | E15: 인 | F15: 28571 | G15: 28571 | H15: 0 | I15: =TRUNC(D15*H15,1) -> 0 | J15: =TRUNC(노임단가!K9*16/12*1/8*25/20,0) -> 28571 | K15: =TRUNC(D15*J15,1) -> 28571 | L15: 0 | M15: =TRUNC(D15*L15,1) -> 0 | DN15: W1050
B16: 기계손료 | D16: =3030*10^-7*1000 -> 0.303 | F16: 63200 | G16: 19149.6 | H16: 0 | I16: =TRUNC(D16*H16,1) -> 0 | J16: 0 | K16: =TRUNC(D16*J16,1) -> 0 | L16: 63200 | M16: =TRUNC(D16*L16,1) -> 19149.6 | DN16: %SON-LYO | DO16: 3030
B17: 계 | G17: =I17+K17+M17 -> 117076 | I17: =ROUNDDOWN(SUM(I13:I16),0) -> 69356 | K17: =ROUNDDOWN(SUM(K13:K16),0) -> 28571 | M17: =ROUNDDOWN(SUM(M13:M16),0) -> 19149
B19: ：노면파쇄기 (소형) | DN19: :D000-0220
B20: 기계손료 | D20: 0.4032 | F20: =H20+J20+L20 -> 96000 | G20: 38707.2 | H20: 0 | I20: =TRUNC(D20*H20,1) -> 0 | J20: 0 | K20: =TRUNC(D20*J20,1) -> 0 | L20: 96000 | M20: =TRUNC(D20*L20,1) -> 38707.2 | DN20: %SON-LYO | DO20: 6639
B21: 경 유 | C21: 휘 발 유 | D21: 5.6 | E21: ℓ | F21: 1303.69 | G21: 7300.6 | H21: =자재단가!R7 -> 1303.69 | I21: =TRUNC(D21*H21,1) -> 7300.6 | J21: 0 | K21: =TRUNC(D21*J21,1) -> 0 | L21: 0 | M21: =TRUNC(D21*L21,1) -> 0 | DN21: M0000-100
B22: 잡 품 | C22: 주연료비의 % | D22: 20 | E22: % | F22: 7300.6 | G22: 1460.1 | H22: =SUM(I20:I21) -> 7300.6 | I22: =TRUNC(D22/100*H22,1) -> 1460.1 | J22: 0 | K22: =TRUNC(D22/100*J22,1) -> 0 | L22: 0 | M22: =TRUNC(D22/100*L22,1) -> 0 | DN22: %RAN*MM
B23: 건설기계운전사 | D23: 1 | E23: 인 | F23: 44299 | G23: 44299 | H23: 0 | I23: =TRUNC(D23*H23,1) -> 0 | J23: =TRUNC(노임단가!K6*16/12*1/8*25/20,0) -> 44299 | K23: =TRUNC(D23*J23,1) -> 44299 | L23: 0 | M23: =TRUNC(D23*L23,1) -> 0 | DN23: W1050
B24: 계 | G24: =I24+K24+M24 -> 91766 | I24: =ROUNDDOWN(SUM(I20:I23),0) -> 8760 | K24: =ROUNDDOWN(SUM(K20:K23),0) -> 44299 | M24: =ROUNDDOWN(SUM(M20:M23),0) -> 38707
B26: ：C.C.TV 카메라 (HAN SAN SYSTEM HS10) | DN26: :D00S00011
B27: 기계손료 | C27: HAN SAN SYSTEM HS10 | D27: =(5000+0+0)*10^-7*1000 -> 0.5 | F27: =H27+J27+L27 -> 62000 | G27: =I27+K27+M27 -> 31000 | H27: 0 | I27: =TRUNC(D27*H27,1) -> 0 | J27: 0 | K27: =TRUNC(D27*J27,1) -> 0 | L27: 62000 | M27: =TRUNC(D27*L27,1) -> 31000 | DN27: %SON-LYO | DO27: (5000+0+0)
B28: 계 | G28: =I28+K28+M28 -> 31000 | I28: =ROUNDDOWN(SUM(I27:I27),0) -> 0 | K28: =ROUNDDOWN(SUM(K27:K27),0) -> 0 | M28: =ROUNDDOWN(SUM(M27:M27),0) -> 31000
B30: ：C.C.TV 적재차 (스타렉스 9인) | DN30: :D00S00012
B31: 기계손료 | C31: 스타렉스9인승 | D31: =(1476+0+0)*10^-7*1000 -> 0.1476 | F31: =H31+J31+L31 -> 13500 | G31: 1992.6 | H31: 0 | I31: =TRUNC(D31*H31,1) -> 0 | J31: 0 | K31: =TRUNC(D31*J31,1) -> 0 | L31: 13500 | M31: =TRUNC(D31*L31,1) -> 1992.6 | DN31: %SON-LYO | DO31: (1476+0+0)
B32: 일반기계운전사 | D32: 1 | E32: 인 | F32: 28571 | G32: 28571 | H32: 0 | I32: =TRUNC(D32*H32,1) -> 0 | J32: =TRUNC(노임단가!K9*16/12*1/8*25/20,0) -> 28571 | K32: =TRUNC(D32*J32,1) -> 28571 | L32: 0 | M32: =TRUNC(D32*L32,1) -> 0 | DN32: W1050
B33: 경유 | C33: 경 유 | D33: 1.8 | E33: ℓ | F33: 1303.69 | G33: 2346.6 | H33: =자재단가!R7 -> 1303.69 | I33: =TRUNC(D33*H33,1) -> 2346.6 | J33: 0 | K33: =TRUNC(D33*J33,1) -> 0 | L33: 0 | M33: =TRUNC(D33*L33,1) -> 0 | DN33: M0000-101
B34: 잡 품 | D34: 20 | E34: % | F34: 2346.6 | G34: 469.3 | H34: =SUM(I31:I33) -> 2346.6 | I34: =TRUNC(D34/100*H34,1) -> 469.3 | J34: 0 | K34: =TRUNC(D34/100*J34,1) -> 0 | L34: 0 | M34: =TRUNC(D34/100*L34,1) -> 0 | DN34: %RAN*MM
B35: 계 | G35: =I35+K35+M35 -> 33378 | I35: =ROUNDDOWN(SUM(I31:I34),0) -> 2815 | K35: =ROUNDDOWN(SUM(K31:K34),0) -> 28571 | M35: =ROUNDDOWN(SUM(M31:M34),0) -> 1992
B37: ：불도저(무한궤도) [19 ton] | DN37: :D0101-0019
B38: 경 유 | C38: 경 유 | D38: 25 | E38: ℓ | F38: =H38+J38+L38 -> 1303.69 | G38: 32592.2 | H38: =자재단가!R7 -> 1303.69 | I38: =TRUNC(D38*H38,1) -> 32592.2 | J38: 0 | K38: =TRUNC(D38*J38,1) -> 0 | L38: 0 | M38: =TRUNC(D38*L38,1) -> 0 | DN38: M0000-101
B39: 잡 품 | C39: 주연료비의 % | D39: 16 | E39: % | F39: 32592.2 | G39: 5214.7 | H39: =I38 -> 32592.2 | I39: =TRUNC(D39/100*H39,1) -> 5214.7 | J39: 0 | K39: =TRUNC(D39/100*J39,1) -> 0 | L39: 0 | M39: =TRUNC(D39/100*L39,1) -> 0 | DN39: %RAN*MM | DO39: 1
B40: 건설기계운전사 | D40: 1 | E40: 인 | F40: 44299 | G40: 44299 | H40: 0 | I40: =TRUNC(D40*H40,1) -> 0 | J40: =TRUNC(노임단가!K6*16/12*1/8*25/20,0) -> 44299 | K40: =TRUNC(D40*J40,1) -> 44299 | L40: 0 | M40: =TRUNC(D40*L40,1) -> 0 | DN40: W1048
B41: 기계손료 | C41: 상각비:750/정비비:583/관리비:478 | D41: =1811*10^-7*1000 -> 0.1811 | F41: 163140 | G41: 29544.6 | H41: 0 | I41: =TRUNC(D41*H41,1) -> 0 | J41: 0 | K41: =TRUNC(D41*J41,1) -> 0 | L41: 163140 | M41: =TRUNC(D41*L41,1) -> 29544.6 | DN41: %SON-LYO | DO41: 1763
B42: 계 | G42: =I42+K42+M42 -> 111649 | I42: =ROUNDDOWN(SUM(I38:I41),0) -> 37806 | K42: =ROUNDDOWN(SUM(K38:K41),0) -> 44299 | M42: =ROUNDDOWN(SUM(M38:M41),0) -> 29544
B44: ：불도저(무한궤도) [32 ton] | DN44: :D0101-0032
B45: 경 유 | C45: 경 유 | D45: 41.6 | E45: ℓ | F45: =H45+J45+L45 -> 1303.69 | G45: 54233.5 | H45: =자재단가!R7 -> 1303.69 | I45: =TRUNC(D45*H45,1) -> 54233.5 | J45: 0 | K45: =TRUNC(D45*J45,1) -> 0 | L45: 0 | M45: =TRUNC(D45*L45,1) -> 0 | DN45: M0000-101
B46: 잡 품 | C46: 주연료비의 % | D46: 16 | E46: % | F46: 54233.5 | G46: 8677.3 | H46: =I45 -> 54233.5 | I46: =TRUNC(D46/100*H46,1) -> 8677.3 | J46: 0 | K46: =TRUNC(D46/100*J46,1) -> 0 | L46: 0 | M46: =TRUNC(D46/100*L46,1) -> 0 | DN46: %RAN*MM | DO46: 1
B47: 건설기계운전사 | D47: 1 | E47: 인 | F47: 44299 | G47: 44299 | H47: 0 | I47: =TRUNC(D47*H47,1) -> 0 | J47: =TRUNC(노임단가!K6*16/12*1/8*25/20,0) -> 44299 | K47: =TRUNC(D47*J47,1) -> 44299 | L47: 0 | M47: =TRUNC(D47*L47,1) -> 0 | DN47: W1048
B48: 기계손료 | C48: 상각비:750/정비비:583/관리비:478 | D48: =1811*10^-7*1000 -> 0.1811 | F48: 224355 | G48: 40630.6 | H48: 0 | I48: =TRUNC(D48*H48,1) -> 0 | J48: 0 | K48: =TRUNC(D48*J48,1) -> 0 | L48: 224355 | M48: =TRUNC(D48*L48,1) -> 40630.6 | DN48: %SON-LYO | DO48: 1763
B49: 계 | G49: =I49+K49+M49 -> 147839 | I49: =ROUNDDOWN(SUM(I45:I48),0) -> 62910 | K49: =ROUNDDOWN(SUM(K45:K48),0) -> 44299 | M49: =ROUNDDOWN(SUM(M45:M48),0) -> 40630
B51: ：굴삭기(무한궤도) [0.2 ㎥] | DN51: :D0201-0020
B52: 경 유 | C52: 경 유 | D52: 5 | E52: ℓ | F52: =H52+J52+L52 -> 1303.69 | G52: 6518.4 | H52: =자재단가!R7 -> 1303.69 | I52: =TRUNC(D52*H52,1) -> 6518.4 | J52: 0 | K52: =TRUNC(D52*J52,1) -> 0 | L52: 0 | M52: =TRUNC(D52*L52,1) -> 0 | DN52: M0000-101
B53: 잡 품 | C53: 주연료비의 % | D53: 21 | E53: % | F53: 6518.4 | G53: 1368.8 | H53: =I52 -> 6518.4 | I53: =TRUNC(D53/100*H53,1) -> 1368.8 | J53: 0 | K53: =TRUNC(D53/100*J53,1) -> 0 | L53: 0 | M53: =TRUNC(D53/100*L53,1) -> 0 | DN53: %RAN*MM | DO53: 1
B54: 건설기계운전사 | D54: 1 | E54: 인 | F54: 44299 | G54: 44299 | H54: 0 | I54: =TRUNC(D54*H54,1) -> 0 | J54: =TRUNC(노임단가!K6*16/12*1/8*25/20,0) -> 44299 | K54: =TRUNC(D54*J54,1) -> 44299 | L54: 0 | M54: =TRUNC(D54*L54,1) -> 0 | DN54: W1048
B55: 기계손료 | C55: 상각비:900/정비비:700/관리비:485 | D55: =2085*10^-7*1000 -> 0.2085 | F55: 60000 | G55: 12510 | H55: 0 | I55: =TRUNC(D55*H55,1) -> 0 | J55: 0 | K55: =TRUNC(D55*J55,1) -> 0 | L55: 60000 | M55: =TRUNC(D55*L55,1) -> 12510 | DN55: %SON-LYO | DO55: 2038
B56: 계 | G56: =I56+K56+M56 -> 64696 | I56: =ROUNDDOWN(SUM(I52:I55),0) -> 7887 | K56: =ROUNDDOWN(SUM(K52:K55),0) -> 44299 | M56: =ROUNDDOWN(SUM(M52:M55),0) -> 12510
B58: ：굴삭기(무한궤도) [0.4 ㎥] | DN58: :D0201-0040
B59: 경 유 | C59: 경 유 | D59: 9.9 | E59: ℓ | F59: =H59+J59+L59 -> 1303.69 | G59: 12906.5 | H59: =자재단가!R7 -> 1303.69 | I59: =TRUNC(D59*H59,1) -> 12906.5 | J59: 0 | K59: =TRUNC(D59*J59,1) -> 0 | L59: 0 | M59: =TRUNC(D59*L59,1) -> 0 | DN59: M0000-101
B60: 잡 품 | C60: 주연료비의 % | D60: 22 | E60: % | F60: 12906.5 | G60: 2839.4 | H60: =I59 -> 12906.5 | I60: =TRUNC(D60/100*H60,1) -> 2839.4 | J60: 0 | K60: =TRUNC(D60/100*J60,1) -> 0 | L60: 0 | M60: =TRUNC(D60/100*L60,1) -> 0 | DN60: %RAN*MM | DO60: 1
B61: 건설기계운전사 | D61: 1 | E61: 인 | F61: 44299 | G61: 44299 | H61: 0 | I61: =TRUNC(D61*H61,1) -> 0 | J61: =TRUNC(노임단가!K6*16/12*1/8*25/20,0) -> 44299 | K61: =TRUNC(D61*J61,1) -> 44299 | L61: 0 | M61: =TRUNC(D61*L61,1) -> 0 | DN61: W1048
B62: 기계손료 | C62: 상각비:900/정비비:700/관리비:485 | D62: =2085*10^-7*1000 -> 0.2085 | F62: 74000 | G62: 15429 | H62: 0 | I62: =TRUNC(D62*H62,1) -> 0 | J62: 0 | K62: =TRUNC(D62*J62,1) -> 0 | L62: 74000 | M62: =TRUNC(D62*L62,1) -> 15429 | DN62: %SON-LYO | DO62: 2038
B63: 계 | G63: =I63+K63+M63 -> 75473 | I63: =ROUNDDOWN(SUM(I59:I62),0) -> 15745 | K63: =ROUNDDOWN(SUM(K59:K62),0) -> 44299 | M63: =ROUNDDOWN(SUM(M59:M62),0) -> 15429
B65: ：굴삭기(무한궤도) [0.6 ㎥] | DN65: :D0201-0060
B66: 경 유 | C66: 경 유 | D66: 10.2 | E66: ℓ | F66: =H66+J66+L66 -> 1303.69 | G66: 13297.6 | H66: =자재단가!R7 -> 1303.69 | I66: =TRUNC(D66*H66,1) -> 13297.6 | J66: 0 | K66: =TRUNC(D66*J66,1) -> 0 | L66: 0 | M66: =TRUNC(D66*L66,1) -> 0 | DN66: M0000-101
B67: 잡 품 | C67: 주연료비의 % | D67: 22 | E67: % | F67: 13297.6 | G67: 2925.4 | H67: =I66 -> 13297.6 | I67: =TRUNC(D67/100*H67,1) -> 2925.4 | J67: 0 | K67: =TRUNC(D67/100*J67,1) -> 0 | L67: 0 | M67: =TRUNC(D67/100*L67,1) -> 0 | DN67: %RAN*MM | DO67: 1
B68: 건설기계운전사 | D68: 1 | E68: 인 | F68: 44299 | G68: 44299 | H68: 0 | I68: =TRUNC(D68*H68,1) -> 0 | J68: =TRUNC(노임단가!K6*16/12*1/8*25/20,0) -> 44299 | K68: =TRUNC(D68*J68,1) -> 44299 | L68: 0 | M68: =TRUNC(D68*L68,1) -> 0 | DN68: W1048
B69: 기계손료 | C69: 상각비:900/정비비:700/관리비:485 | D69: =2085*10^-7*1000 -> 0.2085 | F69: 99370 | G69: 20718.6 | H69: 0 | I69: =TRUNC(D69*H69,1) -> 0 | J69: 0 | K69: =TRUNC(D69*J69,1) -> 0 | L69: 99370 | M69: =TRUNC(D69*L69,1) -> 20718.6 | DN69: %SON-LYO | DO69: 2038
B70: 계 | G70: =I70+K70+M70 -> 81240 | I70: =ROUNDDOWN(SUM(I66:I69),0) -> 16223 | K70: =ROUNDDOWN(SUM(K66:K69),0) -> 44299 | M70: =ROUNDDOWN(SUM(M66:M69),0) -> 20718
B72: ：굴삭기(무한궤도) [0.7 ㎥] | DN72: :D0201-0070
B73: 경 유 | C73: 경 유 | D73: 11.6 | E73: ℓ | F73: =H73+J73+L73 -> 1303.69 | G73: 15122.8 | H73: =자재단가!R7 -> 1303.69 | I73: =TRUNC(D73*H73,1) -> 15122.8 | J73: 0 | K73: =TRUNC(D73*J73,1) -> 0 | L73: 0 | M73: =TRUNC(D73*L73,1) -> 0 | DN73: M0000-101
B74: 잡 품 | C74: 주연료비의 % | D74: 22 | E74: % | F74: 15122.8 | G74: 3327 | H74: =I73 -> 15122.8 | I74: =TRUNC(D74/100*H74,1) -> 3327 | J74: 0 | K74: =TRUNC(D74/100*J74,1) -> 0 | L74: 0 | M74: =TRUNC(D74/100*L74,1) -> 0 | DN74: %RAN*MM | DO74: 1
B75: 건설기계운전사 | D75: 1 | E75: 인 | F75: 44299 | G75: 44299 | H75: 0 | I75: =TRUNC(D75*H75,1) -> 0 | J75: =TRUNC(노임단가!K6*16/12*1/8*25/20,0) -> 44299 | K75: =TRUNC(D75*J75,1) -> 44299 | L75: 0 | M75: =TRUNC(D75*L75,1) -> 0 | DN75: W1048
B76: 기계손료 | C76: 상각비:900/정비비:700/관리비:485 | D76: =2085*10^-7*1000 -> 0.2085 | F76: 104465 | G76: 21780.9 | H76: 0 | I76: =TRUNC(D76*H76,1) -> 0 | J76: 0 | K76: =TRUNC(D76*J76,1) -> 0 | L76: 104465 | M76: =TRUNC(D76*L76,1) -> 21780.9 | DN76: %SON-LYO | DO76: 2038
B77: 계 | G77: =I77+K77+M77 -> 84528 | I77: =ROUNDDOWN(SUM(I73:I76),0) -> 18449 | K77: =ROUNDDOWN(SUM(K73:K76),0) -> 44299 | M77: =ROUNDDOWN(SUM(M73:M76),0) -> 21780
B79: ：굴삭기(무한궤도) [0.8 ㎥] | DN79: :D0201-0080
B80: 경 유 | C80: 경 유 | D80: 15.3 | E80: ℓ | F80: =H80+J80+L80 -> 1303.69 | G80: 19946.4 | H80: =자재단가!R7 -> 1303.69 | I80: =TRUNC(D80*H80,1) -> 19946.4 | J80: 0 | K80: =TRUNC(D80*J80,1) -> 0 | L80: 0 | M80: =TRUNC(D80*L80,1) -> 0 | DN80: M0000-101
B81: 잡 품 | C81: 주연료비의 % | D81: 22 | E81: % | F81: 19946.4 | G81: 4388.2 | H81: =I80 -> 19946.4 | I81: =TRUNC(D81/100*H81,1) -> 4388.2 | J81: 0 | K81: =TRUNC(D81/100*J81,1) -> 0 | L81: 0 | M81: =TRUNC(D81/100*L81,1) -> 0 | DN81: %RAN*MM | DO81: 1
B82: 건설기계운전사 | D82: 1 | E82: 인 | F82: 44299 | G82: 44299 | H82: 0 | I82: =TRUNC(D82*H82,1) -> 0 | J82: =TRUNC(노임단가!K6*16/12*1/8*25/20,0) -> 44299 | K82: =TRUNC(D82*J82,1) -> 44299 | L82: 0 | M82: =TRUNC(D82*L82,1) -> 0 | DN82: W1048
B83: 기계손료 | C83: 상각비:900/정비비:700/관리비:485 | D83: =2085*10^-7*1000 -> 0.2085 | F83: 112475 | G83: 23451 | H83: 0 | I83: =TRUNC(D83*H83,1) -> 0 | J83: 0 | K83: =TRUNC(D83*J83,1) -> 0 | L83: 112475 | M83: =TRUNC(D83*L83,1) -> 23451 | DN83: %SON-LYO | DO83: 2038
B84: 계 | G84: =I84+K84+M84 -> 92084 | I84: =ROUNDDOWN(SUM(I80:I83),0) -> 24334 | K84: =ROUNDDOWN(SUM(K80:K83),0) -> 44299 | M84: =ROUNDDOWN(SUM(M80:M83),0) -> 23451
B86: ：굴삭기(무한궤도) [1.0 ㎥] | DN86: :D0201-0100
B87: 경 유 | C87: 경 유 | D87: 19.5 | E87: ℓ | F87: =H87+J87+L87 -> 1303.69 | G87: 25421.9 | H87: =자재단가!R7 -> 1303.69 | I87: =TRUNC(D87*H87,1) -> 25421.9 | J87: 0 | K87: =TRUNC(D87*J87,1) -> 0 | L87: 0 | M87: =TRUNC(D87*L87,1) -> 0 | DN87: M0000-101
B88: 잡 품 | C88: 주연료비의 % | D88: 22 | E88: % | F88: 25421.9 | G88: 5592.8 | H88: =I87 -> 25421.9 | I88: =TRUNC(D88/100*H88,1) -> 5592.8 | J88: 0 | K88: =TRUNC(D88/100*J88,1) -> 0 | L88: 0 | M88: =TRUNC(D88/100*L88,1) -> 0 | DN88: %RAN*MM | DO88: 1
B89: 건설기계운전사 | D89: 1 | E89: 인 | F89: 44299 | G89: 44299 | H89: 0 | I89: =TRUNC(D89*H89,1) -> 0 | J89: =TRUNC(노임단가!K6*16/12*1/8*25/20,0) -> 44299 | K89: =TRUNC(D89*J89,1) -> 44299 | L89: 0 | M89: =TRUNC(D89*L89,1) -> 0 | DN89: W1048
B90: 기계손료 | C90: 상각비:900/정비비:700/관리비:485 | D90: =2085*10^-7*1000 -> 0.2085 | F90: 126468 | G90: 26368.5 | H90: 0 | I90: =TRUNC(D90*H90,1) -> 0 | J90: 0 | K90: =TRUNC(D90*J90,1) -> 0 | L90: 126468 | M90: =TRUNC(D90*L90,1) -> 26368.5 | DN90: %SON-LYO | DO90: 2038
B91: 계 | G91: =I91+K91+M91 -> 101681 | I91: =ROUNDDOWN(SUM(I87:I90),0) -> 31014 | K91: =ROUNDDOWN(SUM(K87:K90),0) -> 44299 | M91: =ROUNDDOWN(SUM(M87:M90),0) -> 26368
B93: ：굴삭기(타이어) [0.18 ㎥] | DN93: :D0211-0018
B94: 경 유 | C94: 경 유 | D94: 5.6 | E94: ℓ | F94: =H94+J94+L94 -> 1303.69 | G94: 7300.6 | H94: =자재단가!R7 -> 1303.69 | I94: =TRUNC(D94*H94,1) -> 7300.6 | J94: 0 | K94: =TRUNC(D94*J94,1) -> 0 | L94: 0 | M94: =TRUNC(D94*L94,1) -> 0 | DN94: M0000-101
B95: 잡 품 | C95: 주연료비의 % | D95: 24 | E95: % | F95: 7300.6 | G95: 1752.1 | H95: =I94 -> 7300.6 | I95: =TRUNC(D95/100*H95,1) -> 1752.1 | J95: 0 | K95: =TRUNC(D95/100*J95,1) -> 0 | L95: 0 | M95: =TRUNC(D95/100*L95,1) -> 0 | DN95: %RAN*MM | DO95: 1
B96: 건설기계운전사 | D96: 1 | E96: 인 | F96: 44299 | G96: 44299 | H96: 0 | I96: =TRUNC(D96*H96,1) -> 0 | J96: =TRUNC(노임단가!K6*16/12*1/8*25/20,0) -> 44299 | K96: =TRUNC(D96*J96,1) -> 44299 | L96: 0 | M96: =TRUNC(D96*L96,1) -> 0 | DN96: W1048
B97: 기계손료 | C97: 상각비:900/정비비:700/관리비:679 | D97: =2279*10^-7*1000 -> 0.2279 | F97: 63000 | G97: 14357.7 | H97: 0 | I97: =TRUNC(D97*H97,1) -> 0 | J97: 0 | K97: =TRUNC(D97*J97,1) -> 0 | L97: 63000 | M97: =TRUNC(D97*L97,1) -> 14357.7 | DN97: %SON-LYO | DO97: 2213
B98: 계 | G98: =I98+K98+M98 -> 67708 | I98: =ROUNDDOWN(SUM(I94:I97),0) -> 9052 | K98: =ROUNDDOWN(SUM(K94:K97),0) -> 44299 | M98: =ROUNDDOWN(SUM(M94:M97),0) -> 14357
B100: ：대형브레이커 (0.2 ㎥) | DN100: :D0230-0002
B101: 기계손료 | C101: 상각비:3000/정비비:2833/관리비:768 | D101: =6601*10^-7*1000 -> 0.6601 | F101: =H101+J101+L101 -> 4024 | G101: =I101+K101+M101 -> 2656.2 | H101: 0 | I101: =TRUNC(D101*H101,1) -> 0 | J101: 0 | K101: =TRUNC(D101*J101,1) -> 0 | L101: 4024 | M101: =TRUNC(D101*L101,1) -> 2656.2 | DN101: %SON-LYO | DO101: 6533
B102: 계 | G102: =I102+K102+M102 -> 2656 | I102: =ROUNDDOWN(SUM(I101:I101),0) -> 0 | K102: =ROUNDDOWN(SUM(K101:K101),0) -> 0 | M102: =ROUNDDOWN(SUM(M101:M101),0) -> 2656
B104: ：대형브레이커 (0.4 ㎥) | DN104: :D0230-0004
B105: 기계손료 | C105: 상각비:3000/정비비:2833/관리비:768 | D105: =6601*10^-7*1000 -> 0.6601 | F105: =H105+J105+L105 -> 7373 | G105: =I105+K105+M105 -> 4866.9 | H105: 0 | I105: =TRUNC(D105*H105,1) -> 0 | J105: 0 | K105: =TRUNC(D105*J105,1) -> 0 | L105: 7373 | M105: =TRUNC(D105*L105,1) -> 4866.9 | DN105: %SON-LYO | DO105: 6533
B106: 계 | G106: =I106+K106+M106 -> 4866 | I106: =ROUNDDOWN(SUM(I105:I105),0) -> 0 | K106: =ROUNDDOWN(SUM(K105:K105),0) -> 0 | M106: =ROUNDDOWN(SUM(M105:M105),0) -> 4866
B108: ：대형브레이커 (0.6 ㎥) | DN108: :D0230-0006
B109: 기계손료 | C109: 상각비:3000/정비비:2833/관리비:768 | D109: =6601*10^-7*1000 -> 0.6601 | F109: =H109+J109+L109 -> 12512 | G109: =I109+K109+M109 -> 8259.1 | H109: 0 | I109: =TRUNC(D109*H109,1) -> 0 | J109: 0 | K109: =TRUNC(D109*J109,1) -> 0 | L109: 12512 | M109: =TRUNC(D109*L109,1) -> 8259.1 | DN109: %SON-LYO | DO109: 6533
B110: 계 | G110: =I110+K110+M110 -> 8259 | I110: =ROUNDDOWN(SUM(I109:I109),0) -> 0 | K110: =ROUNDDOWN(SUM(K109:K109),0) -> 0 | M110: =ROUNDDOWN(SUM(M109:M109),0) -> 8259
B112: ：대형브레이커 (0.7 ㎥) | DN112: :D0230-0007
B113: 기계손료 | C113: 상각비:3000/정비비:2833/관리비:768 | D113: =6601*10^-7*1000 -> 0.6601 | F113: =H113+J113+L113 -> 15261 | G113: =I113+K113+M113 -> 10073.7 | H113: 0 | I113: =TRUNC(D113*H113,1) -> 0 | J113: 0 | K113: =TRUNC(D113*J113,1) -> 0 | L113: 15261 | M113: =TRUNC(D113*L113,1) -> 10073.7 | DN113: %SON-LYO | DO113: 6533
B114: 계 | G114: =I114+K114+M114 -> 10073 | I114: =ROUNDDOWN(SUM(I113:I113),0) -> 0 | K114: =ROUNDDOWN(SUM(K113:K113),0) -> 0 | M114: =ROUNDDOWN(SUM(M113:M113),0) -> 10073
B116: ：대형브레이커 (0.8 ㎥) | DN116: :D0230-0008
B117: 기계손료 | C117: 상각비:3000/정비비:2833/관리비:768 | D117: =6601*10^-7*1000 -> 0.6601 | F117: =H117+J117+L117 -> 19993 | G117: =I117+K117+M117 -> 13197.3 | H117: 0 | I117: =TRUNC(D117*H117,1) -> 0 | J117: 0 | K117: =TRUNC(D117*J117,1) -> 0 | L117: 19993 | M117: =TRUNC(D117*L117,1) -> 13197.3 | DN117: %SON-LYO | DO117: 6533
B118: 계 | G118: =I118+K118+M118 -> 13197 | I118: =ROUNDDOWN(SUM(I117:I117),0) -> 0 | K118: =ROUNDDOWN(SUM(K117:K117),0) -> 0 | M118: =ROUNDDOWN(SUM(M117:M117),0) -> 13197
B120: ：로더(타이어) [0.57 ㎥] | DN120: :D0302-0057
B121: 경 유 | C121: 경 유 | D121: 3.5 | E121: ℓ | F121: =H121+J121+L121 -> 1303.69 | G121: =I121+K121+M121 -> 4562.9 | H121: =자재단가!R7 -> 1303.69 | I121: =TRUNC(D121*H121,1) -> 4562.9 | J121: 0 | K121: =TRUNC(D121*J121,1) -> 0 | L121: 0 | M121: =TRUNC(D121*L121,1) -> 0 | DN121: M0000-101
B122: 잡 품 | C122: 주연료비의 % | D122: 44 | E122: % | F122: 4562.9 | G122: 2007.6 | H122: =I121 -> 4562.9 | I122: =TRUNC(D122/100*H122,1) -> 2007.6 | J122: 0 | K122: =TRUNC(D122/100*J122,1) -> 0 | L122: 0 | M122: =TRUNC(D122/100*L122,1) -> 0 | DN122: %RAN*MM | DO122: 1
B123: 건설기계운전사 | D123: 1 | E123: 인 | F123: 44299 | G123: 44299 | H123: 0 | I123: =TRUNC(D123*H123,1) -> 0 | J123: =TRUNC(노임단가!K6*16/12*1/8*25/20,0) -> 44299 | K123: =TRUNC(D123*J123,1) -> 44299 | L123: 0 | M123: =TRUNC(D123*L123,1) -> 0 | DN123: W1048
B124: 기계손료 | C124: 상각비:900/정비비:700/관리비:485 | D124: =2085*10^-7*1000 -> 0.2085 | F124: 31484 | G124: 6564.4 | H124: 0 | I124: =TRUNC(D124*H124,1) -> 0 | J124: 0 | K124: =TRUNC(D124*J124,1) -> 0 | L124: 31484 | M124: =TRUNC(D124*L124,1) -> 6564.4 | DN124: %SON-LYO | DO124: 2038
B125: 계 | G125: =I125+K125+M125 -> 57433 | I125: =ROUNDDOWN(SUM(I121:I124),0) -> 6570 | K125: =ROUNDDOWN(SUM(K121:K124),0) -> 44299 | M125: =ROUNDDOWN(SUM(M121:M124),0) -> 6564
B127: ：로더(타이어) [0.95 ㎥]
B128: 경 유 | C128: 경 유 | D128: 6.2 | E128: ℓ | F128: =H128+J128+L128 -> 1303.69 | G128: =I128+K128+M128 -> 8082.8 | H128: =자재단가!R7 -> 1303.69 | I128: =TRUNC(D128*H128,1) -> 8082.8 | J128: 0 | K128: =TRUNC(D128*J128,1) -> 0 | L128: 0 | M128: =TRUNC(D128*L128,1) -> 0 | DN128: :D0502-0036
B129: 잡 품 | C129: 주연료비의 % | D129: 44 | E129: % | F129: 8082.8 | G129: 3556.4 | H129: =I128 -> 8082.8 | I129: =TRUNC(D129/100*H129,1) -> 3556.4 | J129: 0 | K129: =TRUNC(D129/100*J129,1) -> 0 | L129: 0 | M129: =TRUNC(D129/100*L129,1) -> 0 | DN129: M0000-101
B130: 건설기계운전사 | D130: 1 | E130: 인 | F130: 44299 | G130: 44299 | H130: 0 | I130: =TRUNC(D130*H130,1) -> 0 | J130: =TRUNC(노임단가!K6*16/12*1/8*25/20,0) -> 44299 | K130: =TRUNC(D130*J130,1) -> 44299 | L130: 0 | M130: =TRUNC(D130*L130,1) -> 0 | DN130: %RAN*MM | DO130: 1
B131: 기계손료 | C131: 상각비:900/정비비:700/관리비:485 | D131: =2085*10^-7*1000 -> 0.2085 | F131: 38953 | G131: 8121.7 | H131: 0 | I131: =TRUNC(D131*H131,1) -> 0 | J131: 0 | K131: =TRUNC(D131*J131,1) -> 0 | L131: 38953 | M131: =TRUNC(D131*L131,1) -> 8121.7 | DN131: W1048
B132: 계 | G132: =I132+K132+M132 -> 64059 | I132: =ROUNDDOWN(SUM(I128:I131),0) -> 11639 | K132: =ROUNDDOWN(SUM(K128:K131),0) -> 44299 | M132: =ROUNDDOWN(SUM(M128:M131),0) -> 8121 | DN132: %SON-LYO | DO132: 1461
B134: ：모터그레이더 [3.6 m(일반용)]
B135: 경 유 | C135: 경 유 | D135: 16.2 | E135: ℓ | F135: =H135+J135+L135 -> 1303.69 | G135: 21119.7 | H135: =자재단가!R7 -> 1303.69 | I135: =TRUNC(D135*H135,1) -> 21119.7 | J135: 0 | K135: =TRUNC(D135*J135,1) -> 0 | L135: 0 | M135: =TRUNC(D135*L135,1) -> 0 | DN135: :D0602-0025
B136: 잡 품 | C136: 주연료비의 % | D136: 39 | E136: % | F136: 21119.7 | G136: 8236.6 | H136: =I135 -> 21119.7 | I136: =TRUNC(D136/100*H136,1) -> 8236.6 | J136: 0 | K136: =TRUNC(D136/100*J136,1) -> 0 | L136: 0 | M136: =TRUNC(D136/100*L136,1) -> 0 | DN136: M0000-101
B137: 건설기계운전사 | D137: 1 | E137: 인 | F137: 44299 | G137: 44299 | H137: 0 | I137: =TRUNC(D137*H137,1) -> 0 | J137: =TRUNC(노임단가!K6*16/12*1/8*25/20,0) -> 44299 | K137: =TRUNC(D137*J137,1) -> 44299 | L137: 0 | M137: =TRUNC(D137*L137,1) -> 0 | DN137: %RAN*MM | DO137: 1
B138: 기계손료 | C138: 상각비:643/정비비:393/관리비:472 | D138: =1508*10^-7*1000 -> 0.1508 | F138: 274621 | G138: 41412.8 | H138: 0 | I138: =TRUNC(D138*H138,1) -> 0 | J138: 0 | K138: =TRUNC(D138*J138,1) -> 0 | L138: 274621 | M138: =TRUNC(D138*L138,1) -> 41412.8 | DN138: W1049
B139: 계 | G139: =I139+K139+M139 -> 115067 | I139: =ROUNDDOWN(SUM(I135:I138),0) -> 29356 | K139: =ROUNDDOWN(SUM(K135:K138),0) -> 44299 | M139: =ROUNDDOWN(SUM(M135:M138),0) -> 41412 | DN139: %SON-LYO | DO139: 2901
B141: ：덤프트럭 (2.5 ton)
B142: 경 유 | C142: 경 유 | D142: 2.9 | E142: ℓ | F142: =H142+J142+L142 -> 1303.69 | G142: 3780.7 | H142: =자재단가!R7 -> 1303.69 | I142: =TRUNC(D142*H142,1) -> 3780.7 | J142: 0 | K142: =TRUNC(D142*J142,1) -> 0 | L142: 0 | M142: =TRUNC(D142*L142,1) -> 0 | DN142: :D0602-0045
B143: 잡 품 | C143: 주연료비의 % | D143: 38 | E143: % | F143: 3780.7 | G143: 1436.6 | H143: =I142 -> 3780.7 | I143: =TRUNC(D143/100*H143,1) -> 1436.6 | J143: 0 | K143: =TRUNC(D143/100*J143,1) -> 0 | L143: 0 | M143: =TRUNC(D143/100*L143,1) -> 0 | DN143: M0000-101
B144: 화물차운전사 | D144: 1 | E144: 인 | F144: 36224 | G144: 36224 | H144: 0 | I144: =TRUNC(D144*H144,1) -> 0 | J144: =TRUNC(노임단가!K5*16/12*1/8*25/20,0) -> 36224 | K144: =TRUNC(D144*J144,1) -> 36224 | L144: 0 | M144: =TRUNC(D144*L144,1) -> 0 | DN144: %RAN*MM | DO144: 1
B145: 기계손료 | C145: 상각비:1200/정비비:1067/관리비:700 | D145: =2967*10^-7*1000 -> 0.2967 | F145: 19844 | G145: 5887.7 | H145: 0 | I145: =TRUNC(D145*H145,1) -> 0 | J145: 0 | K145: =TRUNC(D145*J145,1) -> 0 | L145: 19844 | M145: =TRUNC(D145*L145,1) -> 5887.7 | DN145: W1049
B146: 계 | G146: =I146+K146+M146 -> 47328 | I146: =ROUNDDOWN(SUM(I142:I145),0) -> 5217 | K146: =ROUNDDOWN(SUM(K142:K145),0) -> 36224 | M146: =ROUNDDOWN(SUM(M142:M145),0) -> 5887 | DN146: %SON-LYO | DO146: 2901
B148: ：덤프트럭 (4.5 ton)
B149: 경 유 | C149: 경 유 | D149: 5 | E149: ℓ | F149: =H149+J149+L149 -> 1303.69 | G149: 6518.4 | H149: =자재단가!R7 -> 1303.69 | I149: =TRUNC(D149*H149,1) -> 6518.4 | J149: 0 | K149: =TRUNC(D149*J149,1) -> 0 | L149: 0 | M149: =TRUNC(D149*L149,1) -> 0 | DN149: :D0602-0080
B150: 잡 품 | C150: 주연료비의 % | D150: 38 | E150: % | F150: 6518.4 | G150: 2476.9 | H150: =I149 -> 6518.4 | I150: =TRUNC(D150/100*H150,1) -> 2476.9 | J150: 0 | K150: =TRUNC(D150/100*J150,1) -> 0 | L150: 0 | M150: =TRUNC(D150/100*L150,1) -> 0 | DN150: M0000-101
B151: 화물차운전사 | D151: 1 | E151: 인 | F151: 36224 | G151: 36224 | H151: 0 | I151: =TRUNC(D151*H151,1) -> 0 | J151: =TRUNC(노임단가!K5*16/12*1/8*25/20,0) -> 36224 | K151: =TRUNC(D151*J151,1) -> 36224 | L151: 0 | M151: =TRUNC(D151*L151,1) -> 0 | DN151: %RAN*MM | DO151: 1
B152: 기계손료 | C152: 상각비:1200/정비비:1067/관리비:700 | D152: =2967*10^-7*1000 -> 0.2967 | F152: 23167 | G152: 6873.6 | H152: 0 | I152: =TRUNC(D152*H152,1) -> 0 | J152: 0 | K152: =TRUNC(D152*J152,1) -> 0 | L152: 23167 | M152: =TRUNC(D152*L152,1) -> 6873.6 | DN152: W1049
B153: 계 | G153: =I153+K153+M153 -> 52092 | I153: =ROUNDDOWN(SUM(I149:I152),0) -> 8995 | K153: =ROUNDDOWN(SUM(K149:K152),0) -> 36224 | M153: =ROUNDDOWN(SUM(M149:M152),0) -> 6873 | DN153: %SON-LYO | DO153: 2754
B155: ：덤프트럭 (8 ton)
B156: 경 유 | C156: 경 유 | D156: 9.3 | E156: ℓ | F156: =H156+J156+L156 -> 1303.69 | G156: 12124.3 | H156: =자재단가!R7 -> 1303.69 | I156: =TRUNC(D156*H156,1) -> 12124.3 | J156: 0 | K156: =TRUNC(D156*J156,1) -> 0 | L156: 0 | M156: =TRUNC(D156*L156,1) -> 0 | DN156: :D0602-0150
B157: 잡 품 | C157: 주연료비의 % | D157: 38 | E157: % | F157: 12124.3 | G157: 4607.2 | H157: =I156 -> 12124.3 | I157: =TRUNC(D157/100*H157,1) -> 4607.2 | J157: 0 | K157: =TRUNC(D157/100*J157,1) -> 0 | L157: 0 | M157: =TRUNC(D157/100*L157,1) -> 0 | DN157: M0000-101
B158: 화물차운전사 | D158: 1 | E158: 인 | F158: 36224 | G158: 36224 | H158: 0 | I158: =TRUNC(D158*H158,1) -> 0 | J158: =TRUNC(노임단가!K5*16/12*1/8*25/20,0) -> 36224 | K158: =TRUNC(D158*J158,1) -> 36224 | L158: 0 | M158: =TRUNC(D158*L158,1) -> 0 | DN158: %RAN*MM | DO158: 1
B159: 기계손료 | C159: 상각비:1125/정비비:1000/관리비:695 | D159: =2820*10^-7*1000 -> 0.282 | F159: 33755 | G159: 9518.9 | H159: 0 | I159: =TRUNC(D159*H159,1) -> 0 | J159: 0 | K159: =TRUNC(D159*J159,1) -> 0 | L159: 33755 | M159: =TRUNC(D159*L159,1) -> 9518.9 | DN159: W1048
B160: 계 | G160: =I160+K160+M160 -> 62473 | I160: =ROUNDDOWN(SUM(I156:I159),0) -> 16731 | K160: =ROUNDDOWN(SUM(K156:K159),0) -> 36224 | M160: =ROUNDDOWN(SUM(M156:M159),0) -> 9518 | DN160: %SON-LYO | DO160: 2213
B162: ：덤프트럭 (15 ton)
B163: 경 유 | C163: 경 유 | D163: 15.9 | E163: ℓ | F163: =H163+J163+L163 -> 1303.69 | G163: 20728.6 | H163: =자재단가!R7 -> 1303.69 | I163: =TRUNC(D163*H163,1) -> 20728.6 | J163: 0 | K163: =TRUNC(D163*J163,1) -> 0 | L163: 0 | M163: =TRUNC(D163*L163,1) -> 0 | DN163: :D0602-0240
B164: 잡 품 | C164: 주연료비의 % | D164: 38 | E164: % | F164: 20728.6 | G164: 7876.8 | H164: =I163 -> 20728.6 | I164: =TRUNC(D164/100*H164,1) -> 7876.8 | J164: 0 | K164: =TRUNC(D164/100*J164,1) -> 0 | L164: 0 | M164: =TRUNC(D164/100*L164,1) -> 0 | DN164: M0000-101
B165: 건설기계운전사 | D165: 1 | E165: 인 | F165: 44299 | G165: 44299 | H165: 0 | I165: =TRUNC(D165*H165,1) -> 0 | J165: =TRUNC(노임단가!K6*16/12*1/8*25/20,0) -> 44299 | K165: =TRUNC(D165*J165,1) -> 44299 | L165: 0 | M165: =TRUNC(D165*L165,1) -> 0 | DN165: %RAN*MM | DO165: 1
B166: 기계손료 | C166: 상각비:900/정비비:700/관리비:679 | D166: =2279*10^-7*1000 -> 0.2279 | F166: 82425 | G166: 18784.6 | H166: 0 | I166: =TRUNC(D166*H166,1) -> 0 | J166: 0 | K166: =TRUNC(D166*J166,1) -> 0 | L166: 82425 | M166: =TRUNC(D166*L166,1) -> 18784.6 | DN166: W1048
B167: 계 | G167: =I167+K167+M167 -> 91688 | I167: =ROUNDDOWN(SUM(I163:I166),0) -> 28605 | K167: =ROUNDDOWN(SUM(K163:K166),0) -> 44299 | M167: =ROUNDDOWN(SUM(M163:M166),0) -> 18784 | DN167: %SON-LYO | DO167: 2637
DN168: %SON-LYO | DO168: 2637
B169: ：덤프트럭 (24ton,자동덮개)
B170: 경 유 | C170: 경 유 | D170: 23 | E170: ℓ | F170: =H170+J170+L170 -> 1303.69 | G170: 29984.8 | H170: =자재단가!R7 -> 1303.69 | I170: =TRUNC(D170*H170,1) -> 29984.8 | J170: 0 | K170: =TRUNC(D170*J170,1) -> 0 | L170: 0 | M170: =TRUNC(D170*L170,1) -> 0
B171: 잡 품 | C171: 주연료비의 % | D171: 38 | E171: % | F171: 29984.8 | G171: 11394.2 | H171: =I170 -> 29984.8 | I171: =TRUNC(D171/100*H171,1) -> 11394.2 | J171: 0 | K171: =TRUNC(D171/100*J171,1) -> 0 | L171: 0 | M171: =TRUNC(D171/100*L171,1) -> 0 | DN171: :D0602-0240
B172: 건설기계운전사 | D172: 1 | E172: 인 | F172: 44299 | G172: 44299 | H172: 0 | I172: =TRUNC(D172*H172,1) -> 0 | J172: =TRUNC(노임단가!K6*16/12*1/8*25/20,0) -> 44299 | K172: =TRUNC(D172*J172,1) -> 44299 | L172: 0 | M172: =TRUNC(D172*L172,1) -> 0 | DN172: M0000-101
B173: 자동덮개 | C173: 상각비:1125/정비비:1063/관리비:496 | D173: =2684*10^-7*1000 -> 0.2684 | F173: =H173+J173+L173 -> 1712 | G173: =I173+K173+M173 -> 459.5 | H173: 0 | I173: =TRUNC(D173*H173,1) -> 0 | J173: 0 | K173: =TRUNC(D173*J173,1) -> 0 | L173: 1712 | M173: =TRUNC(D173*L173,1) -> 459.5 | DN173: %RAN*MM | DO173: 1
B174: 기계손료 | C174: 상각비:900/정비비:650/관리비:679 | D174: =2229*10^-7*1000 -> 0.2229 | F174: 134700 | G174: 30024.6 | H174: 0 | I174: =TRUNC(D174*H174,1) -> 0 | J174: 0 | K174: =TRUNC(D174*J174,1) -> 0 | L174: 134700 | M174: =TRUNC(D174*L174,1) -> 30024.6 | DN174: W1048
B175: 계 | G175: =I175+K175+M175 -> 116162 | I175: =ROUNDDOWN(SUM(I170:I174),0) -> 41379 | K175: =ROUNDDOWN(SUM(K170:K174),0) -> 44299 | M175: =ROUNDDOWN(SUM(M170:M174),0) -> 30484 | DN175: %SON-LYO | DO175: 2637
B177: ：카고트럭(더블캡 1ton)
B178: 경 유 | C178: 경 유 | D178: 2.9 | E178: ℓ | F178: =H178+J178+L178 -> 1303.69 | G178: =I178+K178+M178 -> 3780.7 | H178: =자재단가!R7 -> 1303.69 | I178: =TRUNC(D178*H178,1) -> 3780.7 | J178: 0 | K178: =TRUNC(D178*J178,1) -> 0 | L178: 0 | M178: =TRUNC(D178*L178,1) -> 0 | DN178: :D1106-0010
B179: 잡 품 | C179: 주연료비의 % | D179: 38 | E179: % | F179: 3780.7 | G179: 1436.6 | H179: =I178 -> 3780.7 | I179: =TRUNC(D179/100*H179,1) -> 1436.6 | J179: 0 | K179: =TRUNC(D179/100*J179,1) -> 0 | L179: 0 | M179: =TRUNC(D179/100*L179,1) -> 0 | DN179: M0000-101
B180: 건설기계운전사 | D180: 1 | E180: 인 | F180: 36224 | G180: 36224 | H180: 0 | I180: =TRUNC(D180*H180,1) -> 0 | J180: =TRUNC(노임단가!K5*16/12*1/8*25/20,0) -> 36224 | K180: =TRUNC(D180*J180,1) -> 36224 | L180: 0 | M180: =TRUNC(D180*L180,1) -> 0 | DN180: %RAN*MM | DO180: 1
B181: 기계손료 | C181: 상각비:1200/정비비:1067/관리비:634 | D181: 0.2901 | F181: 13940 | G181: 4043.9 | H181: 0 | I181: =TRUNC(D181*H181,1) -> 0 | J181: 0 | K181: =TRUNC(D181*J181,1) -> 0 | L181: 13940 | M181: =TRUNC(D181*L181,1) -> 4043.9 | DN181: W1048
B182: 계 | G182: =I182+K182+M182 -> 45484 | I182: =ROUNDDOWN(SUM(I178:I181),0) -> 5217 | K182: =ROUNDDOWN(SUM(K178:K181),0) -> 36224 | M182: =ROUNDDOWN(SUM(M178:M181),0) -> 4043 | DN182: %SON-LYO | DO182: 1746
B184: ：머캐덤롤러(자주식) [8~10 ton]
B185: 경 유 | C185: 경 유 | D185: 7.6 | E185: ℓ | F185: =H185+J185+L185 -> 1303.69 | G185: 9908 | H185: =자재단가!R7 -> 1303.69 | I185: =TRUNC(D185*H185,1) -> 9908 | J185: 0 | K185: =TRUNC(D185*J185,1) -> 0 | L185: 0 | M185: =TRUNC(D185*L185,1) -> 0 | DN185: :D1106-0012
B186: 잡 품 | C186: 주연료비의 % | D186: 18 | E186: % | F186: 9908 | G186: 1783.4 | H186: =I185 -> 9908 | I186: =TRUNC(D186/100*H186,1) -> 1783.4 | J186: 0 | K186: =TRUNC(D186/100*J186,1) -> 0 | L186: 0 | M186: =TRUNC(D186/100*L186,1) -> 0 | DN186: M0000-101
B187: 건설기계운전사 | D187: 1 | E187: 인 | F187: 44299 | G187: 44299 | H187: 0 | I187: =TRUNC(D187*H187,1) -> 0 | J187: =TRUNC(노임단가!K6*16/12*1/8*25/20,0) -> 44299 | K187: =TRUNC(D187*J187,1) -> 44299 | L187: 0 | M187: =TRUNC(D187*L187,1) -> 0 | DN187: %RAN*MM | DO187: 1
B188: 기계손료 | C188: 상각비:750/정비비:500/관리비:552 | D188: =1802*10^-7*1000 -> 0.1802 | F188: 47593 | G188: 8576.2 | H188: 0 | I188: =TRUNC(D188*H188,1) -> 0 | J188: 0 | K188: =TRUNC(D188*J188,1) -> 0 | L188: 47593 | M188: =TRUNC(D188*L188,1) -> 8576.2 | DN188: W1048
B189: 계 | G189: =I189+K189+M189 -> 64566 | I189: =ROUNDDOWN(SUM(I185:I188),0) -> 11691 | K189: =ROUNDDOWN(SUM(K185:K188),0) -> 44299 | M189: =ROUNDDOWN(SUM(M185:M188),0) -> 8576 | DN189: %SON-LYO | DO189: 1746
B191: ：머캐덤롤러(자주식) [10~12 ton]
B192: 경 유 | C192: 경 유 | D192: 9.3 | E192: ℓ | F192: =H192+J192+L192 -> 1303.69 | G192: 12124.3 | H192: =자재단가!R7 -> 1303.69 | I192: =TRUNC(D192*H192,1) -> 12124.3 | J192: 0 | K192: =TRUNC(D192*J192,1) -> 0 | L192: 0 | M192: =TRUNC(D192*L192,1) -> 0 | DN192: :D1206-0008
B193: 잡 품 | C193: 주연료비의 % | D193: 18 | E193: % | F193: 12124.3 | G193: 2182.3 | H193: =I192 -> 12124.3 | I193: =TRUNC(D193/100*H193,1) -> 2182.3 | J193: 0 | K193: =TRUNC(D193/100*J193,1) -> 0 | L193: 0 | M193: =TRUNC(D193/100*L193,1) -> 0 | DN193: M0000-101
B194: 건설기계운전사 | D194: 1 | E194: 인 | F194: 44299 | G194: 44299 | H194: 0 | I194: =TRUNC(D194*H194,1) -> 0 | J194: =TRUNC(노임단가!K6*16/12*1/8*25/20,0) -> 44299 | K194: =TRUNC(D194*J194,1) -> 44299 | L194: 0 | M194: =TRUNC(D194*L194,1) -> 0 | DN194: %RAN*MM | DO194: 1
B195: 기계손료 | C195: 상각비:750/정비비:500/관리비:552 | D195: =1802*10^-7*1000 -> 0.1802 | F195: 59419 | G195: 10707.3 | H195: 0 | I195: =TRUNC(D195*H195,1) -> 0 | J195: 0 | K195: =TRUNC(D195*J195,1) -> 0 | L195: 59419 | M195: =TRUNC(D195*L195,1) -> 10707.3 | DN195: W1048
B196: 계 | G196: =I196+K196+M196 -> 69312 | I196: =ROUNDDOWN(SUM(I192:I195),0) -> 14306 | K196: =ROUNDDOWN(SUM(K192:K195),0) -> 44299 | M196: =ROUNDDOWN(SUM(M192:M195),0) -> 10707 | DN196: %SON-LYO | DO196: 1796
B198: ：탠덤롤러(진동자주식) [4ton]
B199: 경 유 | C199: 경 유 | D199: 8.2 | E199: ℓ | F199: =H199+J199+L199 -> 1303.69 | G199: 10690.2 | H199: =자재단가!R7 -> 1303.69 | I199: =TRUNC(D199*H199,1) -> 10690.2 | J199: 0 | K199: =TRUNC(D199*J199,1) -> 0 | L199: 0 | M199: =TRUNC(D199*L199,1) -> 0 | DN199: :D1206-00158
B200: 잡 품 | C200: 주연료비의 % | D200: 8 | E200: % | F200: 10690.2 | G200: 855.2 | H200: =I199 -> 10690.2 | I200: =TRUNC(D200/100*H200,1) -> 855.2 | J200: 0 | K200: =TRUNC(D200/100*J200,1) -> 0 | L200: 0 | M200: =TRUNC(D200/100*L200,1) -> 0 | DN200: M0000-101
B201: 건설기계운전사 | D201: 1 | E201: 인 | F201: 44299 | G201: 44299 | H201: 0 | I201: =TRUNC(D201*H201,1) -> 0 | J201: =TRUNC(노임단가!K6*16/12*1/8*25/20,0) -> 44299 | K201: =TRUNC(D201*J201,1) -> 44299 | L201: 0 | M201: =TRUNC(D201*L201,1) -> 0 | DN201: %RAN*MM | DO201: 1
B202: 기계손료 | C202: 상각비:1000/정비비:667/관리비:490 | D202: =2157*10^-7*1000 -> 0.2157 | F202: 42645 | G202: 9198.5 | H202: 0 | I202: =TRUNC(D202*H202,1) -> 0 | J202: 0 | K202: =TRUNC(D202*J202,1) -> 0 | L202: 42645 | M202: =TRUNC(D202*L202,1) -> 9198.5 | DN202: W1048
B203: 계 | G203: =I203+K203+M203 -> 65042 | I203: =ROUNDDOWN(SUM(I199:I202),0) -> 11545 | K203: =ROUNDDOWN(SUM(K199:K202),0) -> 44299 | M203: =ROUNDDOWN(SUM(M199:M202),0) -> 9198 | DN203: %SON-LYO | DO203: 1796
B205: ：탠덤롤러(자주식) [5~8 ton]
B206: 경 유 | C206: 경 유 | D206: 5 | E206: ℓ | F206: =H206+J206+L206 -> 1303.69 | G206: 6518.4 | H206: =자재단가!R7 -> 1303.69 | I206: =TRUNC(D206*H206,1) -> 6518.4 | J206: 0 | K206: =TRUNC(D206*J206,1) -> 0 | L206: 0 | M206: =TRUNC(D206*L206,1) -> 0 | DN206: :D1206-0014
B207: 잡 품 | C207: 주연료비의 % | D207: 18 | E207: % | F207: 6518.4 | G207: 1173.3 | H207: =I206 -> 6518.4 | I207: =TRUNC(D207/100*H207,1) -> 1173.3 | J207: 0 | K207: =TRUNC(D207/100*J207,1) -> 0 | L207: 0 | M207: =TRUNC(D207/100*L207,1) -> 0 | DN207: M0000-101
B208: 건설기계운전사 | D208: 1 | E208: 인 | F208: 44299 | G208: 44299 | H208: 0 | I208: =TRUNC(D208*H208,1) -> 0 | J208: =TRUNC(노임단가!K6*16/12*1/8*25/20,0) -> 44299 | K208: =TRUNC(D208*J208,1) -> 44299 | L208: 0 | M208: =TRUNC(D208*L208,1) -> 0 | DN208: %RAN*MM | DO208: 1
B209: 기계손료 | C209: 상각비:750/정비비:458/관리비:655 | D209: =1863*10^-7*1000 -> 0.1863 | F209: 44314 | G209: 8255.6 | H209: 0 | I209: =TRUNC(D209*H209,1) -> 0 | J209: 0 | K209: =TRUNC(D209*J209,1) -> 0 | L209: 44314 | M209: =TRUNC(D209*L209,1) -> 8255.6 | DN209: W1048
B210: 계 | G210: =I210+K210+M210 -> 60245 | I210: =ROUNDDOWN(SUM(I206:I209),0) -> 7691 | K210: =ROUNDDOWN(SUM(K206:K209),0) -> 44299 | M210: =ROUNDDOWN(SUM(M206:M209),0) -> 8255 | DN210: %SON-LYO | DO210: 1796
B212: ：탠덤롤러(자주식) [10~14 ton]
B213: 경 유 | C213: 경 유 | D213: 8.4 | E213: ℓ | F213: =H213+J213+L213 -> 1303.69 | G213: 10950.9 | H213: =자재단가!R7 -> 1303.69 | I213: =TRUNC(D213*H213,1) -> 10950.9 | J213: 0 | K213: =TRUNC(D213*J213,1) -> 0 | L213: 0 | M213: =TRUNC(D213*L213,1) -> 0 | DN213: :D1305-0007
B214: 잡 품 | C214: 주연료비의 % | D214: 18 | E214: % | F214: 10950.9 | G214: 1971.1 | H214: =I213 -> 10950.9 | I214: =TRUNC(D214/100*H214,1) -> 1971.1 | J214: 0 | K214: =TRUNC(D214/100*J214,1) -> 0 | L214: 0 | M214: =TRUNC(D214/100*L214,1) -> 0 | DN214: M0000-101
B215: 건설기계운전사 | D215: 1 | E215: 인 | F215: 44299 | G215: 44299 | H215: 0 | I215: =TRUNC(D215*H215,1) -> 0 | J215: =TRUNC(노임단가!K6*16/12*1/8*25/20,0) -> 44299 | K215: =TRUNC(D215*J215,1) -> 44299 | L215: 0 | M215: =TRUNC(D215*L215,1) -> 0 | DN215: %RAN*MM | DO215: 1
B216: 기계손료 | C216: 상각비:750/정비비:458/관리비:655 | D216: =1863*10^-7*1000 -> 0.1863 | F216: 51105 | G216: 9520.8 | H216: 0 | I216: =TRUNC(D216*H216,1) -> 0 | J216: 0 | K216: =TRUNC(D216*J216,1) -> 0 | L216: 51105 | M216: =TRUNC(D216*L216,1) -> 9520.8 | DN216: W1048
B217: 계 | G217: =I217+K217+M217 -> 66741 | I217: =ROUNDDOWN(SUM(I213:I216),0) -> 12922 | K217: =ROUNDDOWN(SUM(K213:K216),0) -> 44299 | M217: =ROUNDDOWN(SUM(M213:M216),0) -> 9520 | DN217: %SON-LYO | DO217: 2757
B219: ：진동롤러(핸드가이드식) [0.7 ton]
B220: 경 유 | C220: 경 유 | D220: 2.2 | E220: ℓ | F220: =H220+J220+L220 -> 1303.69 | G220: 2868.1 | H220: =자재단가!R7 -> 1303.69 | I220: =TRUNC(D220*H220,1) -> 2868.1 | J220: 0 | K220: =TRUNC(D220*J220,1) -> 0 | L220: 0 | M220: =TRUNC(D220*L220,1) -> 0 | DN220: :D1306-0025
B221: 잡 품 | C221: 주연료비의 % | D221: 13 | E221: % | F221: 2868.1 | G221: 372.8 | H221: =I220 -> 2868.1 | I221: =TRUNC(D221/100*H221,1) -> 372.8 | J221: 0 | K221: =TRUNC(D221/100*J221,1) -> 0 | L221: 0 | M221: =TRUNC(D221/100*L221,1) -> 0 | DN221: M0000-101
B222: 건설기계운전사 | D222: 1 | E222: 인 | F222: 44299 | G222: 44299 | H222: 0 | I222: =TRUNC(D222*H222,1) -> 0 | J222: =TRUNC(노임단가!K6*16/12*1/8*25/20,0) -> 44299 | K222: =TRUNC(D222*J222,1) -> 44299 | L222: 0 | M222: =TRUNC(D222*L222,1) -> 0 | DN222: %RAN*MM | DO222: 1
B223: 기계손료 | C223: 상각비:1286/정비비:857/관리비:682 | D223: =2825*10^-7*1000 -> 0.2825 | F223: 6061 | G223: 1712.2 | H223: 0 | I223: =TRUNC(D223*H223,1) -> 0 | J223: 0 | K223: =TRUNC(D223*J223,1) -> 0 | L223: 6061 | M223: =TRUNC(D223*L223,1) -> 1712.2 | DN223: W1048
B224: 계 | G224: =I224+K224+M224 -> 49251 | I224: =ROUNDDOWN(SUM(I220:I223),0) -> 3240 | K224: =ROUNDDOWN(SUM(K220:K223),0) -> 44299 | M224: =ROUNDDOWN(SUM(M220:M223),0) -> 1712 | DN224: %SON-LYO | DO224: 2757
B226: ：진동롤러(자주식) [2.5 ton]
B227: 경 유 | C227: 경 유 | D227: 2.3 | E227: ℓ | F227: =H227+J227+L227 -> 1303.69 | G227: 2998.4 | H227: =자재단가!R7 -> 1303.69 | I227: =TRUNC(D227*H227,1) -> 2998.4 | J227: 0 | K227: =TRUNC(D227*J227,1) -> 0 | L227: 0 | M227: =TRUNC(D227*L227,1) -> 0 | DN227: :D1306-0100
B228: 잡 품 | C228: 주연료비의 % | D228: 13 | E228: % | F228: 2998.4 | G228: 389.7 | H228: =I227 -> 2998.4 | I228: =TRUNC(D228/100*H228,1) -> 389.7 | J228: 0 | K228: =TRUNC(D228/100*J228,1) -> 0 | L228: 0 | M228: =TRUNC(D228/100*L228,1) -> 0 | DN228: M0000-101
B229: 건설기계운전사 | D229: 1 | E229: 인 | F229: 44299 | G229: 44299 | H229: 0 | I229: =TRUNC(D229*H229,1) -> 0 | J229: =TRUNC(노임단가!K6*16/12*1/8*25/20,0) -> 44299 | K229: =TRUNC(D229*J229,1) -> 44299 | L229: 0 | M229: =TRUNC(D229*L229,1) -> 0 | DN229: %RAN*MM | DO229: 1
B230: 기계손료 | C230: 상각비:1286/정비비:857/관리비:682 | D230: =2825*10^-7*1000 -> 0.2825 | F230: 16407 | G230: 4634.9 | H230: 0 | I230: =TRUNC(D230*H230,1) -> 0 | J230: 0 | K230: =TRUNC(D230*J230,1) -> 0 | L230: 16407 | M230: =TRUNC(D230*L230,1) -> 4634.9 | DN230: W1048
B231: 계 | G231: =I231+K231+M231 -> 52321 | I231: =ROUNDDOWN(SUM(I227:I230),0) -> 3388 | K231: =ROUNDDOWN(SUM(K227:K230),0) -> 44299 | M231: =ROUNDDOWN(SUM(M227:M230),0) -> 4634 | DN231: %SON-LYO | DO231: 2757
B233: ：진동롤러(자주식) [10.0 ton]
B234: 경 유 | C234: 경 유 | D234: 14.4 | E234: ℓ | F234: =H234+J234+L234 -> 1303.69 | G234: 18773.1 | H234: =자재단가!R7 -> 1303.69 | I234: =TRUNC(D234*H234,1) -> 18773.1 | J234: 0 | K234: =TRUNC(D234*J234,1) -> 0 | L234: 0 | M234: =TRUNC(D234*L234,1) -> 0 | DN234: :D1306-0100
... 231 more rows

Sheet 건설기계 적용기준
DO1: 5
DO2: B
DO3: 22
DO4: I
DM5: S_1EXCHANGE | DN5: M0000-001
C6: ◈ ◈ 적 용 기 준 ◈ ◈ | DM6: S_VOLATILE | DN6: M0000-100
DM7: S_LIGHTOIL | DN7: M0000-101
C8: ▣ 환 율 | DM8: S_HEAVYOIL | DN8: M9372007
C9: 1 달러($) : 1,083.10원 | E9: (2021.1.5. 기준) | DM9: S_DRIVER | DN9: W1048
DM10: S_1DRIVER | DN10: W1049
C11: ▣ 유 류 대 | DM11: S_2DRIVER | DN11: W1050
C12: 휘 발 유 : 1,499.33 원 | E12: (2021.1.1. 기준) | DM12: S_FOREMAN | DN12: W1047
C13: 경 유 : 1,303.69 원 | E13: (2021.1.1. 기준) | DM13: S_LABCGYESU | DN13: 16/12 * 1/8 * 25/20
DM14: S_2LABCGYESU | DN14: 16/12 * 1/8 * 25/20
C15: ▣ 노 무 비 | DM15: S_3LABCGYESU | DN15: 16/12 * 1/8 * 25/20
C16: ⊙ 노임산출계수(보통) | DM16: S_GYESUDEC | DN16: 0
C17: 건설기계운전사 : 212,637.00 x 16/12 x 1/8 x 25/20 = 44,299원 | DM17: S_LABJARISU | DN17: 0
C18: 화물차 운전사 : 173,879.00 x 16/12 x 1/8 x 25/20 = 36,224원 | DM18: S_K_SONLYO | DN18: 10^-7*1000
C19: 일반기계운전사 : 137,143.00 x 16/12 x 1/8 x 25/20 = 28,571원 | DM19: S_JB_METHOD | DN19: 2
DM20: S_JB_AMTDEC | DN20: 1
DM21: S_JB_RES_RMK | DN21: 0
DM22: S_JB_JBK_RMK | DN22: 1
DM23: S_JB_HP_FIRST | DN23: 기손
DM24: S_JB_HP_LAST | DN24: 호표
DM25: S_JB_LNK_MODE | DN25: 2

Sheet 견적및기타
A1: 견 적 및 기 타 단 가 | DO1: 5
DO2: A
A3: 구 분 | B3: 규 격 | C3: 수량 | D3: 단위 | E3: 합 계 | F3: 재 료 비 | G3: 노 무 비 | H3: 경 비 | I3: 낙찰율(%) | J3: 합 계 | K3: 재료비 | L3: 노무비 | M3: 경 비 | N3: 비 고 | DO3: 20
DO4: N
A5: 구역화물(4.5TON) | B5: 10Km이내 | C5: 1 | D5: 대 | E5: =F5+G5+H5 -> 42300 | F5: 0 | G5: 0 | H5: 42300 | I5: 0 | J5: =K5+L5+M5 -> 42300 | K5: =IF(I5=0,F5,TRUNC(I5/100*F5,0)) -> 0 | L5: =IF(I5=0,G5,TRUNC(I5/100*G5,0)) -> 0 | M5: =IF(I5=0,H5,TRUNC(I5/100*H5,0)) -> 42300 | DM5: E0002
A6: 구역화물(8.0TON) | B6: 40㎞이내 | C6: 1 | D6: 대 | E6: 128630 | F6: 0 | G6: 0 | H6: 128630 | I6: 0 | J6: 128630 | K6: 0 | L6: 0 | M6: 128630 | DM6: E0001
A7: 구역화물(8.0TON) | B7: 10Km이내 | C7: 1 | D7: 대 | E7: 67020 | F7: 0 | G7: 0 | H7: 67020 | I7: 0 | J7: 67020 | K7: 0 | L7: 0 | M7: 67020 | DM7: ET20007
A8: 구역화물(10.5TON) | B8: 10㎞이내 | C8: 1 | D8: 대 | E8: 87720 | F8: 0 | G8: 0 | H8: 87720 | I8: 0 | J8: 87720 | K8: 0 | L8: 0 | M8: 87720 | DM8: ES00383
A9: 하차비 | B9: 팔레트화물(기타) | C9: 1 | D9: Ton | E9: 3656 | F9: 0 | G9: 0 | H9: 3656 | I9: 0 | J9: 3656 | K9: 0 | L9: 0 | M9: 3656 | N9: 항만하역 일반육상 기타 | DM9: E001701
A10: 하차비 | B10: 일반포장품(드럼류) | C10: 1 | D10: Ton | E10: 3672 | F10: 0 | G10: 0 | H10: 3672 | I10: 0 | J10: 3672 | K10: 0 | L10: 0 | M10: 3672 | N10: 항만하역 일반육상 일반 | DM10: E001702
A11: 하차비 | B11: 유태화물(석, 석재) | C11: 1 | D11: Ton | E11: 4605 | F11: 0 | G11: 0 | H11: 4605 | I11: 0 | J11: 4605 | K11: 0 | L11: 0 | M11: 4605 | N11: 항만하역 일반육상 유태 | DM11: E001703
A12: 포스트금형제작비 | C12: 1 | D12: 식 | E12: 4600 | F12: 1658 | G12: 2942 | H12: 0 | I12: 0 | J12: 4600 | K12: =IF(I12=0,F12,TRUNC(I12/100*F12,0)) -> 1658 | L12: 2942 | M12: 0 | DM12: E1000
A13: 포스트도장 | B13: 본체칼라도장 | C13: 1 | D13: 식 | E13: 36000 | F13: 0 | G13: 36000 | H13: 0 | I13: 0 | J13: 36000 | K13: 0 | L13: 36000 | M13: 0 | DM13: E1001
A14: 핸드믹서 | B14: 200ℓ | C14: 1 | D14: 시간 | E14: 18008 | F14: 1494 | G14: 12948 | H14: 3566 | I14: 0 | J14: 18008 | K14: 1494 | L14: 12948 | M14: 3566 | DM14: ED00001
A15: 화강판석포장(T50mm) | B15: 레미콘,와아어매쉬,몰탈포함 | C15: 1 | D15: 시간 | E15: 6569000 | F15: 0 | G15: 3021740 | H15: 3547260 | I15: 0 | J15: 6569000 | K15: 0 | L15: 3021740 | M15: 3547260 | DM15: ED00002
A16: 건설폐기물처리(폐콘크리트) | C16: 1 | D16: Ton | E16: 18244 | F16: 0 | G16: 0 | H16: 18244 | I16: 0 | J16: 21000 | K16: 0 | L16: 0 | M16: 21000 | N16: 기준단가로 공사시행 시 별도 견적 확인 필요 | DM16: E0030
A17: 건설폐기물처리(폐아스팔트) | C17: 1 | D17: Ton | E17: 19819 | F17: 0 | G17: 0 | H17: 19819 | I17: 0 | J17: 22000 | K17: 0 | L17: 0 | M17: 22000 | DM17: E0031
A18: 건설폐기물처리(혼합폐기물) | B18: 소각5%이하,(건설폐재류에 폐목재, 폐합성수지 등 가연성폐기물이 혼합된 것) | C18: 1 | D18: Ton | E18: =F18+G18+H18 -> 19819 | F18: 0 | G18: 0 | H18: 19819 | I18: 0 | J18: =K18+L18+M18 -> 58000 | K18: =IF(I18=0,F18,TRUNC(I18/100*F18,0)) -> 0 | L18: =IF(I18=0,G18,TRUNC(I18/100*G18,0)) -> 0 | M18: 58000 | DM18: E0031
A19: 건설폐기물처리(혼합폐기물) | B19: 소각5%이하, 그밖의 건설폐기물(폐보드류, 폐판넬 등)에 가연성폐기물이 혼합된것 | C19: 1 | D19: Ton | E19: =F19+G19+H19 -> 19819 | F19: 0 | G19: 0 | H19: 19819 | I19: 0 | J19: =K19+L19+M19 -> 140000 | K19: =IF(I19=0,F19,TRUNC(I19/100*F19,0)) -> 0 | L19: =IF(I19=0,G19,TRUNC(I19/100*G19,0)) -> 0 | M19: 140000 | DM19: E0031
A20: 건설폐기물처리(폐합성수지) | C20: 1 | D20: Ton | E20: =F20+G20+H20 -> 19819 | F20: 0 | G20: 0 | H20: 19819 | I20: 0 | J20: =K20+L20+M20 -> 300000 | K20: =IF(I20=0,F20,TRUNC(I20/100*F20,0)) -> 0 | L20: =IF(I20=0,G20,TRUNC(I20/100*G20,0)) -> 0 | M20: 300000 | DM20: E0031
A21: 공사실명제표지판(S/T) | B21: 10*15Cm(S/T) | C21: 1 | D21: 개 | E21: 6000 | F21: 6000 | G21: 0 | H21: 0 | I21: 0 | J21: 6000 | K21: 6000 | L21: 0 | M21: 0 | DM21: E161
A22: 공사안내간판 | B22: 0.9*1.8m | C22: 1 | D22: 개 | E22: 120000 | F22: 0 | G22: 0 | H22: 120000 | I22: 0 | J22: 120000 | K22: 0 | L22: 0 | M22: 120000 | DM22: E000-0110
A23: 플레이트콤팩트 | C23: 1 | D23: 식 | E23: 11600 | F23: 1100 | G23: 10300 | H23: 200 | I23: 0 | J23: 11600 | K23: 1100 | L23: 10300 | M23: 200 | DM23: E000-112

Sheet 노임단가
A1: 노 임 단 가 | DN1: 5
DN2: A
A3: 번호 | B3: 직 종 명 | C3: 단위 | D3: 건 설 협 회 | F3: 조 달 청 | H3: 기타단가 | I3: 단 가 | J3: 낙찰율(%) | K3: 단 가 | L3: 비 고 | N3: 건설부문 시중노임 | P3: 공표일 | DN3: 38
D4: 2021상반기 | E4: 2020년하반기 | F4: 상반기 | G4: 하반기 | N4: 번 호 | O4: 직 종 명 | P4: 2021.1.1 | DN4: L
A5: 1049 | B5: 화물차운전사 | C5: 인 | D5: =VLOOKUP(A5,$N$5:$P$128,3,0) -> 173879 | E5: 176975 | F5: 0 | G5: 0 | H5: 0 | I5: =D5 -> 173879 | J5: 0 | K5: =IF(J5=0,I5,TRUNC(J5/100*I5,0)) -> 173879 | N5: 1001 | O5: 작업반장 | P5: 180013 | DL5: W1049
A6: 1048 | B6: 건설기계운전사 | C6: 인 | D6: =VLOOKUP(A6,$N$5:$P$128,3,0) -> 212637 | E6: 203878 | F6: 0 | G6: 0 | H6: 0 | I6: =D6 -> 212637 | J6: 0 | K6: 212637 | N6: 1002 | O6: 보통인부 | P6: 141096 | DL6: W1048
A7: 1003 | B7: 특별인부 | C7: 인 | D7: =VLOOKUP(A7,$N$5:$P$128,3,0) -> 179203 | E7: 167926 | F7: 0 | G7: 0 | H7: 0 | I7: 179203 | J7: 0 | K7: 179203 | N7: 1003 | O7: 특별인부 | P7: 179203 | DL7: W1003
A8: 1002 | B8: 보통인부 | C8: 인 | D8: 141096 | E8: 138989 | F8: 0 | G8: 0 | H8: 0 | I8: 141096 | J8: 0 | K8: 141096 | N8: 1004 | O8: 조력공 | P8: 152740 | DL8: W1002
A9: 1050 | B9: 일반기계운전사 | C9: 인 | D9: =VLOOKUP(A9,$N$5:$P$128,3,0) -> 137143 | E9: 137974 | F9: 0 | G9: 0 | H9: 0 | I9: 137143 | J9: 0 | K9: 137143 | N9: 1005 | O9: 제도사 | P9: 186251 | DL9: W1050
A10: 1019 | B10: 포 장 공 | C10: 인 | D10: 212761 | E10: 196174 | F10: 0 | G10: 0 | H10: 0 | I10: 212761 | J10: 0 | K10: 212761 | N10: 1006 | O10: 비계공 | P10: 247977 | DL10: W1019
A11: 1013 | B11: 콘크리트공 | C11: 인 | D11: 215145 | E11: 211203 | F11: 0 | G11: 0 | H11: 0 | I11: 215145 | J11: 0 | K11: 215145 | N11: 1007 | O11: 형틀목공 | P11: 226280 | DL11: W1013
A12: 1029 | B12: 도 장 공 | C12: 인 | D12: 213676 | E12: 200386 | F12: 0 | G12: 0 | H12: 0 | I12: 213676 | J12: 0 | K12: 213676 | N12: 1008 | O12: 철근공 | P12: 228896 | DL12: W1029
A13: 1006 | B13: 비 계 공 | C13: 인 | D13: 247977 | E13: 236858 | F13: 0 | G13: 0 | H13: 0 | I13: 247977 | J13: 0 | K13: 247977 | N13: 1009 | O13: 철공 | P13: 200155 | DL13: W1006
A14: 1007 | B14: 형틀목공 | C14: 인 | D14: 226280 | E14: 220808 | F14: 0 | G14: 0 | H14: 0 | I14: 226280 | J14: 0 | K14: 226280 | N14: 1010 | O14: 철판공 | P14: 181604 | DL14: W1007
A15: 1017 | B15: 할 석 공 | C15: 인 | D15: 189028 | E15: 189535 | F15: 0 | G15: 0 | H15: 0 | I15: 189028 | J15: 0 | K15: 189028 | N15: 1011 | O15: 철골공 | P15: 205246 | DL15: W1017
A16: 1015 | B16: 착 암 공 | C16: 인 | D16: 173250 | E16: 164614 | F16: 0 | G16: 0 | H16: 0 | I16: 173250 | J16: 0 | K16: 173250 | N16: 1012 | O16: 용접공 | P16: 225966 | DL16: W1015
A17: 1012 | B17: 용 접 공 | C17: 인 | D17: 225966 | E17: 224357 | F17: 0 | G17: 0 | H17: 0 | I17: 225966 | J17: 0 | K17: 225966 | N17: 1013 | O17: 콘크리트공 | P17: 215145 | DL17: W1012
A18: 1001 | B18: 작업반장 | C18: 인 | D18: 180013 | E18: 174074 | F18: 0 | G18: 0 | H18: 0 | I18: 180013 | J18: 0 | K18: 180013 | N18: 1014 | O18: 보링공 | P18: 191340 | DL18: W1001
A19: 1008 | B19: 철 근 공 | C19: 인 | D19: 228896 | E19: 225461 | F19: 0 | G19: 0 | H19: 0 | I19: 228896 | J19: 0 | K19: 228896 | N19: 1015 | O19: 착암공 | P19: 173250 | DL19: W1008
A20: 1018 | B20: 포 설 공 | C20: 인 | D20: 172935 | E20: 161580 | F20: 0 | G20: 0 | H20: 0 | I20: 172935 | J20: 0 | K20: 172935 | N20: 1016 | O20: 화약취급공 | P20: 206294 | DL20: W1018
A21: 1038 | B21: 조 경 공 | C21: 인 | D21: 181378 | E21: 183149 | F21: 0 | G21: 0 | H21: 0 | I21: 181378 | J21: 0 | K21: 181378 | N21: 1017 | O21: 할석공 | P21: 189028 | DL21: W1038
A22: 1039 | B22: 배 관 공 | C22: 인 | D22: 201852 | E22: 189198 | F22: 0 | G22: 0 | H22: 0 | I22: 201852 | J22: 0 | K22: 201852 | N22: 1018 | O22: 포설공 | P22: 172935 | DL22: W1039
A23: 1040 | B23: 배 관 공(수도) | C23: 인 | D23: =VLOOKUP(A23,$N$5:$P$128,3,0) -> 205381 | E23: 197689 | F23: 0 | G23: 0 | H23: 0 | I23: =D23 -> 205381 | J23: 0 | K23: =IF(J23=0,I23,TRUNC(J23/100*I23,0)) -> 205381 | N23: 1019 | O23: 포장공 | P23: 212761 | DL23: W1039
A24: 1027 | B24: 미 장 공 | C24: 인 | D24: 228423 | E24: 217740 | F24: 0 | G24: 0 | H24: 0 | I24: 228423 | J24: 0 | K24: 228423 | N24: 1020 | O24: 잠수부 | P24: 285645 | DL24: W1027
A25: 1009 | B25: 철 공 | C25: 인 | D25: 200155 | E25: 194315 | F25: 0 | G25: 0 | H25: 0 | I25: 200155 | J25: 0 | K25: 200155 | N25: 1021 | O25: 조적공 | P25: 217664 | DL25: W1009
A26: 1021 | B26: 조 적 공 | C26: 인 | D26: 217664 | E26: 210537 | F26: 0 | G26: 0 | H26: 0 | I26: 217664 | J26: 0 | K26: 217664 | N26: 1022 | O26: 견출공 | P26: 199735 | DL26: W1021
A27: 74 | B27: 레이저광선원 | C27: 인 | D27: 87935 | E27: 87935 | F27: 0 | G27: 0 | H27: 0 | I27: 87935 | J27: 0 | K27: 87935 | L27: 제조업 | N27: 1023 | O27: 건축목공 | P27: 224657 | DL27: W1-1059
A28: 81 | B28: 연삭기 및 연마기조작원 | C28: 인 | D28: 80761 | E28: 80761 | F28: 0 | G28: 0 | H28: 0 | I28: 80761 | J28: 0 | K28: 80761 | L28: 제조업 | N28: 1024 | O28: 창호공 | P28: 217409 | DL28: W1-1075
A29: 59 | B29: 재단원[프레스기조작원(자동절단원)] | C29: 인 | D29: 85740 | E29: 85740 | F29: 0 | G29: 0 | H29: 0 | I29: 85740 | J29: 0 | K29: 85740 | L29: 제조업 | N29: 1025 | O29: 유리공 | P29: 205044 | DL29: W1-1051
A30: 59 | B30: 재단원(철물재단원) | C30: 인 | D30: 85740 | E30: 85740 | F30: 0 | G30: 0 | H30: 0 | I30: 85740 | J30: 0 | K30: 85740 | L30: 제조업 | N30: 1026 | O30: 방수공 | P30: 174334 | DL30: W1-1032
A31: 72 | B31: 벤딩머쉰조작원 | C31: 인 | D31: 104737 | E31: 104737 | F31: 0 | G31: 0 | H31: 0 | I31: 104737 | J31: 0 | K31: 104737 | L31: 제조업 | N31: 1027 | O31: 미장공 | P31: 228423 | DL31: W1-1045
A32: 49 | B32: 용접원 | C32: 인 | D32: 91928 | E32: 91928 | F32: 0 | G32: 0 | H32: 0 | I32: 91928 | J32: 0 | K32: 91928 | L32: 제조업 | N32: 1028 | O32: 타일공 | P32: 230160 | DL32: W1-1071
A33: 27 | B33: 세척원 | C33: 인 | D33: 78123 | E33: 78123 | F33: 0 | G33: 0 | H33: 0 | I33: 78123 | J33: 0 | K33: 78123 | L33: 제조업 | N33: 1029 | O33: 도장공 | P33: 213676 | DL33: W1-1072
A34: 127 | B34: 단순노무종사원 | C34: 인 | D34: 79552 | E34: 79552 | F34: 0 | G34: 0 | H34: 0 | I34: 79552 | J34: 0 | K34: 79552 | L34: 제조업 | N34: 1030 | O34: 내장공 | P34: 206253 | DL34: W1-1077
A35: 31 | B35: 건설중급기술자 | C35: 인 | D35: 219451 | E35: 219451 | F35: 0 | G35: 0 | H35: 0 | I35: 219451 | J35: 0 | K35: 219451 | L35: 엔지니어링 | N35: 1031 | O35: 도배공 | P35: 185814 | DL35: W1-1176
A36: 32 | B36: 건설초급기술자 | C36: 인 | D36: 170615 | E36: 170615 | F36: 0 | G36: 0 | H36: 0 | I36: 170615 | J36: 0 | K36: 170615 | L36: 엔지니어링 | N36: 1032 | O36: 연마공 | P36: - | DL36: W0-0179
A37: 5007 | B37: 코 킹 공 | C37: 인 | D37: =VLOOKUP(A37,$N$5:$P$128,3,0) -> 187843 | E37: 181699 | F37: 0 | G37: 0 | H37: 0 | I37: 187843 | J37: 0 | K37: 187843 | N37: 1033 | O37: 석공 | P37: 212629 | DL37: W0-0180
A38: 1033 | B38: 석 공 | C38: 인 | D38: =VLOOKUP(A38,$N$5:$P$128,3,0) -> 212629 | E38: 218442 | F38: 0 | G38: 0 | H38: 0 | I38: 212629 | J38: 0 | K38: 212629 | N38: 1034 | O38: 줄눈공 | P38: 169920 | DL38: W1051
N39: 1035 | O39: 판넬조립공 | P39: 186646 | DL39: W1052
N40: 1036 | O40: 지붕잇기공 | P40: 181305
N41: 1037 | O41: 벌목부 | P41: 200000
N42: 1038 | O42: 조경공 | P42: 181378
N43: 1039 | O43: 배관공 | P43: 201852
N44: 1040 | O44: 배관공(수도) | P44: 205381
N45: 1041 | O45: 보일러공 | P45: 190000
N46: 1042 | O46: 위생공 | P46: 193773
N47: 1043 | O47: 덕트공 | P47: 181676
N48: 1044 | O48: 보온공 | P48: 184244
N49: 1045 | O49: 인력운반공 | P49: 152601
N50: 1046 | O50: 궤도공 | P50: 163911
N51: 1047 | O51: 건설기계조장 | P51: 162226
N52: 1048 | O52: 건설기계운전사 | P52: 212637
N53: 1049 | O53: 화물차운전사 | P53: 173879
N54: 1050 | O54: 일반기계운전사 | P54: 137143
N55: 1051 | O55: 기계설비공 | P55: 190522
N56: 1052 | O56: 준설선선장 | P56: -
N57: 1053 | O57: 준설선기관사 | P57: -
N58: 1054 | O58: 준설선운전사 | P58: -
N59: 1055 | O59: 선원 | P59: -
N60: 1056 | O60: 플랜트배관공 | P60: 266618
N61: 1057 | O61: 플랜트제관공 | P61: 208513
N62: 1058 | O62: 플랜트용접공 | P62: 238423
N63: 1059 | O63: 플랜트특수용접공 | P63: 285714
N64: 1060 | O64: 플랜트기계설치공 | P64: 217415
N65: 1061 | O65: 플랜트특별인부 | P65: 176704
N66: 1062 | O66: 플랜트케이블전공 | P66: 274707
N67: 1063 | O67: 플랜트계장공 | P67: 196381
N68: 1064 | O68: 플랜트덕트공 | P68: 183708
N69: 1065 | O69: 플랜트보온공 | P69: 219868
N70: 1066 | O70: 제철축로공 | P70: 260000
N71: 1067 | O71: 비파괴시험공 | P71: 227625
N72: 1068 | O72: 특급품질관리원 | P72: 182441
N73: 1069 | O73: 고급품질관리원 | P73: 175386
N74: 1070 | O74: 중급품질관리원 | P74: 160900
N75: 1071 | O75: 초급품질관리원 | P75: 136668
N76: 1072 | O76: 지적기사 | P76: 248325
N77: 1073 | O77: 지적산업기사 | P77: 211956
N78: 1074 | O78: 지적기능사 | P78: 172575
N79: 1075 | O79: 내선전공 | P79: 242731
N80: 1076 | O80: 특고압케이블전공 | P80: 371737
N81: 1077 | O81: 고압케이블전공 | P81: 313970
N82: 1078 | O82: 저압케이블전공 | P82: 254661
N83: 1079 | O83: 송전전공 | P83: 458124
N84: 1080 | O84: 송전활선전공 | P84: 501102
N85: 1081 | O85: 배전전공 | P85: 361209
N86: 1082 | O86: 배전활선전공 | P86: 472721
N87: 1083 | O87: 플랜트전공 | P87: 216250
N88: 1084 | O88: 계장공 | P88: 245687
N89: 1085 | O89: 철도신호공 | P89: 254765
N90: 1086 | O90: 통신내선공 | P90: 224251
N91: 1087 | O91: 통신설비공 | P91: 245619
N92: 1088 | O92: 통신외선공 | P92: 319849
N93: 1089 | O93: 통신케이블공 | P93: 339623
N94: 1090 | O94: 무선안테나공 | P94: 273520
N95: 1091 | O95: 석면해체공 | P95: 184615
N96: 2001 | O96: 광케이블설치사 | P96: 360206
N97: 2002 | O97: H/W시험사 | P97: 330411
N98: 2003 | O98: S/W시험사 | P98: 354793
N99: 3001 | O99: 도편수 | P99: 421053
N100: 3002 | O100: 드잡이공 | P100: -
N101: 3003 | O101: 한식목공 | P101: 246346
N102: 3004 | O102: 한식목공조공 | P102: 202105
N103: 3005 | O103: 한식석공 | P103: 324939
N104: 3006 | O104: 한식미장공 | P104: 246667
N105: 3007 | O105: 한식와공 | P105: 290026
N106: 3008 | O106: 한식와공조공 | P106: 227495
N107: 3009 | O107: 목조각공 | P107: 245000
N108: 3010 | O108: 석조각공 | P108: -
N109: 3011 | O109: 특수화공 | P109: (※238,720)
N110: 3012 | O110: 화공 | P110: -
N111: 3013 | O111: 드잡이공편수 | P111: -
N112: 3014 | O112: 한식미장공편수 | P112: 261429
N113: 3015 | O113: 한식와공편수 | P113: 365113
N114: 3016 | O114: 한식단청공편수 | P114: 247727
N115: 3017 | O115: 한식석공조공 | P115: 256000
N116: 3018 | O116: 한식미장공조공 | P116: 220000
N117: 4001 | O117: 원자력플랜트전공 | P117: 219796
N118: 4002 | O118: 원자력용접공 | P118: 201040
N119: 4003 | O119: 원자력기계설치공 | P119: 214418
N120: 4004 | O120: 원자력품질관리사 | P120: 261522
N121: 5001 | O121: 통신관련기사 | P121: 257342
N122: 5002 | O122: 통신관련산업기사 | P122: 254403
N123: 5003 | O123: 통신관련기능사 | P123: 206555
N124: 5004 | O124: 전기공사기사 | P124: 263081
N125: 5005 | O125: 전기공사산업기사 | P125: 241167
N126: 5006 | O126: 변전전공 | P126: 369045
N127: 5007 | O127: 코킹공 | P127: 187843
N128: 5008 | O128: 특급품질관리기술인 | P128: 265082
N129: 5009 | O129: 고급품질관리기술인 | P129: 206730
N130: 5010 | O130: 중급품질관리기술인 | P130: 180381
N131: 5011 | O131: 초급품질관리기술인 | P131: 150360

Sheet 자재단가
A1: 자 재 단 가 | DO1: 5
S2: (단위:원, VAT별도) | DO2: A
A3: 품 명 | B3: 규 격 | C3: 단위 | D3: 가 격 정 보 | F3: 물 가 자 료 | H3: 물 가 정 보 | J3: 거 래 가 격 | L3: 유 통 물 가 | N3: 유 통 물 가 | P3: 단 가 | Q3: 낙찰율(%) | R3: 적 용 단 가 | S3: 비 고 | DO3: 164
D4: 단 가 | E4: Page | F4: 단 가 | G4: Page | H4: 단 가 | I4: Page | J4: 단 가 | K4: Page | L4: 단 가 | M4: Page | N4: 단 가 | O4: Page | DO4: S
A5: 환 율 | B5: 1$ | C5: 원 | D5: 1083.1 | E5: 서울외국환 | P5: =MIN(D5,F5,H5,J5,L5,N5) -> 1083.1 | Q5: 0 | R5: =IF(Q5=0,P5,TRUNC(Q5/100*P5,0)) -> 1083.1 | S5: 1월2일 매매기준율 | DM5: M0000-001
A6: 휘 발 유 | B6: 2021.1월 | C6: ℓ | D6: 1499.33 | E6: 석유공사 | P6: =MIN(D6,F6,H6,J6,L6,N6) -> 1499.33 | Q6: 0 | R6: 1499.33 | S6: 부가세제외 | DM6: M0000-100
A7: 경 유 | B7: 2021.1월 | C7: ℓ | D7: 1303.69 | E7: 석유공사 | P7: 1303.69 | Q7: 0 | R7: 1303.69 | S7: 부가세제외 | DM7: M0000-101
A8: 레미콘 | B8: #57 25-18-80 | C8: ㎥ | D8: 61270 | E8: 조달청 | F8: 66100 | G8: 110 | H8: 62229 | I8: 100 | J8: 67560 | K8: 115 | N8: 60984 | O8: 66 | P8: =MIN(D8,F8,H8,J8,L8,N8) -> 60984 | Q8: 0 | R8: =IF(Q8=0,P8,TRUNC(Q8/100*P8,0)) -> 60984 | S8: 공사현장하차도 | DM8: M0765033 | DN8: K
A9: 레미콘 | B9: #57 25-18-150 | C9: ㎥ | D9: 62010 | E9: 조달청 | F9: 68380 | G9: 110 | H9: 64345 | I9: 100 | J9: 69890 | K9: 115 | N9: 63058 | O9: 66 | P9: 62010 | Q9: 0 | R9: 62010 | S9: 공사현장하차도 | DM9: M0765033 | DN9: K
A10: 레미콘 | B10: #57 25-21-120 | C10: ㎥ | D10: 64900 | E10: 조달청 | F10: 70260 | G10: 110 | H10: 68435 | I10: 100 | J10: 71810 | K10: 115 | N10: 67066 | O10: 66 | P10: 64900 | Q10: 0 | R10: 64900 | S10: 공사현장하차도 | DM10: M0765034 | DN10: K
A11: 레미콘 | B11: #57 25-24-120 | C11: ㎥ | D11: 67540 | E11: 조달청 | F11: 73640 | G11: 110 | H11: 71698 | I11: 100 | J11: 75270 | K11: 115 | N11: 70264 | O11: 66 | P11: 67540 | Q11: 0 | R11: 67540 | S11: 공사현장하차도 | DM11: M0765035 | DN11: K
A12: 아스팔트콘크리트 | B12: WC-2, t13mm, 3등급 표층용 | C12: TON | D12: 72570 | E12: 일반단가계약 | F12: 70000 | G12: 154 | H12: 74240 | I12: 214 | J12: 70000 | K12: 177 | P12: 70000 | Q12: 0 | R12: 70000 | S12: 현장도착도 | DM12: M1155009 | DN12: K
A13: 아스팔트콘크리트 | B13: BB-2, t30mm, 3등급 기층용 | C13: TON | D13: 61340 | E13: 일반단가계약 | F13: 63000 | G13: 154 | H13: 63460 | I13: 214 | J13: 60000 | K13: 177 | P13: 60000 | Q13: 0 | R13: 60000 | S13: 현장도착도 | DM13: M1158003 | DN13: K
A14: 칼라투수콘크리트(보도용) | B14: 13~180㎏/㎠ | C14: ㎥ | H14: 120000 | I14: 214 | J14: 120000 | K14: 179 | P14: 120000 | Q14: 0 | R14: 120000 | S14: 현장도착도 | DM14: M0110 | DN14: K
A15: 자연석 경계석 | B15: 도로용(직선)10*10*100 | C15: EA | F15: 8280 | G15: 181 | H15: 6200 | I15: 232 | J15: 6200 | K15: 208 | N15: 6200 | O15: 193 | P15: 6200 | Q15: 0 | R15: 6200 | S15: 납품장소차상도 | DM15: M000-1122 | DN15: K
A16: 자연석 경계석 | B16: 도로용(직선)15*15*100 | C16: EA | F16: 15600 | G16: 181 | H16: 11000 | I16: 232 | J16: 11000 | K16: 208 | N16: 11000 | O16: 193 | P16: 11000 | Q16: 0 | R16: 11000 | S16: 납품장소차상도 | DM16: M1212009 | DN16: K
A17: 자연석 경계석 | B17: 보차도(직선)20*25*100,30R | C17: EA | F17: 29520 | G17: 181 | H17: 39120 | I17: 232 | N17: 27490 | O17: 193 | P17: 27490 | Q17: 0 | R17: 27490 | S17: 납품장소차상도 | DM17: M1209009 | DN17: K
A18: 자연석 경계석 | B18: 보차도(직선)20*30*100,30R | C18: EA | F18: 60480 | G18: 181 | H18: 70490 | I18: 232 | N18: 50500 | O18: 193 | P18: 50500 | Q18: 0 | R18: 50500 | S18: 납품장소차상도 | DM18: M00-0290 | DN18: K
A19: 인터록킹블록 | B19: T=60~80㎜ | C19: ㎡ | F19: 10000 | G19: 186 | J19: 10500 | K19: 215 | P19: 10000 | Q19: 0 | R19: 10000 | S19: 납품장소차상도 | DM19: M1284013 | DN19: K
A20: 스틸그레이팅뚜껑 | B20: 500x400x50mm | C20: EA | D20: 17700 | E20: 관급자재 | P20: 17700 | Q20: 0 | R20: 17700 | S20: 납품장소하차도 | DM20: M1573003 | DN20: K
A21: 스틸그레이팅받침 | B21: 510x410x55x60mm | C21: EA | D21: 10300 | E21: 관급자재 | P21: 10300 | Q21: 0 | R21: 10300 | S21: 납품장소하차도 | DM21: M1573103 | DN21: K
A22: 스틸그레이팅받침 | B22: 1010x410x55x60mm | C22: EA | D22: 14600 | E22: 관급자재 | P22: 14600 | Q22: 0 | R22: 14600 | S22: 납품장소하차도 | DM22: M1573105 | DN22: K
A23: 원심력철근콘크리트관 | B23: 보통관B2 300*30(MM) | C23: M | D23: 19640 | E23: 관급자재 | F23: 21760 | G23: 298 | H23: 24900 | I23: 316 | J23: 22440 | K23: 319 | N23: 24400 | O23: 105 | P23: 19640 | Q23: 0 | R23: 19640 | S23: 납품장소차상도 | DM23: M1749009 | DN23: K
A24: 원심력철근콘크리트관 | B24: 보통관B2 400*35(MM) | C24: M | D24: 20108 | E24: 관급자재 | F24: 24560 | G24: 298 | H24: 28200 | I24: 316 | J24: 25360 | K24: 319 | N24: 27600 | O24: 105 | P24: 20108 | Q24: 0 | R24: 20108 | S24: 납품장소차상도 | DM24: M1749015 | DN24: K
A25: 원심력철근콘크리트관 | B25: 보통관B2 450*38(MM) | C25: M | D25: 22680 | E25: 관급자재 | F25: 26480 | G25: 298 | H25: 30400 | I25: 316 | J25: 27400 | K25: 319 | N25: 29700 | O25: 105 | P25: =MIN(D25,F25,H25,J25,L25,N25) -> 22680 | Q25: 0 | R25: =IF(Q25=0,P25,TRUNC(Q25/100*P25,0)) -> 22680 | S25: 납품장소차상도 | DM25: M1749018 | DN25: K
A26: 원심력철근콘크리트관 | B26: 보통관B2 600*50(MM) | C26: M | D26: 38048 | E26: 관급자재 | F26: 43800 | G26: 298 | H26: 50300 | I26: 316 | J26: 45280 | K26: 319 | N26: 49200 | O26: 105 | P26: =MIN(D26,F26,H26,J26,L26,N26) -> 38048 | Q26: 0 | R26: =IF(Q26=0,P26,TRUNC(Q26/100*P26,0)) -> 38048 | S26: 납품장소차상도 | DM26: M1749024 | DN26: K
A27: 원심력철근콘크리트관 | B27: 보통관B2 800*66(MM) | C27: M | D27: 63180 | E27: 관급자재 | F27: 77280 | G27: 298 | H27: 88800 | I27: 316 | J27: 79840 | K27: 319 | N27: 87000 | O27: 105 | P27: =MIN(D27,F27,H27,J27,L27,N27) -> 63180 | Q27: 0 | R27: =IF(Q27=0,P27,TRUNC(Q27/100*P27,0)) -> 63180 | S27: 납품장소차상도 | DM27: M1749030 | DN27: K
A28: 원심력철근콘크리트관 | B28: 보통관B2 1000*82(MM) | C28: M | D28: 109364 | E28: 관급자재 | F28: 122840 | G28: 298 | H28: 141200 | I28: 316 | J28: 126880 | K28: 319 | N28: 138300 | O28: 105 | P28: =MIN(D28,F28,H28,J28,L28,N28) -> 109364 | Q28: 0 | R28: =IF(Q28=0,P28,TRUNC(Q28/100*P28,0)) -> 109364 | S28: 납품장소차상도 | DM28: M1749036 | DN28: K
A29: 원심력철근콘크리트관 | B29: 보통관B2 1200*95(MM) | C29: M | D29: 153356 | E29: 관급자재 | F29: 172400 | G29: 298 | H29: 198300 | I29: 316 | J29: 178080 | K29: 319 | N29: 194300 | O29: 105 | P29: =MIN(D29,F29,H29,J29,L29,N29) -> 153356 | Q29: 0 | R29: =IF(Q29=0,P29,TRUNC(Q29/100*P29,0)) -> 153356 | S29: 납품장소차상도 | DM29: M1749042 | DN29: K
A30: 이형철근 | B30: D16MM~D32MM, SD300 | C30: TON | F30: 670000 | G30: 42 | H30: 686000 | I30: 46 | J30: 670000 | K30: 49 | N30: 684000 | O30: 17 | P30: 670000 | Q30: 0 | R30: 670000 | S30: 현장도착도 | DM30: M0012009 | DN30: K
A31: 수목보호판 | B31: 1200*1000,압연강 | C31: 조 | D31: 176700 | E31: 다수공급자 | F31: 296600 | G31: 368 | H31: 271600 | I31: 371 | J31: 271600 | K31: 410 | N31: 313630 | O31: 262 | P31: 176700 | Q31: 0 | R31: 176700 | S31: 납품장소하차도 | DM31: M0133 | DN31: K
A32: 자연석판석 | B32: T=50mm, 버너,포천석 | C32: ㎡ | D32: 38800 | E32: 관급자재 | J32: 66600 | K32: 208 | P32: 38800 | Q32: 0 | R32: 38800 | S32: 납품장소차상도 | DM32: M0134 | DN32: K
A33: 호안블럭 | B33: I형 400*400*120 | C33: ㎡ | D33: 12800 | F33: 16800 | G33: 280 | P33: 12800 | Q33: 0 | R33: 12800 | S33: 공장상차도 | DM33: M0112
A34: 보통시멘트 | B34: 40KG/대(포장품) | C34: ㎏ | F34: 102.25 | G34: 105 | H34: 109.075 | I34: 102 | J34: 104.525 | K34: 110 | N34: 99.075 | O34: 62 | P34: 99.075 | Q34: 0 | R34: 99.075 | S34: 점포상차도 | DM34: M0747003
A35: 점자및유도블럭 | B35: 300*300*60 황색 | C35: EA | F35: 2500 | G35: 184 | J35: 3960 | K35: 214 | N35: 3000 | O35: 195 | P35: 2500 | Q35: 0 | R35: 2500 | S35: 납품장소하차도 | DM35: M1284013-1
A36: 강모래 | B36: 자연사(시내도착도) | C36: ㎥ | F36: 30000 | G36: 103 | H36: 30000 | I36: 99 | J36: 30000 | K36: 110 | N36: 32000 | O36: 61 | P36: =MIN(D36,F36,H36,J36,L36,N36) -> 30000 | Q36: 0 | R36: 30000 | S36: 시내도착도 | DM36: M0717051
A37: 자연자갈(서울) | B37: #467(시내도착도) | C37: ㎥ | F37: 30000 | G37: 102 | P37: 30000 | Q37: 0 | R37: 30000 | S37: 시내도착도 | DM37: M0720051
A38: 자연자갈(서울) | B38: #57(시내도착도) | C38: ㎥ | F38: 30000 | G38: 102 | P38: 30000 | Q38: 0 | R38: 30000 | S38: 시내도착도 | DM38: M0720053
A39: 혼합골재(서울) | B39: 40mm 이하 | C39: ㎥ | F39: 20000 | G39: 102 | H39: 23000 | I39: 99 | J39: 21000 | K39: 109 | N39: 24000 | O39: 61 | P39: 20000 | Q39: 0 | R39: 20000 | S39: 시내도착도 | DM39: M0723053
A40: 보조기층재(서울) | B40: 70mm 이하 | C40: ㎥ | F40: 20000 | G40: 102 | H40: 23000 | I40: 99 | J40: 21000 | K40: 110 | N40: 24000 | O40: 61 | P40: 20000 | Q40: 0 | R40: 20000 | S40: 시내도착도 | DM40: M0717081
A41: 보차도경계블록 | B41: B형 18x20.5x25x100㎝ | C41: EA | F41: 7600 | G41: 180 | H41: 6300 | I41: 230 | J41: 5800 | K41: 207 | N41: 7200 | O41: 194 | P41: =MIN(D41,F41,H41,J41,L41,N41) -> 5800 | Q41: 0 | R41: =IF(Q41=0,P41,TRUNC(Q41/100*P41,0)) -> 5800 | S41: 공장상차도 | DM41: M1185006
A42: 도로경계블록 | B42: SC형 15x15x100㎝ | C42: EA | F42: 4500 | G42: 180 | H42: 4500 | I42: 228 | J42: 3500 | K42: 207 | N42: 4200 | O42: 194 | P42: =MIN(D42,F42,H42,J42,L42,N42) -> 3500 | Q42: 0 | R42: =IF(Q42=0,P42,TRUNC(Q42/100*P42,0)) -> 3500 | S42: 공장상차도 | DM42: M1188009
A43: 산소 | B43: 99.8% 이상 | C43: ℓ | D43: 2.22 | E43: 시설공통자재 20204084 | F43: 1.91 | G43: 33 | H43: 2.5 | I43: 1483 | J43: 2.5 | K43: 1467 | N43: 1.91 | O43: 1238 | P43: 1.91 | Q43: 0 | R43: 1.91 | S43: 점포상차도 | DM43: M00023
A44: 아세틸렌 | B44: 용접용 98% 이상 | C44: ㎏ | D44: 12042 | E44: 시설공통자재 20204095 | F44: 13000 | G44: 33 | H44: 25000 | I44: 1483 | J44: 14100 | K44: 1467 | N44: 13000 | O44: 1238 | P44: 12042 | Q44: 0 | R44: 12042 | S44: 납품장소도 | DM44: M00025
A45: 조합페인트 | B45: KSM 6020, 2급 백색 | C45: ℓ | D45: 3640 | E45: 시설공통자재 (건축) | F45: 4383.33 | G45: 624 | H45: 5116.66 | I45: 512 | J45: 4185 | K45: 600 | N45: 4185 | O45: 476 | P45: 3640 | Q45: 0 | R45: 3640 | S45: 납품장소도 | DM45: M4077021
A46: 녹막이페인트 | B46: KSM6030 2종 1류 | C46: ℓ | D46: 6390 | E46: 시설공통자재 (건축) | F46: 6838.88 | G46: 624 | H46: 8400 | I46: 512 | J46: 6838.88 | K46: 600 | N46: 6383.88 | O46: 477 | P46: 6383.88 | Q46: 0 | R46: 6383.88 | S46: 납품장소도 | DM46: M4074005
A47: 신너(조합페인트용) | B47: KSM-6060(2종) | C47: ℓ | F47: 2683.33 | G47: 624 | H47: 2700 | I47: 512 | J47: 1777.78 | K47: 600 | N47: 1777.78 | O47: 476 | P47: 1777.78 | Q47: 0 | R47: 1777.78 | S47: 납품장소도 | DM47: M4092005
A48: 퍼티 | B48: 코레돔 MC-319 | C48: ℓ | D48: 3090 | E48: 시설공통자재 (건축) | F48: 3833.33 | G48: 633 | H48: 3833.33 | I48: 548 | J48: 3833.33 | K48: 606 | N48: 3833.33 | O48: 479 | P48: 3090 | Q48: 0 | R48: 3090 | S48: 납품장소도 | DM48: M4119007
A49: 도로용페인트(상온형) | B49: KSM6080(백색) | C49: ℓ | D49: 4275 | E49: 시설공통자재 (건축) | F49: 4950 | G49: 636 | H49: 4500 | I49: 266 | J49: 4450 | K49: 249 | N49: 4950 | O49: 481 | P49: 4275 | Q49: 0 | R49: 4275 | S49: 납품장소도 | DM49: M1500003
A50: 도로용페인트(상온형) | B50: KSM6080(황색1종) | C50: ℓ | F50: 5877.77 | G50: 636 | H50: 5700 | I50: 266 | J50: 5650 | K50: 249 | N50: 5877.78 | O50: 481 | P50: 5650 | Q50: 0 | R50: 5650 | S50: 공장상차도 | DM50: M1500006
A51: 도로표지용 도료 | B51: 융착식(수용성) 백색 | C51: ㎏ | F51: 3140 | G51: 636 | H51: 4300 | I51: 278 | J51: 3200 | K51: 249 | N51: 3140 | O51: 481 | P51: 3140 | Q51: 0 | R51: 3140 | S51: 납품장소하차도 | DM51: M1500051
A52: 도로표지용 도료 | B52: 융착식(수용성) 황색1종 | C52: ㎏ | F52: 4140 | G52: 636 | H52: 4500 | I52: 278 | J52: 4100 | K52: 249 | N52: 4140 | O52: 481 | P52: 4100 | Q52: 0 | R52: 4100 | S52: 납품장소하차도 | DM52: M1500067
A53: 도로표지용 도료 | B53: 융착식(수용성) 청색1호 | C53: ㎏ | F53: 5300 | G53: 636 | H53: 5000 | I53: 278 | J53: 4400 | K53: 249 | N53: 5650 | O53: 481 | P53: 4400 | Q53: 0 | R53: 4400 | S53: 공장상차도 | DM53: M1500073
A54: 고성능융착식 도료 | B54: KSM6080-로드스틱, 백색 | C54: ㎏ | F54: 5980 | G54: 636 | H54: 5980 | I54: 278 | P54: 5980 | Q54: 0 | R54: 5980 | S54: 공장상차도 | DM54: M000-01401
A55: 고성능융착식 도료 | B55: KSM6080-로드스틱, 황색 | C55: ㎏ | F55: 6876 | G55: 636 | H55: 6876 | I55: 278 | P55: 6876 | Q55: 0 | R55: 6876 | S55: 공장상차도 | DM55: M000-01601
A56: 프라이머 | B56: 융착식 도료용 접착제 | C56: ℓ | H56: 4500 | I56: 266 | J56: 4550 | K56: 249 | P56: 4500 | Q56: 0 | R56: 4500 | S56: 공장상차도 | DM56: M1500021
A57: 도로표지용유리알 | B57: KSL2521 1호 | C57: ㎏ | F57: 1700 | G57: 206 | H57: 1700 | I57: 266 | J57: 1700 | K57: 249 | N57: 1700 | O57: 225 | P57: 1700 | Q57: 0 | R57: 1700 | S57: 공장상차도 | DM57: M1488003
A58: 도로표지용유리알 | B58: KSL2521 2호 | C58: ㎏ | F58: 1700 | G58: 206 | N58: 1700 | O58: 225 | P58: 1700 | Q58: 0 | R58: 1700 | S58: 공장상차도 | DM58: M000-0130
A59: 냉연강판(CR) | B59: 0.9x1219x2438 | C59: ㎏ | F59: 850 | G59: 52 | H59: 1005.6 | I59: 58 | J59: 885 | K59: 64 | N59: 892.6 | O59: 27 | P59: 850 | Q59: 0 | R59: 850 | S59: 점포상차도 | DM59: M0069024
A60: 전기아연도강판 | B60: 1.20x914x1829 | C60: 매 | F60: 7190.26 | G60: 60 | H60: 9427.495 | I60: 60 | J60: 7973.89 | K60: 69 | N60: 8452.443 | O60: 28 | P60: 7190.26 | Q60: 0 | R60: 7190.26 | S60: 점포상차도 | DM60: M0084039
A61: 일반구조용원형강관(HR) | B61: 38.1*1.4㎜*1.267 | C61: M | H61: 949.153 | I61: 66 | J61: 1024.653 | K61: 74 | N61: 863.636 | O61: 33 | P61: 863.636 | Q61: 0 | R61: 863.636 | S61: 점포상차도 | DM61: M0129021
A62: 기둥 | B62: 각파이프 60*60㎜,백관 | C62: M | H62: 4048 | I62: 66 | J62: 4360 | K62: 74 | N62: 3918 | O62: 33 | P62: 3918 | Q62: 0 | R62: 3918 | S62: 점포상차도 | DM62: M000-0190
A63: 보통철선 | B63: #8,4.0MM,10.1M/KG | C63: ㎏ | F63: 1270 | G63: 67 | H63: 1250 | I63: 75 | J63: 1250 | K63: 91 | N63: 1070 | O63: 42 | P63: 1070 | Q63: 0 | R63: 1070 | S63: 점포상차도 | DM63: M0144009
A64: 소철선(어니일링) | B64: #8 4.0MM 10.1M/KG | C64: ㎏ | F64: 1420 | G64: 67 | H64: 1410 | I64: 42 | J64: 1350 | K64: 60 | N64: 1160 | O64: 42 | P64: 1160 | Q64: 0 | R64: 1160 | S64: 점포상차도 | DM64: M0147006
A65: 소철선(어니일링) | B65: #20 0.9M/M 200.4M/KG | C65: ㎏ | F65: 1560 | G65: 67 | J65: 1580 | K65: 60 | N65: 1360 | O65: 42 | P65: 1360 | Q65: 0 | R65: 1360 | S65: 점포상차도 | DM65: M0147012
A66: 철못 | B66: N75,75x3.25MM | C66: ㎏ | F66: 1437.39 | G66: 68 | H66: 1375 | I66: 75 | J66: 1286 | K66: 90 | N66: 1306.25 | O66: 43 | P66: 1286 | Q66: 0 | R66: 1286 | S66: 점포상차도 | DM66: M0177018
A67: 비닐피복능형철망(PVC코팅능형망) | B67: #10,φ3.2x58x58mm | C67: ㎡ | F67: 8200 | G67: 98 | J67: 8200 | K67: 105 | N67: 8200 | O67: 58 | P67: 8200 | Q67: 0 | R67: 8200 | S67: 공장상차도 | DM67: M0675012
A68: 제강슬래그 | B68: 3-5mm (미끄럼방지용) | C68: ㎏ | N68: 110 | O68: 61 | P68: 110 | Q68: 0 | R68: 110 | S68: 공장상차도 | DM68: M0735103
A69: 양생제(피막양생제) | B69: 유성피막양생제 | C69: L | H69: 6000 | I69: 109 | J69: 2000 | K69: 125 | P69: 2000 | Q69: 0 | R69: 2000 | S69: 생산자상차도 | DM69: M0774003
A70: 혼화제 | B70: 무수축 콘크리트 | C70: ㎏ | F70: 2300 | G70: 115 | H70: 400 | I70: 109 | J70: 350 | K70: 124 | N70: 400 | O70: 69 | P70: 350 | Q70: 0 | R70: 350 | S70: 공장상차도 | DM70: M0789006
A71: 신구콘크리트접착제 | C71: ㎏ | F71: 18000 | G71: 115 | J71: 26000 | K71: 125 | N71: 20000 | O71: 68 | P71: 18000 | Q71: 0 | R71: 18000 | S71: 공장상차도 | DM71: M0825112
A72: 에폭시접착제 | B72: 신구콘크리트 | C72: ㎏ | F72: 13000 | G72: 128 | J72: 15000 | K72: 148 | P72: 13000 | Q72: 0 | R72: 13000 | S72: 공장상차도 | DM72: M0828009
A73: 외송각재 | B73: 3.6mx4.5cmx4.5cm | C73: ㎥ | D73: 376675 | E73: 시설공통자재 | F73: 434132 | G73: 138 | H73: 440120 | I73: 129 | J73: 449101.8 | K73: 152 | N73: 406586.83 | O73: 73 | P73: 376675 | Q73: 0 | R73: 376675 | S73: 점포상차도 | DM73: M0882029
A74: 외송판재 | B74: 3.6mx30cmx3.0cm | C74: ㎥ | D74: 423600 | E74: 시설공통자재 | F74: 479042 | G74: 138 | H74: 485030 | I74: 129 | J74: 502994.01 | K74: 152 | N74: 464670.65 | O74: 73 | P74: 423600 | Q74: 0 | R74: =IF(Q74=0,P74,TRUNC(Q74/100*P74,0)) -> 423600 | S74: 점포상차도 | DM74: M0888029
A75: 강관파이프(단관비계) | B75: Ø48.6*2.3t | C75: M | D75: 2700 | F75: 3050 | G75: 145 | H75: 4400 | I75: 132 | J75: 2900 | K75: 169 | N75: 2958.5 | O75: 82 | P75: =MIN(D75,F75,H75,J75,L75,N75) -> 2700 | Q75: 0 | R75: 2700 | S75: 점포상차도 | DM75: M1002009
A76: 연결핀 | B76: Ø48.6 | C76: EA | F76: 900 | G76: 145 | H76: 1800 | I76: 132 | J76: 1000 | K76: 168 | N76: 873 | O76: 82 | P76: 873 | Q76: 0 | R76: 873 | S76: 점포상차도 | DM76: M1005021
A77: 문양거푸집재(스치로폴) | B77: 910x910 | C77: 매 | F77: 6037 | G77: 151 | J77: 3018 | K77: 175 | P77: 3018 | Q77: 0 | R77: 3018 | S77: 공장상차도 | DM77: M1056003
A78: 문양박리제(유성) | B78: 문양거푸집전용 20ℓ/CAN | C78: ℓ | D78: 1637 | F78: 4000 | G78: 151 | N78: 4000 | O78: 85 | P78: 1637 | Q78: 0 | R78: 1637 | S78: 납품장소도 | DM78: M1059003
A79: 폼타이(form tie) | B79: D-TYPE 5/16x360mm | C79: 조 | J79: 225 | K79: 173 | P79: 225 | Q79: 0 | R79: 225 | S79: 공장상차도 | DM79: M1074021
A80: 스페이서 | B80: 토목,슬래브용 | C80: 본 | F80: 80 | G80: 152 | H80: 80 | I80: 132 | J80: 80 | K80: 172 | N80: 80 | O80: 87 | P80: 80 | Q80: 0 | R80: 80 | S80: 공장상차도 | DM80: M114301M
A81: 아스팔트유제 | B81: RSC-3,4 | C81: D/M | D81: 155000 | F81: 180000 | G81: 154 | H81: 160000 | I81: 214 | J81: 180000 | K81: 177 | N81: 140000 | O81: 181 | P81: 140000 | Q81: 0 | R81: 140000 | S81: 현장도착도 | DM81: M1152009
A82: 수팽창성지수재 | B82: 시공조인트,박스연결부 | C82: M | F82: 3000 | G82: 335 | H82: 2500 | I82: 163 | J82: 1900 | K82: 373 | N82: 1900 | O82: 131 | P82: 1900 | Q82: 0 | R82: 1900 | S82: 공장상차도 | DM82: M2064003
A83: U형 볼트.너트 | B83: 용융아연도금 | C83: EA | F83: 2377 | G83: 86 | H83: 2198 | I83: 88 | P83: 2198 | Q83: 0 | R83: 2198 | S83: 생산자상차도 | DM83: M2838931
A84: 콘테이너하우스 | B84: 6x 3.0x2.6m(창고용) | C84: 동 | D84: 1840000 | H84: 2500000 | I84: 704 | J84: 2700000 | K84: 736 | N84: 2000000 | O84: 89 | P84: 1840000 | Q84: 0 | R84: 1840000 | S84: 납품장소도 | DM84: M3357012
A85: 콘테이너하우스 | B85: 12x3.0x2.6m(창고용) | C85: 동 | D85: 3348000 | H85: 3900000 | I85: 704 | J85: 4200000 | K85: 736 | P85: 3348000 | Q85: 0 | R85: 3348000 | S85: 납품장소도 | DM85: M3357018
A86: 콘테이너하우스 | B86: 9x 3.0x2.6m(사무실용) | C86: 동 | D86: 3032000 | F86: 3400000 | G86: 555 | H86: 4000000 | I86: 704 | J86: 3800000 | K86: 736 | P86: 3032000 | Q86: 0 | R86: 3032000 | S86: 납품장소도 | DM86: M3357042
A87: 내수합판 | B87: 12tx1220x2440㎜ | C87: ㎡ | D87: 8419 | F87: 8566.25 | G87: 687 | H87: 9453 | I87: 633 | J87: 9002.96 | K87: 653 | N87: 8566.25 | O87: 417 | P87: 8419 | Q87: 0 | R87: 8419 | S87: 점포상차도 | DM87: M4332041
A88: PVC파이프(일반용VG2) | B88: 150mm x 4m | C88: 본 | F88: 43210 | G88: 762 | H88: 43760 | I88: 758 | J88: 42210 | K88: 779 | N88: 44000 | O88: 568 | P88: 42210 | Q88: 0 | R88: 42210 | S88: 점포상차도 | DM88: M5370017
A89: 연마지 | B89: 60#230x280㎜(공연마용) | C89: 매 | F89: 290 | G89: 1420 | J89: 260 | K89: 1353 | P89: 260 | Q89: 0 | R89: 260 | S89: 점포상차도 | DM89: M8916003
A90: 연마지 | B90: 연질용#180-#240 | C90: 매 | D90: 200 | F90: 250 | G90: 1420 | H90: 310 | I90: 1125 | J90: 220 | K90: 1353 | N90: 310 | O90: 1216 | P90: 200 | Q90: 0 | R90: 200 | S90: 납품장소도 | DM90: M8916006
A91: 블레이드(Cutter) | B91: 14",t=3.2MM | C91: 매 | F91: 152000 | G91: 1422 | H91: 169800 | I91: 1128 | J91: 210000 | K91: 1354 | N91: 169800 | O91: 1214 | P91: 152000 | Q91: 0 | R91: 152000 | S91: 점포상차도 | DM91: M8922017
A92: 용접봉(연강용) | B92: KSE4301 | C92: ㎏ | F92: 2980 | G92: 1395 | H92: 2736 | I92: 1073 | J92: 2190 | K92: 1342 | N92: 2190 | O92: 1180 | P92: 2190 | Q92: 0 | R92: 2190 | S92: 점포상차도 | DM92: M9015005
A93: PE필름 | B93: 0.1MMx90CMx91M | C93: ㎡ | D93: 540 | F93: 475 | G93: 18 | J93: 617 | K93: 1476 | N93: 475 | O93: 1230 | P93: 475 | Q93: 0 | R93: 475 | S93: 점포상차도 | DM93: M92280
A94: 프로판가스 | B94: 일반용 | C94: ㎏ | F94: 894 | G94: 0 | H94: 1695 | I94: 1482 | J94: 1571 | K94: 1467 | N94: 1650 | O94: 1237 | P94: 894 | Q94: 0 | R94: 894 | S94: 점포상차도 | DM94: M9384003
A95: PP 마대 | B95: 75CM*115CM | C95: 매 | F95: 716 | G95: 45 | H95: 800 | I95: 1542 | J95: 770 | K95: 1486 | P95: 716 | Q95: 0 | R95: 716 | S95: 점포상차도 | DM95: M9546003
A96: 물 | C96: Ton | D96: 1470 | P96: 1470 | Q96: 0 | R96: 1470 | S96: 공공요금 | DM96: MA0004
A97: 물 | C97: ℓ | D97: 1.47 | L97: 1 | P97: =MIN(D97,F97,H97,J97,L97,N97) -> 1 | Q97: 0 | R97: 1 | S97: 공공요금 | DM97: MA0004-1
A98: 치즐 | B98: 0.2M3 | C98: 대 | H98: 83000 | I98: 1036 | P98: 83000 | Q98: 0 | R98: 83000 | S98: 지정장소 | DM98: MJ016000
A99: 치즐 | B99: 0.4M3 | C99: 대 | H99: 100000 | P99: 100000 | Q99: 0 | R99: 100000 | S99: 지정장소 | DM99: MJ016001
A100: 치즐 | B100: 0.6M3 | C100: 대 | H100: 220000 | I100: 1036 | P100: 220000 | Q100: 0 | R100: 220000 | S100: 지정장소 | DM100: MJ0160011
A101: 치즐 | B101: 0.7M3 | C101: 대 | H101: 200000 | P101: 200000 | Q101: 0 | R101: 200000 | S101: 지정장소 | DM101: MJ016002
A102: 클램프 | B102: 자동 | C102: EA | F102: 1500 | G102: 145 | H102: 1500 | I102: 132 | J102: 1550 | K102: 167 | N102: 1455 | O102: 82 | P102: 1455 | Q102: 0 | R102: 1455 | S102: 공장상차도 | DM102: MYG0040
A103: 클램프 | B103: 고정 | C103: EA | F103: 1500 | G103: 145 | H103: 1500 | I103: 132 | J103: 1550 | K103: 167 | N103: 1455 | O103: 82 | P103: 1455 | Q103: 0 | R103: 1455 | S103: 공장상차도 | DM103: MYG0041
A104: 포스트형강 | B104: 100*100*1200 | C104: 개 | H104: 23760 | I104: 81 | P104: 23760 | Q104: 0 | R104: 23760 | S104: 점포상차도 | DM104: M0000001
A105: 스테인레스원형관 | B105: 63.5*1.5*2.32 | C105: M | D105: 8270 | E105: 시설공통자재 (20108833) | F105: 8650 | G105: 77 | H105: 9200 | I105: 68 | J105: 8410 | K105: 82 | N105: 9293 | O105: 38 | P105: 8270 | Q105: 0 | R105: 8270 | S105: 점포상차도 | DM105: M0000002
A106: 캡 | B106: Ø63.5 | C106: 개 | H106: 7500 | I106: P65 | P106: 7500 | Q106: 0 | R106: =IF(Q106=0,P106,TRUNC(Q106/100*P106,0)) -> 7500 | S106: 공장상차도 | DM106: M0000003
A107: 스텐레스봉 | B107: 4.0*1000 | C107: ㎏ | H107: 4620 | I107: 74 | P107: =MIN(D107,F107,H107,J107,L107,N107) -> 4620 | Q107: 0 | R107: =IF(Q107=0,P107,TRUNC(Q107/100*P107,0)) -> 4620 | S107: 점포상차도 | DM107: M0000004
A108: 알곤 | B108: 99.9% 47ℓ | C108: ℓ | F108: 638.3 | G108: 33 | H108: 638.3 | I108: 1483 | J108: 638.3 | K108: 1467 | N108: 638.3 | O108: 1238 | P108: 638.3 | Q108: 0 | R108: 638.3 | S108: 점포상차도 | DM108: M0000005
A109: 빗자루 | B109: 도로청소용 | C109: 개 | F109: 4400 | G109: 116 | H109: 4950 | I109: 1520 | N109: 4950 | O109: 1310 | P109: 4400 | Q109: 0 | R109: 4400 | S109: 점포상차도 | DM109: M0074
A110: 보온덮개 | B110: 1.8*10M | C110: 롤 | F110: 14000 | G110: 44 | P110: 14000 | Q110: 0 | R110: 14000 | S110: 공장상차도 | DM110: M0091
A111: 백업 로드 | B111: 10mm | C111: M | F111: 700 | G111: 157 | J111: 1100 | K111: 190 | P111: 700 | Q111: 0 | R111: 700 | S111: 공장상차도 | DM111: M0089
A112: 씰링재 | B112: 습식 | C112: ㎏ | F112: 22000 | G112: 127 | H112: 20000 | I112: 118 | J112: 20000 | K112: 147 | P112: 20000 | Q112: 0 | R112: 20000 | S112: 점포상차도 | DM112: M0090
A113: 에폭시프라이머 | C113: ㎏ | F113: 6500 | G113: 128 | H113: 20900 | I113: 118 | J113: 5000 | K113: 147 | P113: 5000 | Q113: 0 | R113: 5000 | S113: 공장상차도 | DM113: M0087
A114: 에폭시신너 | C114: ℓ | F114: 3800 | G114: 128 | H114: 3958 | I114: 548 | P114: =MIN(D114,F114,H114,J114,L114,N114) -> 3800 | Q114: 0 | R114: =IF(Q114=0,P114,TRUNC(Q114/100*P114,0)) -> 3800 | S114: 공장상차도 | DM114: M0088
A115: 조경석(부정형,자연석가공장치) | B115: 4목 40*50*60 | C115: M/T | F115: 80000 | G115: 380 | H115: 80000 | I115: 356 | P115: 80000 | Q115: 0 | R115: 80000 | S115: 공장상차도 | DM115: M0075 | DN115: K
A116: 부직포 | B116: 300g/㎡ | C116: ㎡ | H116: 1250 | I116: 160 | N116: 1250 | O116: 128 | P116: 1250 | Q116: 0 | R116: 1250 | S116: 공장상차도 | DM116: M0054
A117: 라바콘 | B117: 중 60cm | C117: 개 | F117: 9000 | G117: 207 | H117: 8100 | I117: 261 | P117: 8100 | Q117: 0 | R117: 8100 | S117: 점포상차도 | DM117: M0092
A118: 초조강시멘트 | B118: 20kg/대 (포장품) | C118: 대 | H118: 11000 | I118: 104 | N118: 11000 | O118: 62 | P118: 11000 | Q118: 0 | R118: 11000 | S118: 점포상차도 | DM118: M0015
A119: 결합제(미끄럼방지결합재) | B119: 흑색 | C119: ㎏ | F119: 8200 | G119: 158 | P119: 8200 | Q119: 0 | R119: 8200 | S119: 공장상차도 | DM119: M0735103-2
A120: 결합제(미끄럼방지결합재) | B120: 적색 | C120: ㎏ | F120: 8200 | G120: 158 | P120: 8200 | Q120: 0 | R120: 8200 | S120: 공장상차도 | DM120: M0735103-3
A121: 미끄럼방지 모르터 | B121: 상온도포형 | C121: ㎏ | F121: 64000 | G121: 160 | P121: 64000 | Q121: 0 | R121: 64000 | S121: 지정장소도착도 | DM121: M011001
A122: 블레이드(건식그루버장착용) | B122: 12"ⅹ4㎜ | C122: 매 | J122: 400000 | K122: 185 | P122: 400000 | Q122: 0 | R122: 400000 | S122: 점포상차도 | DM122: M000-0140
A123: 블레이드(건식그루버장착용) | B123: 12"ⅹ6㎜ | C123: 매 | J123: 500000 | K123: 185 | P123: 500000 | Q123: 0 | R123: 500000 | S123: 점포상차도 | DM123: M000-0145
A124: 블레이드 | B124: 면처리용 | C124: 개 | J124: 49000 | K124: 1354 | P124: 49000 | Q124: 0 | R124: 49000 | S124: 점포상차도 | DM124: M000-0141
A125: PE 안전휀스 | B125: 1510ⅹ410ⅹ910㎜ | C125: 개 | F125: 16000 | G125: 207 | H125: 16000 | I125: 266 | J125: 16000 | K125: 254 | P125: 16000 | Q125: 0 | R125: 16000 | S125: 점포상차도 | DM125: M000-0160
A126: 타월 | C126: 개 | D126: 1545 | F126: 2100 | G126: 138 | H126: 3300 | I126: 1533 | P126: =MIN(D126,F126,H126,J126,L126,N126) -> 1545 | Q126: 0 | R126: =IF(Q126=0,P126,TRUNC(Q126/100*P126,0)) -> 1545 | S126: 점포상차도 | DM126: M000-0170
A127: 세립도 표층용 투수콘 | B127: TC-3, 적색 | C127: ㎥ | F127: 310000 | G127: 161 | H127: 310000 | I127: 214 | P127: 310000 | Q127: 0 | R127: 310000 | S127: 지정장소도착도 | DM127: M000-3140 | DN127: K
A128: 세립도 기층용 투수콘 | B128: 25-180kg/cm2 | C128: ㎥ | F128: 100000 | G128: 161 | H128: 100000 | I128: 214 | P128: 100000 | Q128: 0 | R128: 100000 | S128: 지정장소도착도 | DM128: M000-3130 | DN128: K
A129: 투수아스팔트콘크리트 | B129: 13mm, 암갈색,자전거도로 | C129: 톤 | F129: 115000 | G129: 155 | H129: 115000 | I129: 218 | N129: 125000 | O129: 183 | P129: 115000 | Q129: 0 | R129: 115000 | S129: 생산자상차도 | DM129: M000-3120
A130: 합성세제 | B130: 가루분 | C130: g | F130: 1.49 | G130: 138 | H130: 1.57 | I130: 1539 | N130: 2.23 | O130: 1324 | P130: =MIN(D130,F130,H130,J130,L130,N130) -> 1.49 | Q130: 0 | R130: =IF(Q130=0,P130,TRUNC(Q130/100*P130,0)) -> 1.49 | S130: 점포상차도 | DM130: M000-0180
A131: 탄력볼라드(디자인) | B131: ø150*1100(세로주름형) | C131: 개 | D131: 189000 | E131: 관급자재 | P131: 189000 | Q131: 0 | R131: 189000 | S131: 납품장소하차도 | DM131: M000-0110 | DN131: K
A132: u형볼라드 | B132: ø105*h900,매립식 | C132: 개 | D132: 175000 | E132: 관급자재 | P132: 175000 | Q132: 0 | R132: 175000 | S132: 현장설치도 | DM132: M000-0150 | DN132: K
A133: 차선규제봉 | B133: 200*80*750㎜ | C133: 개 | D133: 11460 | E133: 관급자재 | F133: 30000 | G133: 207 | H133: 28500 | I133: 260 | J133: 35000 | K133: 256 | N133: 31000 | O133: 222 | P133: 11460 | Q133: 0 | R133: 11460 | S133: 납품장소하차도 | DM133: M000-0210 | DN133: K
A134: 칼라철판(강판) | B134: 800*2000*0.45 | C134: 매 | H134: 16511 | I134: 50 | P134: 16511 | Q134: 0 | R134: 16511 | S134: 점포상차도 | DM134: M000-01
A135: 띠장(컬러C형강) | B135: C-60*30*10*2.2mm | C135: M | H135: 1913 | I135: 63 | J135: 1642.5 | K135: 59 | N135: 1800 | O135: 23 | P135: =MIN(D135,F135,H135,J135,L135,N135) -> 1642.5 | Q135: 0 | R135: =IF(Q135=0,P135,TRUNC(Q135/100*P135,0)) -> 1642.5 | S135: 점포상차도 | DM135: M000-0200
A136: PE수밀벨트(밴드) | B136: ψ400㎜(흄관용) | C136: EA | H136: 20600 | I136: 317 | J136: 20600 | K136: 319 | P136: =MIN(D136,F136,H136,J136,L136,N136) -> 20600 | Q136: 0 | R136: =IF(Q136=0,P136,TRUNC(Q136/100*P136,0)) -> 20600 | S136: 공장상차도 | DM136: M1759515
A137: PE수밀벨트(밴드) | B137: ψ600㎜(흄관용) | C137: EA | H137: 26900 | I137: 317 | J137: 26900 | K137: 319 | P137: 26900 | Q137: 0 | R137: 26900 | S137: 공장상차도 | DM137: M1759524
A138: PE수밀벨트(밴드) | B138: ψ800㎜(흄관용) | C138: EA | H138: 32400 | I138: 317 | J138: 32400 | K138: 319 | P138: 32400 | Q138: 0 | R138: 32400 | S138: 공장상차도 | DM138: M1759530
A139: PE수밀벨트(밴드) | B139: ψ1000㎜(흄관용) | C139: EA | H139: 52600 | I139: 317 | J139: 52600 | K139: 319 | P139: 52600 | Q139: 0 | R139: 52600 | S139: 공장상차도 | DM139: M1759536
A140: PE수밀벨트(밴드) | B140: ψ1200㎜(흄관용) | C140: EA | H140: 65700 | I140: 317 | J140: 65700 | K140: 319 | P140: 65700 | Q140: 0 | R140: 65700 | S140: 공장상차도 | DM140: M1759542
A141: 하수관수밀시험기 | B141: D=300 | C141: 대 | H141: 254000 | I141: 301 | N141: 254000 | O141: 114 | P141: 254000 | Q141: 0 | R141: 254000 | S141: 생산자상차도 | DM141: MA0201
A142: 하수관수밀시험기 | B142: D=600 | C142: 대 | H142: 720000 | I142: 301 | N142: 720000 | O142: 114 | P142: 720000 | Q142: 0 | R142: 720000 | S142: 생산자상차도 | DM142: MA0206
A143: 하수관수밀시험기 | B143: D=800 | C143: 대 | H143: 1180000 | I143: 301 | N143: 1180000 | O143: 114 | P143: 1180000 | Q143: 0 | R143: 1180000 | S143: 생산자상차도 | DM143: MA0208
A144: PVC지수판 | B144: 200x5T KS PVC | C144: M | D144: 2500 | E144: 시설공통자재 (토목) | F144: 4500 | G144: 334 | H144: 2900 | I144: 162 | J144: 2600 | K144: 373 | P144: =MIN(D144,F144,H144,J144,L144,N144) -> 2500 | Q144: 0 | R144: =IF(Q144=0,P144,TRUNC(Q144/100*P144,0)) -> 2500 | S144: 공장상차도 | DM144: M2064063
A145: 전기료 | C145: KWH | D145: 87.7 | P145: 87.7 | Q145: 0 | R145: 87.7 | S145: 공공요금 | DM145: M000-0148
A146: 단지관(이음관,하수도분기관) | B146: D=300㎜(흄관) | C146: 조 | F146: 139000 | G146: 306 | H146: 139000 | I146: 320 | N146: 139000 | O146: 107 | P146: 139000 | Q146: 0 | R146: 139000 | S146: 공장상차도 | DM146: M000-0320
A147: 단지관(이음관,하수도분기관) | B147: D=250㎜(흄관) | C147: 조 | F147: 129000 | G147: 306 | H147: 129000 | I147: 320 | N147: 129000 | O147: 107 | P147: 129000 | Q147: 0 | R147: 129000 | S147: 공장상차도 | DM147: M000-0315
A148: 단지관(이음관,하수도분기관) | B148: D=200㎜(PVC) | C148: 조 | F148: 86600 | G148: 306 | H148: 86600 | I148: 320 | N148: 86600 | O148: 107 | P148: 86600 | Q148: 0 | R148: 86600 | S148: 공장상차도 | DM148: M000-0310
A149: 단지관(이음관,하수도분기관) | B149: D=150㎜(PVC) | C149: 조 | F149: 46900 | G149: 306 | H149: 46900 | I149: 320 | N149: 46900 | O149: 107 | P149: 46900 | Q149: 0 | R149: 46900 | S149: 공장상차도 | DM149: M000-0305
A150: 단지관(이음관,하수도분기관) | B150: D=100㎜(PVC) | C150: 조 | F150: 39700 | G150: 306 | H150: 39700 | I150: 320 | N150: 39700 | O150: 107 | P150: 39700 | Q150: 0 | R150: 39700 | S150: 공장상차도 | DM150: M000-0300
A151: 콘크리트못 | B151: N25, 30㎜ | C151: g | D151: 2.02 | F151: 2.17 | G151: 68 | J151: 3.1 | K151: 90 | N151: 2.4 | O151: 43 | P151: 2.02 | Q151: 0 | R151: 2.02 | S151: 점포상차도 | DM151: M0210
A152: 레고식조립블록 | B152: 소로형 | C152: ㎡ | D152: =TRUNC(858000/1.1,0) -> 780000 | P152: 780000 | Q152: 0 | R152: 780000 | S152: 점포상차도 | DM152: M000-0100
A153: 레고식조립블록 | B153: 중로형 | C153: ㎡ | D153: =TRUNC(1140000/1.1,0) -> 1036363 | P153: 1036363 | Q153: 0 | R153: 1036363 | S153: 점포상차도 | DM153: M000-0120
A154: 교통안전유도로봇 | B154: 20KG | C154: 개 | H154: 1800000 | I154: 272 | P154: 1800000 | Q154: 0 | R154: 1800000 | S154: 점포상차도 | DM154: M000-0350
A155: 신축이음채움재 | B155: 우레탄실란트 | C155: ㎏ | H155: 3750 | I155: 280 | J155: 3800 | K155: 194 | N155: 3750 | O155: 192 | P155: 3750 | Q155: 0 | R155: 3750 | S155: 공장상차도 | DM155: M8904030
A156: 윙카 | B156: 10m | C156: 개 | F156: 15000 | G156: 205 | H156: 15000 | I156: 266 | P156: 15000 | Q156: 0 | R156: 15000 | S156: 수요자지정장소도 | DM156: M0055
A157: 경광등 | B157: φ162 고정식D/C | C157: 조 | J157: 42800 | K157: 1102 | P157: 42800 | Q157: 0 | R157: 42800 | S157: 점포상차도 | DM157: M0056
A158: 결속선 | B158: #20 | C158: ㎏ | F158: 1530 | G158: 67 | H158: 1760 | I158: 75 | J158: 1510 | K158: 91 | N158: 1330 | O158: 42 | P158: 1330 | Q158: 0 | R158: 1330 | S158: 점포상차도 | DM158: M000-0133
A159: 와이어메쉬 | B159: #8,150㎜*150㎜ | C159: ㎡ | F159: 2080 | G159: 96 | H159: 1920 | I159: 82 | J159: 1900 | K159: 106 | N159: 2018 | O159: 58 | P159: 1900 | Q159: 0 | R159: 1900 | S159: 공장상차도 | DM159: M000-0135
A160: 하수관수밀시험기 | B160: D=450 | C160: 대 | N160: 480000 | O160: 114 | P160: 480000 | Q160: 0 | R160: 480000 | S160: 생산자상차도 | DM160: MA0204
A161: 투수용 기층공(서울) | B161: 40mm이하 | C161: ㎥ | N161: 45000 | O161: 62 | P161: 45000 | Q161: 0 | R161: 45000 | S161: 생산자상차도 | DM161: M000-0150-1
A162: wovon geotextile(하부부직포) | B162: 240g/㎡ | C162: ㎡ | J162: 2800 | K162: 183 | P162: 2800 | Q162: 0 | R162: 2800 | S162: 납품장소도착도 | DM162: M000-0210-1
A163: 투수 콘크리트 블록(차도용) | B163: 198*162*80 | C163: ㎡ | D163: 27800 | E163: 관급자재 | P163: 27800 | Q163: 0 | R163: =IF(Q163=0,P163,TRUNC(Q163/100*P163,0)) -> 27800 | S163: 납품장소도착도 | DM163: M000-0230-1 | DN163: K
A164: 투수 콘크리트 블록(보도용) | B164: 200*200*60 | C164: ㎡ | D164: 11800 | E164: 관급자재 | P164: =MIN(D164,F164,H164,J164,L164,N164) -> 11800 | Q164: 0 | R164: =IF(Q164=0,P164,TRUNC(Q164/100*P164,0)) -> 11800 | S164: 납품장소도착도 | DM164: M000-0230-1 | DN164: K
A165: 기층블록(투수) | B165: 500*500*120 | C165: ㎡ | D165: 24545 | E165: 관급자재 | P165: =MIN(D165,F165,H165,J165,L165,N165) -> 24545 | Q165: 0 | R165: =IF(Q165=0,P165,TRUNC(Q165/100*P165,0)) -> 24545 | S165: 납품장소도착도 | DM165: M000-0240-1 | DN165: K
A166: 노면파쇄기팁날 | B166: 10inch | C166: 개 | N166: 6000 | P166: =MIN(D166,F166,H166,J166,L166,N166) -> 6000 | Q166: 0 | R166: =IF(Q166=0,P166,TRUNC(Q166/100*P166,0)) -> 6000 | DM166: M000-0240-1 | DN166: K
A167: 캇타기날 | B167: 10inch | C167: 개 | N167: 90000 | O167: 1322 | P167: 90000 | Q167: 0 | R167: 90000 | S167: 점포상차도 | DM167: M000-0240-1 | DN167: K
A168: 줄눈모래 | B168: 25kg | C168: 포 | J168: 15000 | K168: 210 | N168: 15000 | O168: 62 | P168: 15000 | R168: 15000 | DM168: M000-0240-1 | DN168: K
A169: 공기주입기 | B169: (수밀시험용) | C169: EA | D169: 30000 | P169: 30000 | R169: 30000
A170: 공기호스 | B170: (수밀시험용) | C170: EA | D170: 24000 | P170: 24000 | R170: 24000
A171: 급수호스(2"x10) | B171: (수밀시험용) | C171: EA | D171: 24000 | P171: 24000 | R171: 24000
A172: 수직시험관 | B172: (수밀시험용) | C172: EA | D172: 60000 | P172: 60000 | R172: 60000
A173: 시험관호스 | B173: (수밀시험용) | C173: EA | D173: 6000 | P173: 6000 | R173: 6000
A174: Cylinder type | B174: D300mm(10회), 시험기구 | C174: 개 | D174: 254000 | P174: 254000 | R174: 254000
A175: Cylinder type | B175: D450mm(10회), 시험기구 | C175: 개 | D175: 480000 | P175: 480000 | R175: 480000
A176: Cylinder type | B176: D600mm(10회), 시험기구 | C176: 개 | D176: 720000 | P176: 720000 | R176: 720000
A177: Air Release type | B177: D300mm(10회), 시험기구 | C177: 개 | D177: 345000 | P177: 345000 | R177: 345000
A178: Air Release type | B178: D450mm(10회), 시험기구 | C178: 개 | D178: 630000 | P178: 630000 | R178: 630000
A179: Air Release type | B179: D600mm(10회), 시험기구 | C179: 개 | D179: 880000 | P179: 880000 | R179: 880000
A180: Air Release type | B180: D800mm(10회), 시험기구 | C180: 개 | D180: 1180000 | P180: 1180000 | R180: 1180000
A181: Air Release type | B181: D1000mm(10회), 시험기구 | C181: 개 | D181: 1700000 | P181: 1700000 | R181: 1700000
A182: Air Release type | B182: D1100mm(10회), 시험기구 | C182: 개 | D182: 1800000 | P182: 1800000 | R182: 1800000
